Workbook

Sheet Contents - Guide
C1: Go to Charts by Pressing Shift and Enter on Menu Item
C3: Sheet Tab | D3: Description | E3: Author
B4: 1 | C4: Contents - Guide
B5: 2 | C5: Graph Data
B6: 3 | C6: Confidence Interval
B7: 4 | C7: Bubble Charts
B8: 5 | C8: Bubble Charts (2)
B9: 6 | C9: Sensitivity Chart
B10: 7 | C10: Sensitivity Chart (2)
B11: 8 | C11: Waterfall Chart1
B12: 9 | C12: Base Case
B13: 10 | C13: Base Case + NPV
B14: 11 | C14: Low Gas Res High Price
B15: 12 | C15: Low Gas Res High Price + NPV
B16: 13 | C16: Flat Gas Price
B17: 14 | C17: Flat Gas Price + NPV
B18: 15 | C18: Prod High Case
B19: 16 | C19: Prod High Case + NPV
B20: 17 | C20: Prod Low Case
B21: 18 | C21: Prod Low Case + NPV
B22: 19 | C22: 49 COC
B23: 20 | C23: 49 COC + NPV
B24: 21 | C24: Columns
B25: 22 | C25: Waterfall Chartdata1

Sheet Graph Data
A1: Case Selection | J1: Only Positive | L1: =C46 -> FALSE | P1: Sheet | Q1: B | R1: Match | T1: =C34 -> H | U1: Match Col | V1: High Case | W1: Low Case | X1: High Case | AA1: Low Case
T2: =COLUMN(H3) -> 8 | U2: ='Graph Data'!C44 -> 5 | V2: =G37 -> 1 | W2: =V2 -> 1 | X2: =D44 -> 74 | Y2: =E44 -> 75 | Z2: 76 | AA2: =G44 -> 71 | AB2: =H44 -> 72 | AC2: 73 | AD2: =D60 -> 45 | AE2: =D61 -> 12 | AF2: =D62 -> 11
B3: Cases | C3: 1 | D3: =INDEX(D6:D17,C3) -> Base Case - Positive and Negative NPV | G3: =INDEX(C6:C17,C3) -> TRUE | J3: Fixed | L3: Include | N3: Full Title | O3: Short Title | R3: Row | S3: 1:1048576 | AD3: =E60 -> x-Axis | AE3: =E61 -> y-Axis | AF3: =E62 -> Bubble
D4: =INDEX(B6:B17,C3) -> Base Case | J4: Selection | T4: Existing Equiv CO2 | U4: =B43 -> Reduced Equivalent CO2 | AD4: =B60 -> Complexes with + NPV
K5: 0 | AE5: =B61 -> Adjusted NPV Savings | AF5: =B62 -> Percent CO2 Reduced
B6: Base Case | C6: TRUE | D6: Base Case - Positive and Negative NPV | J6: TRUE | K6: =K5+L6 -> 1 | L6: =IF($L$1,AND(J6,V6>0),J6) -> TRUE | N6: Reroute Gas Pig Trap Vent | O6: Pig Trap | P6: ="'"&$D$4&"'!" -> 'Base Case'! | Q6: =$P6&Q$1&":"&Q$1 -> 'Base Case'!B:B | R6: =MATCH($N6,INDIRECT(Q6),0) -> 5 | S6: =$P6&S$3 -> 'Base Case'!1:1048576 | T6: =INDEX(INDIRECT($S6),$R6,T$2) -> 40863215.31 | U6: =INDEX(INDIRECT($S6),$R6,U$2) -> 17178.16356 | V6: =IF($V$2<>3,SUM(X6:Z6),SUM(X6:Z6)/T6) -> 20748.22406 | W6: =IF($V$2<>3,SUM(AA6:AC6),SUM(AA6:AC6)/T6) -> 4729.229124 | X6: =INDEX(INDIRECT($S6),$R6,X$2) -> 14952.38093 | Y6: 5795.843127 | Z6: 0 | AA6: 2990.476186 | AB6: 1738.752938 | AC6: 0 | AD6: 0 | AE6: -49134649.77 | AF6: 0.0004203820827 | AG6: =O6 -> Pig Trap | AH6: ='Base Case'!D41 -> 3 | AI6: ='Base Case'!C41 -> Either
B7: Base Case + NPV | C7: FALSE | D7: Base Case - Positive NPV | J7: FALSE | K7: =K6+L7 -> 1 | L7: =IF($L$1,AND(J7,V7>0),J7) -> FALSE | N7: Limit Monthly Flare Volume | O7: Flare Limit | P7: ="'"&$D$4&"'!" -> 'Base Case'! | Q7: =$P7&Q$1&":"&Q$1 -> 'Base Case'!B:B | R7: =MATCH($N7,INDIRECT(Q7),0) -> 6 | S7: =$P7&S$3 -> 'Base Case'!1:1048576 | T7: =INDEX(INDIRECT($S7),$R7,T$2) -> 39136464.58 | U7: 10692917.42 | V7: 12420539.5 | W7: 10692917.42 | X7: 219056.8748 | Y7: 11808000.4 | Z7: 393482.2233 | AA7: 65717.06243 | AB7: 10627200.36 | AC7: 0 | AD7: 113 | AE7: 549446004.9 | AF7: 0.2732213432 | AG7: =O7 -> Flare Limit | AH7: ='Base Case'!D42 -> 2 | AI7: ='Base Case'!C42 -> Flare
B8: Low Gas Res High Price | C8: TRUE | D8: High Gas Price (Low Resources) - Positive and Negative NPV | J8: TRUE | K8: =K7+L8 -> 2 | L8: TRUE | N8: Compressors Off - Maintain Pressure | O8: Comp Press | P8: 'Base Case'! | Q8: 'Base Case'!B:B | R8: 7 | S8: 'Base Case'!1:1048576 | T8: 40863215.31 | U8: 201442.5327 | V8: 1100866.027 | W8: 0 | X8: 874098.0583 | Y8: 226767.9685 | Z8: 0 | AA8: 0 | AB8: 0 | AC8: 0 | AD8: 647 | AE8: 8646644.536 | AF8: 0.004929678959 | AG8: =O8 -> Comp Press | AH8: ='Base Case'!D43 -> 3 | AI8: ='Base Case'!C43 -> Either
B9: Low Gas Res High Price + NPV | C9: FALSE | D9: High Gas Price (Low Resources) - Positive NPV | J9: TRUE | K9: 3 | L9: TRUE | N9: Compressors Off- Blowdown to fuel | O9: Comp Blow | P9: 'Base Case'! | Q9: 'Base Case'!B:B | R9: 8 | S9: 'Base Case'!1:1048576 | T9: 40863215.31 | U9: 27142.08491 | V9: 27643.6419 | W9: 27569.71698 | X9: 23947.39571 | Y9: 3696.246185 | Z9: 0 | AA9: 23947.39571 | AB9: 3622.321261 | AC9: 0 | AD9: 0 | AE9: -53041063.79 | AF9: 0.0006642180432 | AG9: Comp Blow | AH9: ='Base Case'!D44 -> 3 | AI9: ='Base Case'!C44 -> Either
B10: Flat Gas Price | C10: TRUE | D10: Flat Gas Price - Positive and Negative NPV | J10: TRUE | K10: 4 | L10: TRUE | N10: Compressor Static Seals | O10: Static Seals | P10: 'Base Case'! | Q10: 'Base Case'!B:B | R10: 9 | S10: 'Base Case'!1:1048576 | T10: 40863215.31 | U10: 331191.2189 | V10: 745506.2454 | W10: 133875.6857 | X10: 710526.2936 | Y10: 34979.95189 | Z10: 0 | AA10: 126879.6953 | AB10: 6995.990377 | AC10: 0 | AD10: 548 | AE10: 2450251.996 | AF10: 0.008104874187 | AG10: Static Seals | AH10: ='Base Case'!D45 -> 1 | AI10: ='Base Case'!C45 -> Vent
B11: Flat Gas Price + NPV | C11: FALSE | D11: Flat Gas Price - Positive NPV | J11: TRUE | K11: 5 | L11: TRUE | N11: Compressors Off - Install ejector | O11: Ejector | P11: 'Base Case'! | Q11: 'Base Case'!B:B | R11: 10 | S11: 'Base Case'!1:1048576 | T11: 40863215.31 | U11: 38686.1179 | V11: 64985.95684 | W11: 0 | X11: 44342.15859 | Y11: 20643.79825 | Z11: 0 | AA11: 0 | AB11: 0 | AC11: 0 | AD11: 0 | AE11: -8029877.783 | AF11: 0.0009467223175 | AG11: Ejector | AH11: ='Base Case'!D46 -> 3 | AI11: ='Base Case'!C46 -> Either
B12: Prod High Case | C12: TRUE | D12: High Production - Positive and Negative NPV | J12: TRUE | K12: 6 | L12: TRUE | N12: Using Pipeline Pump-Down Techniques to Lower Gas Line Pressure before Maintenance | O12: Pump Down | P12: 'Base Case'! | Q12: 'Base Case'!B:B | R12: 11 | S12: 'Base Case'!1:1048576 | T12: 40863215.31 | U12: 5519.027191 | V12: 12742.16698 | W12: 184.2941537 | X12: 9794.618029 | Y12: 1658.647384 | Z12: 1288.901571 | AA12: 0 | AB12: 184.2941537 | AC12: 0 | AD12: 0 | AE12: -3945775.744 | AF12: 0.0001350610115 | AG12: Pump Down | AH12: ='Base Case'!D47 -> 3 | AI12: ='Base Case'!C47 -> Either
B13: Prod High Case + NPV | C13: FALSE | D13: High Production - Positive NPV | J13: TRUE | K13: 7 | L13: TRUE | N13: Use Inert Gases and Pigs to Perform Pipeline Purges | O13: Inert Gas | P13: 'Base Case'! | Q13: 'Base Case'!B:B | R13: 12 | S13: 'Base Case'!1:1048576 | T13: 40863215.31 | U13: 5519.027191 | V13: 12742.16698 | W13: 184.2941537 | X13: 9794.618029 | Y13: 1658.647384 | Z13: 1288.901571 | AA13: 0 | AB13: 184.2941537 | AC13: 0 | AD13: 0 | AE13: -6713449.782 | AF13: 0.0001350610115 | AG13: Inert Gas | AH13: ='Base Case'!D48 -> 3 | AI13: ='Base Case'!C48 -> Either
B14: Prod Low Case | C14: TRUE | D14: Low Production - Positive and Negative NPV | J14: TRUE | K14: 8 | L14: TRUE | N14: Reduced Emission Completions | O14: Completions | P14: 'Base Case'! | Q14: 'Base Case'!B:B | R14: 13 | S14: 'Base Case'!1:1048576 | T14: 40863215.31 | U14: 1174107.074 | V14: 1937477.453 | W14: 183979.7395 | X14: 406733.4023 | Y14: 1471837.916 | Z14: 58906.13531 | AA14: 0 | AB14: 183979.7395 | AC14: 0 | AD14: 194 | AE14: 37906493.01 | AF14: 0.028732616 | AG14: Completions | AH14: ='Base Case'!D49 -> 3 | AI14: ='Base Case'!C49 -> Either
B15: Prod Low Case + NPV | C15: FALSE | D15: Low Production - Positive NPV | J15: TRUE | K15: 9 | L15: TRUE | N15: Foaming agents to Remove Accumulated Fluid in Gas wells | O15: Foaming Agents | P15: 'Base Case'! | Q15: 'Base Case'!B:B | R15: 14 | S15: 'Base Case'!1:1048576 | T15: 40863215.31 | U15: 64342.74045 | V15: 217841.1429 | W15: 22112.21604 | X15: 182299.1394 | Y15: 14780.14027 | Z15: 20761.86326 | AA15: 15191.59495 | AB15: 0 | AC15: 6920.621088 | AD15: 604 | AE15: 1289918.856 | AF15: 0.001574588293 | AG15: Foaming Agents | AH15: ='Base Case'!D50 -> 3 | AI15: ='Base Case'!C50 -> Either
B16: 49 COC | C16: TRUE | D16: $49/Ton Carbon Value - Positive and Negative NPV | J16: TRUE | K16: 10 | L16: TRUE | N16: Velocity tubing to Remove Accumulated Fluid in Gas Wells | O16: Velocity Tubing | P16: 'Base Case'! | Q16: 'Base Case'!B:B | R16: 15 | S16: 'Base Case'!1:1048576 | T16: 40863215.31 | U16: 31440.06885 | V16: 83116.00496 | W16: 0 | X16: 75728.12576 | Y16: 7387.879201 | Z16: 0 | AA16: 0 | AB16: 0 | AC16: 0 | AD16: 0 | AE16: -1016457608 | AF16: 0.0007693978218 | AG16: Velocity Tubing | AH16: ='Base Case'!D51 -> 3 | AI16: ='Base Case'!C51 -> Either
B17: 49 COC + NPV | C17: FALSE | D17: $49/Ton Carbon Value - Positive NPV | J17: TRUE | K17: 11 | L17: TRUE | N17: Install Flares | O17: Flares | P17: 'Base Case'! | Q17: 'Base Case'!B:B | R17: 16 | S17: 'Base Case'!1:1048576 | T17: 40863215.31 | U17: 778050.8743 | V17: 1361589.03 | W17: 0 | X17: 1361589.03 | Y17: 0 | Z17: 0 | AA17: 0 | AB17: 0 | AC17: 0 | AD17: 0 | AE17: -378685075.9 | AF17: 0.01904037331 | AG17: Flares | AH17: ='Base Case'!D52 -> 4 | AI17: ='Base Case'!C52 -> Convert Vent to Flare
J18: TRUE | K18: 12 | L18: TRUE | N18: Gas Lift Well to remove liquid accumulation | O18: Lift Well | P18: 'Base Case'! | Q18: 'Base Case'!B:B | R18: 17 | S18: 'Base Case'!1:1048576 | T18: 40863215.31 | U18: 35285.70118 | V18: 166575.079 | W18: 17642.85059 | X18: 151794.9388 | Y18: 14780.14027 | Z18: 0 | AA18: 15179.49388 | AB18: 2463.356711 | AC18: 0 | AD18: 0 | AE18: -8836026.401 | AF18: 0.0008635077028 | AG18: Lift Well | AH18: ='Base Case'!D53 -> 3 | AI18: ='Base Case'!C53 -> Either
F19: =INDEX(C24:C29,C20) -> L | J19: TRUE | K19: 13 | L19: TRUE | N19: Microturbines | O19: Microturbines | P19: 'Base Case'! | Q19: 'Base Case'!B:B | R19: 18 | S19: 'Base Case'!1:1048576 | T19: 40863215.31 | U19: 487876.5832 | V19: 975753.1664 | W19: 0 | X19: 899909.9706 | Y19: 75843.19582 | Z19: 0 | AA19: 0 | AB19: 0 | AC19: 0 | AD19: 0 | AE19: -531474477.4 | AF19: 0.01193926076 | AG19: Microturbines | AH19: ='Base Case'!D54 -> 1 | AI19: ='Base Case'!C54 -> Flare
B20: High Low - Graph Options | C20: 2 | J20: TRUE | K20: 14 | L20: TRUE | N20: Electric submersible pump (ESP) to unload wells | O20: ESP Unload | P20: 'Base Case'! | Q20: 'Base Case'!B:B | R20: 19 | S20: 'Base Case'!1:1048576 | T20: 40863215.31 | U20: 31667.35508 | V20: 97434.01857 | W20: 14617.70087 | X20: 87706.20522 | Y20: 9727.813352 | Z20: 0 | AA20: 14617.70087 | AB20: 0 | AC20: 0 | AD20: 0 | AE20: -613903332.4 | AF20: 0.0007749599447 | AG20: ESP Unload | AH20: ='Base Case'!D55 -> 3 | AI20: ='Base Case'!C55 -> Either
A21: Colum Definition | D21: High Case | G21: Low Case | J21: TRUE | K21: 15 | L21: TRUE | N21: Downhole Jetpump for Well Unloading | O21: Jetpump | P21: 'Base Case'! | Q21: 'Base Case'!B:B | R21: 20 | S21: 'Base Case'!1:1048576 | T21: 40863215.31 | U21: 34099.30841 | V21: 160768.7287 | W21: 17049.65421 | X21: 146177.0087 | Y21: 14591.72003 | Z21: 0 | AA21: 14617.70087 | AB21: 2431.953338 | AC21: 0 | AD21: 0 | AE21: -468283212.5 | AF21: 0.0008344744328 | AG21: Jetpump | AH21: ='Base Case'!D56 -> 3 | AI21: ='Base Case'!C56 -> Either
J22: TRUE | K22: 16 | L22: TRUE | N22: Monitor/repair leaking flare/vent control valves | O22: Monitor Valves | P22: 'Base Case'! | Q22: 'Base Case'!B:B | R22: 21 | S22: 'Base Case'!1:1048576 | T22: 40863215.31 | U22: 2084886.232 | V22: 2800421.466 | W22: 1042443.116 | X22: 2322150.115 | Y22: 375404.1193 | Z22: 102867.2315 | AA22: 893134.6596 | AB22: 149308.4565 | AC22: 0 | AD22: 0 | AE22: -145940308 | AF22: 0.05102110093 | AG22: Monitor Valves | AH22: ='Base Case'!D57 -> 3 | AI22: ='Base Case'!C57 -> Either
D23: Fixed | E23: Floater | F23: Single | G23: Fixed | H23: Floater | I23: Single | J23: TRUE | K23: 17 | L23: TRUE | N23: Install redundant compression | O23: Redundant | P23: 'Base Case'! | Q23: 'Base Case'!B:B | R23: 22 | S23: 'Base Case'!1:1048576 | T23: 40863215.31 | U23: 4363470.3 | V23: 9923368.894 | W23: 1699809.899 | X23: 1424319.398 | Y23: 8499049.496 | Z23: 0 | AA23: 0 | AB23: 1699809.899 | AC23: 0 | AD23: 0 | AE23: -509441890.3 | AF23: 0.1067823534 | AG23: Redundant | AH23: ='Base Case'!D58 -> 3 | AI23: ='Base Case'!C58 -> Either
B24: Reduced Equivalent CO2 (+/-) NPV | C24: E | D24: BV | E24: BW | F24: BX | G24: BS | H24: BT | I24: BU | J24: TRUE | K24: 18 | L24: TRUE | N24: Limit Monthly Vent Volume | O24: Vent Limit | P24: 'Base Case'! | Q24: 'Base Case'!B:B | R24: 23 | S24: 'Base Case'!1:1048576 | T24: 39136464.58 | U24: 52635.1683 | V24: 52635.1683 | W24: 52635.1683 | X24: 0 | Y24: 52635.1683 | Z24: 0 | AA24: 0 | AB24: 52635.1683 | AC24: 0 | AD24: 1 | AE24: 1659781.592 | AF24: 0.001344913723 | AG24: Vent Limit | AH24: ='Base Case'!D59 -> 1 | AI24: ='Base Case'!C59 -> Vent
B25: Adjusted NPV Savings (+/-) NPV | C25: L | D25: BD | E25: BE | F25: BF | G25: BA | H25: BB | I25: BC | L25: =SUMPRODUCT(L6:L24*1) -> 18
B26: Percent CO2 | C26: K | P26: =U4 -> Reduced Equivalent CO2
B27: Reduced Equivalent CO2 + NPV | C27: E | D27: BP | E27: BQ | F27: BR | G27: BM | H27: BN | I27: BO | K27: Row | L27: Num | P27: Base Case | Q27: High Confidence Interval | R27: Low Confidence Interval | S27: Other
B28: Adjusted NPV Savings + NPV | C28: L | D28: BV | E28: BW | F28: BX | G28: BS | H28: BT | I28: BU | K28: =IF(L28<=$L$25,MATCH(L28,K:K,0)) -> 6 | L28: 1 | N28: =IF($K28,INDEX(N:N,$K28)) -> Reroute Gas Pig Trap Vent | O28: =IF($K28,INDEX(O:O,$K28),NA()) -> Pig Trap | P28: =IF($K28,INDEX(U:U,$K28)) -> 17178.16356 | Q28: =IF($K28,INDEX(V:V,$K28)) -> 20748.22406 | R28: =IF($K28,INDEX(W:W,$K28)) -> 4729.229124 | S28: 0 | T28: =IF($K28,INDEX(S:S,$K28)) -> 'Base Case'!1:1048576 | U28: 40863215.31 | Y28: =IF($K28,INDEX(X:X,$K28)) -> 14952.38093 | Z28: 5795.843127 | AA28: 0 | AB28: 2990.476186
B29: Percent CO2 | C29: K | K29: 8 | L29: 2 | N29: Compressors Off - Maintain Pressure | O29: Comp Press | P29: 201442.5327 | Q29: 1100866.027 | R29: 0 | S29: 0 | T29: 'Base Case'!1:1048576 | U29: 40863215.31 | Y29: 874098.0583 | Z29: 226767.9685 | AA29: 0 | AB29: 0
K30: 9 | L30: 3 | N30: Compressors Off- Blowdown to fuel | O30: Comp Blow | P30: 27142.08491 | Q30: 27643.6419 | R30: 27569.71698 | S30: 0 | T30: 'Base Case'!1:1048576 | U30: 40863215.31 | Y30: 23947.39571 | Z30: 3696.246185 | AA30: 0 | AB30: 23947.39571
B31: =INDEX(B24:B30,$C$20) -> Adjusted NPV Savings (+/-) NPV | C31: =INDEX(C24:C30,$C$20) -> L | D31: BD | E31: BE | F31: BF | G31: BA | H31: BB | I31: BC | K31: 10 | L31: 4 | N31: Compressor Static Seals | O31: Static Seals | P31: 331191.2189 | Q31: 745506.2454 | R31: 133875.6857 | S31: 0 | T31: 'Base Case'!1:1048576 | U31: 40863215.31 | Y31: 710526.2936 | Z31: 34979.95189 | AA31: 0 | AB31: 126879.6953
K32: 11 | L32: 5 | N32: Compressors Off - Install ejector | O32: Ejector | P32: 38686.1179 | Q32: 64985.95684 | R32: 0 | S32: 0 | T32: 'Base Case'!1:1048576 | U32: 40863215.31 | Y32: 44342.15859 | Z32: 20643.79825 | AA32: 0 | AB32: 0
K33: 12 | L33: 6 | N33: Using Pipeline Pump-Down Techniques to Lower Gas Line Pressure before Maintenance | O33: Pump Down | P33: 5519.027191 | Q33: 12742.16698 | R33: 184.2941537 | S33: 0 | T33: 'Base Case'!1:1048576 | U33: 40863215.31 | Y33: 9794.618029 | Z33: 1658.647384 | AA33: 1288.901571 | AB33: 0
B34: Existing Equiv CO2 | C34: H | K34: 13 | L34: 7 | N34: Use Inert Gases and Pigs to Perform Pipeline Purges | O34: Inert Gas | P34: 5519.027191 | Q34: 12742.16698 | R34: 184.2941537 | S34: 0 | T34: 'Base Case'!1:1048576 | U34: 40863215.31 | Y34: 9794.618029 | Z34: 1658.647384 | AA34: 1288.901571 | AB34: 0
K35: 14 | L35: 8 | N35: Reduced Emission Completions | O35: Completions | P35: 1174107.074 | Q35: 1937477.453 | R35: 183979.7395 | S35: 0 | T35: 'Base Case'!1:1048576 | U35: 40863215.31 | Y35: 406733.4023 | Z35: 1471837.916 | AA35: 58906.13531 | AB35: 0
K36: 15 | L36: 9 | N36: Foaming agents to Remove Accumulated Fluid in Gas wells | O36: Foaming Agents | P36: 64342.74045 | Q36: 217841.1429 | R36: 22112.21604 | S36: 0 | T36: 'Base Case'!1:1048576 | U36: 40863215.31 | Y36: 182299.1394 | Z36: 14780.14027 | AA36: 20761.86326 | AB36: 15191.59495
G37: 1 | K37: 16 | L37: 10 | N37: Velocity tubing to Remove Accumulated Fluid in Gas Wells | O37: Velocity Tubing | P37: 31440.06885 | Q37: 83116.00496 | R37: 0 | S37: 0 | T37: 'Base Case'!1:1048576 | U37: 40863215.31 | Y37: 75728.12576 | Z37: 7387.879201 | AA37: 0 | AB37: 0
K38: 17 | L38: 11 | N38: Install Flares | O38: Flares | P38: 778050.8743 | Q38: 1361589.03 | R38: 0 | S38: 0 | T38: 'Base Case'!1:1048576 | U38: 40863215.31 | Y38: 1361589.03 | Z38: 0 | AA38: 0 | AB38: 0
B39: Reduced Equivalent CO2 | C39: =C24 -> E | D39: =IF($G$3,D24,D27) -> BV | E39: =IF($G$3,E24,E27) -> BW | F39: BX | G39: BS | H39: BT | I39: BU | K39: 18 | L39: 12 | N39: Gas Lift Well to remove liquid accumulation | O39: Lift Well | P39: 35285.70118 | Q39: 166575.079 | R39: 17642.85059 | S39: 0 | T39: 'Base Case'!1:1048576 | U39: 40863215.31 | Y39: 151794.9388 | Z39: 14780.14027 | AA39: 0 | AB39: 15179.49388
B40: Adjusted NPV Savings | C40: =C25 -> L | D40: =IF($G$3,D25,D28) -> BD | E40: BE | F40: BF | G40: BA | H40: BB | I40: BC | K40: 19 | L40: 13 | N40: Microturbines | O40: Microturbines | P40: 487876.5832 | Q40: 975753.1664 | R40: 0 | S40: 0 | T40: 'Base Case'!1:1048576 | U40: 40863215.31 | Y40: 899909.9706 | Z40: 75843.19582 | AA40: 0 | AB40: 0
B41: Percent CO2 | C41: =C26 -> K | D41: =D39 -> BV | E41: =E39 -> BW | F41: BX | G41: BS | H41: BT | I41: BU | K41: 20 | L41: 14 | N41: Electric submersible pump (ESP) to unload wells | O41: ESP Unload | P41: 31667.35508 | Q41: 97434.01857 | R41: 14617.70087 | S41: 0 | T41: 'Base Case'!1:1048576 | U41: 40863215.31 | Y41: 87706.20522 | Z41: 9727.813352 | AA41: 0 | AB41: 14617.70087
K42: 21 | L42: 15 | N42: Downhole Jetpump for Well Unloading | O42: Jetpump | P42: 34099.30841 | Q42: 160768.7287 | R42: 17049.65421 | S42: 0 | T42: 'Base Case'!1:1048576 | U42: 40863215.31 | Y42: 146177.0087 | Z42: 14591.72003 | AA42: 0 | AB42: 14617.70087
B43: =INDEX(B39:B41,$G$37) -> Reduced Equivalent CO2 | C43: =INDEX(C39:C41,$G$37) -> E | D43: BV | E43: BW | F43: BX | G43: BS | H43: BT | I43: BU | K43: 22 | L43: 16 | N43: Monitor/repair leaking flare/vent control valves | O43: Monitor Valves | P43: 2084886.232 | Q43: 2800421.466 | R43: 1042443.116 | S43: 0 | T43: 'Base Case'!1:1048576 | U43: 40863215.31 | Y43: 2322150.115 | Z43: 375404.1193 | AA43: 102867.2315 | AB43: 893134.6596
B44: Column Number | C44: =MATCH(C43,Columns!4:4,0) -> 5 | D44: =MATCH(D43,Columns!4:4,0) -> 74 | E44: =MATCH(E43,Columns!4:4,0) -> 75 | F44: =MATCH(F43,Columns!4:4,0) -> 76 | G44: =MATCH(G43,Columns!4:4,0) -> 71 | H44: =MATCH(H43,Columns!4:4,0) -> 72 | I44: =MATCH(I43,Columns!4:4,0) -> 73 | K44: 23 | L44: 17 | N44: Install redundant compression | O44: Redundant | P44: 4363470.3 | Q44: 9923368.894 | R44: 1699809.899 | S44: 0 | T44: 'Base Case'!1:1048576 | U44: 40863215.31 | Y44: 1424319.398 | Z44: 8499049.496 | AA44: 0 | AB44: 0
K45: 24 | L45: 18 | N45: Limit Monthly Vent Volume | O45: Vent Limit | P45: 52635.1683 | Q45: 52635.1683 | R45: 52635.1683 | S45: 0 | T45: 'Base Case'!1:1048576 | U45: 39136464.58 | Y45: 0 | Z45: 52635.1683 | AA45: 0 | AB45: 0
B46: Only Inclue + NPV | C46: FALSE | K46: FALSE | L46: 19 | N46: FALSE | P46: FALSE | Q46: FALSE | R46: FALSE | S46: 0 | T46: FALSE | U46: FALSE | Y46: FALSE | Z46: FALSE | AA46: FALSE | AB46: FALSE
B48: Short Titles | C48: TRUE | O48: =L25 -> 18 | P48: =O48 -> 18 | Q48: =P48 -> 18 | R48: =Q48 -> 18
A51: Bubble | O51: bubble_labels | P51: x-Axis | Q51: y-Axis | R51: Bubble | S51: Colour Code
G52: 2 | H52: x-Axis | P52: =B60 -> Complexes with + NPV
B53: X-Axis | K53: =K27 -> Row | L53: =L27 -> Num | Q53: =B61 -> Adjusted NPV Savings | R53: =B62 -> Percent CO2 Reduced
G54: 1 | H54: y-Axis | K54: =K28 -> 6 | L54: =L28 -> 1 | N54: =N28 -> Reroute Gas Pig Trap Vent | O54: =O28 -> Pig Trap | P54: =INDEX(AD:AD,K54) -> 0 | Q54: =INDEX(AE:AE,K54) -> -49134649.77 | R54: =INDEX(AF:AF,K54) -> 0.0004203820827 | S54: =INDEX(AH:AH,K54) -> 3
B55: Adjusted NPV Savings | C55: =C40 -> L | D55: =MATCH(C55,Columns!$4:$4,0) -> 12 | K55: =K29 -> 8 | L55: 2 | N55: =N29 -> Compressors Off - Maintain Pressure | O55: Comp Press | P55: =INDEX(AD:AD,K55) -> 647 | Q55: =INDEX(AE:AE,K55) -> 8646644.536 | R55: =INDEX(AF:AF,K55) -> 0.004929678959 | S55: =INDEX(AH:AH,K55) -> 3
B56: Complexes with + NPV | C56: AS | D56: =MATCH(C56,Columns!$4:$4,0) -> 45 | G56: 4 | H56: Bubble | K56: =K30 -> 9 | L56: 3 | N56: =N30 -> Compressors Off- Blowdown to fuel | O56: Comp Blow | P56: 0 | Q56: -53041063.79 | R56: 0.0006642180432 | S56: 3
B57: Reduced Equivalent CO2 | C57: =C24 -> E | D57: =MATCH(C57,Columns!$4:$4,0) -> 5 | K57: =K31 -> 10 | L57: 4 | N57: =N31 -> Compressor Static Seals | O57: Static Seals | P57: 548 | Q57: 2450251.996 | R57: 0.008104874187 | S57: 1
B58: Percent CO2 Reduced | C58: =C29 -> K | D58: =MATCH(C58,Columns!$4:$4,0) -> 11 | K58: =K32 -> 11 | L58: 5 | N58: =N32 -> Compressors Off - Install ejector | O58: Ejector | P58: 0 | Q58: -8029877.783 | R58: 0.0009467223175 | S58: 3
K59: =K33 -> 12 | L59: 6 | N59: =N33 -> Using Pipeline Pump-Down Techniques to Lower Gas Line Pressure before Maintenance | O59: Pump Down | P59: 0 | Q59: -3945775.744 | R59: 0.0001350610115 | S59: 3
B60: =INDEX(B55:B58,$G$52) -> Complexes with + NPV | C60: =INDEX(C55:C58,$G$52) -> AS | D60: =INDEX(D55:D58,$G$52) -> 45 | E60: x-Axis | K60: =K34 -> 13 | L60: 7 | N60: =N34 -> Use Inert Gases and Pigs to Perform Pipeline Purges | O60: Inert Gas | P60: 0 | Q60: -6713449.782 | R60: 0.0001350610115 | S60: 3
B61: =INDEX(B55:B58,$G$54) -> Adjusted NPV Savings | C61: =INDEX(C55:C58,$G$54) -> L | D61: =INDEX(D55:D58,$G$54) -> 12 | E61: y-Axis | K61: =K35 -> 14 | L61: 8 | N61: =N35 -> Reduced Emission Completions | O61: Completions | P61: 194 | Q61: 37906493.01 | R61: 0.028732616 | S61: 3
B62: =INDEX(B55:B58,$G$56) -> Percent CO2 Reduced | C62: =INDEX(C55:C58,$G$56) -> K | D62: =INDEX(D55:D58,$G$56) -> 11 | E62: Bubble | K62: =K36 -> 15 | L62: 9 | N62: =N36 -> Foaming agents to Remove Accumulated Fluid in Gas wells | O62: Foaming Agents | P62: 604 | Q62: 1289918.856 | R62: 0.001574588293 | S62: 3
K63: =K37 -> 16 | L63: 10 | N63: =N37 -> Velocity tubing to Remove Accumulated Fluid in Gas Wells | O63: Velocity Tubing | P63: 0 | Q63: -1016457608 | R63: 0.0007693978218 | S63: 3
K64: =K38 -> 17 | L64: 11 | N64: =N38 -> Install Flares | O64: Flares | P64: 0 | Q64: -378685075.9 | R64: 0.01904037331 | S64: 4
B65: =B61 -> Adjusted NPV Savings | C65: (y-Axis) | D65: versus | E65: =B60 -> Complexes with + NPV | F65: (y-Axis) | G65: =B62 -> Percent CO2 Reduced | H65: (Size of Bubble) | K65: =K39 -> 18 | L65: 12 | N65: =N39 -> Gas Lift Well to remove liquid accumulation | O65: Lift Well | P65: 0 | Q65: -8836026.401 | R65: 0.0008635077028 | S65: 3
K66: =K40 -> 19 | L66: 13 | N66: =N40 -> Microturbines | O66: Microturbines | P66: 0 | Q66: -531474477.4 | R66: 0.01193926076 | S66: 1
K67: =K41 -> 20 | L67: 14 | N67: =N41 -> Electric submersible pump (ESP) to unload wells | O67: ESP Unload | P67: 0 | Q67: -613903332.4 | R67: 0.0007749599447 | S67: 3
K68: =K42 -> 21 | L68: 15 | N68: =N42 -> Downhole Jetpump for Well Unloading | O68: Jetpump | P68: 0 | Q68: -468283212.5 | R68: 0.0008344744328 | S68: 3
K69: =K43 -> 22 | L69: 16 | N69: =N43 -> Monitor/repair leaking flare/vent control valves | O69: Monitor Valves | P69: 0 | Q69: -145940308 | R69: 0.05102110093 | S69: 3
K70: =K44 -> 23 | L70: 17 | N70: =N44 -> Install redundant compression | O70: Redundant | P70: 0 | Q70: -509441890.3 | R70: 0.1067823534 | S70: 3
K71: =K45 -> 24 | L71: 18 | N71: =N45 -> Limit Monthly Vent Volume | O71: Vent Limit | P71: 1 | Q71: 1659781.592 | R71: 0.001344913723 | S71: 1
K72: =K46 -> FALSE | L72: 19 | N72: =N46 -> FALSE | P72: 0 | Q72: 0 | R72: 0 | S72: 0
N77: colour_1
N78: colour_2
N79: colour_3
N80: colour_4
C82: 1
B84: NPV | C84: =C40 -> L
B85: =B39 -> Reduced Equivalent CO2 | C85: =C39 -> E
B86: =B56 -> Complexes with + NPV | C86: =C56 -> AS
B88: =INDEX(B84:B86,$C$82) -> NPV | C88: =INDEX(C84:C86,$C$82) -> L
B92: =B88 -> NPV | C92: Difference from Base Case | F92: Base Case Value | H92: =R114 -> 617779324.5 | I92: Only Positive NPV
B94: =B92 -> NPV | C94: =C92 -> Difference from Base Case | F94: =F92 -> Base Case Value | H94: =R122 -> -3192487653 | I94: Positive and Negative NPV
Q96: =B88 -> NPV
Q97: =C88 -> L | R97: Match
B99: =B6 -> Base Case | P99: ="'"&B99&"'!" -> 'Base Case'! | Q99: =$P99&Q$97&"1:"&Q$97&"26" -> 'Base Case'!L1:L26 | R99: =SUM(INDIRECT(Q99)) -> -3192487653 | T99: =R99 -> -3192487653
B100: =B7 -> Base Case + NPV | P100: ="'"&B100&"'!" -> 'Base Case + NPV'! | Q100: =$P100&Q$97&"1:"&Q$97&"26" -> 'Base Case + NPV'!L1:L26 | R100: =SUM(INDIRECT(Q100)) -> 617779324.5 | S100: =R100 -> 617779324.5
B101: Low Gas Res High Price | P101: 'Low Gas Res High Price'! | Q101: 'Low Gas Res High Price'!L1:L26 | R101: =SUM(INDIRECT(Q101)) -> -2340408243 | T101: =R101 -> -2340408243
B102: Low Gas Res High Price + NPV | P102: 'Low Gas Res High Price + NPV'! | Q102: 'Low Gas Res High Price + NPV'!L1:L26 | R102: 1314154789 | S102: =R102 -> 1314154789
B103: Flat Gas Price | P103: 'Flat Gas Price'! | Q103: 'Flat Gas Price'!L1:L26 | R103: -3900255036 | T103: =R103 -> -3900255036
B104: Flat Gas Price + NPV | P104: 'Flat Gas Price + NPV'! | Q104: 'Flat Gas Price + NPV'!L1:L26 | R104: 227460193.4 | S104: =R104 -> 227460193.4
B105: Prod High Case | P105: 'Prod High Case'! | Q105: 'Prod High Case'!L1:L26 | R105: -3139455358 | T105: =R105 -> -3139455358
B106: Prod High Case + NPV | P106: 'Prod High Case + NPV'! | Q106: 'Prod High Case + NPV'!L1:L26 | R106: 695543019.2 | S106: =R106 -> 695543019.2
B107: Prod Low Case | P107: 'Prod Low Case'! | Q107: 'Prod Low Case'!L1:L26 | R107: -3340145501 | T107: =R107 -> -3340145501
B108: Prod Low Case + NPV | P108: 'Prod Low Case + NPV'! | Q108: 'Prod Low Case + NPV'!L1:L26 | R108: 540646703.4 | S108: =R108 -> 540646703.4
B109: 49 COC | P109: '49 COC'! | Q109: '49 COC'!L1:L26 | R109: -2582647102 | T109: =R109 -> -2582647102
B110: 49 COC + NPV | P110: ="'"&B110&"'!" -> '49 COC + NPV'! | Q110: '49 COC + NPV'!L1:L26 | R110: 1046330704 | S110: =R110 -> 1046330704
S112: =MIN(S99:S110) -> 227460193.4 | T112: =MIN(T99:T110) -> -3900255036
Q114: Base Case | R114: =R100 -> 617779324.5
R115: High vs Base | S115: Low vs Base
Q116: Gas Prices | R116: =R102-$R$114 -> 696375464.3 | S116: =R104-R114 -> -390319131.2
Q117: Production | R117: =R106-R114 -> 77763694.61 | S117: =R108-R114 -> -77132621.19
Q118: Carbon Value | R118: =R110-R114 -> 428551379
Q122: Base Case | R122: =R99 -> -3192487653
R123: High vs Base | S123: Low vs Base
Q124: =Q116 -> Gas Prices | R124: =R101-R122 -> 852079410 | S124: =R103-R122 -> -707767382.7
Q125: =Q117 -> Production | R125: =R105-R122 -> 53032294.88 | S125: =R107-R122 -> -147657847.4
Q126: Carbon Value | R126: =R109-R122 -> 609840550.7
Q130: Min | R130: =MATCH(S112,R:R,0) -> 104
Q133: =INDEX(B:B,R130) -> Flat Gas Price + NPV | R133: =S112 -> 227460193.4
Q134: =B108 -> Prod Low Case + NPV | R134: =S108-R133 -> 313186510
Q135: =B99 -> Base Case | R135: =S100-S108 -> 77132621.19
Q136: Subtotal
Q137: =B106 -> Prod High Case + NPV | R137: =S106-S100 -> 77763694.61
Q138: =B110 -> 49 COC + NPV | R138: =S110-S106 -> 350787684.4
Q139: =B102 -> Low Gas Res High Price + NPV | R139: =S102-S110 -> 267824085.3
Q140: Best Case
Q142: =B103 -> Flat Gas Price | R142: =T103 -> -3900255036
Q143: =B107 -> Prod Low Case
Q144: =B99 -> Base Case
Q145: Subtotal
Q146: =B105 -> Prod High Case
Q147: =B109 -> 49 COC
Q148: =B101 -> Low Gas Res High Price
Q149: Best Case

Sheet Base Case
A1: FINAL AGREGATE SUMMARY
C2: Aplicabiity Adjusted | D2: Aplicabiity Adjusted | E2: Aplicabiity Adjusted | F2: Adjusted | G2: Adjusted | H2: Adjusted | I2: Percent | J2: Percent | K2: Percent | L2: Adjusted | M2: Adjusted | O2: Aggregate | P2: Aggregate | Q2: Aggregate | R2: Aggregate | S2: Aggregate | T2: Aggregate | U2: Aggregate | V2: Aggregate | W2: Aggregate | X2: Aggregate | Y2: Aggregate | Z2: Aggregate | AA2: Aggregate | AB2: Aggregate | AC2: Aggregate | AD2: Aggregate | AE2: Aggregate | AF2: Oil | AG2: Oil | AH2: Oil
C3: Reduction | D3: Reduction | E3: Reduct Equivalent | F3: Existing | G3: Existing | H3: Equivalent CO2 | I3: Reduction | J3: Reduction | K3: Reduction | L3: NPV | M3: Oil | O3: Reduced Methane | P3: Reduced Methane | Q3: Reduced Methane | R3: Reduced Methane | S3: Methane | T3: Reduced CO2 | U3: Reduced CO2 | V3: Reduced CO2 | W3: Reduced CO2 | X3: CO2 | Y3: Exist Methane | Z3: Exist Methane | AA3: Exist Methane | AB3: Exist CO2 | AC3: Exist CO2 | AD3: Exist CO2 | AE3: Exist CO2 | AF3: Deferred | AG3: Deferred | AH3: Deferred | AJ3: Total NPV b/4 Ratios | AM3: Percent Applicable | AP3: Final NPV - Expected Value Case | AS3: # of Complexes | AT3: # of Complexes | AU3: Percent Applicable 10% Case | AX3: Percent Applicable 90% Case | BA3: Final NPV - 10% Case | BD3: Final NPV - 90% | BG3: Final Methane - 10% Case | BJ3: Final CO2 - 10% Case | BM3: Final Methane - 90% | BP3: Final CO2 - 90% | BS3: Final CO2 Equiv - 10% Case | BV3: Final CO2 Equiv - 90% Case
C4: Methane | D4: CO2 | E4: Total CO2 | F4: Methane | G4: CO2 | H4: Total | I4: Methane | J4: CO2 | K4: Equiv CO2 | L4: Savings | M4: Deferred | O4: =AJ4 -> fixed | P4: =AK4 -> floater | Q4: =AL4 -> single well | R4: Sum | S4: Check | T4: =AJ4 -> fixed | U4: =AK4 -> floater | V4: =AL4 -> single well | W4: Sum | X4: Check | Y4: =T4 -> fixed | Z4: =U4 -> floater | AA4: =V4 -> single well | AB4: =W4 -> Sum | AC4: =Y4 -> fixed | AD4: =Z4 -> floater | AE4: =AA4 -> single well | AF4: =AC4 -> fixed | AG4: =AD4 -> floater | AH4: =AE4 -> single well | AJ4: fixed | AK4: floater | AL4: single well | AM4: =AJ4 -> fixed | AN4: floater | AO4: single well | AP4: fixed | AQ4: floater | AR4: single well | AS4: > 0 NPV | AT4: > 0 NPV @ $49 SCOC | AU4: =AM4 -> fixed | AV4: =AN4 -> floater | AW4: single well | AX4: =AP4 -> fixed | AY4: =AQ4 -> floater | AZ4: single well | BA4: =AX4 -> fixed | BB4: floater | BC4: single well | BD4: fixed | BE4: floater | BF4: single well | BG4: fixed | BH4: floater | BI4: single well | BJ4: fixed | BK4: floater | BL4: single well | BM4: =BG4 -> fixed | BN4: floater | BO4: single well | BP4: fixed | BQ4: floater | BR4: single well | BS4: =BP4 -> fixed | BT4: floater | BU4: single well | BV4: fixed | BW4: floater | BX4: single well
A5: 1 | B5: Reroute Gas Pig Trap Vent | C5: 665.2824671 | D5: 546.1018783 | E5: 17178.16356 | F5: 907299.3031 | G5: 18180732.73 | H5: 40863215.31 | I5: 0.0007332557898 | J5: 3.003739654e-05 | K5: 0.0004203820827 | L5: -49134649.77 | M5: 0 | O5: 1146.189777 | P5: 229.7850627 | Q5: 776.8923547 | R5: 2152.867194 | S5: 1531.900418 | T5: 1250.017434 | U5: 51.21656064 | V5: 303.0962647 | W5: 1604.33026 | X5: 1604.33026 | Y5: 906944.9903 | Z5: 51.21656064 | AA5: 303.0962647 | AC5: 932272.9497 | AD5: 16446837.11 | AE5: 801622.6738 | AF5: 0 | AG5: 0 | AH5: 0 | AJ5: -93102549.05 | AK5: -13215144.61 | AL5: -61185581.5 | AM5: 0.4 | AN5: 0.9 | AO5: 0 | AP5: -37241019.62 | AQ5: -11893630.15 | AR5: 0 | AS5: 0 | AT5: 0 | AU5: 0.1 | AV5: 0.3 | AW5: 0 | AX5: 0.5 | AY5: 1 | AZ5: 0 | BA5: -3724101.962 | BB5: -3568089.044 | BC5: 0 | BD5: =AX5*AP5 -> -18620509.81 | BE5: =AY5*AQ5 -> -11893630.15 | BF5: 0 | BG5: 114.6189777 | BH5: 68.9355188 | BI5: 0 | BJ5: 125.0017434 | BK5: 15.36496819 | BL5: 0 | BM5: 573.0948884 | BN5: 229.7850627 | BO5: 0 | BP5: 625.0087172 | BQ5: 51.21656064 | BR5: 0 | BS5: 2990.476186 | BT5: 1738.752938 | BU5: 0 | BV5: 14952.38093 | BW5: 5795.843127 | BX5: 0 | CD5: =SUMIF('[161104-Financial Analysis_v11(base case).xlsm]Results Database'!$E:$E,'Aggregate Summary'!AJ$4,'[161104-Financial Analysis_v11(base case).xlsm]Results Database'!$N:$N)
A6: 2 | B6: Limit Monthly Flare Volume | C6: 115873.4144 | D6: 7796082.06 | E6: 10692917.42 | F6: 868370.1174 | G6: 17427211.65 | H6: 39136464.58 | I6: 0.1334378189 | J6: 0.4473510862 | K6: 0.2732213432 | L6: 549446004.9 | M6: 250369.8545 | O6: 2373.801932 | P6: 127956.9709 | Q6: 4263.955938 | R6: 134594.7288 | S6: 17955.14521 | T6: 159711.8265 | U6: 8609076.124 | V6: 286883.3248 | W6: 9055671.276 | X6: 9055671.276 | Y6: 868015.8046 | Z6: 51.21656064 | AA6: 303.0962647 | AC6: 899965.0649 | AD6: 15749549.44 | AE6: 777697.1414 | AF6: 29120.37343 | AG6: 268481.9361 | AH6: 40334726.66 | AJ6: 10220696.16 | AK6: 607088662.2 | AL6: 19390387.17 | AM6: 0.3 | AN6: 0.9 | AO6: 0 | AP6: 3066208.848 | AQ6: 546379796 | AR6: 0 | AS6: 113 | AT6: N/A | AU6: 0.3 | AV6: 0.9 | AW6: 0 | AX6: 1 | AY6: 1 | AZ6: 1 | BA6: 919862.6543 | BB6: 491741816.4 | BC6: 0 | BD6: =AX6*AP6 -> 3066208.848 | BE6: =AY6*AQ6 -> 546379796 | BF6: =AZ6*AR6 -> 0 | BG6: 712.1405796 | BH6: 115161.2738 | BI6: 0 | BJ6: 47913.54794 | BK6: 7748168.512 | BL6: 0 | BM6: 2373.801932 | BN6: 127956.9709 | BO6: 4263.955938 | BP6: 159711.8265 | BQ6: 8609076.124 | BR6: 286883.3248 | BS6: 65717.06243 | BT6: 10627200.36 | BU6: 0 | BV6: 219056.8748 | BW6: 11808000.4 | BX6: 393482.2233 | CD6: =SUMIF('[161104-Financial Analysis_v11(base case).xlsm]Results Database'!$E:$E,'Aggregate Summary'!AJ$4,'[161104-Financial Analysis_v11(base case).xlsm]Results Database'!$W:$W)
A7: 3 | B7: Compressors Off - Maintain Pressure | C7: 4383.500924 | D7: 91855.00959 | E7: 201442.5327 | F7: 907299.3031 | G7: 18180732.73 | H7: 40863215.31 | I7: 0.004831372524 | J7: 0.005052327151 | K7: 0.004929678959 | L7: 8646644.536 | M7: 0 | O7: 74952.59837 | P7: 6358.710052 | Q7: 26761.23339 | R7: 108072.5418 | S7: 90420.1431 | T7: 1247963.82 | U7: 294568.1857 | V7: 1147811.798 | W7: 2690343.804 | X7: 2690343.804 | Y7: 906944.9903 | Z7: 51.21656064 | AA7: 303.0962647 | AC7: 932272.9497 | AD7: 16446837.11 | AE7: 801622.6738 | AF7: 0 | AG7: 0 | AH7: 0 | AJ7: 124735548.6 | AK7: 24098671.08 | AL7: 96606287.5 | AM7: 0.05 | AN7: 0.1 | AO7: 0 | AP7: 6236777.428 | AQ7: 2409867.108 | AR7: 0 | AS7: 647 | AT7: 669 | AU7: 0 | AV7: 0 | AW7: 0 | AX7: 0.28 | AY7: 0.5 | AZ7: 0 | BA7: 0 | BB7: 0 | BC7: 0 | BD7: 1746297.68 | BE7: 1204933.554 | BF7: 0 | BG7: 0 | BH7: 0 | BI7: 0 | BJ7: 0 | BK7: 0 | BL7: 0 | BM7: 20986.72754 | BN7: 3179.355026 | BO7: 0 | BP7: 349429.8697 | BQ7: 147284.0928 | BR7: 0 | BS7: 0 | BT7: 0 | BU7: 0 | BV7: 874098.0583 | BW7: 226767.9685 | BX7: 0 | CD7: =SUMIF('[161104-Financial Analysis_v11(base case).xlsm]Results Database'!$E:$E,'Aggregate Summary'!AJ$4,'[161104-Financial Analysis_v11(base case).xlsm]Results Database'!$AF:$AF)
A8: 4 | B8: Compressors Off- Blowdown to fuel | C8: 760.8835662 | D8: 8119.995755 | E8: 27142.08491 | F8: 907299.3031 | G8: 18180732.73 | H8: 40863215.31 | I8: 0.0008386246562 | J8: 0.0004466264301 | K8: 0.0006642180432 | L8: -53041063.79 | M8: 0 | O8: 1290.866959 | P8: 51.9456519 | Q8: 307.6114144 | R8: 1650.424025 | S8: 1503.96553 | T8: 10491.53267 | U8: 2397.604887 | V8: 9552.466318 | W8: 22441.60387 | X8: 22441.60387 | Y8: 906944.9903 | Z8: 51.21656064 | AA8: 303.0962647 | AC8: 932272.9497 | AD8: 16446837.11 | AE8: 801622.6738 | AF8: 0 | AG8: 0 | AH8: 0 | AJ8: -75853249.72 | AK8: -11552833.1 | AL8: -44709407.7 | AM8: 0.55 | AN8: 0.98 | AO8: 0 | AP8: -41719287.35 | AQ8: -11321776.44 | AR8: 0 | AS8: 0 | AT8: 0 | AU8: 0.56 | AV8: 0.98 | AW8: 0 | AX8: 0.56 | AY8: 1 | AZ8: 0 | BA8: -23362800.91 | BB8: -11095340.91 | BC8: 0 | BD8: -23362800.91 | BE8: -11321776.44 | BF8: 0 | BG8: 722.8854969 | BH8: 50.90673886 | BI8: 0 | BJ8: 5875.258293 | BK8: 2349.652789 | BL8: 0 | BM8: 722.8854969 | BN8: 51.9456519 | BO8: 0 | BP8: 5875.258293 | BQ8: 2397.604887 | BR8: 0 | BS8: 23947.39571 | BT8: 3622.321261 | BU8: 0 | BV8: 23947.39571 | BW8: 3696.246185 | BX8: 0 | CD8: =SUMIF('[161104-Financial Analysis_v11(base case).xlsm]Results Database'!$E:$E,'Aggregate Summary'!AJ$4,'[161104-Financial Analysis_v11(base case).xlsm]Results Database'!$AO:$AO)
A9: 5 | B9: Compressor Static Seals | C9: 8946.963599 | D9: 107517.129 | E9: 331191.2189 | F9: 907299.3031 | G9: 18180732.73 | H9: 40863215.31 | I9: 0.009861093873 | J9: 0.005913795146 | K9: 0.008104874187 | L9: 2450251.996 | M9: 0 | O9: 35004.14725 | P9: 1959.267861 | Q9: 10057.45615 | R9: 47020.87126 | S9: 41474.80127 | T9: 393693.2715 | U9: 90938.11102 | V9: 361416.3464 | W9: 846047.7289 | X9: 846047.7289 | Y9: 906944.9903 | Z9: 51.21656064 | AA9: 303.0962647 | AC9: 932272.9497 | AD9: 16446837.11 | AE9: 801622.6738 | AF9: 0 | AG9: 0 | AH9: 0 | AJ9: 8949302.838 | AK9: 2129262.866 | AL9: 10430479.95 | AM9: 0.25 | AN9: 0.1 | AO9: 0 | AP9: 2237325.71 | AQ9: 212926.2866 | AR9: 0 | AS9: 548 | AT9: 588 | AU9: 0.1 | AV9: 0.05 | AW9: 0 | AX9: 0.56 | AY9: 0.25 | AZ9: 0 | BA9: 223732.571 | BB9: 10646.31433 | BC9: 0 | BD9: 1252902.397 | BE9: 53231.57165 | BF9: 0 | BG9: 3500.414725 | BH9: 97.96339304 | BI9: 0 | BJ9: 39369.32715 | BK9: 4546.905551 | BL9: 0 | BM9: 19602.32246 | BN9: 489.8169652 | BO9: 0 | BP9: 220468.232 | BQ9: 22734.52776 | BR9: 0 | BS9: 126879.6953 | BT9: 6995.990377 | BU9: 0 | BV9: 710526.2936 | BW9: 34979.95189 | BX9: 0 | CD9: =SUMIF('[161104-Financial Analysis_v11(base case).xlsm]Results Database'!$E:$E,'Aggregate Summary'!AJ$4,'[161104-Financial Analysis_v11(base case).xlsm]Results Database'!$AX:$AX)
A10: 6 | B10: Compressors Off - Install ejector | C10: 881.7733632 | D10: 16641.78382 | E10: 38686.1179 | F10: 907299.3031 | G10: 18180732.73 | H10: 40863215.31 | I10: 0.0009718660206 | J10: 0.0009153527565 | K10: 0.0009467223175 | L10: -8029877.783 | M10: 0 | O10: 13016.38684 | P10: 577.3850527 | Q10: 3305.394595 | R10: 16899.16649 | S10: 15242.4283 | T10: 118011.9149 | U10: 26852.97019 | V10: 108104.0858 | W10: 252968.9708 | X10: 252968.9708 | Y10: 906944.9903 | Z10: 51.21656064 | AA10: 303.0962647 | AC10: 932272.9497 | AD10: 16446837.11 | AE10: 801622.6738 | AF10: 0 | AG10: 0 | AH10: 0 | AJ10: -77700171.36 | AK10: -10362173.04 | AL10: -48797972.35 | AM10: 0.05 | AN10: 0.4 | AO10: 0 | AP10: -3885008.568 | AQ10: -4144869.215 | AR10: 0 | AS10: 0 | AT10: 43 | AU10: 0 | AV10: 0 | AW10: 0 | AX10: 0.1 | AY10: 0.5 | AZ10: 0 | BA10: 0 | BB10: 0 | BC10: 0 | BD10: -388500.8568 | BE10: -2072434.608 | BF10: 0 | BG10: 0 | BH10: 0 | BI10: 0 | BJ10: 0 | BK10: 0 | BL10: 0 | BM10: 1301.638684 | BN10: 288.6925264 | BO10: 0 | BP10: 11801.19149 | BQ10: 13426.48509 | BR10: 0 | BS10: 0 | BT10: 0 | BU10: 0 | BV10: 44342.15859 | BW10: 20643.79825 | BX10: 0 | CD10: =SUMIF('[161104-Financial Analysis_v11(base case).xlsm]Results Database'!$E:$E,'Aggregate Summary'!AJ$4,'[161104-Financial Analysis_v11(base case).xlsm]Results Database'!$BG:$BG)
A11: 7 | B11: Using Pipeline Pump-Down Techniques to Lower Gas Line Pressure before Maintenance | C11: 144.9679204 | D11: 1894.829182 | E11: 5519.027191 | F11: 907299.3031 | G11: 18180732.73 | H11: 40863215.31 | I11: 0.0001597796007 | J11: 0.0001042218271 | K11: 0.0001350610115 | L11: -3945775.744 | M11: 0 | O11: 622.6152579 | P11: 25.79723772 | Q11: 150.9249985 | R11: 799.337494 | S11: 725.4651558 | T11: 5274.231381 | U11: 1198.010594 | V11: 4819.552179 | W11: 11291.79416 | X11: 11291.79416 | Y11: 906944.9903 | Z11: 51.21656064 | AA11: 303.0962647 | AC11: 932272.9497 | AD11: 16446837.11 | AE11: 801622.6738 | AF11: 0 | AG11: 0 | AH11: 0 | AJ11: -12223143.59 | AK11: -2201287.131 | AL11: -8010069.23 | AM11: 0.2 | AN11: 0.5 | AO11: 0.05 | AP11: -2444628.717 | AQ11: -1100643.565 | AR11: -400503.4615 | AS11: 0 | AT11: 0 | AU11: 0 | AV11: 0.1 | AW11: 0 | AX11: 0.47 | AY11: 0.9 | AZ11: 0.15 | BA11: 0 | BB11: -110064.3565 | BC11: 0 | BD11: -1148975.497 | BE11: -990579.2088 | BF11: -60075.51923 | BG11: 0 | BH11: 2.579723772 | BI11: 0 | BJ11: 0 | BK11: 119.8010594 | BL11: 0 | BM11: 292.6291712 | BN11: 23.21751395 | BO11: 22.63874977 | BP11: 2478.888749 | BQ11: 1078.209535 | BR11: 722.9328269 | BS11: 0 | BT11: 184.2941537 | BU11: 0 | BV11: 9794.618029 | BW11: 1658.647384 | BX11: 1288.901571 | CD11: =SUMIF('[161104-Financial Analysis_v11(base case).xlsm]Results Database'!$E:$E,'Aggregate Summary'!AJ$4,'[161104-Financial Analysis_v11(base case).xlsm]Results Database'!$BP:$BP)
A12: 8 | B12: Use Inert Gases and Pigs to Perform Pipeline Purges | C12: 144.9679204 | D12: 1894.829182 | E12: 5519.027191 | F12: 907299.3031 | G12: 18180732.73 | H12: 40863215.31 | I12: 0.0001597796007 | J12: 0.0001042218271 | K12: 0.0001350610115 | L12: -6713449.782 | M12: 0 | O12: 622.6152579 | P12: 25.79723772 | Q12: 150.9249985 | R12: 799.337494 | S12: 725.4651558 | T12: 5274.231381 | U12: 1198.010594 | V12: 4819.552179 | W12: 11291.79416 | X12: 11291.79416 | Y12: 906944.9903 | Z12: 51.21656064 | AA12: 303.0962647 | AC12: 932272.9497 | AD12: 16446837.11 | AE12: 801622.6738 | AF12: 0 | AG12: 0 | AH12: 0 | AJ12: -20817852 | AK12: -3735976.006 | AL12: -13637827.6 | AM12: 0.2 | AN12: 0.5 | AO12: 0.05 | AP12: -4163570.399 | AQ12: -1867988.003 | AR12: -681891.3802 | AS12: 0 | AT12: 0 | AU12: 0 | AV12: 0.1 | AW12: 0 | AX12: 0.47 | AY12: 0.9 | AZ12: 0.15 | BA12: 0 | BB12: -186798.8003 | BC12: 0 | BD12: -1956878.088 | BE12: -1681189.203 | BF12: -102283.707 | BG12: 0 | BH12: 2.579723772 | BI12: 0 | BJ12: 0 | BK12: 119.8010594 | BL12: 0 | BM12: 292.6291712 | BN12: 23.21751395 | BO12: 22.63874977 | BP12: 2478.888749 | BQ12: 1078.209535 | BR12: 722.9328269 | BS12: 0 | BT12: 184.2941537 | BU12: 0 | BV12: 9794.618029 | BW12: 1658.647384 | BX12: 1288.901571 | CD12: =SUMIF('[161104-Financial Analysis_v11(base case).xlsm]Results Database'!$E:$E,'Aggregate Summary'!AJ$4,'[161104-Financial Analysis_v11(base case).xlsm]Results Database'!$BY:$BY)
A13: 9 | B13: Reduced Emission Completions | C13: 15489.61901 | D13: 786866.5985 | E13: 1174107.074 | F13: 907299.3031 | G13: 18180732.73 | H13: 40863215.31 | I13: 0.01707222628 | J13: 0.04328024675 | K13: 0.028732616 | L13: 37906493.01 | M13: 0 | O13: 21317.20625 | P13: 20320.63489 | Q13: 8177.821625 | R13: 49815.66277 | S13: 26951.69499 | T13: 483903.3493 | U13: 1331781.522 | V13: 384615.8125 | W13: 2200300.684 | X13: 2200300.684 | Y13: 906944.9903 | Z13: 51.21656064 | AA13: 303.0962647 | AC13: 932272.9497 | AD13: 16446837.11 | AE13: 801622.6738 | AF13: 0 | AG13: 0 | AH13: 0 | AJ13: -39363198.3 | AK13: 95494585.18 | AL13: -20953535.32 | AM13: 0.25 | AN13: 0.5 | AO13: 0 | AP13: -9840799.575 | AQ13: 47747292.59 | AR13: 0 | AS13: 194 | AT13: 234 | AU13: 0 | AV13: 0.1 | AW13: 0 | AX13: 0.4 | AY13: 0.8 | AZ13: 0.1 | BA13: 0 | BB13: 4774729.259 | BC13: 0 | BD13: -3936319.83 | BE13: 38197834.07 | BF13: 0 | BG13: 0 | BH13: 2032.063489 | BI13: 0 | BJ13: 0 | BK13: 133178.1522 | BL13: 0 | BM13: 8526.882501 | BN13: 16256.50791 | BO13: 817.7821625 | BP13: 193561.3397 | BQ13: 1065425.218 | BR13: 38461.58125 | BS13: 0 | BT13: 183979.7395 | BU13: 0 | BV13: 406733.4023 | BW13: 1471837.916 | BX13: 58906.13531 | CD13: =SUMIF('[161104-Financial Analysis_v11(base case).xlsm]Results Database'!$E:$E,'Aggregate Summary'!AJ$4,'[161104-Financial Analysis_v11(base case).xlsm]Results Database'!$CH:$CH)
A14: 10 | B14: Foaming agents to Remove Accumulated Fluid in Gas wells | C14: 1577.515787 | D14: 24904.84578 | E14: 64342.74045 | F14: 907299.3031 | G14: 18180732.73 | H14: 40863215.31 | I14: 0.001738693925 | J14: 0.001369848298 | K14: 0.001574588293 | L14: 1289918.856 | M14: 0 | O14: 8467.389061 | P14: 743.6271783 | Q14: 2330.447099 | R14: 11541.46334 | S14: 10248.00099 | T14: 92147.17251 | U14: 30676.45477 | V14: 80151.24429 | W14: 202974.8716 | X14: 202974.8716 | Y14: 906944.9903 | Z14: 51.21656064 | AA14: 303.0962647 | AC14: 932272.9497 | AD14: 16446837.11 | AE14: 801622.6738 | AF14: 0 | AG14: 0 | AH14: 0 | AJ14: 5146427.607 | AK14: 1687357.673 | AL14: 3492189.48 | AM14: 0.15 | AN14: 0.1 | AO14: 0.1 | AP14: 771964.1411 | AQ14: 168735.7673 | AR14: 349218.948 | AS14: 604 | AT14: 656 | AU14: 0.05 | AV14: 0 | AW14: 0.05 | AX14: 0.6 | AY14: 0.3 | AZ14: 0.15 | BA14: 38598.20706 | BB14: 0 | BC14: 17460.9474 | BD14: 463178.4847 | BE14: 50620.73019 | BF14: 52382.8422 | BG14: 423.369453 | BH14: 0 | BI14: 116.5223549 | BJ14: 4607.358625 | BK14: 0 | BL14: 4007.562215 | BM14: 5080.433436 | BN14: 223.0881535 | BO14: 349.5670648 | BP14: 55288.3035 | BQ14: 9202.93643 | BR14: 12022.68664 | BS14: 15191.59495 | BT14: 0 | BU14: 6920.621088 | BV14: 182299.1394 | BW14: 14780.14027 | BX14: 20761.86326 | CD14: =SUMIF('[161104-Financial Analysis_v11(base case).xlsm]Results Database'!$E:$E,'Aggregate Summary'!AJ$4,'[161104-Financial Analysis_v11(base case).xlsm]Results Database'!$CQ:$CQ)
A15: 11 | B15: Velocity tubing to Remove Accumulated Fluid in Gas Wells | C15: 691.4145602 | D15: 14154.70484 | E15: 31440.06885 | F15: 907299.3031 | G15: 18180732.73 | H15: 40863215.31 | I15: 0.0007620578543 | J15: 0.0007785552462 | K15: 0.0007693978218 | L15: -1016457608 | M15: 0 | O15: 8431.461011 | P15: 743.4688985 | Q15: 2326.680647 | R15: 11501.61056 | S15: 10208.30649 | T15: 92125.97775 | U15: 30665.80554 | V15: 80151.1568 | W15: 202942.9401 | X15: 202942.9401 | Y15: 906944.9903 | Z15: 51.21656064 | AA15: 303.0962647 | AC15: 932272.9497 | AD15: 16446837.11 | AE15: 801622.6738 | AF15: 0 | AG15: 0 | AH15: 0 | AJ15: -8514222609 | AK15: -1163912575 | AL15: -5325508490 | AM15: 0.05 | AN15: 0.05 | AO15: 0.1 | AP15: -425711130.4 | AQ15: -58195628.74 | AR15: -532550849 | AS15: 0 | AT15: 0 | AU15: 0 | AV15: 0 | AW15: 0 | AX15: 0.25 | AY15: 0.15 | AZ15: 0 | BA15: 0 | BB15: 0 | BC15: 0 | BD15: -106427782.6 | BE15: -8729344.311 | BF15: 0 | BG15: 0 | BH15: 0 | BI15: 0 | BJ15: 0 | BK15: 0 | BL15: 0 | BM15: 2107.865253 | BN15: 111.5203348 | BO15: 0 | BP15: 23031.49444 | BQ15: 4599.870831 | BR15: 0 | BS15: 0 | BT15: 0 | BU15: 0 | BV15: 75728.12576 | BW15: 7387.879201 | BX15: 0 | CD15: =SUMIF('[161104-Financial Analysis_v11(base case).xlsm]Results Database'!$E:$E,'Aggregate Summary'!AJ$4,'[161104-Financial Analysis_v11(base case).xlsm]Results Database'!$CZ:$CZ)
A16: 12 | B16: Install Flares | C16: 32778.72071 | D16: -41417.14338 | E16: 778050.8743 | F16: 907299.3031 | G16: 18180732.73 | H16: 40863215.31 | I16: 0.03612779222 | J16: -0.002278078887 | K16: 0.01904037331 | L16: -378685075.9 | M16: 0 | O16: 163893.6035 | P16: 43383.52799 | Q16: 77995.54981 | R16: 285272.6813 | S16: 190421.1111 | T16: -207085.7169 | U16: -8141.946946 | V16: -38364.96883 | W16: -253592.6327 | X16: -253592.6327 | Y16: 906944.9903 | Z16: 51.21656064 | AA16: 303.0962647 | AC16: 932272.9497 | AD16: 16446837.11 | AE16: 801622.6738 | AF16: 0 | AG16: 0 | AH16: 0 | AJ16: -1893425380 | AK16: -255072277.7 | AL16: -1203148893 | AM16: 0.2 | AN16: 0 | AO16: 0 | AP16: -378685075.9 | AQ16: 0 | AR16: 0 | AS16: 0 | AT16: 4 | AU16: 0 | AV16: 0 | AW16: 0 | AX16: 0.35 | AY16: 0 | AZ16: 0 | BA16: 0 | BB16: 0 | BC16: 0 | BD16: -132539776.6 | BE16: 0 | BF16: 0 | BG16: 0 | BH16: 0 | BI16: 0 | BJ16: 0 | BK16: 0 | BL16: 0 | BM16: 57362.76124 | BN16: 0 | BO16: 0 | BP16: -72480.00092 | BQ16: 0 | BR16: 0 | BS16: 0 | BT16: 0 | BU16: 0 | BV16: 1361589.03 | BW16: 0 | BX16: 0 | CD16: =SUMIF('[161104-Financial Analysis_v11(base case).xlsm]Results Database'!$E:$E,'Aggregate Summary'!AJ$4,'[161104-Financial Analysis_v11(base case).xlsm]Results Database'!$DI:$DI)
A17: 13 | B17: Gas Lift Well to remove liquid accumulation | C17: 920.1557336 | D17: 12281.80784 | E17: 35285.70118 | F17: 907299.3031 | G17: 18180732.73 | H17: 40863215.31 | I17: 0.001014169999 | J17: 0.0006755397607 | K17: 0.0008635077028 | L17: -8836026.401 | M17: 0 | O17: 8457.930158 | P17: 743.6271783 | Q17: 2329.188296 | R17: 11530.74563 | S17: 10237.28328 | T17: 92141.6236 | U17: 30676.45477 | V17: 80151.21505 | W17: 202969.2934 | X17: 202969.2934 | Y17: 906944.9903 | Z17: 51.21656064 | AA17: 303.0962647 | AC17: 932272.9497 | AD17: 16446837.11 | AE17: 801622.6738 | AF17: 0 | AG17: 0 | AH17: 0 | AJ17: -78798576.57 | AK17: -9561687.443 | AL17: -48836263.97 | AM17: 0.1 | AN17: 0.1 | AO17: 0 | AP17: -7879857.657 | AQ17: -956168.7443 | AR17: 0 | AS17: 0 | AT17: 0 | AU17: 0.05 | AV17: 0.05 | AW17: 0 | AX17: 0.5 | AY17: 0.3 | AZ17: 0 | BA17: -393992.8828 | BB17: -47808.43722 | BC17: 0 | BD17: -3939928.828 | BE17: -286850.6233 | BF17: 0 | BG17: 422.8965079 | BH17: 37.18135891 | BI17: 0 | BJ17: 4607.08118 | BK17: 1533.822738 | BL17: 0 | BM17: 4228.965079 | BN17: 223.0881535 | BO17: 0 | BP17: 46070.8118 | BQ17: 9202.93643 | BR17: 0 | BS17: 15179.49388 | BT17: 2463.356711 | BU17: 0 | BV17: 151794.9388 | BW17: 14780.14027 | BX17: 0 | CD17: =SUMIF('[161104-Financial Analysis_v11(base case).xlsm]Results Database'!$E:$E,'Aggregate Summary'!AJ$4,'[161104-Financial Analysis_v11(base case).xlsm]Results Database'!$DR:$DR)
A18: 14 | B18: Microturbines | C18: 5286.857019 | D18: 355705.1577 | E18: 487876.5832 | F18: 907299.3031 | G18: 18180732.73 | H18: 40863215.31 | I18: 0.00582702643 | J18: 0.0195649517 | K18: 0.01193926076 | L18: -531474477.4 | M18: 0 | O18: 19503.68396 | P18: 4109.360297 | Q18: 16486.71185 | R18: 40099.7561 | S18: 23408.7889 | T18: 1312227.842 | U18: 276481.9717 | V18: 1109242.867 | W18: 2697952.681 | X18: 2697952.681 | Y18: 906944.9903 | Z18: 51.21656064 | AA18: 303.0962647 | AC18: 932272.9497 | AD18: 16446837.11 | AE18: 801622.6738 | AF18: 0 | AG18: 0 | AH18: 0 | AJ18: -2017336751 | AK18: -271402896.4 | AL18: -1277605845 | AM18: 0.25 | AN18: 0.1 | AO18: 0 | AP18: -504334187.7 | AQ18: -27140289.64 | AR18: 0 | AS18: 0 | AT18: 0 | AU18: 0 | AV18: 0 | AW18: 0 | AX18: 0.5 | AY18: 0.2 | AZ18: 0 | BA18: 0 | BB18: 0 | BC18: 0 | BD18: -252167093.9 | BE18: -5428057.928 | BF18: 0 | BG18: 0 | BH18: 0 | BI18: 0 | BJ18: 0 | BK18: 0 | BL18: 0 | BM18: 9751.841978 | BN18: 821.8720593 | BO18: 0 | BP18: 656113.9212 | BQ18: 55296.39434 | BR18: 0 | BS18: 0 | BT18: 0 | BU18: 0 | BV18: 899909.9706 | BW18: 75843.19582 | BX18: 0 | CD18: =SUMIF('[161104-Financial Analysis_v11(base case).xlsm]Results Database'!$E:$E,'Aggregate Summary'!AJ$4,'[161104-Financial Analysis_v11(base case).xlsm]Results Database'!$EA:$EA)
A19: 15 | B19: Electric submersible pump (ESP) to unload wells | C19: 839.6821272 | D19: 10675.3019 | E19: 31667.35508 | F19: 907299.3031 | G19: 18180732.73 | H19: 40863215.31 | I19: 0.0009254742335 | J19: 0.0005871766588 | K19: 0.0007749599447 | L19: -613903332.4 | M19: 0 | O19: 8028.410698 | P19: 736.8211478 | Q19: 2324.083206 | R19: 11089.31505 | S19: 9796.960659 | T19: 91643.74995 | U19: 30218.53806 | V19: 80151.09647 | W19: 202013.3845 | X19: 202013.3845 | Y19: 906944.9903 | Z19: 51.21656064 | AA19: 303.0962647 | AC19: 932272.9497 | AD19: 16446837.11 | AE19: 801622.6738 | AF19: 0 | AG19: 0 | AH19: 0 | AJ19: -5726533527 | AK19: -824999593 | AL19: -3694313025 | AM19: 0.1 | AN19: 0.05 | AO19: 0 | AP19: -572653352.7 | AQ19: -41249979.65 | AR19: 0 | AS19: 0 | AT19: 0 | AU19: 0.05 | AV19: 0 | AW19: 0 | AX19: 0.3 | AY19: 0.2 | AZ19: 0 | BA19: -28632667.64 | BB19: 0 | BC19: 0 | BD19: -171796005.8 | BE19: -8249995.93 | BF19: 0 | BG19: 401.4205349 | BH19: 0 | BI19: 0 | BJ19: 4582.187497 | BK19: 0 | BL19: 0 | BM19: 2408.523209 | BN19: 147.3642296 | BO19: 0 | BP19: 27493.12498 | BQ19: 6043.707613 | BR19: 0 | BS19: 14617.70087 | BT19: 0 | BU19: 0 | BV19: 87706.20522 | BW19: 9727.813352 | BX19: 0 | CD19: =SUMIF('[161104-Financial Analysis_v11(base case).xlsm]Results Database'!$E:$E,'Aggregate Summary'!AJ$4,'[161104-Financial Analysis_v11(base case).xlsm]Results Database'!$EJ:$EJ)
A20: 16 | B20: Downhole Jetpump for Well Unloading | C20: 876.5231845 | D20: 12186.2288 | E20: 34099.30841 | F20: 907299.3031 | G20: 18180732.73 | H20: 40863215.31 | I20: 0.00096607942 | J20: 0.0006702825999 | K20: 0.0008344744328 | L20: -468283212.5 | M20: 0 | O20: 8028.410698 | P20: 736.8211478 | Q20: 2324.083206 | R20: 11089.31505 | S20: 9796.960659 | T20: 91643.74995 | U20: 30218.53806 | V20: 80151.09647 | W20: 202013.3845 | X20: 202013.3845 | Y20: 906944.9903 | Z20: 51.21656064 | AA20: 303.0962647 | AC20: 932272.9497 | AD20: 16446837.11 | AE20: 801622.6738 | AF20: 0 | AG20: 0 | AH20: 0 | AJ20: -4114640772 | AK20: -568191353 | AL20: -2637306073 | AM20: 0.1 | AN20: 0.1 | AO20: 0 | AP20: -411464077.2 | AQ20: -56819135.3 | AR20: 0 | AS20: 0 | AT20: 0 | AU20: 0.05 | AV20: 0.05 | AW20: 0 | AX20: 0.5 | AY20: 0.3 | AZ20: 0 | BA20: -20573203.86 | BB20: -2840956.765 | BC20: 0 | BD20: -205732038.6 | BE20: -17045740.59 | BF20: 0 | BG20: 401.4205349 | BH20: 36.84105739 | BI20: 0 | BJ20: 4582.187497 | BK20: 1510.926903 | BL20: 0 | BM20: 4014.205349 | BN20: 221.0463443 | BO20: 0 | BP20: 45821.87497 | BQ20: 9065.561419 | BR20: 0 | BS20: 14617.70087 | BT20: 2431.953338 | BU20: 0 | BV20: 146177.0087 | BW20: 14591.72003 | BX20: 0 | CD20: =SUMIF('[161104-Financial Analysis_v11(base case).xlsm]Results Database'!$E:$E,'Aggregate Summary'!AJ$4,'[161104-Financial Analysis_v11(base case).xlsm]Results Database'!$ES:$ES)
A21: 17 | B21: Monitor/repair leaking flare/vent control valves | C21: 47481.03503 | D21: 897860.3566 | E21: 2084886.232 | F21: 907299.3031 | G21: 18180732.73 | H21: 40863215.31 | I21: 0.05233227323 | J21: 0.04938526791 | K21: 0.05102110093 | L21: -145940308 | M21: 0 | O21: 72165.37326 | P21: 5974.015816 | Q21: 25409.99977 | R21: 103549.3889 | S21: 86936.22806 | T21: 1172981.201 | U21: 277245.1947 | V21: 1079203.864 | W21: 2529430.259 | X21: 2529430.259 | Y21: 906944.9903 | Z21: 51.21656064 | AA21: 303.0962647 | AC21: 932272.9497 | AD21: 16446837.11 | AE21: 801622.6738 | AF21: 0 | AG21: 0 | AH21: 0 | AJ21: -214126083.8 | AK21: -24949511.1 | AL21: -146958907.9 | AM21: 0.6 | AN21: 0.7 | AO21: 0 | AP21: -128475650.3 | AQ21: -17464657.77 | AR21: 0 | AS21: 0 | AT21: 68 | AU21: 0.3 | AV21: 0.35 | AW21: 0 | AX21: 0.78 | AY21: 0.88 | AZ21: 0.06 | BA21: -38542695.08 | BB21: -6112630.22 | BC21: 0 | BD21: -100211007.2 | BE21: -15368898.84 | BF21: 0 | BG21: 21649.61198 | BH21: 2090.905536 | BI21: 0 | BJ21: 351894.3602 | BK21: 97035.81814 | BL21: 0 | BM21: 56288.99115 | BN21: 5257.133918 | BO21: 1524.599986 | BP21: 914925.3364 | BQ21: 243975.7713 | BR21: 64752.23182 | BS21: 893134.6596 | BT21: 149308.4565 | BU21: 0 | BV21: 2322150.115 | BW21: 375404.1193 | BX21: 102867.2315 | CD21: =SUMIF('[161104-Financial Analysis_v11(base case).xlsm]Results Database'!$E:$E,'Aggregate Summary'!AJ$4,'[161104-Financial Analysis_v11(base case).xlsm]Results Database'!$FB:$FB)
A22: 18 | B22: Install redundant compression | C22: 48909.83754 | D22: 3140724.361 | E22: 4363470.3 | F22: 907299.3031 | G22: 18180732.73 | H22: 40863215.31 | I22: 0.05390705952 | J22: 0.172750153 | K22: 0.1067823534 | L22: -509441890.3 | M22: 0 | O22: 117270.9348 | P22: 186257.6754 | Q22: 46581.93079 | R22: 350110.5409 | S22: 154010.2345 | T22: 2765504.224 | U22: 12341657.11 | V22: 2208896.896 | W22: 17316058.23 | X22: 17316058.23 | Y22: 906944.9903 | Z22: 51.21656064 | AA22: 303.0962647 | AC22: 932272.9497 | AD22: 16446837.11 | AE22: 801622.6738 | AF22: 0 | AG22: 0 | AH22: 0 | AJ22: -1.209914269e+10 | AK22: -1069836146 | AL22: -8348539425 | AM22: 0.02 | AN22: 0.25 | AO22: 0 | AP22: -241982853.8 | AQ22: -267459036.6 | AR22: 0 | AS22: 0 | AT22: 29 | AU22: 0 | AV22: 0.1 | AW22: 0 | AX22: 0.25 | AY22: 0.5 | AZ22: 0 | BA22: 0 | BB22: -26745903.66 | BC22: 0 | BD22: -60495713.44 | BE22: -133729518.3 | BF22: 0 | BG22: 0 | BH22: 18625.76754 | BI22: 0 | BJ22: 0 | BK22: 1234165.711 | BL22: 0 | BM22: 29317.7337 | BN22: 93128.83769 | BO22: 0 | BP22: 691376.056 | BQ22: 6170828.553 | BR22: 0 | BS22: 0 | BT22: 1699809.899 | BU22: 0 | BV22: 1424319.398 | BW22: 8499049.496 | BX22: 0 | CD22: =SUMIF('[161104-Financial Analysis_v11(base case).xlsm]Results Database'!$E:$E,'Aggregate Summary'!AJ$4,'[161104-Financial Analysis_v11(base case).xlsm]Results Database'!$FK:$FK)
A23: 19 | B23: Limit Monthly Vent Volume | C23: 2103.452324 | D23: 48.86020778 | E23: 52635.1683 | F23: 868370.1174 | G23: 17427211.65 | H23: 39136464.58 | I23: 0.002422299296 | J23: 2.803673288e-06 | K23: 0.001344913723 | L23: 1659781.592 | M23: 53188.60278 | O23: 0 | P23: 2103.452324 | Q23: 0 | R23: 2103.452324 | S23: 2103.452324 | T23: 0 | U23: 48.86020778 | V23: 0 | W23: 48.86020778 | X23: 48.86020778 | Y23: 868015.8046 | Z23: 51.21656064 | AA23: 303.0962647 | AC23: 899965.0649 | AD23: 15749549.44 | AE23: 777697.1414 | AF23: 0 | AG23: 0 | AH23: 53188.60278 | AJ23: 0 | AK23: 1659781.592 | AL23: 0 | AM23: 1 | AN23: 1 | AO23: 1 | AP23: 0 | AQ23: 1659781.592 | AR23: 0 | AS23: 1 | AT23: N/A | AU23: 1 | AV23: 1 | AW23: 1 | AX23: 1 | AY23: 1 | AZ23: 1 | BA23: 0 | BB23: 1659781.592 | BC23: 0 | BD23: 0 | BE23: 1659781.592 | BF23: 0 | BG23: 0 | BH23: 2103.452324 | BI23: 0 | BJ23: 0 | BK23: 48.86020778 | BL23: 0 | BM23: 0 | BN23: 2103.452324 | BO23: 0 | BP23: 0 | BQ23: 48.86020778 | BR23: 0 | BS23: 0 | BT23: 52635.1683 | BU23: 0 | BV23: 0 | BW23: 52635.1683 | BX23: 0 | CD23: =SUMIF('[161104-Financial Analysis_v11(base case).xlsm]Results Database'!$E:$E,'Aggregate Summary'!AJ$4,'[161104-Financial Analysis_v11(base case).xlsm]Results Database'!$FT:$FT)
B26: fixed | C26: 1085
B27: floater | C27: 121
B28: single well | C28: 827
C29: 2033
B31: Alternate Count | C31: 1784 | AS31: 681
AS32: 0
B34: Note: Adjusted means after applying percentages
B35: Note: Aggregate is before applying percentage adjustments
F39: NPV | J39: =F39 -> NPV | N39: =J39 -> NPV
B40: Bubble_labels | D40: Colour Group | G40: Complexes with + | H40: Emissions | K40: Percent Reduced | L40: Number of Complexes | O40: =L40 -> Number of Complexes | P40: =K40 -> Percent Reduced | AS40: 0
B41: =B5 -> Reroute Gas Pig Trap Vent | C41: Either | D41: 3 | F41: =L5 -> -49134649.77 | G41: =AS5 -> 0 | H41: =E5 -> 17178.16356 | J41: =F41 -> -49134649.77 | K41: =J5 -> 3.003739654e-05 | L41: =G41 -> 0 | N41: =J41 -> -49134649.77 | O41: =L41 -> 0 | P41: =K41 -> 3.003739654e-05 | AS41: 539
B42: =B6 -> Limit Monthly Flare Volume | C42: Flare | D42: 2 | F42: 549446004.9 | G42: 113 | H42: 10692917.42 | J42: =F42 -> 549446004.9 | K42: 0.4473510862 | L42: =G42 -> 113 | N42: =J42 -> 549446004.9 | O42: =L42 -> 113 | P42: =K42 -> 0.4473510862
B43: Compressors Off - Maintain Pressure | C43: Either | D43: 3 | F43: 8646644.536 | G43: 647 | H43: 201442.5327 | J43: 8646644.536 | K43: 0.005052327151 | L43: 647 | N43: 8646644.536 | O43: 647 | P43: 0.005052327151
B44: Compressors Off- Blowdown to fuel | C44: Either | D44: 3 | F44: -53041063.79 | G44: 0 | H44: 27142.08491 | J44: -53041063.79 | K44: 0.0004466264301 | L44: 0 | N44: -53041063.79 | O44: 0 | P44: 0.0004466264301
B45: Compressor Static Seals | C45: Vent | D45: 1 | F45: 2450251.996 | G45: 548 | H45: 331191.2189 | J45: 2450251.996 | K45: 0.005913795146 | L45: 548 | N45: 2450251.996 | O45: 548 | P45: 0.005913795146
B46: Compressors Off - Install ejector | C46: Either | D46: 3 | F46: -8029877.783 | G46: 0 | H46: 38686.1179 | J46: -8029877.783 | K46: 0.0009153527565 | L46: 0 | N46: -8029877.783 | O46: 0 | P46: 0.0009153527565
B47: Using Pipeline Pump-Down Techniques to Lower Gas Line Pressure before Maintenance | C47: Either | D47: 3 | F47: -3945775.744 | G47: 0 | H47: 5519.027191 | J47: -3945775.744 | K47: 0.0001042218271 | L47: 0 | N47: -3945775.744 | O47: 0 | P47: 0.0001042218271
B48: Use Inert Gases and Pigs to Perform Pipeline Purges | C48: Either | D48: 3 | F48: -6713449.782 | G48: 0 | H48: 5519.027191 | J48: -6713449.782 | K48: 0.0001042218271 | L48: 0 | N48: -6713449.782 | O48: 0 | P48: 0.0001042218271
B49: Reduced Emission Completions | C49: Either | D49: 3 | F49: 37906493.01 | G49: 194 | H49: 1174107.074 | J49: 37906493.01 | K49: 0.04328024675 | L49: 194 | N49: 37906493.01 | O49: 194 | P49: 0.04328024675 | AS49: 586
B50: Foaming agents to Remove Accumulated Fluid in Gas wells | C50: Either | D50: 3 | F50: 1289918.856 | G50: 604 | H50: 64342.74045 | J50: 1289918.856 | K50: 0.001369848298 | L50: 604 | N50: 1289918.856 | O50: 604 | P50: 0.001369848298 | AS50: 0
B51: Velocity tubing to Remove Accumulated Fluid in Gas Wells | C51: Either | D51: 3 | F51: -1016457608 | G51: 0 | H51: 31440.06885 | J51: -1016457608 | K51: 0.0007785552462 | L51: 0 | N51: -1016457608 | O51: 0 | P51: 0.0007785552462
B52: Install Flares | C52: Convert Vent to Flare | D52: 4 | F52: -378685075.9 | G52: 0 | H52: 778050.8743 | J52: -378685075.9 | K52: -0.002278078887 | L52: 0 | N52: -378685075.9 | O52: 0 | P52: -0.002278078887
B53: Gas Lift Well to remove liquid accumulation | C53: Either | D53: 3 | F53: -8836026.401 | G53: 0 | H53: 35285.70118 | J53: -8836026.401 | K53: 0.0006755397607 | L53: 0 | N53: -8836026.401 | O53: 0 | P53: 0.0006755397607
B54: Microturbines | C54: Flare | D54: 1 | F54: -531474477.4 | G54: 0 | H54: 487876.5832 | J54: -531474477.4 | K54: 0.0195649517 | L54: 0 | N54: -531474477.4 | O54: 0 | P54: 0.0195649517
B55: Electric submersible pump (ESP) to unload wells | C55: Either | D55: 3 | F55: -613903332.4 | G55: 0 | H55: 31667.35508 | J55: -613903332.4 | K55: 0.0005871766588 | L55: 0 | N55: -613903332.4 | O55: 0 | P55: 0.0005871766588
B56: Downhole Jetpump for Well Unloading | C56: Either | D56: 3 | F56: -468283212.5 | G56: 0 | H56: 34099.30841 | J56: -468283212.5 | K56: 0.0006702825999 | L56: 0 | N56: -468283212.5 | O56: 0 | P56: 0.0006702825999
B57: Monitor/repair leaking flare/vent control valves | C57: Either | D57: 3 | F57: -145940308 | G57: 0 | H57: 2084886.232 | J57: -145940308 | K57: 0.04938526791 | L57: 0 | N57: -145940308 | O57: 0 | P57: 0.04938526791
B58: Install redundant compression | C58: Either | D58: 3 | F58: -509441890.3 | G58: 0 | H58: 4363470.3 | J58: -509441890.3 | K58: 0.172750153 | L58: 0 | N58: -509441890.3 | O58: 0 | P58: 0.172750153 | AS58: 43
B59: Limit Monthly Vent Volume | C59: Vent | D59: 1 | F59: 1659781.592 | G59: 1 | H59: 52635.1683 | J59: 1659781.592 | K59: 2.803673288e-06 | L59: 1 | N59: 1659781.592 | O59: 1 | P59: 2.803673288e-06 | AS59: 0
C64: colour_1
C65: colour_2
C66: colour_3
C67: colour_4 | AS67: 0
AS68: 0
AS76: 0
AS77: 161
AS85: 214
AS86: 622
AS94: 665
AS95: 0
AS103: 0
AS104: 0
AS112: 4
AS113: 486
AS121: 569
AS122: 0
AS130: 0
AS131: 0
AS139: 0
AS140: 0
AS148: 0
AS149: 0
AS157: 174
AS158: 0
AS166: 32
AS167: 1
AS175: 0

Sheet Base Case + NPV
A1: FINAL AGREGATE SUMMARY | E1: 25 | H1: =E1 -> 25
C2: Aplicabiity Adjusted | D2: Aplicabiity Adjusted | E2: Aplicabiity Adjusted | F2: Adjusted | G2: Adjusted | H2: Adjusted | I2: Percent | J2: Percent | K2: Percent | L2: Adjusted | M2: Adjusted | O2: Aggregate | P2: Aggregate | Q2: Aggregate | R2: Aggregate | S2: Aggregate | T2: Aggregate | U2: Aggregate | V2: Aggregate | W2: Aggregate | X2: Aggregate | Y2: Aggregate | Z2: Aggregate | AA2: Aggregate | AB2: Aggregate | AC2: Aggregate | AD2: Aggregate | AE2: Aggregate | AF2: Oil | AG2: Oil | AH2: Oil
C3: Reduction | D3: Reduction | E3: Reduct Equivalent | F3: Existing | G3: Existing | H3: Equivalent CO2 | I3: Reduction | J3: Reduction | K3: Reduction | L3: NPV | M3: Oil | O3: Reduced Methane | P3: Reduced Methane | Q3: Reduced Methane | R3: Reduced Methane | S3: Methane | T3: Reduced CO2 | U3: Reduced CO2 | V3: Reduced CO2 | W3: Reduced CO2 | X3: CO2 | Y3: Exist Methane | Z3: Exist Methane | AA3: Exist Methane | AB3: Exist CO2 | AC3: Exist CO2 | AD3: Exist CO2 | AE3: Exist CO2 | AF3: Deferred | AG3: Deferred | AH3: Deferred | AJ3: Total NPV b/4 Ratios | AM3: Percent Applicable | AP3: Final NPV - Expected Value Case | AS3: # of Complexes | AT3: # of Complexes | AU3: Percent Applicable 10% Case | AX3: Percent Applicable 90% Case | BA3: Final Methane - 10% Case | BD3: Final CO2 - 10% Case | BG3: Final Methane - 90% | BJ3: Final CO2 - 90% | BM3: Final CO2 Equiv - 10% Case | BP3: Final CO2 Equiv - 90% Case | BS3: Final NPV - 10% Low Case | BV3: Final NPV - 90% Hi Case
C4: Methane | D4: CO2 | E4: Total CO2 | F4: Methane | G4: CO2 | H4: Total | I4: Methane | J4: CO2 | K4: Equiv CO2 | L4: Savings | M4: Deferred | O4: =AJ4 -> fixed | P4: =AK4 -> floater | Q4: =AL4 -> single well | R4: Sum | S4: Check | T4: =AJ4 -> fixed | U4: =AK4 -> floater | V4: =AL4 -> single well | W4: Sum | X4: Check | Y4: =T4 -> fixed | Z4: =U4 -> floater | AA4: =V4 -> single well | AB4: =W4 -> Sum | AC4: =Y4 -> fixed | AD4: =Z4 -> floater | AE4: =AA4 -> single well | AF4: =AC4 -> fixed | AG4: =AD4 -> floater | AH4: =AE4 -> single well | AJ4: fixed | AK4: floater | AL4: single well | AM4: =AJ4 -> fixed | AN4: floater | AO4: single well | AP4: fixed | AQ4: floater | AR4: single well | AS4: > 0 NPV | AT4: > 0 NPV @ $49 SCOC | AU4: =AM4 -> fixed | AV4: =AN4 -> floater | AW4: single well | AX4: =AP4 -> fixed | AY4: =AQ4 -> floater | AZ4: single well | BA4: =AX4 -> fixed | BB4: floater | BC4: single well | BD4: fixed | BE4: floater | BF4: single well | BG4: =BA4 -> fixed | BH4: floater | BI4: single well | BJ4: fixed | BK4: floater | BL4: single well | BM4: =BJ4 -> fixed | BN4: floater | BO4: single well | BP4: fixed | BQ4: floater | BR4: single well | BS4: fixed | BT4: floater | BU4: single well | BV4: fixed | BW4: floater | BX4: single well
A5: 1 | B5: Reroute Gas Pig Trap Vent | C5: =SUMPRODUCT(O5:Q5,AM5:AO5) -> 665.2824671 | D5: =SUMPRODUCT(T5:V5,AM5:AO5) -> 546.1018783 | E5: =$E$1*C5+D5 -> 17178.16356 | F5: =SUM(Y5:AA5) -> 907299.3031 | G5: =SUM(AC5:AE5) -> 18180732.73 | H5: =F5*$H$1+G5 -> 40863215.31 | I5: =IF(F5,C5/F5) -> 0.0007332557898 | J5: 3.003739654e-05 | K5: 0.0004203820827 | L5: =SUM(AP5:AR5) -> 0 | M5: =SUMPRODUCT(AF5:AH5,AM5:AO5) -> 0 | O5: 1146.189777 | P5: 229.7850627 | Q5: 776.8923547 | R5: =SUM(O5:Q5) -> 2152.867194 | S5: 1531.900418 | T5: 1250.017434 | U5: 51.21656064 | V5: 303.0962647 | W5: =SUM(T5:V5) -> 1604.33026 | X5: 1604.33026 | Y5: 906944.9903 | Z5: 51.21656064 | AA5: 303.0962647 | AC5: 932272.9497 | AD5: 16446837.11 | AE5: 801622.6738 | AF5: 0 | AG5: 0 | AH5: 0 | AJ5: 0 | AK5: 0 | AL5: 0 | AM5: 0.4 | AN5: 0.9 | AO5: 0 | AP5: =AM5*AJ5 -> 0 | AQ5: 0 | AR5: 0 | AS5: 0 | AT5: 0 | AU5: 0.1 | AV5: 0.3 | AW5: 0 | AX5: 0.5 | AY5: 1 | AZ5: 0 | BA5: =AU5*O5 -> 114.6189777 | BB5: =AV5*P5 -> 68.9355188 | BC5: 0 | BD5: =AU5*T5 -> 125.0017434 | BE5: =AV5*U5 -> 15.36496819 | BF5: 0 | BG5: =AX5*O5 -> 573.0948884 | BH5: =AY5*P5 -> 229.7850627 | BI5: 0 | BJ5: =AX5*T5 -> 625.0087172 | BK5: =AY5*U5 -> 51.21656064 | BL5: 0 | BM5: =BA5*25+BD5 -> 2990.476186 | BN5: =BB5*25+BE5 -> 1738.752938 | BO5: 0 | BP5: =BG5*25+BJ5 -> 14952.38093 | BQ5: =BH5*25+BK5 -> 5795.843127 | BR5: 0 | BS5: =AU5*AJ5 -> 0 | BT5: =AV5*AK5 -> 0 | BU5: 0 | BV5: =AJ5*AX5 -> 0 | BW5: =AK5*AY5 -> 0 | BX5: 0 | CI5: =SUMIF('Results Database'!$E:$E,'Aggregate Summary'!AJ$4,'Results Database'!$N:$N)
A6: 2 | B6: Limit Monthly Flare Volume | C6: 115873.4144 | D6: 7796082.06 | E6: =$E$1*C6+D6 -> 10692917.42 | F6: =SUM(Y6:AA6) -> 868370.1174 | G6: =SUM(AC6:AE6) -> 17427211.65 | H6: =F6*$H$1+G6 -> 39136464.58 | I6: 0.1334378189 | J6: 0.4473510862 | K6: 0.2732213432 | L6: =SUM(AP6:AR6) -> 549446004.9 | M6: =SUMPRODUCT(AF6:AH6,AM6:AO6) -> 250369.8545 | O6: 2373.801932 | P6: 127956.9709 | Q6: 4263.955938 | R6: =SUM(O6:Q6) -> 134594.7288 | S6: 17955.14521 | T6: 159711.8265 | U6: 8609076.124 | V6: 286883.3248 | W6: 9055671.276 | X6: 9055671.276 | Y6: 868015.8046 | Z6: 51.21656064 | AA6: 303.0962647 | AC6: 899965.0649 | AD6: 15749549.44 | AE6: 777697.1414 | AF6: 29120.37343 | AG6: 268481.9361 | AH6: 40334726.66 | AJ6: 10220696.16 | AK6: 607088662.2 | AL6: 19390387.17 | AM6: 0.3 | AN6: 0.9 | AO6: 0 | AP6: 3066208.848 | AQ6: 546379796 | AR6: 0 | AS6: 113 | AT6: N/A | AU6: 0.3 | AV6: 0.9 | AW6: 0 | AX6: 1 | AY6: 1 | AZ6: 1 | BA6: =AU6*O6 -> 712.1405796 | BB6: 115161.2738 | BC6: 0 | BD6: =AU6*T6 -> 47913.54794 | BE6: 7748168.512 | BF6: 0 | BG6: =AX6*O6 -> 2373.801932 | BH6: 127956.9709 | BI6: 4263.955938 | BJ6: =AX6*T6 -> 159711.8265 | BK6: 8609076.124 | BL6: 286883.3248 | BM6: =BA6*25+BD6 -> 65717.06243 | BN6: 10627200.36 | BO6: 0 | BP6: =BG6*25+BJ6 -> 219056.8748 | BQ6: 11808000.4 | BR6: 393482.2233 | BS6: =AU6*AJ6 -> 3066208.848 | BT6: 546379796 | BU6: 0 | BV6: =AJ6*AX6 -> 10220696.16 | BW6: 607088662.2 | BX6: 19390387.17 | CI6: =SUMIF('Results Database'!$E:$E,'Aggregate Summary'!AJ$4,'Results Database'!$W:$W)
A7: 3 | B7: Compressors Off - Maintain Pressure | C7: 4383.500924 | D7: 91855.00959 | E7: 201442.5327 | F7: 907299.3031 | G7: 18180732.73 | H7: 40863215.31 | I7: 0.004831372524 | J7: 0.005052327151 | K7: 0.004929678959 | L7: =SUM(AP7:AR7) -> 8672684.195 | M7: 0 | O7: 74952.59837 | P7: 6358.710052 | Q7: 26761.23339 | R7: 108072.5418 | S7: 90420.1431 | T7: 1247963.82 | U7: 294568.1857 | V7: 1147811.798 | W7: 2690343.804 | X7: 2690343.804 | Y7: 906944.9903 | Z7: 51.21656064 | AA7: 303.0962647 | AC7: 932272.9497 | AD7: 16446837.11 | AE7: 801622.6738 | AF7: 0 | AG7: 0 | AH7: 0 | AJ7: 125226385.8 | AK7: 24113649.06 | AL7: 96932301.48 | AM7: 0.05 | AN7: 0.1 | AO7: 0 | AP7: 6261319.29 | AQ7: 2411364.906 | AR7: 0 | AS7: 647 | AT7: 669 | AU7: 0 | AV7: 0 | AW7: 0 | AX7: 0.28 | AY7: 0.5 | AZ7: 0 | BA7: 0 | BB7: 0 | BC7: 0 | BD7: 0 | BE7: 0 | BF7: 0 | BG7: 20986.72754 | BH7: 3179.355026 | BI7: 0 | BJ7: 349429.8697 | BK7: 147284.0928 | BL7: 0 | BM7: 0 | BN7: 0 | BO7: 0 | BP7: 874098.0583 | BQ7: 226767.9685 | BR7: 0 | BS7: 0 | BT7: 0 | BU7: 0 | BV7: 35063388.02 | BW7: 12056824.53 | BX7: 0 | CI7: =SUMIF('Results Database'!$E:$E,'Aggregate Summary'!AJ$4,'Results Database'!$AF:$AF)
A8: 4 | B8: Compressors Off- Blowdown to fuel | C8: 760.8835662 | D8: 8119.995755 | E8: 27142.08491 | F8: 907299.3031 | G8: 18180732.73 | H8: 40863215.31 | I8: 0.0008386246562 | J8: 0.0004466264301 | K8: 0.0006642180432 | L8: =SUM(AP8:AR8) -> 0 | M8: 0 | O8: 1290.866959 | P8: 51.9456519 | Q8: 307.6114144 | R8: 1650.424025 | S8: 1503.96553 | T8: 10491.53267 | U8: 2397.604887 | V8: 9552.466318 | W8: 22441.60387 | X8: 22441.60387 | Y8: 906944.9903 | Z8: 51.21656064 | AA8: 303.0962647 | AC8: 932272.9497 | AD8: 16446837.11 | AE8: 801622.6738 | AF8: 0 | AG8: 0 | AH8: 0 | AJ8: 0 | AK8: 0 | AL8: 0 | AM8: 0.55 | AN8: 0.98 | AO8: 0 | AP8: 0 | AQ8: 0 | AR8: 0 | AS8: 0 | AT8: 0 | AU8: 0.56 | AV8: 0.98 | AW8: 0 | AX8: 0.56 | AY8: 1 | AZ8: 0 | BA8: 722.8854969 | BB8: 50.90673886 | BC8: 0 | BD8: 5875.258293 | BE8: 2349.652789 | BF8: 0 | BG8: 722.8854969 | BH8: 51.9456519 | BI8: 0 | BJ8: 5875.258293 | BK8: 2397.604887 | BL8: 0 | BM8: 23947.39571 | BN8: 3622.321261 | BO8: 0 | BP8: 23947.39571 | BQ8: 3696.246185 | BR8: 0 | BS8: 0 | BT8: 0 | BU8: 0 | BV8: 0 | BW8: 0 | BX8: 0 | CI8: =SUMIF('Results Database'!$E:$E,'Aggregate Summary'!AJ$4,'Results Database'!$AO:$AO)
A9: 5 | B9: Compressor Static Seals | C9: 8946.963599 | D9: 107517.129 | E9: 331191.2189 | F9: 907299.3031 | G9: 18180732.73 | H9: 40863215.31 | I9: 0.009861093873 | J9: 0.005913795146 | K9: 0.008104874187 | L9: 5793079.524 | M9: 0 | O9: 35004.14725 | P9: 1959.267861 | Q9: 10057.45615 | R9: 47020.87126 | S9: 41474.80127 | T9: 393693.2715 | U9: 90938.11102 | V9: 361416.3464 | W9: 846047.7289 | X9: 846047.7289 | Y9: 906944.9903 | Z9: 51.21656064 | AA9: 303.0962647 | AC9: 932272.9497 | AD9: 16446837.11 | AE9: 801622.6738 | AF9: 0 | AG9: 0 | AH9: 0 | AJ9: 21838295.33 | AK9: 3335056.928 | AL9: 17036007.31 | AM9: 0.25 | AN9: 0.1 | AO9: 0 | AP9: 5459573.831 | AQ9: 333505.6928 | AR9: 0 | AS9: 548 | AT9: 588 | AU9: 0.1 | AV9: 0.05 | AW9: 0 | AX9: 0.56 | AY9: 0.25 | AZ9: 0 | BA9: 3500.414725 | BB9: 97.96339304 | BC9: 0 | BD9: 39369.32715 | BE9: 4546.905551 | BF9: 0 | BG9: 19602.32246 | BH9: 489.8169652 | BI9: 0 | BJ9: 220468.232 | BK9: 22734.52776 | BL9: 0 | BM9: 126879.6953 | BN9: 6995.990377 | BO9: 0 | BP9: 710526.2936 | BQ9: 34979.95189 | BR9: 0 | BS9: 2183829.533 | BT9: 166752.8464 | BU9: 0 | BV9: 12229445.38 | BW9: 833764.2321 | BX9: 0 | CI9: =SUMIF('Results Database'!$E:$E,'Aggregate Summary'!AJ$4,'Results Database'!$AX:$AX)
A10: 6 | B10: Compressors Off - Install ejector | C10: 881.7733632 | D10: 16641.78382 | E10: 38686.1179 | F10: 907299.3031 | G10: 18180732.73 | H10: 40863215.31 | I10: 0.0009718660206 | J10: 0.0009153527565 | K10: 0.0009467223175 | L10: 0 | M10: 0 | O10: 13016.38684 | P10: 577.3850527 | Q10: 3305.394595 | R10: 16899.16649 | S10: 15242.4283 | T10: 118011.9149 | U10: 26852.97019 | V10: 108104.0858 | W10: 252968.9708 | X10: 252968.9708 | Y10: 906944.9903 | Z10: 51.21656064 | AA10: 303.0962647 | AC10: 932272.9497 | AD10: 16446837.11 | AE10: 801622.6738 | AF10: 0 | AG10: 0 | AH10: 0 | AJ10: 0 | AK10: 0 | AL10: 0 | AM10: 0.05 | AN10: 0.4 | AO10: 0 | AP10: 0 | AQ10: 0 | AR10: 0 | AS10: 0 | AT10: 43 | AU10: 0 | AV10: 0 | AW10: 0 | AX10: 0.1 | AY10: 0.5 | AZ10: 0 | BA10: 0 | BB10: 0 | BC10: 0 | BD10: 0 | BE10: 0 | BF10: 0 | BG10: 1301.638684 | BH10: 288.6925264 | BI10: 0 | BJ10: 11801.19149 | BK10: 13426.48509 | BL10: 0 | BM10: 0 | BN10: 0 | BO10: 0 | BP10: 44342.15859 | BQ10: 20643.79825 | BR10: 0 | BS10: 0 | BT10: 0 | BU10: 0 | BV10: 0 | BW10: 0 | BX10: 0 | CI10: =SUMIF('Results Database'!$E:$E,'Aggregate Summary'!AJ$4,'Results Database'!$BG:$BG)
A11: 7 | B11: Using Pipeline Pump-Down Techniques to Lower Gas Line Pressure before Maintenance | C11: 144.9679204 | D11: 1894.829182 | E11: 5519.027191 | F11: 907299.3031 | G11: 18180732.73 | H11: 40863215.31 | I11: 0.0001597796007 | J11: 0.0001042218271 | K11: 0.0001350610115 | L11: 0 | M11: 0 | O11: 622.6152579 | P11: 25.79723772 | Q11: 150.9249985 | R11: 799.337494 | S11: 725.4651558 | T11: 5274.231381 | U11: 1198.010594 | V11: 4819.552179 | W11: 11291.79416 | X11: 11291.79416 | Y11: 906944.9903 | Z11: 51.21656064 | AA11: 303.0962647 | AC11: 932272.9497 | AD11: 16446837.11 | AE11: 801622.6738 | AF11: 0 | AG11: 0 | AH11: 0 | AJ11: 0 | AK11: 0 | AL11: 0 | AM11: 0.2 | AN11: 0.5 | AO11: 0.05 | AP11: 0 | AQ11: 0 | AR11: 0 | AS11: 0 | AT11: 0 | AU11: 0 | AV11: 0.1 | AW11: 0 | AX11: 0.47 | AY11: 0.9 | AZ11: 0.15 | BA11: 0 | BB11: 2.579723772 | BC11: 0 | BD11: 0 | BE11: 119.8010594 | BF11: 0 | BG11: 292.6291712 | BH11: 23.21751395 | BI11: 22.63874977 | BJ11: 2478.888749 | BK11: 1078.209535 | BL11: 722.9328269 | BM11: 0 | BN11: 184.2941537 | BO11: 0 | BP11: 9794.618029 | BQ11: 1658.647384 | BR11: 1288.901571 | BS11: 0 | BT11: 0 | BU11: 0 | BV11: 0 | BW11: 0 | BX11: 0 | CI11: =SUMIF('Results Database'!$E:$E,'Aggregate Summary'!AJ$4,'Results Database'!$BP:$BP)
A12: 8 | B12: Use Inert Gases and Pigs to Perform Pipeline Purges | C12: 144.9679204 | D12: 1894.829182 | E12: 5519.027191 | F12: 907299.3031 | G12: 18180732.73 | H12: 40863215.31 | I12: 0.0001597796007 | J12: 0.0001042218271 | K12: 0.0001350610115 | L12: 0 | M12: 0 | O12: 622.6152579 | P12: 25.79723772 | Q12: 150.9249985 | R12: 799.337494 | S12: 725.4651558 | T12: 5274.231381 | U12: 1198.010594 | V12: 4819.552179 | W12: 11291.79416 | X12: 11291.79416 | Y12: 906944.9903 | Z12: 51.21656064 | AA12: 303.0962647 | AC12: 932272.9497 | AD12: 16446837.11 | AE12: 801622.6738 | AF12: 0 | AG12: 0 | AH12: 0 | AJ12: 0 | AK12: 0 | AL12: 0 | AM12: 0.2 | AN12: 0.5 | AO12: 0.05 | AP12: 0 | AQ12: 0 | AR12: 0 | AS12: 0 | AT12: 0 | AU12: 0 | AV12: 0.1 | AW12: 0 | AX12: 0.47 | AY12: 0.9 | AZ12: 0.15 | BA12: 0 | BB12: 2.579723772 | BC12: 0 | BD12: 0 | BE12: 119.8010594 | BF12: 0 | BG12: 292.6291712 | BH12: 23.21751395 | BI12: 22.63874977 | BJ12: 2478.888749 | BK12: 1078.209535 | BL12: 722.9328269 | BM12: 0 | BN12: 184.2941537 | BO12: 0 | BP12: 9794.618029 | BQ12: 1658.647384 | BR12: 1288.901571 | BS12: 0 | BT12: 0 | BU12: 0 | BV12: 0 | BW12: 0 | BX12: 0 | CI12: =SUMIF('Results Database'!$E:$E,'Aggregate Summary'!AJ$4,'Results Database'!$BY:$BY)
A13: 9 | B13: Reduced Emission Completions | C13: 15489.61901 | D13: 786866.5985 | E13: 1174107.074 | F13: 907299.3031 | G13: 18180732.73 | H13: 40863215.31 | I13: 0.01707222628 | J13: 0.04328024675 | K13: 0.028732616 | L13: 50602057.92 | M13: 0 | O13: 21317.20625 | P13: 20320.63489 | Q13: 8177.821625 | R13: 49815.66277 | S13: 26951.69499 | T13: 483903.3493 | U13: 1331781.522 | V13: 384615.8125 | W13: 2200300.684 | X13: 2200300.684 | Y13: 906944.9903 | Z13: 51.21656064 | AA13: 303.0962647 | AC13: 932272.9497 | AD13: 16446837.11 | AE13: 801622.6738 | AF13: 0 | AG13: 0 | AH13: 0 | AJ13: 8930300.106 | AK13: 96738965.79 | AL13: 7318500.394 | AM13: 0.25 | AN13: 0.5 | AO13: 0 | AP13: 2232575.027 | AQ13: 48369482.9 | AR13: 0 | AS13: 194 | AT13: 234 | AU13: 0 | AV13: 0.1 | AW13: 0 | AX13: 0.4 | AY13: 0.8 | AZ13: 0.1 | BA13: 0 | BB13: 2032.063489 | BC13: 0 | BD13: 0 | BE13: 133178.1522 | BF13: 0 | BG13: 8526.882501 | BH13: 16256.50791 | BI13: 817.7821625 | BJ13: 193561.3397 | BK13: 1065425.218 | BL13: 38461.58125 | BM13: 0 | BN13: 183979.7395 | BO13: 0 | BP13: 406733.4023 | BQ13: 1471837.916 | BR13: 58906.13531 | BS13: 0 | BT13: 9673896.579 | BU13: 0 | BV13: 3572120.042 | BW13: 77391172.64 | BX13: 731850.0394 | CI13: =SUMIF('Results Database'!$E:$E,'Aggregate Summary'!AJ$4,'Results Database'!$CH:$CH)
A14: 10 | B14: Foaming agents to Remove Accumulated Fluid in Gas wells | C14: 1577.515787 | D14: 24904.84578 | E14: 64342.74045 | F14: 907299.3031 | G14: 18180732.73 | H14: 40863215.31 | I14: 0.001738693925 | J14: 0.001369848298 | K14: 0.001574588293 | L14: 1605716.452 | M14: 0 | O14: 8467.389061 | P14: 743.6271783 | Q14: 2330.447099 | R14: 11541.46334 | S14: 10248.00099 | T14: 92147.17251 | U14: 30676.45477 | V14: 80151.24429 | W14: 202974.8716 | X14: 202974.8716 | Y14: 906944.9903 | Z14: 51.21656064 | AA14: 303.0962647 | AC14: 932272.9497 | AD14: 16446837.11 | AE14: 801622.6738 | AF14: 0 | AG14: 0 | AH14: 0 | AJ14: 6643957.04 | AK14: 1727675.8 | AL14: 4363553.161 | AM14: 0.15 | AN14: 0.1 | AO14: 0.1 | AP14: 996593.5561 | AQ14: 172767.58 | AR14: 436355.3161 | AS14: 604 | AT14: 656 | AU14: 0.05 | AV14: 0 | AW14: 0.05 | AX14: 0.6 | AY14: 0.3 | AZ14: 0.15 | BA14: 423.369453 | BB14: 0 | BC14: 116.5223549 | BD14: 4607.358625 | BE14: 0 | BF14: 4007.562215 | BG14: 5080.433436 | BH14: 223.0881535 | BI14: 349.5670648 | BJ14: 55288.3035 | BK14: 9202.93643 | BL14: 12022.68664 | BM14: 15191.59495 | BN14: 0 | BO14: 6920.621088 | BP14: 182299.1394 | BQ14: 14780.14027 | BR14: 20761.86326 | BS14: 332197.852 | BT14: 0 | BU14: 218177.658 | BV14: 3986374.224 | BW14: 518302.7399 | BX14: 654532.9741 | CI14: =SUMIF('Results Database'!$E:$E,'Aggregate Summary'!AJ$4,'Results Database'!$CQ:$CQ)
A15: 11 | B15: Velocity tubing to Remove Accumulated Fluid in Gas Wells | C15: 691.4145602 | D15: 14154.70484 | E15: 31440.06885 | F15: 907299.3031 | G15: 18180732.73 | H15: 40863215.31 | I15: 0.0007620578543 | J15: 0.0007785552462 | K15: 0.0007693978218 | L15: 0 | M15: 0 | O15: 8431.461011 | P15: 743.4688985 | Q15: 2326.680647 | R15: 11501.61056 | S15: 10208.30649 | T15: 92125.97775 | U15: 30665.80554 | V15: 80151.1568 | W15: 202942.9401 | X15: 202942.9401 | Y15: 906944.9903 | Z15: 51.21656064 | AA15: 303.0962647 | AC15: 932272.9497 | AD15: 16446837.11 | AE15: 801622.6738 | AF15: 0 | AG15: 0 | AH15: 0 | AJ15: 0 | AK15: 0 | AL15: 0 | AM15: 0.05 | AN15: 0.05 | AO15: 0.1 | AP15: 0 | AQ15: 0 | AR15: 0 | AS15: 0 | AT15: 0 | AU15: 0 | AV15: 0 | AW15: 0 | AX15: 0.25 | AY15: 0.15 | AZ15: 0 | BA15: 0 | BB15: 0 | BC15: 0 | BD15: 0 | BE15: 0 | BF15: 0 | BG15: 2107.865253 | BH15: 111.5203348 | BI15: 0 | BJ15: 23031.49444 | BK15: 4599.870831 | BL15: 0 | BM15: 0 | BN15: 0 | BO15: 0 | BP15: 75728.12576 | BQ15: 7387.879201 | BR15: 0 | BS15: 0 | BT15: 0 | BU15: 0 | BV15: 0 | BW15: 0 | BX15: 0 | CI15: =SUMIF('Results Database'!$E:$E,'Aggregate Summary'!AJ$4,'Results Database'!$CZ:$CZ)
A16: 12 | B16: Install Flares | C16: 32778.72071 | D16: -41417.14338 | E16: 778050.8743 | F16: 907299.3031 | G16: 18180732.73 | H16: 40863215.31 | I16: 0.03612779222 | J16: -0.002278078887 | K16: 0.01904037331 | L16: 0 | M16: 0 | O16: 163893.6035 | P16: 43383.52799 | Q16: 77995.54981 | R16: 285272.6813 | S16: 190421.1111 | T16: -207085.7169 | U16: -8141.946946 | V16: -38364.96883 | W16: -253592.6327 | X16: -253592.6327 | Y16: 906944.9903 | Z16: 51.21656064 | AA16: 303.0962647 | AC16: 932272.9497 | AD16: 16446837.11 | AE16: 801622.6738 | AF16: 0 | AG16: 0 | AH16: 0 | AJ16: 0 | AK16: 0 | AL16: 0 | AM16: 0.2 | AN16: 0 | AO16: 0 | AP16: 0 | AQ16: 0 | AR16: 0 | AS16: 0 | AT16: 4 | AU16: 0 | AV16: 0 | AW16: 0 | AX16: 0.35 | AY16: 0 | AZ16: 0 | BA16: 0 | BB16: 0 | BC16: 0 | BD16: 0 | BE16: 0 | BF16: 0 | BG16: 57362.76124 | BH16: 0 | BI16: 0 | BJ16: -72480.00092 | BK16: 0 | BL16: 0 | BM16: 0 | BN16: 0 | BO16: 0 | BP16: 1361589.03 | BQ16: 0 | BR16: 0 | BS16: 0 | BT16: 0 | BU16: 0 | BV16: 0 | BW16: 0 | BX16: 0 | CI16: =SUMIF('Results Database'!$E:$E,'Aggregate Summary'!AJ$4,'Results Database'!$DI:$DI)
A17: 13 | B17: Gas Lift Well to remove liquid accumulation | C17: 920.1557336 | D17: 12281.80784 | E17: 35285.70118 | F17: 907299.3031 | G17: 18180732.73 | H17: 40863215.31 | I17: 0.001014169999 | J17: 0.0006755397607 | K17: 0.0008635077028 | L17: 0 | M17: 0 | O17: 8457.930158 | P17: 743.6271783 | Q17: 2329.188296 | R17: 11530.74563 | S17: 10237.28328 | T17: 92141.6236 | U17: 30676.45477 | V17: 80151.21505 | W17: 202969.2934 | X17: 202969.2934 | Y17: 906944.9903 | Z17: 51.21656064 | AA17: 303.0962647 | AC17: 932272.9497 | AD17: 16446837.11 | AE17: 801622.6738 | AF17: 0 | AG17: 0 | AH17: 0 | AJ17: 0 | AK17: 0 | AL17: 0 | AM17: 0.1 | AN17: 0.1 | AO17: 0 | AP17: 0 | AQ17: 0 | AR17: 0 | AS17: 0 | AT17: 0 | AU17: 0.05 | AV17: 0.05 | AW17: 0 | AX17: 0.5 | AY17: 0.3 | AZ17: 0 | BA17: 422.8965079 | BB17: 37.18135891 | BC17: 0 | BD17: 4607.08118 | BE17: 1533.822738 | BF17: 0 | BG17: 4228.965079 | BH17: 223.0881535 | BI17: 0 | BJ17: 46070.8118 | BK17: 9202.93643 | BL17: 0 | BM17: 15179.49388 | BN17: 2463.356711 | BO17: 0 | BP17: 151794.9388 | BQ17: 14780.14027 | BR17: 0 | BS17: 0 | BT17: 0 | BU17: 0 | BV17: 0 | BW17: 0 | BX17: 0 | CI17: =SUMIF('Results Database'!$E:$E,'Aggregate Summary'!AJ$4,'Results Database'!$DR:$DR)
A18: 14 | B18: Microturbines | C18: 5286.857019 | D18: 355705.1577 | E18: 487876.5832 | F18: 907299.3031 | G18: 18180732.73 | H18: 40863215.31 | I18: 0.00582702643 | J18: 0.0195649517 | K18: 0.01193926076 | L18: 0 | M18: 0 | O18: 19503.68396 | P18: 4109.360297 | Q18: 16486.71185 | R18: 40099.7561 | S18: 23408.7889 | T18: 1312227.842 | U18: 276481.9717 | V18: 1109242.867 | W18: 2697952.681 | X18: 2697952.681 | Y18: 906944.9903 | Z18: 51.21656064 | AA18: 303.0962647 | AC18: 932272.9497 | AD18: 16446837.11 | AE18: 801622.6738 | AF18: 0 | AG18: 0 | AH18: 0 | AJ18: 0 | AK18: 0 | AL18: 0 | AM18: 0.25 | AN18: 0.1 | AO18: 0 | AP18: 0 | AQ18: 0 | AR18: 0 | AS18: 0 | AT18: 0 | AU18: 0 | AV18: 0 | AW18: 0 | AX18: 0.5 | AY18: 0.2 | AZ18: 0 | BA18: 0 | BB18: 0 | BC18: 0 | BD18: 0 | BE18: 0 | BF18: 0 | BG18: 9751.841978 | BH18: 821.8720593 | BI18: 0 | BJ18: 656113.9212 | BK18: 55296.39434 | BL18: 0 | BM18: 0 | BN18: 0 | BO18: 0 | BP18: 899909.9706 | BQ18: 75843.19582 | BR18: 0 | BS18: 0 | BT18: 0 | BU18: 0 | BV18: 0 | BW18: 0 | BX18: 0 | CI18: =SUMIF('Results Database'!$E:$E,'Aggregate Summary'!AJ$4,'Results Database'!$EA:$EA)
A19: 15 | B19: Electric submersible pump (ESP) to unload wells | C19: 839.6821272 | D19: 10675.3019 | E19: 31667.35508 | F19: 907299.3031 | G19: 18180732.73 | H19: 40863215.31 | I19: 0.0009254742335 | J19: 0.0005871766588 | K19: 0.0007749599447 | L19: 0 | M19: 0 | O19: 8028.410698 | P19: 736.8211478 | Q19: 2324.083206 | R19: 11089.31505 | S19: 9796.960659 | T19: 91643.74995 | U19: 30218.53806 | V19: 80151.09647 | W19: 202013.3845 | X19: 202013.3845 | Y19: 906944.9903 | Z19: 51.21656064 | AA19: 303.0962647 | AC19: 932272.9497 | AD19: 16446837.11 | AE19: 801622.6738 | AF19: 0 | AG19: 0 | AH19: 0 | AJ19: 0 | AK19: 0 | AL19: 0 | AM19: 0.1 | AN19: 0.05 | AO19: 0 | AP19: 0 | AQ19: 0 | AR19: 0 | AS19: 0 | AT19: 0 | AU19: 0.05 | AV19: 0 | AW19: 0 | AX19: 0.3 | AY19: 0.2 | AZ19: 0 | BA19: 401.4205349 | BB19: 0 | BC19: 0 | BD19: 4582.187497 | BE19: 0 | BF19: 0 | BG19: 2408.523209 | BH19: 147.3642296 | BI19: 0 | BJ19: 27493.12498 | BK19: 6043.707613 | BL19: 0 | BM19: 14617.70087 | BN19: 0 | BO19: 0 | BP19: 87706.20522 | BQ19: 9727.813352 | BR19: 0 | BS19: 0 | BT19: 0 | BU19: 0 | BV19: 0 | BW19: 0 | BX19: 0 | CI19: =SUMIF('Results Database'!$E:$E,'Aggregate Summary'!AJ$4,'Results Database'!$EJ:$EJ)
A20: 16 | B20: Downhole Jetpump for Well Unloading | C20: 876.5231845 | D20: 12186.2288 | E20: 34099.30841 | F20: 907299.3031 | G20: 18180732.73 | H20: 40863215.31 | I20: 0.00096607942 | J20: 0.0006702825999 | K20: 0.0008344744328 | L20: 0 | M20: 0 | O20: 8028.410698 | P20: 736.8211478 | Q20: 2324.083206 | R20: 11089.31505 | S20: 9796.960659 | T20: 91643.74995 | U20: 30218.53806 | V20: 80151.09647 | W20: 202013.3845 | X20: 202013.3845 | Y20: 906944.9903 | Z20: 51.21656064 | AA20: 303.0962647 | AC20: 932272.9497 | AD20: 16446837.11 | AE20: 801622.6738 | AF20: 0 | AG20: 0 | AH20: 0 | AJ20: 0 | AK20: 0 | AL20: 0 | AM20: 0.1 | AN20: 0.1 | AO20: 0 | AP20: 0 | AQ20: 0 | AR20: 0 | AS20: 0 | AT20: 0 | AU20: 0.05 | AV20: 0.05 | AW20: 0 | AX20: 0.5 | AY20: 0.3 | AZ20: 0 | BA20: 401.4205349 | BB20: 36.84105739 | BC20: 0 | BD20: 4582.187497 | BE20: 1510.926903 | BF20: 0 | BG20: 4014.205349 | BH20: 221.0463443 | BI20: 0 | BJ20: 45821.87497 | BK20: 9065.561419 | BL20: 0 | BM20: 14617.70087 | BN20: 2431.953338 | BO20: 0 | BP20: 146177.0087 | BQ20: 14591.72003 | BR20: 0 | BS20: 0 | BT20: 0 | BU20: 0 | BV20: 0 | BW20: 0 | BX20: 0 | CI20: =SUMIF('Results Database'!$E:$E,'Aggregate Summary'!AJ$4,'Results Database'!$ES:$ES)
A21: 17 | B21: Monitor/repair leaking flare/vent control valves | C21: 47481.03503 | D21: 897860.3566 | E21: 2084886.232 | F21: 907299.3031 | G21: 18180732.73 | H21: 40863215.31 | I21: 0.05233227323 | J21: 0.04938526791 | K21: 0.05102110093 | L21: 0 | M21: 0 | O21: 72165.37326 | P21: 5974.015816 | Q21: 25409.99977 | R21: 103549.3889 | S21: 86936.22806 | T21: 1172981.201 | U21: 277245.1947 | V21: 1079203.864 | W21: 2529430.259 | X21: 2529430.259 | Y21: 906944.9903 | Z21: 51.21656064 | AA21: 303.0962647 | AC21: 932272.9497 | AD21: 16446837.11 | AE21: 801622.6738 | AF21: 0 | AG21: 0 | AH21: 0 | AJ21: 0 | AK21: 0 | AL21: 0 | AM21: 0.6 | AN21: 0.7 | AO21: 0 | AP21: 0 | AQ21: 0 | AR21: 0 | AS21: 0 | AT21: 68 | AU21: 0.3 | AV21: 0.35 | AW21: 0 | AX21: 0.78 | AY21: 0.88 | AZ21: 0.06 | BA21: 21649.61198 | BB21: 2090.905536 | BC21: 0 | BD21: 351894.3602 | BE21: 97035.81814 | BF21: 0 | BG21: 56288.99115 | BH21: 5257.133918 | BI21: 1524.599986 | BJ21: 914925.3364 | BK21: 243975.7713 | BL21: 64752.23182 | BM21: 893134.6596 | BN21: 149308.4565 | BO21: 0 | BP21: 2322150.115 | BQ21: 375404.1193 | BR21: 102867.2315 | BS21: 0 | BT21: 0 | BU21: 0 | BV21: 0 | BW21: 0 | BX21: 0 | CI21: =SUMIF('Results Database'!$E:$E,'Aggregate Summary'!AJ$4,'Results Database'!$FB:$FB)
A22: 18 | B22: Install redundant compression | C22: 48909.83754 | D22: 3140724.361 | E22: 4363470.3 | F22: 907299.3031 | G22: 18180732.73 | H22: 40863215.31 | I22: 0.05390705952 | J22: 0.172750153 | K22: 0.1067823534 | L22: 0 | M22: 0 | O22: 117270.9348 | P22: 186257.6754 | Q22: 46581.93079 | R22: 350110.5409 | S22: 154010.2345 | T22: 2765504.224 | U22: 12341657.11 | V22: 2208896.896 | W22: 17316058.23 | X22: 17316058.23 | Y22: 906944.9903 | Z22: 51.21656064 | AA22: 303.0962647 | AC22: 932272.9497 | AD22: 16446837.11 | AE22: 801622.6738 | AF22: 0 | AG22: 0 | AH22: 0 | AJ22: 0 | AK22: 0 | AL22: 0 | AM22: 0.02 | AN22: 0.25 | AO22: 0 | AP22: 0 | AQ22: 0 | AR22: 0 | AS22: 0 | AT22: 29 | AU22: 0 | AV22: 0.1 | AW22: 0 | AX22: 0.25 | AY22: 0.5 | AZ22: 0 | BA22: 0 | BB22: 18625.76754 | BC22: 0 | BD22: 0 | BE22: 1234165.711 | BF22: 0 | BG22: 29317.7337 | BH22: 93128.83769 | BI22: 0 | BJ22: 691376.056 | BK22: 6170828.553 | BL22: 0 | BM22: 0 | BN22: 1699809.899 | BO22: 0 | BP22: 1424319.398 | BQ22: 8499049.496 | BR22: 0 | BS22: 0 | BT22: 0 | BU22: 0 | BV22: 0 | BW22: 0 | BX22: 0 | CI22: =SUMIF('Results Database'!$E:$E,'Aggregate Summary'!AJ$4,'Results Database'!$FK:$FK)
A23: 19 | B23: Limit Monthly Vent Volume | C23: 2103.452324 | D23: 48.86020778 | E23: 52635.1683 | F23: 868370.1174 | G23: 17427211.65 | H23: 39136464.58 | I23: 0.002422299296 | J23: 2.803673288e-06 | K23: 0.001344913723 | L23: 1659781.592 | M23: 53188.60278 | O23: 0 | P23: 2103.452324 | Q23: 0 | R23: 2103.452324 | S23: 2103.452324 | T23: 0 | U23: 48.86020778 | V23: 0 | W23: 48.86020778 | X23: 48.86020778 | Y23: 868015.8046 | Z23: 51.21656064 | AA23: 303.0962647 | AC23: 899965.0649 | AD23: 15749549.44 | AE23: 777697.1414 | AF23: 0 | AG23: 0 | AH23: 53188.60278 | AJ23: 0 | AK23: 1659781.592 | AL23: 0 | AM23: 1 | AN23: 1 | AO23: 1 | AP23: 0 | AQ23: 1659781.592 | AR23: 0 | AS23: 1 | AT23: N/A | AU23: 1 | AV23: 1 | AW23: 1 | AX23: 1 | AY23: 1 | AZ23: 1 | BA23: 0 | BB23: 2103.452324 | BC23: 0 | BD23: 0 | BE23: 48.86020778 | BF23: 0 | BG23: 0 | BH23: 2103.452324 | BI23: 0 | BJ23: 0 | BK23: 48.86020778 | BL23: 0 | BM23: 0 | BN23: 52635.1683 | BO23: 0 | BP23: 0 | BQ23: 52635.1683 | BR23: 0 | BS23: 0 | BT23: 1659781.592 | BU23: 0 | BV23: 0 | BW23: 1659781.592 | BX23: 0 | CI23: =SUMIF('Results Database'!$E:$E,'Aggregate Summary'!AJ$4,'Results Database'!$FT:$FT)
B26: =O4 -> fixed | C26: 1085
B27: =P4 -> floater | C27: 121
B28: =Q4 -> single well | C28: 827
C29: =SUM(C26:C28) -> 2033
B31: Alternate Count | C31: 1784 | AS31: 681
AS32: 0
B34: Note: Adjusted means after applying percentages
B35: Note: Aggregate is before applying percentage adjustments
A37: Bubble Charts
C38: NPV
D39: Equivalent CO2 Reduced | E39: Number of Complexes with + NPV
B40: =B5 -> Reroute Gas Pig Trap Vent | C40: =L5 -> 0 | D40: =E5 -> 17178.16356 | E40: =AS5 -> 0 | AS40: 0
B41: =B6 -> Limit Monthly Flare Volume | C41: =L6 -> 549446004.9 | D41: =E6 -> 10692917.42 | E41: =AS6 -> 113 | AS41: 539
B42: Compressors Off - Maintain Pressure | C42: 8672684.195 | D42: 201442.5327 | E42: 647
B43: Compressors Off- Blowdown to fuel | C43: 0 | D43: 27142.08491 | E43: 0
B44: Compressor Static Seals | C44: 5793079.524 | D44: 331191.2189 | E44: 548
B45: Compressors Off - Install ejector | C45: 0 | D45: 38686.1179 | E45: 0
B46: Using Pipeline Pump-Down Techniques to Lower Gas Line Pressure before Maintenance | C46: 0 | D46: 5519.027191 | E46: 0
B47: Use Inert Gases and Pigs to Perform Pipeline Purges | C47: 0 | D47: 5519.027191 | E47: 0
B48: Reduced Emission Completions | C48: 50602057.92 | D48: 1174107.074 | E48: 194
B49: Foaming agents to Remove Accumulated Fluid in Gas wells | C49: 1605716.452 | D49: 64342.74045 | E49: 604 | AS49: 586
B50: Velocity tubing to Remove Accumulated Fluid in Gas Wells | C50: 0 | D50: 31440.06885 | E50: 0 | AS50: 0
B51: Install Flares | C51: 0 | D51: 778050.8743 | E51: 0
B52: Gas Lift Well to remove liquid accumulation | C52: 0 | D52: 35285.70118 | E52: 0
B53: Microturbines | C53: 0 | D53: 487876.5832 | E53: 0
B54: Electric submersible pump (ESP) to unload wells | C54: 0 | D54: 31667.35508 | E54: 0
B55: Downhole Jetpump for Well Unloading | C55: 0 | D55: 34099.30841 | E55: 0
B56: Monitor/repair leaking flare/vent control valves | C56: 0 | D56: 2084886.232 | E56: 0
B57: Install redundant compression | C57: 0 | D57: 4363470.3 | E57: 0
B58: Limit Monthly Vent Volume | C58: 1659781.592 | D58: 52635.1683 | E58: 1 | AS58: 43
AS59: 0
AS67: 0
AS68: 0
AS76: 0
AS77: 161
AS85: 214
AS86: 622
AS94: 665
AS95: 0
AS103: 0
AS104: 0
AS112: 4
AS113: 486
AS121: 569
AS122: 0
AS130: 0
AS131: 0
AS139: 0
AS140: 0
AS148: 0
AS149: 0
AS157: 174
AS158: 0
AS166: 32
AS167: 1
AS175: 0

Sheet Low Gas Res High Price
A1: FINAL AGREGATE SUMMARY | E1: =CH4_factor -> 25 | H1: =E1 -> 25
C2: Aplicabiity Adjusted | D2: Aplicabiity Adjusted | E2: Aplicabiity Adjusted | F2: Adjusted | G2: Adjusted | H2: Adjusted | I2: Percent | J2: Percent | K2: Percent | L2: Adjusted | M2: Adjusted | O2: Aggregate | P2: Aggregate | Q2: Aggregate | R2: Aggregate | S2: Aggregate | T2: Aggregate | U2: Aggregate | V2: Aggregate | W2: Aggregate | X2: Aggregate | Y2: Aggregate | Z2: Aggregate | AA2: Aggregate | AB2: Aggregate | AC2: Aggregate | AD2: Aggregate | AE2: Aggregate | AF2: Oil | AG2: Oil | AH2: Oil
C3: Reduction | D3: Reduction | E3: Reduct Equivalent | F3: Existing | G3: Existing | H3: Equivalent CO2 | I3: Reduction | J3: Reduction | K3: Reduction | L3: NPV | M3: Oil | O3: Reduced Methane | P3: Reduced Methane | Q3: Reduced Methane | R3: Reduced Methane | S3: Methane | T3: Reduced CO2 | U3: Reduced CO2 | V3: Reduced CO2 | W3: Reduced CO2 | X3: CO2 | Y3: Exist Methane | Z3: Exist Methane | AA3: Exist Methane | AB3: Exist CO2 | AC3: Exist CO2 | AD3: Exist CO2 | AE3: Exist CO2 | AF3: Deferred | AG3: Deferred | AH3: Deferred | AJ3: Total NPV b/4 Ratios | AM3: Percent Applicable | AP3: Final NPV - Expected Value Case | AS3: # of Complexes | AT3: # of Complexes | AU3: Percent Applicable 10% Case | AX3: Percent Applicable 90% Case | BA3: Final NPV - 10% Case | BD3: Final NPV - 90% | BG3: Final Methane - 10% Case | BJ3: Final CO2 - 10% Case | BM3: Final Methane - 90% | BP3: Final CO2 - 90% | BS3: Final CO2 Equiv - 10% Case | BV3: Final CO2 Equiv - 90% Case
C4: Methane | D4: CO2 | E4: Total CO2 | F4: Methane | G4: CO2 | H4: Total | I4: Methane | J4: CO2 | K4: Equiv CO2 | L4: Savings | M4: Deferred | O4: =AJ4 -> fixed | P4: =AK4 -> floater | Q4: =AL4 -> single well | R4: Sum | S4: Check | T4: =AJ4 -> fixed | U4: =AK4 -> floater | V4: =AL4 -> single well | W4: Sum | X4: Check | Y4: =T4 -> fixed | Z4: =U4 -> floater | AA4: =V4 -> single well | AB4: =W4 -> Sum | AC4: =Y4 -> fixed | AD4: =Z4 -> floater | AE4: =AA4 -> single well | AF4: =AC4 -> fixed | AG4: =AD4 -> floater | AH4: =AE4 -> single well | AJ4: fixed | AK4: floater | AL4: single well | AM4: =AJ4 -> fixed | AN4: floater | AO4: single well | AP4: fixed | AQ4: floater | AR4: single well | AS4: > 0 NPV | AT4: > 0 NPV @ $49 SCOC | AU4: =AM4 -> fixed | AV4: =AN4 -> floater | AW4: single well | AX4: =AP4 -> fixed | AY4: =AQ4 -> floater | AZ4: single well | BA4: =AX4 -> fixed | BB4: floater | BC4: single well | BD4: fixed | BE4: floater | BF4: single well | BG4: fixed | BH4: floater | BI4: single well | BJ4: fixed | BK4: floater | BL4: single well | BM4: =BG4 -> fixed | BN4: floater | BO4: single well | BP4: fixed | BQ4: floater | BR4: single well | BS4: =BP4 -> fixed | BT4: floater | BU4: single well | BV4: fixed | BW4: floater | BX4: single well
A5: 1 | B5: Reroute Gas Pig Trap Vent | C5: 665.2824671 | D5: 546.1018783 | E5: 17178.16356 | F5: 907299.3031 | G5: 18180732.73 | H5: 40863215.31 | I5: 0.0007332557898 | J5: 3.003739654e-05 | K5: 0.0004203820827 | L5: -48807981.19 | M5: 0 | O5: 1146.189777 | P5: 229.7850627 | Q5: 776.8923547 | R5: 2152.867194 | S5: 1531.900418 | T5: 1250.017434 | U5: 51.21656064 | V5: 303.0962647 | W5: 1604.33026 | X5: 1604.33026 | Y5: 906944.9903 | Z5: 51.21656064 | AA5: 303.0962647 | AC5: 932272.9497 | AD5: 16446837.11 | AE5: 801622.6738 | AF5: 0 | AG5: 0 | AH5: 0 | AJ5: -92538609.35 | AK5: -13102819.39 | AL5: -60746999.18 | AM5: 0.4 | AN5: 0.9 | AO5: 0 | AP5: -37015443.74 | AQ5: -11792537.45 | AR5: 0 | AS5: 0 | AT5: 0 | AU5: 0.1 | AV5: 0.3 | AW5: 0 | AX5: 0.5 | AY5: 1 | AZ5: 0 | BA5: -3701544.374 | BB5: -3537761.235 | BC5: 0 | BD5: -18507721.87 | BE5: -11792537.45 | BF5: 0 | BG5: 114.6189777 | BH5: 68.9355188 | BI5: 0 | BJ5: 125.0017434 | BK5: 15.36496819 | BL5: 0 | BM5: 573.0948884 | BN5: 229.7850627 | BO5: 0 | BP5: 625.0087172 | BQ5: 51.21656064 | BR5: 0 | BS5: 2990.476186 | BT5: 1738.752938 | BU5: 0 | BV5: 14952.38093 | BW5: 5795.843127 | BX5: 0 | CD5: =SUMIF('[161104-Financial Analysis_v11(low resource sens).xlsm]Results Database'!$E:$E,'Aggregate Summary'!AJ$4,'[161104-Financial Analysis_v11(low resource sens).xlsm]Results Database'!$N:$N)
A6: 2 | B6: Limit Monthly Flare Volume | C6: 115873.4144 | D6: 7796082.06 | E6: 10692917.42 | F6: 868370.1174 | G6: 17427211.65 | H6: 39136464.58 | I6: 0.1334378189 | J6: 0.4473510862 | K6: 0.2732213432 | L6: 1154160328 | M6: 250369.8545 | O6: 2373.801932 | P6: 127956.9709 | Q6: 4263.955938 | R6: 134594.7288 | S6: 17955.14521 | T6: 159711.8265 | U6: 8609076.124 | V6: 286883.3248 | W6: 9055671.276 | X6: 9055671.276 | Y6: 868015.8046 | Z6: 51.21656064 | AA6: 303.0962647 | AC6: 899965.0649 | AD6: 15749549.44 | AE6: 777697.1414 | AF6: 29120.37343 | AG6: 268481.9361 | AH6: 40334726.66 | AJ6: 19926698.96 | AK6: 1275758132 | AL6: 34905477.79 | AM6: 0.3 | AN6: 0.9 | AO6: 0 | AP6: 5978009.688 | AQ6: 1148182319 | AR6: 0 | AS6: 113 | AT6: N/A | AU6: 0.3 | AV6: 0.9 | AW6: 0 | AX6: 1 | AY6: 1 | AZ6: 1 | BA6: 1793402.907 | BB6: 1033364087 | BC6: 0 | BD6: 5978009.688 | BE6: 1148182319 | BF6: 0 | BG6: 712.1405796 | BH6: 115161.2738 | BI6: 0 | BJ6: 47913.54794 | BK6: 7748168.512 | BL6: 0 | BM6: 2373.801932 | BN6: 127956.9709 | BO6: 4263.955938 | BP6: 159711.8265 | BQ6: 8609076.124 | BR6: 286883.3248 | BS6: 65717.06243 | BT6: 10627200.36 | BU6: 0 | BV6: 219056.8748 | BW6: 11808000.4 | BX6: 393482.2233 | CD6: =SUMIF('[161104-Financial Analysis_v11(low resource sens).xlsm]Results Database'!$E:$E,'Aggregate Summary'!AJ$4,'[161104-Financial Analysis_v11(low resource sens).xlsm]Results Database'!$W:$W)
A7: 3 | B7: Compressors Off - Maintain Pressure | C7: 4383.500924 | D7: 91855.00959 | E7: 201442.5327 | F7: 907299.3031 | G7: 18180732.73 | H7: 40863215.31 | I7: 0.004831372524 | J7: 0.005052327151 | K7: 0.004929678959 | L7: 12754194.43 | M7: 0 | O7: 74952.59837 | P7: 6358.710052 | Q7: 26761.23339 | R7: 108072.5418 | S7: 90420.1431 | T7: 1247963.82 | U7: 294568.1857 | V7: 1147811.798 | W7: 2690343.804 | X7: 2690343.804 | Y7: 906944.9903 | Z7: 51.21656064 | AA7: 303.0962647 | AC7: 932272.9497 | AD7: 16446837.11 | AE7: 801622.6738 | AF7: 0 | AG7: 0 | AH7: 0 | AJ7: 180807099.7 | AK7: 37138394.47 | AL7: 145708903.5 | AM7: 0.05 | AN7: 0.1 | AO7: 0 | AP7: 9040354.987 | AQ7: 3713839.447 | AR7: 0 | AS7: 648 | AT7: 669 | AU7: 0 | AV7: 0 | AW7: 0 | AX7: 0.28 | AY7: 0.5 | AZ7: 0 | BA7: 0 | BB7: 0 | BC7: 0 | BD7: 2531299.396 | BE7: 1856919.724 | BF7: 0 | BG7: 0 | BH7: 0 | BI7: 0 | BJ7: 0 | BK7: 0 | BL7: 0 | BM7: 20986.72754 | BN7: 3179.355026 | BO7: 0 | BP7: 349429.8697 | BQ7: 147284.0928 | BR7: 0 | BS7: 0 | BT7: 0 | BU7: 0 | BV7: 874098.0583 | BW7: 226767.9685 | BX7: 0 | CD7: =SUMIF('[161104-Financial Analysis_v11(low resource sens).xlsm]Results Database'!$E:$E,'Aggregate Summary'!AJ$4,'[161104-Financial Analysis_v11(low resource sens).xlsm]Results Database'!$AF:$AF)
A8: 4 | B8: Compressors Off- Blowdown to fuel | C8: 760.8835662 | D8: 8119.995755 | E8: 27142.08491 | F8: 907299.3031 | G8: 18180732.73 | H8: 40863215.31 | I8: 0.0008386246562 | J8: 0.0004466264301 | K8: 0.0006642180432 | L8: -52635280.1 | M8: 0 | O8: 1290.866959 | P8: 51.9456519 | Q8: 307.6114144 | R8: 1650.424025 | S8: 1503.96553 | T8: 10491.53267 | U8: 2397.604887 | V8: 9552.466318 | W8: 22441.60387 | X8: 22441.60387 | Y8: 906944.9903 | Z8: 51.21656064 | AA8: 303.0962647 | AC8: 932272.9497 | AD8: 16446837.11 | AE8: 801622.6738 | AF8: 0 | AG8: 0 | AH8: 0 | AJ8: -75306975.84 | AK8: -11445350.4 | AL8: -44287319.51 | AM8: 0.55 | AN8: 0.98 | AO8: 0 | AP8: -41418836.71 | AQ8: -11216443.39 | AR8: 0 | AS8: 0 | AT8: 0 | AU8: 0.56 | AV8: 0.98 | AW8: 0 | AX8: 0.56 | AY8: 1 | AZ8: 0 | BA8: -23194548.56 | BB8: -10992114.52 | BC8: 0 | BD8: -23194548.56 | BE8: -11216443.39 | BF8: 0 | BG8: 722.8854969 | BH8: 50.90673886 | BI8: 0 | BJ8: 5875.258293 | BK8: 2349.652789 | BL8: 0 | BM8: 722.8854969 | BN8: 51.9456519 | BO8: 0 | BP8: 5875.258293 | BQ8: 2397.604887 | BR8: 0 | BS8: 23947.39571 | BT8: 3622.321261 | BU8: 0 | BV8: 23947.39571 | BW8: 3696.246185 | BX8: 0 | CD8: =SUMIF('[161104-Financial Analysis_v11(low resource sens).xlsm]Results Database'!$E:$E,'Aggregate Summary'!AJ$4,'[161104-Financial Analysis_v11(low resource sens).xlsm]Results Database'!$AO:$AO)
A9: 5 | B9: Compressor Static Seals | C9: 8946.963599 | D9: 107517.129 | E9: 331191.2189 | F9: 907299.3031 | G9: 18180732.73 | H9: 40863215.31 | I9: 0.009861093873 | J9: 0.005913795146 | K9: 0.008104874187 | L9: 7628955.537 | M9: 0 | O9: 35004.14725 | P9: 1959.267861 | Q9: 10057.45615 | R9: 47020.87126 | S9: 41474.80127 | T9: 393693.2715 | U9: 90938.11102 | V9: 361416.3464 | W9: 846047.7289 | X9: 846047.7289 | Y9: 906944.9903 | Z9: 51.21656064 | AA9: 303.0962647 | AC9: 932272.9497 | AD9: 16446837.11 | AE9: 801622.6738 | AF9: 0 | AG9: 0 | AH9: 0 | AJ9: 28033800.96 | AK9: 6205052.965 | AL9: 26217244.52 | AM9: 0.25 | AN9: 0.1 | AO9: 0 | AP9: 7008450.241 | AQ9: 620505.2965 | AR9: 0 | AS9: 561 | AT9: 600 | AU9: 0.1 | AV9: 0.05 | AW9: 0 | AX9: 0.56 | AY9: 0.25 | AZ9: 0 | BA9: 700845.0241 | BB9: 31025.26482 | BC9: 0 | BD9: 3924732.135 | BE9: 155126.3241 | BF9: 0 | BG9: 3500.414725 | BH9: 97.96339304 | BI9: 0 | BJ9: 39369.32715 | BK9: 4546.905551 | BL9: 0 | BM9: 19602.32246 | BN9: 489.8169652 | BO9: 0 | BP9: 220468.232 | BQ9: 22734.52776 | BR9: 0 | BS9: 126879.6953 | BT9: 6995.990377 | BU9: 0 | BV9: 710526.2936 | BW9: 34979.95189 | BX9: 0 | CD9: =SUMIF('[161104-Financial Analysis_v11(low resource sens).xlsm]Results Database'!$E:$E,'Aggregate Summary'!AJ$4,'[161104-Financial Analysis_v11(low resource sens).xlsm]Results Database'!$AX:$AX)
A10: 6 | B10: Compressors Off - Install ejector | C10: 881.7733632 | D10: 16641.78382 | E10: 38686.1179 | F10: 907299.3031 | G10: 18180732.73 | H10: 40863215.31 | I10: 0.0009718660206 | J10: 0.0009153527565 | K10: 0.0009467223175 | L10: -7237685.533 | M10: 0 | O10: 13016.38684 | P10: 577.3850527 | Q10: 3305.394595 | R10: 16899.16649 | S10: 15242.4283 | T10: 118011.9149 | U10: 26852.97019 | V10: 108104.0858 | W10: 252968.9708 | X10: 252968.9708 | Y10: 906944.9903 | Z10: 51.21656064 | AA10: 303.0962647 | AC10: 932272.9497 | AD10: 16446837.11 | AE10: 801622.6738 | AF10: 0 | AG10: 0 | AH10: 0 | AJ10: -71611629.7 | AK10: -9142760.121 | AL10: -43974796.51 | AM10: 0.05 | AN10: 0.4 | AO10: 0 | AP10: -3580581.485 | AQ10: -3657104.048 | AR10: 0 | AS10: 0 | AT10: 44 | AU10: 0 | AV10: 0 | AW10: 0 | AX10: 0.1 | AY10: 0.5 | AZ10: 0 | BA10: 0 | BB10: 0 | BC10: 0 | BD10: -358058.1485 | BE10: -1828552.024 | BF10: 0 | BG10: 0 | BH10: 0 | BI10: 0 | BJ10: 0 | BK10: 0 | BL10: 0 | BM10: 1301.638684 | BN10: 288.6925264 | BO10: 0 | BP10: 11801.19149 | BQ10: 13426.48509 | BR10: 0 | BS10: 0 | BT10: 0 | BU10: 0 | BV10: 44342.15859 | BW10: 20643.79825 | BX10: 0 | CD10: =SUMIF('[161104-Financial Analysis_v11(low resource sens).xlsm]Results Database'!$E:$E,'Aggregate Summary'!AJ$4,'[161104-Financial Analysis_v11(low resource sens).xlsm]Results Database'!$BG:$BG)
A11: 7 | B11: Using Pipeline Pump-Down Techniques to Lower Gas Line Pressure before Maintenance | C11: 144.9679204 | D11: 1894.829182 | E11: 5519.027191 | F11: 907299.3031 | G11: 18180732.73 | H11: 40863215.31 | I11: 0.0001597796007 | J11: 0.0001042218271 | K11: 0.0001350610115 | L11: -3852088.431 | M11: 0 | O11: 622.6152579 | P11: 25.79723772 | Q11: 150.9249985 | R11: 799.337494 | S11: 725.4651558 | T11: 5274.231381 | U11: 1198.010594 | V11: 4819.552179 | W11: 11291.79416 | X11: 11291.79416 | Y11: 906944.9903 | Z11: 51.21656064 | AA11: 303.0962647 | AC11: 932272.9497 | AD11: 16446837.11 | AE11: 801622.6738 | AF11: 0 | AG11: 0 | AH11: 0 | AJ11: -11945495.03 | AK11: -2146613.588 | AL11: -7793652.626 | AM11: 0.2 | AN11: 0.5 | AO11: 0.05 | AP11: -2389099.006 | AQ11: -1073306.794 | AR11: -389682.6313 | AS11: 0 | AT11: 0 | AU11: 0 | AV11: 0.1 | AW11: 0 | AX11: 0.47 | AY11: 0.9 | AZ11: 0.15 | BA11: 0 | BB11: -107330.6794 | BC11: 0 | BD11: -1122876.533 | BE11: -965976.1146 | BF11: -58452.3947 | BG11: 0 | BH11: 2.579723772 | BI11: 0 | BJ11: 0 | BK11: 119.8010594 | BL11: 0 | BM11: 292.6291712 | BN11: 23.21751395 | BO11: 22.63874977 | BP11: 2478.888749 | BQ11: 1078.209535 | BR11: 722.9328269 | BS11: 0 | BT11: 184.2941537 | BU11: 0 | BV11: 9794.618029 | BW11: 1658.647384 | BX11: 1288.901571 | CD11: =SUMIF('[161104-Financial Analysis_v11(low resource sens).xlsm]Results Database'!$E:$E,'Aggregate Summary'!AJ$4,'[161104-Financial Analysis_v11(low resource sens).xlsm]Results Database'!$BP:$BP)
A12: 8 | B12: Use Inert Gases and Pigs to Perform Pipeline Purges | C12: 144.9679204 | D12: 1894.829182 | E12: 5519.027191 | F12: 907299.3031 | G12: 18180732.73 | H12: 40863215.31 | I12: 0.0001597796007 | J12: 0.0001042218271 | K12: 0.0001350610115 | L12: -6619762.47 | M12: 0 | O12: 622.6152579 | P12: 25.79723772 | Q12: 150.9249985 | R12: 799.337494 | S12: 725.4651558 | T12: 5274.231381 | U12: 1198.010594 | V12: 4819.552179 | W12: 11291.79416 | X12: 11291.79416 | Y12: 906944.9903 | Z12: 51.21656064 | AA12: 303.0962647 | AC12: 932272.9497 | AD12: 16446837.11 | AE12: 801622.6738 | AF12: 0 | AG12: 0 | AH12: 0 | AJ12: -20540203.44 | AK12: -3681302.463 | AL12: -13421411 | AM12: 0.2 | AN12: 0.5 | AO12: 0.05 | AP12: -4108040.688 | AQ12: -1840651.231 | AR12: -671070.5501 | AS12: 0 | AT12: 0 | AU12: 0 | AV12: 0.1 | AW12: 0 | AX12: 0.47 | AY12: 0.9 | AZ12: 0.15 | BA12: 0 | BB12: -184065.1231 | BC12: 0 | BD12: -1930779.123 | BE12: -1656586.108 | BF12: -100660.5825 | BG12: 0 | BH12: 2.579723772 | BI12: 0 | BJ12: 0 | BK12: 119.8010594 | BL12: 0 | BM12: 292.6291712 | BN12: 23.21751395 | BO12: 22.63874977 | BP12: 2478.888749 | BQ12: 1078.209535 | BR12: 722.9328269 | BS12: 0 | BT12: 184.2941537 | BU12: 0 | BV12: 9794.618029 | BW12: 1658.647384 | BX12: 1288.901571 | CD12: =SUMIF('[161104-Financial Analysis_v11(low resource sens).xlsm]Results Database'!$E:$E,'Aggregate Summary'!AJ$4,'[161104-Financial Analysis_v11(low resource sens).xlsm]Results Database'!$BY:$BY)
A13: 9 | B13: Reduced Emission Completions | C13: 15489.61901 | D13: 786866.5985 | E13: 1174107.074 | F13: 907299.3031 | G13: 18180732.73 | H13: 40863215.31 | I13: 0.01707222628 | J13: 0.04328024675 | K13: 0.028732616 | L13: 73907925.13 | M13: 0 | O13: 21317.20625 | P13: 20320.63489 | Q13: 8177.821625 | R13: 49815.66277 | S13: 26951.69499 | T13: 483903.3493 | U13: 1331781.522 | V13: 384615.8125 | W13: 2200300.684 | X13: 2200300.684 | Y13: 906944.9903 | Z13: 51.21656064 | AA13: 303.0962647 | AC13: 932272.9497 | AD13: 16446837.11 | AE13: 801622.6738 | AF13: 0 | AG13: 0 | AH13: 0 | AJ13: -17546120.12 | AK13: 156588910.3 | AL13: -3880688.111 | AM13: 0.25 | AN13: 0.5 | AO13: 0 | AP13: -4386530.03 | AQ13: 78294455.16 | AR13: 0 | AS13: 217 | AT13: 524 | AU13: 0 | AV13: 0.1 | AW13: 0 | AX13: 0.4 | AY13: 0.8 | AZ13: 0.1 | BA13: 0 | BB13: 7829445.516 | BC13: 0 | BD13: -1754612.012 | BE13: 62635564.13 | BF13: 0 | BG13: 0 | BH13: 2032.063489 | BI13: 0 | BJ13: 0 | BK13: 133178.1522 | BL13: 0 | BM13: 8526.882501 | BN13: 16256.50791 | BO13: 817.7821625 | BP13: 193561.3397 | BQ13: 1065425.218 | BR13: 38461.58125 | BS13: 0 | BT13: 183979.7395 | BU13: 0 | BV13: 406733.4023 | BW13: 1471837.916 | BX13: 58906.13531 | CD13: =SUMIF('[161104-Financial Analysis_v11(low resource sens).xlsm]Results Database'!$E:$E,'Aggregate Summary'!AJ$4,'[161104-Financial Analysis_v11(low resource sens).xlsm]Results Database'!$CH:$CH)
A14: 10 | B14: Foaming agents to Remove Accumulated Fluid in Gas wells | C14: 1577.515787 | D14: 24904.84578 | E14: 64342.74045 | F14: 907299.3031 | G14: 18180732.73 | H14: 40863215.31 | I14: 0.001738693925 | J14: 0.001369848298 | K14: 0.001574588293 | L14: 1786819.181 | M14: 0 | O14: 8467.389061 | P14: 743.6271783 | Q14: 2330.447099 | R14: 11541.46334 | S14: 10248.00099 | T14: 92147.17251 | U14: 30676.45477 | V14: 80151.24429 | W14: 202974.8716 | X14: 202974.8716 | Y14: 906944.9903 | Z14: 51.21656064 | AA14: 303.0962647 | AC14: 932272.9497 | AD14: 16446837.11 | AE14: 801622.6738 | AF14: 0 | AG14: 0 | AH14: 0 | AJ14: 6849039.927 | AK14: 2606684.323 | AL14: 4987947.595 | AM14: 0.15 | AN14: 0.1 | AO14: 0.1 | AP14: 1027355.989 | AQ14: 260668.4323 | AR14: 498794.7595 | AS14: 609 | AT14: 657 | AU14: 0.05 | AV14: 0 | AW14: 0.05 | AX14: 0.6 | AY14: 0.3 | AZ14: 0.15 | BA14: 51367.79945 | BB14: 0 | BC14: 24939.73798 | BD14: 616413.5934 | BE14: 78200.52969 | BF14: 74819.21393 | BG14: 423.369453 | BH14: 0 | BI14: 116.5223549 | BJ14: 4607.358625 | BK14: 0 | BL14: 4007.562215 | BM14: 5080.433436 | BN14: 223.0881535 | BO14: 349.5670648 | BP14: 55288.3035 | BQ14: 9202.93643 | BR14: 12022.68664 | BS14: 15191.59495 | BT14: 0 | BU14: 6920.621088 | BV14: 182299.1394 | BW14: 14780.14027 | BX14: 20761.86326 | CD14: =SUMIF('[161104-Financial Analysis_v11(low resource sens).xlsm]Results Database'!$E:$E,'Aggregate Summary'!AJ$4,'[161104-Financial Analysis_v11(low resource sens).xlsm]Results Database'!$CQ:$CQ)
A15: 11 | B15: Velocity tubing to Remove Accumulated Fluid in Gas Wells | C15: 691.4145602 | D15: 14154.70484 | E15: 31440.06885 | F15: 907299.3031 | G15: 18180732.73 | H15: 40863215.31 | I15: 0.0007620578543 | J15: 0.0007785552462 | K15: 0.0007693978218 | L15: -1016104838 | M15: 0 | O15: 8431.461011 | P15: 743.4688985 | Q15: 2326.680647 | R15: 11501.61056 | S15: 10208.30649 | T15: 92125.97775 | U15: 30665.80554 | V15: 80151.1568 | W15: 202942.9401 | X15: 202942.9401 | Y15: 906944.9903 | Z15: 51.21656064 | AA15: 303.0962647 | AC15: 932272.9497 | AD15: 16446837.11 | AE15: 801622.6738 | AF15: 0 | AG15: 0 | AH15: 0 | AJ15: -8511940117 | AK15: -1162899852 | AL15: -5323628398 | AM15: 0.05 | AN15: 0.05 | AO15: 0.1 | AP15: -425597005.9 | AQ15: -58144992.62 | AR15: -532362839.8 | AS15: 0 | AT15: 0 | AU15: 0 | AV15: 0 | AW15: 0 | AX15: 0.25 | AY15: 0.15 | AZ15: 0 | BA15: 0 | BB15: 0 | BC15: 0 | BD15: -106399251.5 | BE15: -8721748.893 | BF15: 0 | BG15: 0 | BH15: 0 | BI15: 0 | BJ15: 0 | BK15: 0 | BL15: 0 | BM15: 2107.865253 | BN15: 111.5203348 | BO15: 0 | BP15: 23031.49444 | BQ15: 4599.870831 | BR15: 0 | BS15: 0 | BT15: 0 | BU15: 0 | BV15: 75728.12576 | BW15: 7387.879201 | BX15: 0 | CD15: =SUMIF('[161104-Financial Analysis_v11(low resource sens).xlsm]Results Database'!$E:$E,'Aggregate Summary'!AJ$4,'[161104-Financial Analysis_v11(low resource sens).xlsm]Results Database'!$CZ:$CZ)
A16: 12 | B16: Install Flares | C16: 32778.72071 | D16: -41417.14338 | E16: 778050.8743 | F16: 907299.3031 | G16: 18180732.73 | H16: 40863215.31 | I16: 0.03612779222 | J16: -0.002278078887 | K16: 0.01904037331 | L16: -378685075.9 | M16: 0 | O16: 163893.6035 | P16: 43383.52799 | Q16: 77995.54981 | R16: 285272.6813 | S16: 190421.1111 | T16: -207085.7169 | U16: -8141.946946 | V16: -38364.96883 | W16: -253592.6327 | X16: -253592.6327 | Y16: 906944.9903 | Z16: 51.21656064 | AA16: 303.0962647 | AC16: 932272.9497 | AD16: 16446837.11 | AE16: 801622.6738 | AF16: 0 | AG16: 0 | AH16: 0 | AJ16: -1893425380 | AK16: -255072277.7 | AL16: -1203148893 | AM16: 0.2 | AN16: 0 | AO16: 0 | AP16: -378685075.9 | AQ16: 0 | AR16: 0 | AS16: 0 | AT16: 4 | AU16: 0 | AV16: 0 | AW16: 0 | AX16: 0.35 | AY16: 0 | AZ16: 0 | BA16: 0 | BB16: 0 | BC16: 0 | BD16: -132539776.6 | BE16: 0 | BF16: 0 | BG16: 0 | BH16: 0 | BI16: 0 | BJ16: 0 | BK16: 0 | BL16: 0 | BM16: 57362.76124 | BN16: 0 | BO16: 0 | BP16: -72480.00092 | BQ16: 0 | BR16: 0 | BS16: 0 | BT16: 0 | BU16: 0 | BV16: 1361589.03 | BW16: 0 | BX16: 0 | CD16: =SUMIF('[161104-Financial Analysis_v11(low resource sens).xlsm]Results Database'!$E:$E,'Aggregate Summary'!AJ$4,'[161104-Financial Analysis_v11(low resource sens).xlsm]Results Database'!$DI:$DI)
A17: 13 | B17: Gas Lift Well to remove liquid accumulation | C17: 920.1557336 | D17: 12281.80784 | E17: 35285.70118 | F17: 907299.3031 | G17: 18180732.73 | H17: 40863215.31 | I17: 0.001014169999 | J17: 0.0006755397607 | K17: 0.0008635077028 | L17: -8551675.83 | M17: 0 | O17: 8457.930158 | P17: 743.6271783 | Q17: 2329.188296 | R17: 11530.74563 | S17: 10237.28328 | T17: 92141.6236 | U17: 30676.45477 | V17: 80151.21505 | W17: 202969.2934 | X17: 202969.2934 | Y17: 906944.9903 | Z17: 51.21656064 | AA17: 303.0962647 | AC17: 932272.9497 | AD17: 16446837.11 | AE17: 801622.6738 | AF17: 0 | AG17: 0 | AH17: 0 | AJ17: -76905522.45 | AK17: -8611235.851 | AL17: -47214089.02 | AM17: 0.1 | AN17: 0.1 | AO17: 0 | AP17: -7690552.245 | AQ17: -861123.5851 | AR17: 0 | AS17: 0 | AT17: 0 | AU17: 0.05 | AV17: 0.05 | AW17: 0 | AX17: 0.5 | AY17: 0.3 | AZ17: 0 | BA17: -384527.6122 | BB17: -43056.17925 | BC17: 0 | BD17: -3845276.122 | BE17: -258337.0755 | BF17: 0 | BG17: 422.8965079 | BH17: 37.18135891 | BI17: 0 | BJ17: 4607.08118 | BK17: 1533.822738 | BL17: 0 | BM17: 4228.965079 | BN17: 223.0881535 | BO17: 0 | BP17: 46070.8118 | BQ17: 9202.93643 | BR17: 0 | BS17: 15179.49388 | BT17: 2463.356711 | BU17: 0 | BV17: 151794.9388 | BW17: 14780.14027 | BX17: 0 | CD17: =SUMIF('[161104-Financial Analysis_v11(low resource sens).xlsm]Results Database'!$E:$E,'Aggregate Summary'!AJ$4,'[161104-Financial Analysis_v11(low resource sens).xlsm]Results Database'!$DR:$DR)
A18: 14 | B18: Microturbines | C18: 5286.857019 | D18: 355705.1577 | E18: 487876.5832 | F18: 907299.3031 | G18: 18180732.73 | H18: 40863215.31 | I18: 0.00582702643 | J18: 0.0195649517 | K18: 0.01193926076 | L18: -516688426.9 | M18: 0 | O18: 19503.68396 | P18: 4109.360297 | Q18: 16486.71185 | R18: 40099.7561 | S18: 23408.7889 | T18: 1312227.842 | U18: 276481.9717 | V18: 1109242.867 | W18: 2697952.681 | X18: 2697952.681 | Y18: 906944.9903 | Z18: 51.21656064 | AA18: 303.0962647 | AC18: 932272.9497 | AD18: 16446837.11 | AE18: 801622.6738 | AF18: 0 | AG18: 0 | AH18: 0 | AJ18: -1963133952 | AK18: -259049389.6 | AL18: -1230167153 | AM18: 0.25 | AN18: 0.1 | AO18: 0 | AP18: -490783488 | AQ18: -25904938.96 | AR18: 0 | AS18: 0 | AT18: 0 | AU18: 0 | AV18: 0 | AW18: 0 | AX18: 0.5 | AY18: 0.2 | AZ18: 0 | BA18: 0 | BB18: 0 | BC18: 0 | BD18: -245391744 | BE18: -5180987.791 | BF18: 0 | BG18: 0 | BH18: 0 | BI18: 0 | BJ18: 0 | BK18: 0 | BL18: 0 | BM18: 9751.841978 | BN18: 821.8720593 | BO18: 0 | BP18: 656113.9212 | BQ18: 55296.39434 | BR18: 0 | BS18: 0 | BT18: 0 | BU18: 0 | BV18: 899909.9706 | BW18: 75843.19582 | BX18: 0 | CD18: =SUMIF('[161104-Financial Analysis_v11(low resource sens).xlsm]Results Database'!$E:$E,'Aggregate Summary'!AJ$4,'[161104-Financial Analysis_v11(low resource sens).xlsm]Results Database'!$EA:$EA)
A19: 15 | B19: Electric submersible pump (ESP) to unload wells | C19: 839.6821272 | D19: 10675.3019 | E19: 31667.35508 | F19: 907299.3031 | G19: 18180732.73 | H19: 40863215.31 | I19: 0.0009254742335 | J19: 0.0005871766588 | K19: 0.0007749599447 | L19: -613580690 | M19: 0 | O19: 8028.410698 | P19: 736.8211478 | Q19: 2324.083206 | R19: 11089.31505 | S19: 9796.960659 | T19: 91643.74995 | U19: 30218.53806 | V19: 80151.09647 | W19: 202013.3845 | X19: 202013.3845 | Y19: 906944.9903 | Z19: 51.21656064 | AA19: 303.0962647 | AC19: 932272.9497 | AD19: 16446837.11 | AE19: 801622.6738 | AF19: 0 | AG19: 0 | AH19: 0 | AJ19: -5723840674 | AK19: -823932452.3 | AL19: -3692143648 | AM19: 0.1 | AN19: 0.05 | AO19: 0 | AP19: -572384067.4 | AQ19: -41196622.61 | AR19: 0 | AS19: 0 | AT19: 0 | AU19: 0.05 | AV19: 0 | AW19: 0 | AX19: 0.3 | AY19: 0.2 | AZ19: 0 | BA19: -28619203.37 | BB19: 0 | BC19: 0 | BD19: -171715220.2 | BE19: -8239324.523 | BF19: 0 | BG19: 401.4205349 | BH19: 0 | BI19: 0 | BJ19: 4582.187497 | BK19: 0 | BL19: 0 | BM19: 2408.523209 | BN19: 147.3642296 | BO19: 0 | BP19: 27493.12498 | BQ19: 6043.707613 | BR19: 0 | BS19: 14617.70087 | BT19: 0 | BU19: 0 | BV19: 87706.20522 | BW19: 9727.813352 | BX19: 0 | CD19: =SUMIF('[161104-Financial Analysis_v11(low resource sens).xlsm]Results Database'!$E:$E,'Aggregate Summary'!AJ$4,'[161104-Financial Analysis_v11(low resource sens).xlsm]Results Database'!$EJ:$EJ)
A20: 16 | B20: Downhole Jetpump for Well Unloading | C20: 876.5231845 | D20: 12186.2288 | E20: 34099.30841 | F20: 907299.3031 | G20: 18180732.73 | H20: 40863215.31 | I20: 0.00096607942 | J20: 0.0006702825999 | K20: 0.0008344744328 | L20: -467907213.1 | M20: 0 | O20: 8028.410698 | P20: 736.8211478 | Q20: 2324.083206 | R20: 11089.31505 | S20: 9796.960659 | T20: 91643.74995 | U20: 30218.53806 | V20: 80151.09647 | W20: 202013.3845 | X20: 202013.3845 | Y20: 906944.9903 | Z20: 51.21656064 | AA20: 303.0962647 | AC20: 932272.9497 | AD20: 16446837.11 | AE20: 801622.6738 | AF20: 0 | AG20: 0 | AH20: 0 | AJ20: -4111947919 | AK20: -567124212.3 | AL20: -2635136696 | AM20: 0.1 | AN20: 0.1 | AO20: 0 | AP20: -411194791.9 | AQ20: -56712421.23 | AR20: 0 | AS20: 0 | AT20: 0 | AU20: 0.05 | AV20: 0.05 | AW20: 0 | AX20: 0.5 | AY20: 0.3 | AZ20: 0 | BA20: -20559739.59 | BB20: -2835621.061 | BC20: 0 | BD20: -205597395.9 | BE20: -17013726.37 | BF20: 0 | BG20: 401.4205349 | BH20: 36.84105739 | BI20: 0 | BJ20: 4582.187497 | BK20: 1510.926903 | BL20: 0 | BM20: 4014.205349 | BN20: 221.0463443 | BO20: 0 | BP20: 45821.87497 | BQ20: 9065.561419 | BR20: 0 | BS20: 14617.70087 | BT20: 2431.953338 | BU20: 0 | BV20: 146177.0087 | BW20: 14591.72003 | BX20: 0 | CD20: =SUMIF('[161104-Financial Analysis_v11(low resource sens).xlsm]Results Database'!$E:$E,'Aggregate Summary'!AJ$4,'[161104-Financial Analysis_v11(low resource sens).xlsm]Results Database'!$ES:$ES)
A21: 17 | B21: Monitor/repair leaking flare/vent control valves | C21: 47481.03503 | D21: 897860.3566 | E21: 2084886.232 | F21: 907299.3031 | G21: 18180732.73 | H21: 40863215.31 | I21: 0.05233227323 | J21: 0.04938526791 | K21: 0.05102110093 | L21: -105714052.7 | M21: 0 | O21: 72165.37326 | P21: 5974.015816 | Q21: 25409.99977 | R21: 103549.3889 | S21: 86936.22806 | T21: 1172981.201 | U21: 277245.1947 | V21: 1079203.864 | W21: 2529430.259 | X21: 2529430.259 | Y21: 906944.9903 | Z21: 51.21656064 | AA21: 303.0962647 | AC21: 932272.9497 | AD21: 16446837.11 | AE21: 801622.6738 | AF21: 0 | AG21: 0 | AH21: 0 | AJ21: -161382474.4 | AK21: -12692240.12 | AL21: -100880027.9 | AM21: 0.6 | AN21: 0.7 | AO21: 0 | AP21: -96829484.64 | AQ21: -8884568.087 | AR21: 0 | AS21: 18 | AT21: 142 | AU21: 0.3 | AV21: 0.35 | AW21: 0 | AX21: 0.78 | AY21: 0.88 | AZ21: 0.06 | BA21: -29048845.39 | BB21: -3109598.83 | BC21: 0 | BD21: -75526998.02 | BE21: -7818419.916 | BF21: 0 | BG21: 21649.61198 | BH21: 2090.905536 | BI21: 0 | BJ21: 351894.3602 | BK21: 97035.81814 | BL21: 0 | BM21: 56288.99115 | BN21: 5257.133918 | BO21: 1524.599986 | BP21: 914925.3364 | BQ21: 243975.7713 | BR21: 64752.23182 | BS21: 893134.6596 | BT21: 149308.4565 | BU21: 0 | BV21: 2322150.115 | BW21: 375404.1193 | BX21: 102867.2315 | CD21: =SUMIF('[161104-Financial Analysis_v11(low resource sens).xlsm]Results Database'!$E:$E,'Aggregate Summary'!AJ$4,'[161104-Financial Analysis_v11(low resource sens).xlsm]Results Database'!$FB:$FB)
A22: 18 | B22: Install redundant compression | C22: 48909.83754 | D22: 3140724.361 | E22: 4363470.3 | F22: 907299.3031 | G22: 18180732.73 | H22: 40863215.31 | I22: 0.05390705952 | J22: 0.172750153 | K22: 0.1067823534 | L22: -366078116.1 | M22: 0 | O22: 117270.9348 | P22: 186257.6754 | Q22: 46581.93079 | R22: 350110.5409 | S22: 154010.2345 | T22: 2765504.224 | U22: 12341657.11 | V22: 2208896.896 | W22: 17316058.23 | X22: 17316058.23 | Y22: 906944.9903 | Z22: 51.21656064 | AA22: 303.0962647 | AC22: 932272.9497 | AD22: 16446837.11 | AE22: 801622.6738 | AF22: 0 | AG22: 0 | AH22: 0 | AJ22: -1.197181652e+10 | AK22: -506567142.9 | AL22: -8248784197 | AM22: 0.02 | AN22: 0.25 | AO22: 0 | AP22: -239436330.4 | AQ22: -126641785.7 | AR22: 0 | AS22: 35 | AT22: 44 | AU22: 0 | AV22: 0.1 | AW22: 0 | AX22: 0.25 | AY22: 0.5 | AZ22: 0 | BA22: 0 | BB22: -12664178.57 | BC22: 0 | BD22: -59859082.6 | BE22: -63320892.86 | BF22: 0 | BG22: 0 | BH22: 18625.76754 | BI22: 0 | BJ22: 0 | BK22: 1234165.711 | BL22: 0 | BM22: 29317.7337 | BN22: 93128.83769 | BO22: 0 | BP22: 691376.056 | BQ22: 6170828.553 | BR22: 0 | BS22: 0 | BT22: 1699809.899 | BU22: 0 | BV22: 1424319.398 | BW22: 8499049.496 | BX22: 0 | CD22: =SUMIF('[161104-Financial Analysis_v11(low resource sens).xlsm]Results Database'!$E:$E,'Aggregate Summary'!AJ$4,'[161104-Financial Analysis_v11(low resource sens).xlsm]Results Database'!$FK:$FK)
A23: 19 | B23: Limit Monthly Vent Volume | C23: 2103.452324 | D23: 48.86020778 | E23: 52635.1683 | F23: 868370.1174 | G23: 17427211.65 | H23: 39136464.58 | I23: 0.002422299296 | J23: 2.803673288e-06 | K23: 0.001344913723 | L23: 1816420.92 | M23: 53188.60278 | O23: 0 | P23: 2103.452324 | Q23: 0 | R23: 2103.452324 | S23: 2103.452324 | T23: 0 | U23: 48.86020778 | V23: 0 | W23: 48.86020778 | X23: 48.86020778 | Y23: 868015.8046 | Z23: 51.21656064 | AA23: 303.0962647 | AC23: 899965.0649 | AD23: 15749549.44 | AE23: 777697.1414 | AF23: 0 | AG23: 0 | AH23: 53188.60278 | AJ23: 0 | AK23: 1816420.92 | AL23: 0 | AM23: 1 | AN23: 1 | AO23: 1 | AP23: 0 | AQ23: 1816420.92 | AR23: 0 | AS23: 1 | AT23: N/A | AU23: 1 | AV23: 1 | AW23: 1 | AX23: 1 | AY23: 1 | AZ23: 1 | BA23: 0 | BB23: 1816420.92 | BC23: 0 | BD23: 0 | BE23: 1816420.92 | BF23: 0 | BG23: 0 | BH23: 2103.452324 | BI23: 0 | BJ23: 0 | BK23: 48.86020778 | BL23: 0 | BM23: 0 | BN23: 2103.452324 | BO23: 0 | BP23: 0 | BQ23: 48.86020778 | BR23: 0 | BS23: 0 | BT23: 52635.1683 | BU23: 0 | BV23: 0 | BW23: 52635.1683 | BX23: 0 | CD23: =SUMIF('[161104-Financial Analysis_v11(low resource sens).xlsm]Results Database'!$E:$E,'Aggregate Summary'!AJ$4,'[161104-Financial Analysis_v11(low resource sens).xlsm]Results Database'!$FT:$FT)
B26: fixed | C26: 1085
B27: floater | C27: 121
B28: single well | C28: 827
C29: 2033
B31: Alternate Count | C31: 1784 | AS31: 681
AS32: 0
B34: Note: Adjusted means after applying percentages
B35: Note: Aggregate is before applying percentage adjustments
F39: NPV | J39: =F39 -> NPV | N39: =J39 -> NPV
B40: Bubble_labels | D40: Colour Group | G40: Complexes with + | H40: Emissions | K40: Percent Reduced | L40: Number of Complexes | O40: =L40 -> Number of Complexes | P40: =K40 -> Percent Reduced | AS40: 0
B41: =B5 -> Reroute Gas Pig Trap Vent | C41: Either | D41: 3 | F41: =L5 -> -48807981.19 | G41: =AS5 -> 0 | H41: =E5 -> 17178.16356 | J41: =F41 -> -48807981.19 | K41: =J5 -> 3.003739654e-05 | L41: =G41 -> 0 | N41: =J41 -> -48807981.19 | O41: =L41 -> 0 | P41: =K41 -> 3.003739654e-05 | AS41: 539
B42: =B6 -> Limit Monthly Flare Volume | C42: Flare | D42: 2 | F42: 1154160328 | G42: 113 | H42: 10692917.42 | J42: =F42 -> 1154160328 | K42: 0.4473510862 | L42: =G42 -> 113 | N42: =J42 -> 1154160328 | O42: =L42 -> 113 | P42: =K42 -> 0.4473510862
B43: Compressors Off - Maintain Pressure | C43: Either | D43: 3 | F43: 12754194.43 | G43: 648 | H43: 201442.5327 | J43: 12754194.43 | K43: 0.005052327151 | L43: 648 | N43: 12754194.43 | O43: 648 | P43: 0.005052327151
B44: Compressors Off- Blowdown to fuel | C44: Either | D44: 3 | F44: -52635280.1 | G44: 0 | H44: 27142.08491 | J44: -52635280.1 | K44: 0.0004466264301 | L44: 0 | N44: -52635280.1 | O44: 0 | P44: 0.0004466264301
B45: Compressor Static Seals | C45: Vent | D45: 1 | F45: 7628955.537 | G45: 561 | H45: 331191.2189 | J45: 7628955.537 | K45: 0.005913795146 | L45: 561 | N45: 7628955.537 | O45: 561 | P45: 0.005913795146
B46: Compressors Off - Install ejector | C46: Either | D46: 3 | F46: -7237685.533 | G46: 0 | H46: 38686.1179 | J46: -7237685.533 | K46: 0.0009153527565 | L46: 0 | N46: -7237685.533 | O46: 0 | P46: 0.0009153527565
B47: Using Pipeline Pump-Down Techniques to Lower Gas Line Pressure before Maintenance | C47: Either | D47: 3 | F47: -3852088.431 | G47: 0 | H47: 5519.027191 | J47: -3852088.431 | K47: 0.0001042218271 | L47: 0 | N47: -3852088.431 | O47: 0 | P47: 0.0001042218271
B48: Use Inert Gases and Pigs to Perform Pipeline Purges | C48: Either | D48: 3 | F48: -6619762.47 | G48: 0 | H48: 5519.027191 | J48: -6619762.47 | K48: 0.0001042218271 | L48: 0 | N48: -6619762.47 | O48: 0 | P48: 0.0001042218271
B49: Reduced Emission Completions | C49: Either | D49: 3 | F49: 73907925.13 | G49: 217 | H49: 1174107.074 | J49: 73907925.13 | K49: 0.04328024675 | L49: 217 | N49: 73907925.13 | O49: 217 | P49: 0.04328024675 | AS49: 586
B50: Foaming agents to Remove Accumulated Fluid in Gas wells | C50: Either | D50: 3 | F50: 1786819.181 | G50: 609 | H50: 64342.74045 | J50: 1786819.181 | K50: 0.001369848298 | L50: 609 | N50: 1786819.181 | O50: 609 | P50: 0.001369848298 | AS50: 0
B51: Velocity tubing to Remove Accumulated Fluid in Gas Wells | C51: Either | D51: 3 | F51: -1016104838 | G51: 0 | H51: 31440.06885 | J51: -1016104838 | K51: 0.0007785552462 | L51: 0 | N51: -1016104838 | O51: 0 | P51: 0.0007785552462
B52: Install Flares | C52: Convert Vent to Flare | D52: 4 | F52: -378685075.9 | G52: 0 | H52: 778050.8743 | J52: -378685075.9 | K52: -0.002278078887 | L52: 0 | N52: -378685075.9 | O52: 0 | P52: -0.002278078887
B53: Gas Lift Well to remove liquid accumulation | C53: Either | D53: 3 | F53: -8551675.83 | G53: 0 | H53: 35285.70118 | J53: -8551675.83 | K53: 0.0006755397607 | L53: 0 | N53: -8551675.83 | O53: 0 | P53: 0.0006755397607
B54: Microturbines | C54: Flare | D54: 1 | F54: -516688426.9 | G54: 0 | H54: 487876.5832 | J54: -516688426.9 | K54: 0.0195649517 | L54: 0 | N54: -516688426.9 | O54: 0 | P54: 0.0195649517
B55: Electric submersible pump (ESP) to unload wells | C55: Either | D55: 3 | F55: -613580690 | G55: 0 | H55: 31667.35508 | J55: -613580690 | K55: 0.0005871766588 | L55: 0 | N55: -613580690 | O55: 0 | P55: 0.0005871766588
B56: Downhole Jetpump for Well Unloading | C56: Either | D56: 3 | F56: -467907213.1 | G56: 0 | H56: 34099.30841 | J56: -467907213.1 | K56: 0.0006702825999 | L56: 0 | N56: -467907213.1 | O56: 0 | P56: 0.0006702825999
B57: Monitor/repair leaking flare/vent control valves | C57: Either | D57: 3 | F57: -105714052.7 | G57: 18 | H57: 2084886.232 | J57: -105714052.7 | K57: 0.04938526791 | L57: 18 | N57: -105714052.7 | O57: 18 | P57: 0.04938526791
B58: Install redundant compression | C58: Either | D58: 3 | F58: -366078116.1 | G58: 35 | H58: 4363470.3 | J58: -366078116.1 | K58: 0.172750153 | L58: 35 | N58: -366078116.1 | O58: 35 | P58: 0.172750153 | AS58: 43
B59: Limit Monthly Vent Volume | C59: Vent | D59: 1 | F59: 1816420.92 | G59: 1 | H59: 52635.1683 | J59: 1816420.92 | K59: 2.803673288e-06 | L59: 1 | N59: 1816420.92 | O59: 1 | P59: 2.803673288e-06 | AS59: 0
C64: colour_1
C65: colour_2
C66: colour_3
C67: colour_4 | AS67: 0
AS68: 0
AS76: 0
AS77: 161
AS85: 214
AS86: 622
AS94: 665
AS95: 0
AS103: 0
AS104: 0
AS112: 4
AS113: 486
AS121: 569
AS122: 0
AS130: 0
AS131: 0
AS139: 0
AS140: 0
AS148: 0
AS149: 0
AS157: 174
AS158: 0
AS166: 32
AS167: 1
AS175: 0

Sheet Low Gas Res High Price + NPV
A1: FINAL AGREGATE SUMMARY | E1: =CH4_factor -> 25 | H1: =E1 -> 25
C2: Aplicabiity Adjusted | D2: Aplicabiity Adjusted | E2: Aplicabiity Adjusted | F2: Adjusted | G2: Adjusted | H2: Adjusted | I2: Percent | J2: Percent | K2: Percent | L2: Adjusted | M2: Adjusted | O2: Aggregate | P2: Aggregate | Q2: Aggregate | R2: Aggregate | S2: Aggregate | T2: Aggregate | U2: Aggregate | V2: Aggregate | W2: Aggregate | X2: Aggregate | Y2: Aggregate | Z2: Aggregate | AA2: Aggregate | AB2: Aggregate | AC2: Aggregate | AD2: Aggregate | AE2: Aggregate | AF2: Oil | AG2: Oil | AH2: Oil
C3: Reduction | D3: Reduction | E3: Reduct Equivalent | F3: Existing | G3: Existing | H3: Equivalent CO2 | I3: Reduction | J3: Reduction | K3: Reduction | L3: NPV | M3: Oil | O3: Reduced Methane | P3: Reduced Methane | Q3: Reduced Methane | R3: Reduced Methane | S3: Methane | T3: Reduced CO2 | U3: Reduced CO2 | V3: Reduced CO2 | W3: Reduced CO2 | X3: CO2 | Y3: Exist Methane | Z3: Exist Methane | AA3: Exist Methane | AB3: Exist CO2 | AC3: Exist CO2 | AD3: Exist CO2 | AE3: Exist CO2 | AF3: Deferred | AG3: Deferred | AH3: Deferred | AJ3: Total NPV b/4 Ratios | AM3: Percent Applicable | AP3: Final NPV - Expected Value Case | AS3: # of Complexes | AT3: # of Complexes | AU3: Percent Applicable 10% Case | AX3: Percent Applicable 90% Case | BA3: Final Methane - 10% Case | BD3: Final CO2 - 10% Case | BG3: Final Methane - 90% | BJ3: Final CO2 - 90% | BM3: Final CO2 Equiv - 10% Case | BP3: Final CO2 Equiv - 90% Case | BS3: Final NPV - 10% Low Case | BV3: Final NPV - 90% Hi Case
C4: Methane | D4: CO2 | E4: Total CO2 | F4: Methane | G4: CO2 | H4: Total | I4: Methane | J4: CO2 | K4: Equiv CO2 | L4: Savings | M4: Deferred | O4: =AJ4 -> fixed | P4: =AK4 -> floater | Q4: =AL4 -> single well | R4: Sum | S4: Check | T4: =AJ4 -> fixed | U4: =AK4 -> floater | V4: =AL4 -> single well | W4: Sum | X4: Check | Y4: =T4 -> fixed | Z4: =U4 -> floater | AA4: =V4 -> single well | AB4: =W4 -> Sum | AC4: =Y4 -> fixed | AD4: =Z4 -> floater | AE4: =AA4 -> single well | AF4: =AC4 -> fixed | AG4: =AD4 -> floater | AH4: =AE4 -> single well | AJ4: fixed | AK4: floater | AL4: single well | AM4: =AJ4 -> fixed | AN4: floater | AO4: single well | AP4: fixed | AQ4: floater | AR4: single well | AS4: > 0 NPV | AT4: > 0 NPV @ $49 SCOC | AU4: =AM4 -> fixed | AV4: =AN4 -> floater | AW4: single well | AX4: =AP4 -> fixed | AY4: =AQ4 -> floater | AZ4: single well | BA4: =AX4 -> fixed | BB4: floater | BC4: single well | BD4: fixed | BE4: floater | BF4: single well | BG4: =BA4 -> fixed | BH4: floater | BI4: single well | BJ4: fixed | BK4: floater | BL4: single well | BM4: =BJ4 -> fixed | BN4: floater | BO4: single well | BP4: fixed | BQ4: floater | BR4: single well | BS4: fixed | BT4: floater | BU4: single well | BV4: fixed | BW4: floater | BX4: single well
A5: 1 | B5: Reroute Gas Pig Trap Vent | C5: =SUMPRODUCT(O5:Q5,AM5:AO5) -> 665.2824671 | D5: =SUMPRODUCT(T5:V5,AM5:AO5) -> 546.1018783 | E5: =$E$1*C5+D5 -> 17178.16356 | F5: =SUM(Y5:AA5) -> 907299.3031 | G5: =SUM(AC5:AE5) -> 18180732.73 | H5: =F5*$H$1+G5 -> 40863215.31 | I5: =IF(F5,C5/F5) -> 0.0007332557898 | J5: 3.003739654e-05 | K5: 0.0004203820827 | L5: =SUM(AP5:AR5) -> 0 | M5: =SUMPRODUCT(AF5:AH5,AM5:AO5) -> 0 | O5: 1146.189777 | P5: 229.7850627 | Q5: 776.8923547 | R5: =SUM(O5:Q5) -> 2152.867194 | S5: 1531.900418 | T5: 1250.017434 | U5: 51.21656064 | V5: 303.0962647 | W5: =SUM(T5:V5) -> 1604.33026 | X5: 1604.33026 | Y5: 906944.9903 | Z5: 51.21656064 | AA5: 303.0962647 | AC5: 932272.9497 | AD5: 16446837.11 | AE5: 801622.6738 | AF5: 0 | AG5: 0 | AH5: 0 | AJ5: 0 | AK5: 0 | AL5: 0 | AM5: 0.4 | AN5: 0.9 | AO5: 0 | AP5: =AM5*AJ5 -> 0 | AQ5: 0 | AR5: 0 | AS5: 0 | AT5: 0 | AU5: 0.1 | AV5: 0.3 | AW5: 0 | AX5: 0.5 | AY5: 1 | AZ5: 0 | BA5: =AU5*O5 -> 114.6189777 | BB5: =AV5*P5 -> 68.9355188 | BC5: 0 | BD5: =AU5*T5 -> 125.0017434 | BE5: =AV5*U5 -> 15.36496819 | BF5: 0 | BG5: =AX5*O5 -> 573.0948884 | BH5: =AY5*P5 -> 229.7850627 | BI5: 0 | BJ5: =AX5*T5 -> 625.0087172 | BK5: =AY5*U5 -> 51.21656064 | BL5: 0 | BM5: =BA5*25+BD5 -> 2990.476186 | BN5: =BB5*25+BE5 -> 1738.752938 | BO5: 0 | BP5: =BG5*25+BJ5 -> 14952.38093 | BQ5: =BH5*25+BK5 -> 5795.843127 | BR5: 0 | BS5: =AU5*AJ5 -> 0 | BT5: =AV5*AK5 -> 0 | BU5: 0 | BV5: =AJ5*AX5 -> 0 | BW5: =AK5*AY5 -> 0 | BX5: 0 | CI5: =SUMIF('Results Database'!$E:$E,'Aggregate Summary'!AJ$4,'Results Database'!$N:$N)
A6: 2 | B6: Limit Monthly Flare Volume | C6: 115873.4144 | D6: 7796082.06 | E6: =$E$1*C6+D6 -> 10692917.42 | F6: =SUM(Y6:AA6) -> 868370.1174 | G6: =SUM(AC6:AE6) -> 17427211.65 | H6: =F6*$H$1+G6 -> 39136464.58 | I6: 0.1334378189 | J6: 0.4473510862 | K6: 0.2732213432 | L6: =SUM(AP6:AR6) -> 1154160328 | M6: =SUMPRODUCT(AF6:AH6,AM6:AO6) -> 250369.8545 | O6: 2373.801932 | P6: 127956.9709 | Q6: 4263.955938 | R6: =SUM(O6:Q6) -> 134594.7288 | S6: 17955.14521 | T6: 159711.8265 | U6: 8609076.124 | V6: 286883.3248 | W6: 9055671.276 | X6: 9055671.276 | Y6: 868015.8046 | Z6: 51.21656064 | AA6: 303.0962647 | AC6: 899965.0649 | AD6: 15749549.44 | AE6: 777697.1414 | AF6: 29120.37343 | AG6: 268481.9361 | AH6: 40334726.66 | AJ6: 19926698.96 | AK6: 1275758132 | AL6: 34905477.79 | AM6: 0.3 | AN6: 0.9 | AO6: 0 | AP6: 5978009.688 | AQ6: 1148182319 | AR6: 0 | AS6: 113 | AT6: N/A | AU6: 0.3 | AV6: 0.9 | AW6: 0 | AX6: 1 | AY6: 1 | AZ6: 1 | BA6: =AU6*O6 -> 712.1405796 | BB6: 115161.2738 | BC6: 0 | BD6: =AU6*T6 -> 47913.54794 | BE6: 7748168.512 | BF6: 0 | BG6: =AX6*O6 -> 2373.801932 | BH6: 127956.9709 | BI6: 4263.955938 | BJ6: =AX6*T6 -> 159711.8265 | BK6: 8609076.124 | BL6: 286883.3248 | BM6: =BA6*25+BD6 -> 65717.06243 | BN6: 10627200.36 | BO6: 0 | BP6: =BG6*25+BJ6 -> 219056.8748 | BQ6: 11808000.4 | BR6: 393482.2233 | BS6: =AU6*AJ6 -> 5978009.688 | BT6: 1148182319 | BU6: 0 | BV6: =AJ6*AX6 -> 19926698.96 | BW6: 1275758132 | BX6: 34905477.79 | CI6: =SUMIF('Results Database'!$E:$E,'Aggregate Summary'!AJ$4,'Results Database'!$W:$W)
A7: 3 | B7: Compressors Off - Maintain Pressure | C7: 4383.500924 | D7: 91855.00959 | E7: 201442.5327 | F7: 907299.3031 | G7: 18180732.73 | H7: 40863215.31 | I7: 0.004831372524 | J7: 0.005052327151 | K7: 0.004929678959 | L7: =SUM(AP7:AR7) -> 12780181.63 | M7: 0 | O7: 74952.59837 | P7: 6358.710052 | Q7: 26761.23339 | R7: 108072.5418 | S7: 90420.1431 | T7: 1247963.82 | U7: 294568.1857 | V7: 1147811.798 | W7: 2690343.804 | X7: 2690343.804 | Y7: 906944.9903 | Z7: 51.21656064 | AA7: 303.0962647 | AC7: 932272.9497 | AD7: 16446837.11 | AE7: 801622.6738 | AF7: 0 | AG7: 0 | AH7: 0 | AJ7: 181296887.7 | AK7: 37153372.45 | AL7: 146034014.2 | AM7: 0.05 | AN7: 0.1 | AO7: 0 | AP7: 9064844.387 | AQ7: 3715337.245 | AR7: 0 | AS7: 648 | AT7: 669 | AU7: 0 | AV7: 0 | AW7: 0 | AX7: 0.28 | AY7: 0.5 | AZ7: 0 | BA7: 0 | BB7: 0 | BC7: 0 | BD7: 0 | BE7: 0 | BF7: 0 | BG7: 20986.72754 | BH7: 3179.355026 | BI7: 0 | BJ7: 349429.8697 | BK7: 147284.0928 | BL7: 0 | BM7: 0 | BN7: 0 | BO7: 0 | BP7: 874098.0583 | BQ7: 226767.9685 | BR7: 0 | BS7: 0 | BT7: 0 | BU7: 0 | BV7: 50763128.57 | BW7: 18576686.23 | BX7: 0 | CI7: =SUMIF('Results Database'!$E:$E,'Aggregate Summary'!AJ$4,'Results Database'!$AF:$AF)
A8: 4 | B8: Compressors Off- Blowdown to fuel | C8: 760.8835662 | D8: 8119.995755 | E8: 27142.08491 | F8: 907299.3031 | G8: 18180732.73 | H8: 40863215.31 | I8: 0.0008386246562 | J8: 0.0004466264301 | K8: 0.0006642180432 | L8: =SUM(AP8:AR8) -> 0 | M8: 0 | O8: 1290.866959 | P8: 51.9456519 | Q8: 307.6114144 | R8: 1650.424025 | S8: 1503.96553 | T8: 10491.53267 | U8: 2397.604887 | V8: 9552.466318 | W8: 22441.60387 | X8: 22441.60387 | Y8: 906944.9903 | Z8: 51.21656064 | AA8: 303.0962647 | AC8: 932272.9497 | AD8: 16446837.11 | AE8: 801622.6738 | AF8: 0 | AG8: 0 | AH8: 0 | AJ8: 0 | AK8: 0 | AL8: 0 | AM8: 0.55 | AN8: 0.98 | AO8: 0 | AP8: 0 | AQ8: 0 | AR8: 0 | AS8: 0 | AT8: 0 | AU8: 0.56 | AV8: 0.98 | AW8: 0 | AX8: 0.56 | AY8: 1 | AZ8: 0 | BA8: 722.8854969 | BB8: 50.90673886 | BC8: 0 | BD8: 5875.258293 | BE8: 2349.652789 | BF8: 0 | BG8: 722.8854969 | BH8: 51.9456519 | BI8: 0 | BJ8: 5875.258293 | BK8: 2397.604887 | BL8: 0 | BM8: 23947.39571 | BN8: 3622.321261 | BO8: 0 | BP8: 23947.39571 | BQ8: 3696.246185 | BR8: 0 | BS8: 0 | BT8: 0 | BU8: 0 | BV8: 0 | BW8: 0 | BX8: 0 | CI8: =SUMIF('Results Database'!$E:$E,'Aggregate Summary'!AJ$4,'Results Database'!$AO:$AO)
A9: 5 | B9: Compressor Static Seals | C9: 8946.963599 | D9: 107517.129 | E9: 331191.2189 | F9: 907299.3031 | G9: 18180732.73 | H9: 40863215.31 | I9: 0.009861093873 | J9: 0.005913795146 | K9: 0.008104874187 | L9: 10814521.02 | M9: 0 | O9: 35004.14725 | P9: 1959.267861 | Q9: 10057.45615 | R9: 47020.87126 | S9: 41474.80127 | T9: 393693.2715 | U9: 90938.11102 | V9: 361416.3464 | W9: 846047.7289 | X9: 846047.7289 | Y9: 906944.9903 | Z9: 51.21656064 | AA9: 303.0962647 | AC9: 932272.9497 | AD9: 16446837.11 | AE9: 801622.6738 | AF9: 0 | AG9: 0 | AH9: 0 | AJ9: 40387237.68 | AK9: 7177116.03 | AL9: 32753355.38 | AM9: 0.25 | AN9: 0.1 | AO9: 0 | AP9: 10096809.42 | AQ9: 717711.603 | AR9: 0 | AS9: 561 | AT9: 600 | AU9: 0.1 | AV9: 0.05 | AW9: 0 | AX9: 0.56 | AY9: 0.25 | AZ9: 0 | BA9: 3500.414725 | BB9: 97.96339304 | BC9: 0 | BD9: 39369.32715 | BE9: 4546.905551 | BF9: 0 | BG9: 19602.32246 | BH9: 489.8169652 | BI9: 0 | BJ9: 220468.232 | BK9: 22734.52776 | BL9: 0 | BM9: 126879.6953 | BN9: 6995.990377 | BO9: 0 | BP9: 710526.2936 | BQ9: 34979.95189 | BR9: 0 | BS9: 4038723.768 | BT9: 358855.8015 | BU9: 0 | BV9: 22616853.1 | BW9: 1794279.008 | BX9: 0 | CI9: =SUMIF('Results Database'!$E:$E,'Aggregate Summary'!AJ$4,'Results Database'!$AX:$AX)
A10: 6 | B10: Compressors Off - Install ejector | C10: 881.7733632 | D10: 16641.78382 | E10: 38686.1179 | F10: 907299.3031 | G10: 18180732.73 | H10: 40863215.31 | I10: 0.0009718660206 | J10: 0.0009153527565 | K10: 0.0009467223175 | L10: 0 | M10: 0 | O10: 13016.38684 | P10: 577.3850527 | Q10: 3305.394595 | R10: 16899.16649 | S10: 15242.4283 | T10: 118011.9149 | U10: 26852.97019 | V10: 108104.0858 | W10: 252968.9708 | X10: 252968.9708 | Y10: 906944.9903 | Z10: 51.21656064 | AA10: 303.0962647 | AC10: 932272.9497 | AD10: 16446837.11 | AE10: 801622.6738 | AF10: 0 | AG10: 0 | AH10: 0 | AJ10: 0 | AK10: 0 | AL10: 0 | AM10: 0.05 | AN10: 0.4 | AO10: 0 | AP10: 0 | AQ10: 0 | AR10: 0 | AS10: 0 | AT10: 44 | AU10: 0 | AV10: 0 | AW10: 0 | AX10: 0.1 | AY10: 0.5 | AZ10: 0 | BA10: 0 | BB10: 0 | BC10: 0 | BD10: 0 | BE10: 0 | BF10: 0 | BG10: 1301.638684 | BH10: 288.6925264 | BI10: 0 | BJ10: 11801.19149 | BK10: 13426.48509 | BL10: 0 | BM10: 0 | BN10: 0 | BO10: 0 | BP10: 44342.15859 | BQ10: 20643.79825 | BR10: 0 | BS10: 0 | BT10: 0 | BU10: 0 | BV10: 0 | BW10: 0 | BX10: 0 | CI10: =SUMIF('Results Database'!$E:$E,'Aggregate Summary'!AJ$4,'Results Database'!$BG:$BG)
A11: 7 | B11: Using Pipeline Pump-Down Techniques to Lower Gas Line Pressure before Maintenance | C11: 144.9679204 | D11: 1894.829182 | E11: 5519.027191 | F11: 907299.3031 | G11: 18180732.73 | H11: 40863215.31 | I11: 0.0001597796007 | J11: 0.0001042218271 | K11: 0.0001350610115 | L11: 0 | M11: 0 | O11: 622.6152579 | P11: 25.79723772 | Q11: 150.9249985 | R11: 799.337494 | S11: 725.4651558 | T11: 5274.231381 | U11: 1198.010594 | V11: 4819.552179 | W11: 11291.79416 | X11: 11291.79416 | Y11: 906944.9903 | Z11: 51.21656064 | AA11: 303.0962647 | AC11: 932272.9497 | AD11: 16446837.11 | AE11: 801622.6738 | AF11: 0 | AG11: 0 | AH11: 0 | AJ11: 0 | AK11: 0 | AL11: 0 | AM11: 0.2 | AN11: 0.5 | AO11: 0.05 | AP11: 0 | AQ11: 0 | AR11: 0 | AS11: 0 | AT11: 0 | AU11: 0 | AV11: 0.1 | AW11: 0 | AX11: 0.47 | AY11: 0.9 | AZ11: 0.15 | BA11: 0 | BB11: 2.579723772 | BC11: 0 | BD11: 0 | BE11: 119.8010594 | BF11: 0 | BG11: 292.6291712 | BH11: 23.21751395 | BI11: 22.63874977 | BJ11: 2478.888749 | BK11: 1078.209535 | BL11: 722.9328269 | BM11: 0 | BN11: 184.2941537 | BO11: 0 | BP11: 9794.618029 | BQ11: 1658.647384 | BR11: 1288.901571 | BS11: 0 | BT11: 0 | BU11: 0 | BV11: 0 | BW11: 0 | BX11: 0 | CI11: =SUMIF('Results Database'!$E:$E,'Aggregate Summary'!AJ$4,'Results Database'!$BP:$BP)
A12: 8 | B12: Use Inert Gases and Pigs to Perform Pipeline Purges | C12: 144.9679204 | D12: 1894.829182 | E12: 5519.027191 | F12: 907299.3031 | G12: 18180732.73 | H12: 40863215.31 | I12: 0.0001597796007 | J12: 0.0001042218271 | K12: 0.0001350610115 | L12: 0 | M12: 0 | O12: 622.6152579 | P12: 25.79723772 | Q12: 150.9249985 | R12: 799.337494 | S12: 725.4651558 | T12: 5274.231381 | U12: 1198.010594 | V12: 4819.552179 | W12: 11291.79416 | X12: 11291.79416 | Y12: 906944.9903 | Z12: 51.21656064 | AA12: 303.0962647 | AC12: 932272.9497 | AD12: 16446837.11 | AE12: 801622.6738 | AF12: 0 | AG12: 0 | AH12: 0 | AJ12: 0 | AK12: 0 | AL12: 0 | AM12: 0.2 | AN12: 0.5 | AO12: 0.05 | AP12: 0 | AQ12: 0 | AR12: 0 | AS12: 0 | AT12: 0 | AU12: 0 | AV12: 0.1 | AW12: 0 | AX12: 0.47 | AY12: 0.9 | AZ12: 0.15 | BA12: 0 | BB12: 2.579723772 | BC12: 0 | BD12: 0 | BE12: 119.8010594 | BF12: 0 | BG12: 292.6291712 | BH12: 23.21751395 | BI12: 22.63874977 | BJ12: 2478.888749 | BK12: 1078.209535 | BL12: 722.9328269 | BM12: 0 | BN12: 184.2941537 | BO12: 0 | BP12: 9794.618029 | BQ12: 1658.647384 | BR12: 1288.901571 | BS12: 0 | BT12: 0 | BU12: 0 | BV12: 0 | BW12: 0 | BX12: 0 | CI12: =SUMIF('Results Database'!$E:$E,'Aggregate Summary'!AJ$4,'Results Database'!$BY:$BY)
A13: 9 | B13: Reduced Emission Completions | C13: 15489.61901 | D13: 786866.5985 | E13: 1174107.074 | F13: 907299.3031 | G13: 18180732.73 | H13: 40863215.31 | I13: 0.01707222628 | J13: 0.04328024675 | K13: 0.028732616 | L13: 84176977.26 | M13: 0 | O13: 21317.20625 | P13: 20320.63489 | Q13: 8177.821625 | R13: 49815.66277 | S13: 26951.69499 | T13: 483903.3493 | U13: 1331781.522 | V13: 384615.8125 | W13: 2200300.684 | X13: 2200300.684 | Y13: 906944.9903 | Z13: 51.21656064 | AA13: 303.0962647 | AC13: 932272.9497 | AD13: 16446837.11 | AE13: 801622.6738 | AF13: 0 | AG13: 0 | AH13: 0 | AJ13: 21522064.12 | AK13: 157592922.5 | AL13: 14759713.99 | AM13: 0.25 | AN13: 0.5 | AO13: 0 | AP13: 5380516.03 | AQ13: 78796461.23 | AR13: 0 | AS13: 217 | AT13: 524 | AU13: 0 | AV13: 0.1 | AW13: 0 | AX13: 0.4 | AY13: 0.8 | AZ13: 0.1 | BA13: 0 | BB13: 2032.063489 | BC13: 0 | BD13: 0 | BE13: 133178.1522 | BF13: 0 | BG13: 8526.882501 | BH13: 16256.50791 | BI13: 817.7821625 | BJ13: 193561.3397 | BK13: 1065425.218 | BL13: 38461.58125 | BM13: 0 | BN13: 183979.7395 | BO13: 0 | BP13: 406733.4023 | BQ13: 1471837.916 | BR13: 58906.13531 | BS13: 0 | BT13: 15759292.25 | BU13: 0 | BV13: 8608825.648 | BW13: 126074338 | BX13: 1475971.399 | CI13: =SUMIF('Results Database'!$E:$E,'Aggregate Summary'!AJ$4,'Results Database'!$CH:$CH)
A14: 10 | B14: Foaming agents to Remove Accumulated Fluid in Gas wells | C14: 1577.515787 | D14: 24904.84578 | E14: 64342.74045 | F14: 907299.3031 | G14: 18180732.73 | H14: 40863215.31 | I14: 0.001738693925 | J14: 0.001369848298 | K14: 0.001574588293 | L14: 2099297.163 | M14: 0 | O14: 8467.389061 | P14: 743.6271783 | Q14: 2330.447099 | R14: 11541.46334 | S14: 10248.00099 | T14: 92147.17251 | U14: 30676.45477 | V14: 80151.24429 | W14: 202974.8716 | X14: 202974.8716 | Y14: 906944.9903 | Z14: 51.21656064 | AA14: 303.0962647 | AC14: 932272.9497 | AD14: 16446837.11 | AE14: 801622.6738 | AF14: 0 | AG14: 0 | AH14: 0 | AJ14: 8325370.442 | AK14: 2647002.45 | AL14: 5857913.513 | AM14: 0.15 | AN14: 0.1 | AO14: 0.1 | AP14: 1248805.566 | AQ14: 264700.245 | AR14: 585791.3513 | AS14: 609 | AT14: 657 | AU14: 0.05 | AV14: 0 | AW14: 0.05 | AX14: 0.6 | AY14: 0.3 | AZ14: 0.15 | BA14: 423.369453 | BB14: 0 | BC14: 116.5223549 | BD14: 4607.358625 | BE14: 0 | BF14: 4007.562215 | BG14: 5080.433436 | BH14: 223.0881535 | BI14: 349.5670648 | BJ14: 55288.3035 | BK14: 9202.93643 | BL14: 12022.68664 | BM14: 15191.59495 | BN14: 0 | BO14: 6920.621088 | BP14: 182299.1394 | BQ14: 14780.14027 | BR14: 20761.86326 | BS14: 416268.5221 | BT14: 0 | BU14: 292895.6757 | BV14: 4995222.265 | BW14: 794100.735 | BX14: 878687.027 | CI14: =SUMIF('Results Database'!$E:$E,'Aggregate Summary'!AJ$4,'Results Database'!$CQ:$CQ)
A15: 11 | B15: Velocity tubing to Remove Accumulated Fluid in Gas Wells | C15: 691.4145602 | D15: 14154.70484 | E15: 31440.06885 | F15: 907299.3031 | G15: 18180732.73 | H15: 40863215.31 | I15: 0.0007620578543 | J15: 0.0007785552462 | K15: 0.0007693978218 | L15: 0 | M15: 0 | O15: 8431.461011 | P15: 743.4688985 | Q15: 2326.680647 | R15: 11501.61056 | S15: 10208.30649 | T15: 92125.97775 | U15: 30665.80554 | V15: 80151.1568 | W15: 202942.9401 | X15: 202942.9401 | Y15: 906944.9903 | Z15: 51.21656064 | AA15: 303.0962647 | AC15: 932272.9497 | AD15: 16446837.11 | AE15: 801622.6738 | AF15: 0 | AG15: 0 | AH15: 0 | AJ15: 0 | AK15: 0 | AL15: 0 | AM15: 0.05 | AN15: 0.05 | AO15: 0.1 | AP15: 0 | AQ15: 0 | AR15: 0 | AS15: 0 | AT15: 0 | AU15: 0 | AV15: 0 | AW15: 0 | AX15: 0.25 | AY15: 0.15 | AZ15: 0 | BA15: 0 | BB15: 0 | BC15: 0 | BD15: 0 | BE15: 0 | BF15: 0 | BG15: 2107.865253 | BH15: 111.5203348 | BI15: 0 | BJ15: 23031.49444 | BK15: 4599.870831 | BL15: 0 | BM15: 0 | BN15: 0 | BO15: 0 | BP15: 75728.12576 | BQ15: 7387.879201 | BR15: 0 | BS15: 0 | BT15: 0 | BU15: 0 | BV15: 0 | BW15: 0 | BX15: 0 | CI15: =SUMIF('Results Database'!$E:$E,'Aggregate Summary'!AJ$4,'Results Database'!$CZ:$CZ)
A16: 12 | B16: Install Flares | C16: 32778.72071 | D16: -41417.14338 | E16: 778050.8743 | F16: 907299.3031 | G16: 18180732.73 | H16: 40863215.31 | I16: 0.03612779222 | J16: -0.002278078887 | K16: 0.01904037331 | L16: 0 | M16: 0 | O16: 163893.6035 | P16: 43383.52799 | Q16: 77995.54981 | R16: 285272.6813 | S16: 190421.1111 | T16: -207085.7169 | U16: -8141.946946 | V16: -38364.96883 | W16: -253592.6327 | X16: -253592.6327 | Y16: 906944.9903 | Z16: 51.21656064 | AA16: 303.0962647 | AC16: 932272.9497 | AD16: 16446837.11 | AE16: 801622.6738 | AF16: 0 | AG16: 0 | AH16: 0 | AJ16: 0 | AK16: 0 | AL16: 0 | AM16: 0.2 | AN16: 0 | AO16: 0 | AP16: 0 | AQ16: 0 | AR16: 0 | AS16: 0 | AT16: 4 | AU16: 0 | AV16: 0 | AW16: 0 | AX16: 0.35 | AY16: 0 | AZ16: 0 | BA16: 0 | BB16: 0 | BC16: 0 | BD16: 0 | BE16: 0 | BF16: 0 | BG16: 57362.76124 | BH16: 0 | BI16: 0 | BJ16: -72480.00092 | BK16: 0 | BL16: 0 | BM16: 0 | BN16: 0 | BO16: 0 | BP16: 1361589.03 | BQ16: 0 | BR16: 0 | BS16: 0 | BT16: 0 | BU16: 0 | BV16: 0 | BW16: 0 | BX16: 0 | CI16: =SUMIF('Results Database'!$E:$E,'Aggregate Summary'!AJ$4,'Results Database'!$DI:$DI)
A17: 13 | B17: Gas Lift Well to remove liquid accumulation | C17: 920.1557336 | D17: 12281.80784 | E17: 35285.70118 | F17: 907299.3031 | G17: 18180732.73 | H17: 40863215.31 | I17: 0.001014169999 | J17: 0.0006755397607 | K17: 0.0008635077028 | L17: 0 | M17: 0 | O17: 8457.930158 | P17: 743.6271783 | Q17: 2329.188296 | R17: 11530.74563 | S17: 10237.28328 | T17: 92141.6236 | U17: 30676.45477 | V17: 80151.21505 | W17: 202969.2934 | X17: 202969.2934 | Y17: 906944.9903 | Z17: 51.21656064 | AA17: 303.0962647 | AC17: 932272.9497 | AD17: 16446837.11 | AE17: 801622.6738 | AF17: 0 | AG17: 0 | AH17: 0 | AJ17: 0 | AK17: 0 | AL17: 0 | AM17: 0.1 | AN17: 0.1 | AO17: 0 | AP17: 0 | AQ17: 0 | AR17: 0 | AS17: 0 | AT17: 0 | AU17: 0.05 | AV17: 0.05 | AW17: 0 | AX17: 0.5 | AY17: 0.3 | AZ17: 0 | BA17: 422.8965079 | BB17: 37.18135891 | BC17: 0 | BD17: 4607.08118 | BE17: 1533.822738 | BF17: 0 | BG17: 4228.965079 | BH17: 223.0881535 | BI17: 0 | BJ17: 46070.8118 | BK17: 9202.93643 | BL17: 0 | BM17: 15179.49388 | BN17: 2463.356711 | BO17: 0 | BP17: 151794.9388 | BQ17: 14780.14027 | BR17: 0 | BS17: 0 | BT17: 0 | BU17: 0 | BV17: 0 | BW17: 0 | BX17: 0 | CI17: =SUMIF('Results Database'!$E:$E,'Aggregate Summary'!AJ$4,'Results Database'!$DR:$DR)
A18: 14 | B18: Microturbines | C18: 5286.857019 | D18: 355705.1577 | E18: 487876.5832 | F18: 907299.3031 | G18: 18180732.73 | H18: 40863215.31 | I18: 0.00582702643 | J18: 0.0195649517 | K18: 0.01193926076 | L18: 0 | M18: 0 | O18: 19503.68396 | P18: 4109.360297 | Q18: 16486.71185 | R18: 40099.7561 | S18: 23408.7889 | T18: 1312227.842 | U18: 276481.9717 | V18: 1109242.867 | W18: 2697952.681 | X18: 2697952.681 | Y18: 906944.9903 | Z18: 51.21656064 | AA18: 303.0962647 | AC18: 932272.9497 | AD18: 16446837.11 | AE18: 801622.6738 | AF18: 0 | AG18: 0 | AH18: 0 | AJ18: 0 | AK18: 0 | AL18: 0 | AM18: 0.25 | AN18: 0.1 | AO18: 0 | AP18: 0 | AQ18: 0 | AR18: 0 | AS18: 0 | AT18: 0 | AU18: 0 | AV18: 0 | AW18: 0 | AX18: 0.5 | AY18: 0.2 | AZ18: 0 | BA18: 0 | BB18: 0 | BC18: 0 | BD18: 0 | BE18: 0 | BF18: 0 | BG18: 9751.841978 | BH18: 821.8720593 | BI18: 0 | BJ18: 656113.9212 | BK18: 55296.39434 | BL18: 0 | BM18: 0 | BN18: 0 | BO18: 0 | BP18: 899909.9706 | BQ18: 75843.19582 | BR18: 0 | BS18: 0 | BT18: 0 | BU18: 0 | BV18: 0 | BW18: 0 | BX18: 0 | CI18: =SUMIF('Results Database'!$E:$E,'Aggregate Summary'!AJ$4,'Results Database'!$EA:$EA)
A19: 15 | B19: Electric submersible pump (ESP) to unload wells | C19: 839.6821272 | D19: 10675.3019 | E19: 31667.35508 | F19: 907299.3031 | G19: 18180732.73 | H19: 40863215.31 | I19: 0.0009254742335 | J19: 0.0005871766588 | K19: 0.0007749599447 | L19: 0 | M19: 0 | O19: 8028.410698 | P19: 736.8211478 | Q19: 2324.083206 | R19: 11089.31505 | S19: 9796.960659 | T19: 91643.74995 | U19: 30218.53806 | V19: 80151.09647 | W19: 202013.3845 | X19: 202013.3845 | Y19: 906944.9903 | Z19: 51.21656064 | AA19: 303.0962647 | AC19: 932272.9497 | AD19: 16446837.11 | AE19: 801622.6738 | AF19: 0 | AG19: 0 | AH19: 0 | AJ19: 0 | AK19: 0 | AL19: 0 | AM19: 0.1 | AN19: 0.05 | AO19: 0 | AP19: 0 | AQ19: 0 | AR19: 0 | AS19: 0 | AT19: 0 | AU19: 0.05 | AV19: 0 | AW19: 0 | AX19: 0.3 | AY19: 0.2 | AZ19: 0 | BA19: 401.4205349 | BB19: 0 | BC19: 0 | BD19: 4582.187497 | BE19: 0 | BF19: 0 | BG19: 2408.523209 | BH19: 147.3642296 | BI19: 0 | BJ19: 27493.12498 | BK19: 6043.707613 | BL19: 0 | BM19: 14617.70087 | BN19: 0 | BO19: 0 | BP19: 87706.20522 | BQ19: 9727.813352 | BR19: 0 | BS19: 0 | BT19: 0 | BU19: 0 | BV19: 0 | BW19: 0 | BX19: 0 | CI19: =SUMIF('Results Database'!$E:$E,'Aggregate Summary'!AJ$4,'Results Database'!$EJ:$EJ)
A20: 16 | B20: Downhole Jetpump for Well Unloading | C20: 876.5231845 | D20: 12186.2288 | E20: 34099.30841 | F20: 907299.3031 | G20: 18180732.73 | H20: 40863215.31 | I20: 0.00096607942 | J20: 0.0006702825999 | K20: 0.0008344744328 | L20: 0 | M20: 0 | O20: 8028.410698 | P20: 736.8211478 | Q20: 2324.083206 | R20: 11089.31505 | S20: 9796.960659 | T20: 91643.74995 | U20: 30218.53806 | V20: 80151.09647 | W20: 202013.3845 | X20: 202013.3845 | Y20: 906944.9903 | Z20: 51.21656064 | AA20: 303.0962647 | AC20: 932272.9497 | AD20: 16446837.11 | AE20: 801622.6738 | AF20: 0 | AG20: 0 | AH20: 0 | AJ20: 0 | AK20: 0 | AL20: 0 | AM20: 0.1 | AN20: 0.1 | AO20: 0 | AP20: 0 | AQ20: 0 | AR20: 0 | AS20: 0 | AT20: 0 | AU20: 0.05 | AV20: 0.05 | AW20: 0 | AX20: 0.5 | AY20: 0.3 | AZ20: 0 | BA20: 401.4205349 | BB20: 36.84105739 | BC20: 0 | BD20: 4582.187497 | BE20: 1510.926903 | BF20: 0 | BG20: 4014.205349 | BH20: 221.0463443 | BI20: 0 | BJ20: 45821.87497 | BK20: 9065.561419 | BL20: 0 | BM20: 14617.70087 | BN20: 2431.953338 | BO20: 0 | BP20: 146177.0087 | BQ20: 14591.72003 | BR20: 0 | BS20: 0 | BT20: 0 | BU20: 0 | BV20: 0 | BW20: 0 | BX20: 0 | CI20: =SUMIF('Results Database'!$E:$E,'Aggregate Summary'!AJ$4,'Results Database'!$ES:$ES)
A21: 17 | B21: Monitor/repair leaking flare/vent control valves | C21: 47481.03503 | D21: 897860.3566 | E21: 2084886.232 | F21: 907299.3031 | G21: 18180732.73 | H21: 40863215.31 | I21: 0.05233227323 | J21: 0.04938526791 | K21: 0.05102110093 | L21: 901992.0426 | M21: 0 | O21: 72165.37326 | P21: 5974.015816 | Q21: 25409.99977 | R21: 103549.3889 | S21: 86936.22806 | T21: 1172981.201 | U21: 277245.1947 | V21: 1079203.864 | W21: 2529430.259 | X21: 2529430.259 | Y21: 906944.9903 | Z21: 51.21656064 | AA21: 303.0962647 | AC21: 932272.9497 | AD21: 16446837.11 | AE21: 801622.6738 | AF21: 0 | AG21: 0 | AH21: 0 | AJ21: 1421584.767 | AK21: 70058.83237 | AL21: 304665.6008 | AM21: 0.6 | AN21: 0.7 | AO21: 0 | AP21: 852950.86 | AQ21: 49041.18266 | AR21: 0 | AS21: 18 | AT21: 142 | AU21: 0.3 | AV21: 0.35 | AW21: 0 | AX21: 0.78 | AY21: 0.88 | AZ21: 0.06 | BA21: 21649.61198 | BB21: 2090.905536 | BC21: 0 | BD21: 351894.3602 | BE21: 97035.81814 | BF21: 0 | BG21: 56288.99115 | BH21: 5257.133918 | BI21: 1524.599986 | BJ21: 914925.3364 | BK21: 243975.7713 | BL21: 64752.23182 | BM21: 893134.6596 | BN21: 149308.4565 | BO21: 0 | BP21: 2322150.115 | BQ21: 375404.1193 | BR21: 102867.2315 | BS21: 426475.43 | BT21: 24520.59133 | BU21: 0 | BV21: 1108836.118 | BW21: 61651.77248 | BX21: 18279.93605 | CI21: =SUMIF('Results Database'!$E:$E,'Aggregate Summary'!AJ$4,'Results Database'!$FB:$FB)
A22: 18 | B22: Install redundant compression | C22: 48909.83754 | D22: 3140724.361 | E22: 4363470.3 | F22: 907299.3031 | G22: 18180732.73 | H22: 40863215.31 | I22: 0.05390705952 | J22: 0.172750153 | K22: 0.1067823534 | L22: 47405070.51 | M22: 0 | O22: 117270.9348 | P22: 186257.6754 | Q22: 46581.93079 | R22: 350110.5409 | S22: 154010.2345 | T22: 2765504.224 | U22: 12341657.11 | V22: 2208896.896 | W22: 17316058.23 | X22: 17316058.23 | Y22: 906944.9903 | Z22: 51.21656064 | AA22: 303.0962647 | AC22: 932272.9497 | AD22: 16446837.11 | AE22: 801622.6738 | AF22: 0 | AG22: 0 | AH22: 0 | AJ22: 0 | AK22: 189620282 | AL22: 0 | AM22: 0.02 | AN22: 0.25 | AO22: 0 | AP22: 0 | AQ22: 47405070.51 | AR22: 0 | AS22: 35 | AT22: 44 | AU22: 0 | AV22: 0.1 | AW22: 0 | AX22: 0.25 | AY22: 0.5 | AZ22: 0 | BA22: 0 | BB22: 18625.76754 | BC22: 0 | BD22: 0 | BE22: 1234165.711 | BF22: 0 | BG22: 29317.7337 | BH22: 93128.83769 | BI22: 0 | BJ22: 691376.056 | BK22: 6170828.553 | BL22: 0 | BM22: 0 | BN22: 1699809.899 | BO22: 0 | BP22: 1424319.398 | BQ22: 8499049.496 | BR22: 0 | BS22: 0 | BT22: 18962028.2 | BU22: 0 | BV22: 0 | BW22: 94810141.01 | BX22: 0 | CI22: =SUMIF('Results Database'!$E:$E,'Aggregate Summary'!AJ$4,'Results Database'!$FK:$FK)
A23: 19 | B23: Limit Monthly Vent Volume | C23: 2103.452324 | D23: 48.86020778 | E23: 52635.1683 | F23: 868370.1174 | G23: 17427211.65 | H23: 39136464.58 | I23: 0.002422299296 | J23: 2.803673288e-06 | K23: 0.001344913723 | L23: 1816420.92 | M23: 53188.60278 | O23: 0 | P23: 2103.452324 | Q23: 0 | R23: 2103.452324 | S23: 2103.452324 | T23: 0 | U23: 48.86020778 | V23: 0 | W23: 48.86020778 | X23: 48.86020778 | Y23: 868015.8046 | Z23: 51.21656064 | AA23: 303.0962647 | AC23: 899965.0649 | AD23: 15749549.44 | AE23: 777697.1414 | AF23: 0 | AG23: 0 | AH23: 53188.60278 | AJ23: 0 | AK23: 1816420.92 | AL23: 0 | AM23: 1 | AN23: 1 | AO23: 1 | AP23: 0 | AQ23: 1816420.92 | AR23: 0 | AS23: 1 | AT23: N/A | AU23: 1 | AV23: 1 | AW23: 1 | AX23: 1 | AY23: 1 | AZ23: 1 | BA23: 0 | BB23: 2103.452324 | BC23: 0 | BD23: 0 | BE23: 48.86020778 | BF23: 0 | BG23: 0 | BH23: 2103.452324 | BI23: 0 | BJ23: 0 | BK23: 48.86020778 | BL23: 0 | BM23: 0 | BN23: 52635.1683 | BO23: 0 | BP23: 0 | BQ23: 52635.1683 | BR23: 0 | BS23: 0 | BT23: 1816420.92 | BU23: 0 | BV23: 0 | BW23: 1816420.92 | BX23: 0 | CI23: =SUMIF('Results Database'!$E:$E,'Aggregate Summary'!AJ$4,'Results Database'!$FT:$FT)
B26: =O4 -> fixed | C26: 1085
B27: =P4 -> floater | C27: 121
B28: =Q4 -> single well | C28: 827
C29: =SUM(C26:C28) -> 2033
B31: Alternate Count | C31: 1784 | AS31: 681
AS32: 0
B34: Note: Adjusted means after applying percentages
B35: Note: Aggregate is before applying percentage adjustments
A37: Bubble Charts
C38: NPV
D39: Equivalent CO2 Reduced | E39: Number of Complexes with + NPV
B40: =B5 -> Reroute Gas Pig Trap Vent | C40: =L5 -> 0 | D40: =E5 -> 17178.16356 | E40: =AS5 -> 0 | AS40: 0
B41: =B6 -> Limit Monthly Flare Volume | C41: =L6 -> 1154160328 | D41: =E6 -> 10692917.42 | E41: =AS6 -> 113 | AS41: 539
B42: Compressors Off - Maintain Pressure | C42: 12780181.63 | D42: 201442.5327 | E42: 648
B43: Compressors Off- Blowdown to fuel | C43: 0 | D43: 27142.08491 | E43: 0
B44: Compressor Static Seals | C44: 10814521.02 | D44: 331191.2189 | E44: 561
B45: Compressors Off - Install ejector | C45: 0 | D45: 38686.1179 | E45: 0
B46: Using Pipeline Pump-Down Techniques to Lower Gas Line Pressure before Maintenance | C46: 0 | D46: 5519.027191 | E46: 0
B47: Use Inert Gases and Pigs to Perform Pipeline Purges | C47: 0 | D47: 5519.027191 | E47: 0
B48: Reduced Emission Completions | C48: 84176977.26 | D48: 1174107.074 | E48: 217
B49: Foaming agents to Remove Accumulated Fluid in Gas wells | C49: 2099297.163 | D49: 64342.74045 | E49: 609 | AS49: 586
B50: Velocity tubing to Remove Accumulated Fluid in Gas Wells | C50: 0 | D50: 31440.06885 | E50: 0 | AS50: 0
B51: Install Flares | C51: 0 | D51: 778050.8743 | E51: 0
B52: Gas Lift Well to remove liquid accumulation | C52: 0 | D52: 35285.70118 | E52: 0
B53: Microturbines | C53: 0 | D53: 487876.5832 | E53: 0
B54: Electric submersible pump (ESP) to unload wells | C54: 0 | D54: 31667.35508 | E54: 0
B55: Downhole Jetpump for Well Unloading | C55: 0 | D55: 34099.30841 | E55: 0
B56: Monitor/repair leaking flare/vent control valves | C56: 901992.0426 | D56: 2084886.232 | E56: 18
B57: Install redundant compression | C57: 47405070.51 | D57: 4363470.3 | E57: 35
B58: Limit Monthly Vent Volume | C58: 1816420.92 | D58: 52635.1683 | E58: 1 | AS58: 43
AS59: 0
AS67: 0
AS68: 0
AS76: 0
AS77: 161
AS85: 214
AS86: 622
AS94: 665
AS95: 0
AS103: 0
AS104: 0
AS112: 4
AS113: 486
AS121: 569
AS122: 0
AS130: 0
AS131: 0
AS139: 0
AS140: 0
AS148: 0
AS149: 0
AS157: 174
AS158: 0
AS166: 32
AS167: 1
AS175: 0

Sheet Flat Gas Price
A1: FINAL AGREGATE SUMMARY | E1: =CH4_factor -> 25 | H1: =E1 -> 25
C2: Aplicabiity Adjusted | D2: Aplicabiity Adjusted | E2: Aplicabiity Adjusted | F2: Adjusted | G2: Adjusted | H2: Adjusted | I2: Percent | J2: Percent | K2: Percent | L2: Adjusted | M2: Adjusted | O2: Aggregate | P2: Aggregate | Q2: Aggregate | R2: Aggregate | S2: Aggregate | T2: Aggregate | U2: Aggregate | V2: Aggregate | W2: Aggregate | X2: Aggregate | Y2: Aggregate | Z2: Aggregate | AA2: Aggregate | AB2: Aggregate | AC2: Aggregate | AD2: Aggregate | AE2: Aggregate | AF2: Oil | AG2: Oil | AH2: Oil
C3: Reduction | D3: Reduction | E3: Reduct Equivalent | F3: Existing | G3: Existing | H3: Equivalent CO2 | I3: Reduction | J3: Reduction | K3: Reduction | L3: NPV | M3: Oil | O3: Reduced Methane | P3: Reduced Methane | Q3: Reduced Methane | R3: Reduced Methane | S3: Methane | T3: Reduced CO2 | U3: Reduced CO2 | V3: Reduced CO2 | W3: Reduced CO2 | X3: CO2 | Y3: Exist Methane | Z3: Exist Methane | AA3: Exist Methane | AB3: Exist CO2 | AC3: Exist CO2 | AD3: Exist CO2 | AE3: Exist CO2 | AF3: Deferred | AG3: Deferred | AH3: Deferred | AJ3: Total NPV b/4 Ratios | AM3: Percent Applicable | AP3: Final NPV - Expected Value Case | AS3: # of Complexes | AT3: # of Complexes | AU3: Percent Applicable 10% Case | AX3: Percent Applicable 90% Case | BA3: Final NPV - 10% Case | BD3: Final NPV - 90% | BG3: Final Methane - 10% Case | BJ3: Final CO2 - 10% Case | BM3: Final Methane - 90% | BP3: Final CO2 - 90% | BS3: Final CO2 Equiv - 10% Case | BV3: Final CO2 Equiv - 90% Case
C4: Methane | D4: CO2 | E4: Total CO2 | F4: Methane | G4: CO2 | H4: Total | I4: Methane | J4: CO2 | K4: Equiv CO2 | L4: Savings | M4: Deferred | O4: =AJ4 -> fixed | P4: =AK4 -> floater | Q4: =AL4 -> single well | R4: Sum | S4: Check | T4: =AJ4 -> fixed | U4: =AK4 -> floater | V4: =AL4 -> single well | W4: Sum | X4: Check | Y4: =T4 -> fixed | Z4: =U4 -> floater | AA4: =V4 -> single well | AB4: =W4 -> Sum | AC4: =Y4 -> fixed | AD4: =Z4 -> floater | AE4: =AA4 -> single well | AF4: =AC4 -> fixed | AG4: =AD4 -> floater | AH4: =AE4 -> single well | AJ4: fixed | AK4: floater | AL4: single well | AM4: =AJ4 -> fixed | AN4: floater | AO4: single well | AP4: fixed | AQ4: floater | AR4: single well | AS4: > 0 NPV | AT4: > 0 NPV @ $49 SCOC | AU4: =AM4 -> fixed | AV4: =AN4 -> floater | AW4: single well | AX4: =AP4 -> fixed | AY4: =AQ4 -> floater | AZ4: single well | BA4: =AX4 -> fixed | BB4: floater | BC4: single well | BD4: fixed | BE4: floater | BF4: single well | BG4: fixed | BH4: floater | BI4: single well | BJ4: fixed | BK4: floater | BL4: single well | BM4: =BG4 -> fixed | BN4: floater | BO4: single well | BP4: fixed | BQ4: floater | BR4: single well | BS4: =BP4 -> fixed | BT4: floater | BU4: single well | BV4: fixed | BW4: floater | BX4: single well
A5: 1 | B5: Reroute Gas Pig Trap Vent | C5: 665.2824671 | D5: 546.1018783 | E5: 17178.16356 | F5: 907299.3031 | G5: 18180732.73 | H5: 40863215.31 | I5: 0.0007332557898 | J5: 3.003739654e-05 | K5: 0.0004203820827 | L5: -49323711.45 | M5: 0 | O5: 1146.189777 | P5: 229.7850627 | Q5: 776.8923547 | R5: 2152.867194 | S5: 1531.900418 | T5: 1250.017434 | U5: 51.21656064 | V5: 303.0962647 | W5: 1604.33026 | X5: 1604.33026 | Y5: 906944.9903 | Z5: 51.21656064 | AA5: 303.0962647 | AC5: 932272.9497 | AD5: 16446837.11 | AE5: 801622.6738 | AF5: 0 | AG5: 0 | AH5: 0 | AJ5: -93437886.97 | AK5: -13276174.07 | AL5: -61436252.87 | AM5: 0.4 | AN5: 0.9 | AO5: 0 | AP5: -37375154.79 | AQ5: -11948556.66 | AR5: 0 | AS5: 0 | AT5: 0 | AU5: 0.1 | AV5: 0.3 | AW5: 0 | AX5: 0.5 | AY5: 1 | AZ5: 0 | BA5: -3737515.479 | BB5: -3584566.998 | BC5: 0 | BD5: -18687577.39 | BE5: -11948556.66 | BF5: 0 | BG5: 114.6189777 | BH5: 68.9355188 | BI5: 0 | BJ5: 125.0017434 | BK5: 15.36496819 | BL5: 0 | BM5: 573.0948884 | BN5: 229.7850627 | BO5: 0 | BP5: 625.0087172 | BQ5: 51.21656064 | BR5: 0 | BS5: 2990.476186 | BT5: 1738.752938 | BU5: 0 | BV5: 14952.38093 | BW5: 5795.843127 | BX5: 0 | CD5: =SUMIF('[161104-Financial Analysis_v11(flat Real sens).xlsm]Results Database'!$E:$E,'Flat Gas Price'!AJ$4,'[161104-Financial Analysis_v11(flat Real sens).xlsm]Results Database'!$N:$N)
A6: 2 | B6: Limit Monthly Flare Volume | C6: 115873.4144 | D6: 7796082.06 | E6: 10692917.42 | F6: 868370.1174 | G6: 17427211.65 | H6: 39136464.58 | I6: 0.1334378189 | J6: 0.4473510862 | K6: 0.2732213432 | L6: -19314026.95 | M6: 250369.8545 | O6: 2373.801932 | P6: 127956.9709 | Q6: 4263.955938 | R6: 134594.7288 | S6: 17955.14521 | T6: 159711.8265 | U6: 8609076.124 | V6: 286883.3248 | W6: 9055671.276 | X6: 9055671.276 | Y6: 868015.8046 | Z6: 51.21656064 | AA6: 303.0962647 | AC6: 899965.0649 | AD6: 15749549.44 | AE6: 777697.1414 | AF6: 29120.37343 | AG6: 268481.9361 | AH6: 40334726.66 | AJ6: 5174430.96 | AK6: -23184840.26 | AL6: 13565371.54 | AM6: 0.3 | AN6: 0.9 | AO6: 0 | AP6: 1552329.288 | AQ6: -20866356.24 | AR6: 0 | AS6: 88 | AT6: N/A | AU6: 0.3 | AV6: 0.9 | AW6: 0 | AX6: 1 | AY6: 1 | AZ6: 1 | BA6: 465698.7864 | BB6: -18779720.61 | BC6: 0 | BD6: 1552329.288 | BE6: -20866356.24 | BF6: 0 | BG6: 712.1405796 | BH6: 115161.2738 | BI6: 0 | BJ6: 47913.54794 | BK6: 7748168.512 | BL6: 0 | BM6: 2373.801932 | BN6: 127956.9709 | BO6: 4263.955938 | BP6: 159711.8265 | BQ6: 8609076.124 | BR6: 286883.3248 | BS6: 65717.06243 | BT6: 10627200.36 | BU6: 0 | BV6: 219056.8748 | BW6: 11808000.4 | BX6: 393482.2233 | CD6: =SUMIF('[161104-Financial Analysis_v11(flat Real sens).xlsm]Results Database'!$E:$E,'Flat Gas Price'!AJ$4,'[161104-Financial Analysis_v11(flat Real sens).xlsm]Results Database'!$W:$W)
A7: 3 | B7: Compressors Off - Maintain Pressure | C7: 4383.500924 | D7: 91855.00959 | E7: 201442.5327 | F7: 907299.3031 | G7: 18180732.73 | H7: 40863215.31 | I7: 0.004831372524 | J7: 0.005052327151 | K7: 0.004929678959 | L7: 6270278.317 | M7: 0 | O7: 74952.59837 | P7: 6358.710052 | Q7: 26761.23339 | R7: 108072.5418 | S7: 90420.1431 | T7: 1247963.82 | U7: 294568.1857 | V7: 1147811.798 | W7: 2690343.804 | X7: 2690343.804 | Y7: 906944.9903 | Z7: 51.21656064 | AA7: 303.0962647 | AC7: 932272.9497 | AD7: 16446837.11 | AE7: 801622.6738 | AF7: 0 | AG7: 0 | AH7: 0 | AJ7: 91392511.97 | AK7: 17006527.19 | AL7: 68443402.98 | AM7: 0.05 | AN7: 0.1 | AO7: 0 | AP7: 4569625.598 | AQ7: 1700652.719 | AR7: 0 | AS7: 646 | AT7: 669 | AU7: 0 | AV7: 0 | AW7: 0 | AX7: 0.28 | AY7: 0.5 | AZ7: 0 | BA7: 0 | BB7: 0 | BC7: 0 | BD7: 1279495.168 | BE7: 850326.3594 | BF7: 0 | BG7: 0 | BH7: 0 | BI7: 0 | BJ7: 0 | BK7: 0 | BL7: 0 | BM7: 20986.72754 | BN7: 3179.355026 | BO7: 0 | BP7: 349429.8697 | BQ7: 147284.0928 | BR7: 0 | BS7: 0 | BT7: 0 | BU7: 0 | BV7: 874098.0583 | BW7: 226767.9685 | BX7: 0 | CD7: =SUMIF('[161104-Financial Analysis_v11(flat Real sens).xlsm]Results Database'!$E:$E,'Flat Gas Price'!AJ$4,'[161104-Financial Analysis_v11(flat Real sens).xlsm]Results Database'!$AF:$AF)
A8: 4 | B8: Compressors Off- Blowdown to fuel | C8: 760.8835662 | D8: 8119.995755 | E8: 27142.08491 | F8: 907299.3031 | G8: 18180732.73 | H8: 40863215.31 | I8: 0.0008386246562 | J8: 0.0004466264301 | K8: 0.0006642180432 | L8: -53277428.23 | M8: 0 | O8: 1290.866959 | P8: 51.9456519 | Q8: 307.6114144 | R8: 1650.424025 | S8: 1503.96553 | T8: 10491.53267 | U8: 2397.604887 | V8: 9552.466318 | W8: 22441.60387 | X8: 22441.60387 | Y8: 906944.9903 | Z8: 51.21656064 | AA8: 303.0962647 | AC8: 932272.9497 | AD8: 16446837.11 | AE8: 801622.6738 | AF8: 0 | AG8: 0 | AH8: 0 | AJ8: -76178789.46 | AK8: -11611320.44 | AL8: -44951098.73 | AM8: 0.55 | AN8: 0.98 | AO8: 0 | AP8: -41898334.2 | AQ8: -11379094.03 | AR8: 0 | AS8: 0 | AT8: 0 | AU8: 0.56 | AV8: 0.98 | AW8: 0 | AX8: 0.56 | AY8: 1 | AZ8: 0 | BA8: -23463067.15 | BB8: -11151512.15 | BC8: 0 | BD8: -23463067.15 | BE8: -11379094.03 | BF8: 0 | BG8: 722.8854969 | BH8: 50.90673886 | BI8: 0 | BJ8: 5875.258293 | BK8: 2349.652789 | BL8: 0 | BM8: 722.8854969 | BN8: 51.9456519 | BO8: 0 | BP8: 5875.258293 | BQ8: 2397.604887 | BR8: 0 | BS8: 23947.39571 | BT8: 3622.321261 | BU8: 0 | BV8: 23947.39571 | BW8: 3696.246185 | BX8: 0 | CD8: =SUMIF('[161104-Financial Analysis_v11(flat Real sens).xlsm]Results Database'!$E:$E,'Flat Gas Price'!AJ$4,'[161104-Financial Analysis_v11(flat Real sens).xlsm]Results Database'!$AO:$AO)
A9: 5 | B9: Compressor Static Seals | C9: 8946.963599 | D9: 107517.129 | E9: 331191.2189 | F9: 907299.3031 | G9: 18180732.73 | H9: 40863215.31 | I9: 0.009861093873 | J9: 0.005913795146 | K9: 0.008104874187 | L9: -615254.6316 | M9: 0 | O9: 35004.14725 | P9: 1959.267861 | Q9: 10057.45615 | R9: 47020.87126 | S9: 41474.80127 | T9: 393693.2715 | U9: 90938.11102 | V9: 361416.3464 | W9: 846047.7289 | X9: 846047.7289 | Y9: 906944.9903 | Z9: 51.21656064 | AA9: 303.0962647 | AC9: 932272.9497 | AD9: 16446837.11 | AE9: 801622.6738 | AF9: 0 | AG9: 0 | AH9: 0 | AJ9: -2425712.374 | AK9: -88265.38094 | AL9: 1380241.051 | AM9: 0.25 | AN9: 0.1 | AO9: 0 | AP9: -606428.0936 | AQ9: -8826.538094 | AR9: 0 | AS9: 492 | AT9: 583 | AU9: 0.1 | AV9: 0.05 | AW9: 0 | AX9: 0.56 | AY9: 0.25 | AZ9: 0 | BA9: -60642.80936 | BB9: -441.3269047 | BC9: 0 | BD9: -339599.7324 | BE9: -2206.634523 | BF9: 0 | BG9: 3500.414725 | BH9: 97.96339304 | BI9: 0 | BJ9: 39369.32715 | BK9: 4546.905551 | BL9: 0 | BM9: 19602.32246 | BN9: 489.8169652 | BO9: 0 | BP9: 220468.232 | BQ9: 22734.52776 | BR9: 0 | BS9: 126879.6953 | BT9: 6995.990377 | BU9: 0 | BV9: 710526.2936 | BW9: 34979.95189 | BX9: 0 | CD9: =SUMIF('[161104-Financial Analysis_v11(flat Real sens).xlsm]Results Database'!$E:$E,'Flat Gas Price'!AJ$4,'[161104-Financial Analysis_v11(flat Real sens).xlsm]Results Database'!$AX:$AX)
A10: 6 | B10: Compressors Off - Install ejector | C10: 881.7733632 | D10: 16641.78382 | E10: 38686.1179 | F10: 907299.3031 | G10: 18180732.73 | H10: 40863215.31 | I10: 0.0009718660206 | J10: 0.0009153527565 | K10: 0.0009467223175 | L10: -8477463.631 | M10: 0 | O10: 13016.38684 | P10: 577.3850527 | Q10: 3305.394595 | R10: 16899.16649 | S10: 15242.4283 | T10: 118011.9149 | U10: 26852.97019 | V10: 108104.0858 | W10: 252968.9708 | X10: 252968.9708 | Y10: 906944.9903 | Z10: 51.21656064 | AA10: 303.0962647 | AC10: 932272.9497 | AD10: 16446837.11 | AE10: 801622.6738 | AF10: 0 | AG10: 0 | AH10: 0 | AJ10: -81344729.19 | AK10: -11025567.93 | AL10: -51567765.13 | AM10: 0.05 | AN10: 0.4 | AO10: 0 | AP10: -4067236.459 | AQ10: -4410227.172 | AR10: 0 | AS10: 0 | AT10: 0 | AU10: 0 | AV10: 0 | AW10: 0 | AX10: 0.1 | AY10: 0.5 | AZ10: 0 | BA10: 0 | BB10: 0 | BC10: 0 | BD10: -406723.6459 | BE10: -2205113.586 | BF10: 0 | BG10: 0 | BH10: 0 | BI10: 0 | BJ10: 0 | BK10: 0 | BL10: 0 | BM10: 1301.638684 | BN10: 288.6925264 | BO10: 0 | BP10: 11801.19149 | BQ10: 13426.48509 | BR10: 0 | BS10: 0 | BT10: 0 | BU10: 0 | BV10: 44342.15859 | BW10: 20643.79825 | BX10: 0 | CD10: =SUMIF('[161104-Financial Analysis_v11(flat Real sens).xlsm]Results Database'!$E:$E,'Flat Gas Price'!AJ$4,'[161104-Financial Analysis_v11(flat Real sens).xlsm]Results Database'!$BG:$BG)
A11: 7 | B11: Using Pipeline Pump-Down Techniques to Lower Gas Line Pressure before Maintenance | C11: 144.9679204 | D11: 1894.829182 | E11: 5519.027191 | F11: 907299.3031 | G11: 18180732.73 | H11: 40863215.31 | I11: 0.0001597796007 | J11: 0.0001042218271 | K11: 0.0001350610115 | L11: -4000122.89 | M11: 0 | O11: 622.6152579 | P11: 25.79723772 | Q11: 150.9249985 | R11: 799.337494 | S11: 725.4651558 | T11: 5274.231381 | U11: 1198.010594 | V11: 4819.552179 | W11: 11291.79416 | X11: 11291.79416 | Y11: 906944.9903 | Z11: 51.21656064 | AA11: 303.0962647 | AC11: 932272.9497 | AD11: 16446837.11 | AE11: 801622.6738 | AF11: 0 | AG11: 0 | AH11: 0 | AJ11: -12389407.48 | AK11: -2231044.529 | AL11: -8134382.578 | AM11: 0.2 | AN11: 0.5 | AO11: 0.05 | AP11: -2477881.497 | AQ11: -1115522.264 | AR11: -406719.1289 | AS11: 0 | AT11: 0 | AU11: 0 | AV11: 0.1 | AW11: 0 | AX11: 0.47 | AY11: 0.9 | AZ11: 0.15 | BA11: 0 | BB11: -111552.2264 | BC11: 0 | BD11: -1164604.303 | BE11: -1003970.038 | BF11: -61007.86933 | BG11: 0 | BH11: 2.579723772 | BI11: 0 | BJ11: 0 | BK11: 119.8010594 | BL11: 0 | BM11: 292.6291712 | BN11: 23.21751395 | BO11: 22.63874977 | BP11: 2478.888749 | BQ11: 1078.209535 | BR11: 722.9328269 | BS11: 0 | BT11: 184.2941537 | BU11: 0 | BV11: 9794.618029 | BW11: 1658.647384 | BX11: 1288.901571 | CD11: =SUMIF('[161104-Financial Analysis_v11(flat Real sens).xlsm]Results Database'!$E:$E,'Flat Gas Price'!AJ$4,'[161104-Financial Analysis_v11(flat Real sens).xlsm]Results Database'!$BP:$BP)
A12: 8 | B12: Use Inert Gases and Pigs to Perform Pipeline Purges | C12: 144.9679204 | D12: 1894.829182 | E12: 5519.027191 | F12: 907299.3031 | G12: 18180732.73 | H12: 40863215.31 | I12: 0.0001597796007 | J12: 0.0001042218271 | K12: 0.0001350610115 | L12: -6767796.928 | M12: 0 | O12: 622.6152579 | P12: 25.79723772 | Q12: 150.9249985 | R12: 799.337494 | S12: 725.4651558 | T12: 5274.231381 | U12: 1198.010594 | V12: 4819.552179 | W12: 11291.79416 | X12: 11291.79416 | Y12: 906944.9903 | Z12: 51.21656064 | AA12: 303.0962647 | AC12: 932272.9497 | AD12: 16446837.11 | AE12: 801622.6738 | AF12: 0 | AG12: 0 | AH12: 0 | AJ12: -20984115.89 | AK12: -3765733.404 | AL12: -13762140.95 | AM12: 0.2 | AN12: 0.5 | AO12: 0.05 | AP12: -4196823.179 | AQ12: -1882866.702 | AR12: -688107.0476 | AS12: 0 | AT12: 0 | AU12: 0 | AV12: 0.1 | AW12: 0 | AX12: 0.47 | AY12: 0.9 | AZ12: 0.15 | BA12: 0 | BB12: -188286.6702 | BC12: 0 | BD12: -1972506.894 | BE12: -1694580.032 | BF12: -103216.0571 | BG12: 0 | BH12: 2.579723772 | BI12: 0 | BJ12: 0 | BK12: 119.8010594 | BL12: 0 | BM12: 292.6291712 | BN12: 23.21751395 | BO12: 22.63874977 | BP12: 2478.888749 | BQ12: 1078.209535 | BR12: 722.9328269 | BS12: 0 | BT12: 184.2941537 | BU12: 0 | BV12: 9794.618029 | BW12: 1658.647384 | BX12: 1288.901571 | CD12: =SUMIF('[161104-Financial Analysis_v11(flat Real sens).xlsm]Results Database'!$E:$E,'Flat Gas Price'!AJ$4,'[161104-Financial Analysis_v11(flat Real sens).xlsm]Results Database'!$BY:$BY)
A13: 9 | B13: Reduced Emission Completions | C13: 15489.61901 | D13: 786866.5985 | E13: 1174107.074 | F13: 907299.3031 | G13: 18180732.73 | H13: 40863215.31 | I13: 0.01707222628 | J13: 0.04328024675 | K13: 0.028732616 | L13: 18422274.48 | M13: 0 | O13: 21317.20625 | P13: 20320.63489 | Q13: 8177.821625 | R13: 49815.66277 | S13: 26951.69499 | T13: 483903.3493 | U13: 1331781.522 | V13: 384615.8125 | W13: 2200300.684 | X13: 2200300.684 | Y13: 906944.9903 | Z13: 51.21656064 | AA13: 303.0962647 | AC13: 932272.9497 | AD13: 16446837.11 | AE13: 801622.6738 | AF13: 0 | AG13: 0 | AH13: 0 | AJ13: -52281503.71 | AK13: 62985300.81 | AL13: -30628390.18 | AM13: 0.25 | AN13: 0.5 | AO13: 0 | AP13: -13070375.93 | AQ13: 31492650.41 | AR13: 0 | AS13: 121 | AT13: 230 | AU13: 0 | AV13: 0.1 | AW13: 0 | AX13: 0.4 | AY13: 0.8 | AZ13: 0.1 | BA13: 0 | BB13: 3149265.041 | BC13: 0 | BD13: -5228150.371 | BE13: 25194120.32 | BF13: 0 | BG13: 0 | BH13: 2032.063489 | BI13: 0 | BJ13: 0 | BK13: 133178.1522 | BL13: 0 | BM13: 8526.882501 | BN13: 16256.50791 | BO13: 817.7821625 | BP13: 193561.3397 | BQ13: 1065425.218 | BR13: 38461.58125 | BS13: 0 | BT13: 183979.7395 | BU13: 0 | BV13: 406733.4023 | BW13: 1471837.916 | BX13: 58906.13531 | CD13: =SUMIF('[161104-Financial Analysis_v11(flat Real sens).xlsm]Results Database'!$E:$E,'Flat Gas Price'!AJ$4,'[161104-Financial Analysis_v11(flat Real sens).xlsm]Results Database'!$CH:$CH)
A14: 10 | B14: Foaming agents to Remove Accumulated Fluid in Gas wells | C14: 1577.515787 | D14: 24904.84578 | E14: 64342.74045 | F14: 907299.3031 | G14: 18180732.73 | H14: 40863215.31 | I14: 0.001738693925 | J14: 0.001369848298 | K14: 0.001574588293 | L14: 928359.7212 | M14: 0 | O14: 8467.389061 | P14: 743.6271783 | Q14: 2330.447099 | R14: 11541.46334 | S14: 10248.00099 | T14: 92147.17251 | U14: 30676.45477 | V14: 80151.24429 | W14: 202974.8716 | X14: 202974.8716 | Y14: 906944.9903 | Z14: 51.21656064 | AA14: 303.0962647 | AC14: 932272.9497 | AD14: 16446837.11 | AE14: 801622.6738 | AF14: 0 | AG14: 0 | AH14: 0 | AJ14: 3869226.672 | AK14: 1079915.163 | AL14: 2399842.041 | AM14: 0.15 | AN14: 0.1 | AO14: 0.1 | AP14: 580384.0008 | AQ14: 107991.5163 | AR14: 239984.2041 | AS14: 603 | AT14: 656 | AU14: 0.05 | AV14: 0 | AW14: 0.05 | AX14: 0.6 | AY14: 0.3 | AZ14: 0.15 | BA14: 29019.20004 | BB14: 0 | BC14: 11999.2102 | BD14: 348230.4005 | BE14: 32397.4549 | BF14: 35997.63061 | BG14: 423.369453 | BH14: 0 | BI14: 116.5223549 | BJ14: 4607.358625 | BK14: 0 | BL14: 4007.562215 | BM14: 5080.433436 | BN14: 223.0881535 | BO14: 349.5670648 | BP14: 55288.3035 | BQ14: 9202.93643 | BR14: 12022.68664 | BS14: 15191.59495 | BT14: 0 | BU14: 6920.621088 | BV14: 182299.1394 | BW14: 14780.14027 | BX14: 20761.86326 | CD14: =SUMIF('[161104-Financial Analysis_v11(flat Real sens).xlsm]Results Database'!$E:$E,'Flat Gas Price'!AJ$4,'[161104-Financial Analysis_v11(flat Real sens).xlsm]Results Database'!$CQ:$CQ)
A15: 11 | B15: Velocity tubing to Remove Accumulated Fluid in Gas Wells | C15: 691.4145602 | D15: 14154.70484 | E15: 31440.06885 | F15: 907299.3031 | G15: 18180732.73 | H15: 40863215.31 | I15: 0.0007620578543 | J15: 0.0007785552462 | K15: 0.0007693978218 | L15: -1016739633 | M15: 0 | O15: 8431.461011 | P15: 743.4688985 | Q15: 2326.680647 | R15: 11501.61056 | S15: 10208.30649 | T15: 92125.97775 | U15: 30665.80554 | V15: 80151.1568 | W15: 202942.9401 | X15: 202942.9401 | Y15: 906944.9903 | Z15: 51.21656064 | AA15: 303.0962647 | AC15: 932272.9497 | AD15: 16446837.11 | AE15: 801622.6738 | AF15: 0 | AG15: 0 | AH15: 0 | AJ15: -8516129789 | AK15: -1164604969 | AL15: -5327028948 | AM15: 0.05 | AN15: 0.05 | AO15: 0.1 | AP15: -425806489.5 | AQ15: -58230248.47 | AR15: -532702894.8 | AS15: 0 | AT15: 0 | AU15: 0 | AV15: 0 | AW15: 0 | AX15: 0.25 | AY15: 0.15 | AZ15: 0 | BA15: 0 | BB15: 0 | BC15: 0 | BD15: -106451622.4 | BE15: -8734537.271 | BF15: 0 | BG15: 0 | BH15: 0 | BI15: 0 | BJ15: 0 | BK15: 0 | BL15: 0 | BM15: 2107.865253 | BN15: 111.5203348 | BO15: 0 | BP15: 23031.49444 | BQ15: 4599.870831 | BR15: 0 | BS15: 0 | BT15: 0 | BU15: 0 | BV15: 75728.12576 | BW15: 7387.879201 | BX15: 0 | CD15: =SUMIF('[161104-Financial Analysis_v11(flat Real sens).xlsm]Results Database'!$E:$E,'Flat Gas Price'!AJ$4,'[161104-Financial Analysis_v11(flat Real sens).xlsm]Results Database'!$CZ:$CZ)
A16: 12 | B16: Install Flares | C16: 32778.72071 | D16: -41417.14338 | E16: 778050.8743 | F16: 907299.3031 | G16: 18180732.73 | H16: 40863215.31 | I16: 0.03612779222 | J16: -0.002278078887 | K16: 0.01904037331 | L16: -378685075.9 | M16: 0 | O16: 163893.6035 | P16: 43383.52799 | Q16: 77995.54981 | R16: 285272.6813 | S16: 190421.1111 | T16: -207085.7169 | U16: -8141.946946 | V16: -38364.96883 | W16: -253592.6327 | X16: -253592.6327 | Y16: 906944.9903 | Z16: 51.21656064 | AA16: 303.0962647 | AC16: 932272.9497 | AD16: 16446837.11 | AE16: 801622.6738 | AF16: 0 | AG16: 0 | AH16: 0 | AJ16: -1893425380 | AK16: -255072277.7 | AL16: -1203148893 | AM16: 0.2 | AN16: 0 | AO16: 0 | AP16: -378685075.9 | AQ16: 0 | AR16: 0 | AS16: 0 | AT16: 4 | AU16: 0 | AV16: 0 | AW16: 0 | AX16: 0.35 | AY16: 0 | AZ16: 0 | BA16: 0 | BB16: 0 | BC16: 0 | BD16: -132539776.6 | BE16: 0 | BF16: 0 | BG16: 0 | BH16: 0 | BI16: 0 | BJ16: 0 | BK16: 0 | BL16: 0 | BM16: 57362.76124 | BN16: 0 | BO16: 0 | BP16: -72480.00092 | BQ16: 0 | BR16: 0 | BS16: 0 | BT16: 0 | BU16: 0 | BV16: 1361589.03 | BW16: 0 | BX16: 0 | CD16: =SUMIF('[161104-Financial Analysis_v11(flat Real sens).xlsm]Results Database'!$E:$E,'Flat Gas Price'!AJ$4,'[161104-Financial Analysis_v11(flat Real sens).xlsm]Results Database'!$DI:$DI)
A17: 13 | B17: Gas Lift Well to remove liquid accumulation | C17: 920.1557336 | D17: 12281.80784 | E17: 35285.70118 | F17: 907299.3031 | G17: 18180732.73 | H17: 40863215.31 | I17: 0.001014169999 | J17: 0.0006755397607 | K17: 0.0008635077028 | L17: -9049844.03 | M17: 0 | O17: 8457.930158 | P17: 743.6271783 | Q17: 2329.188296 | R17: 11530.74563 | S17: 10237.28328 | T17: 92141.6236 | U17: 30676.45477 | V17: 80151.21505 | W17: 202969.2934 | X17: 202969.2934 | Y17: 906944.9903 | Z17: 51.21656064 | AA17: 303.0962647 | AC17: 932272.9497 | AD17: 16446837.11 | AE17: 801622.6738 | AF17: 0 | AG17: 0 | AH17: 0 | AJ17: -80299106.98 | AK17: -10199333.32 | AL17: -50079887.83 | AM17: 0.1 | AN17: 0.1 | AO17: 0 | AP17: -8029910.698 | AQ17: -1019933.332 | AR17: 0 | AS17: 0 | AT17: 0 | AU17: 0.05 | AV17: 0.05 | AW17: 0 | AX17: 0.5 | AY17: 0.3 | AZ17: 0 | BA17: -401495.5349 | BB17: -50996.66658 | BC17: 0 | BD17: -4014955.349 | BE17: -305979.9995 | BF17: 0 | BG17: 422.8965079 | BH17: 37.18135891 | BI17: 0 | BJ17: 4607.08118 | BK17: 1533.822738 | BL17: 0 | BM17: 4228.965079 | BN17: 223.0881535 | BO17: 0 | BP17: 46070.8118 | BQ17: 9202.93643 | BR17: 0 | BS17: 15179.49388 | BT17: 2463.356711 | BU17: 0 | BV17: 151794.9388 | BW17: 14780.14027 | BX17: 0 | CD17: =SUMIF('[161104-Financial Analysis_v11(flat Real sens).xlsm]Results Database'!$E:$E,'Flat Gas Price'!AJ$4,'[161104-Financial Analysis_v11(flat Real sens).xlsm]Results Database'!$DR:$DR)
A18: 14 | B18: Microturbines | C18: 5286.857019 | D18: 355705.1577 | E18: 487876.5832 | F18: 907299.3031 | G18: 18180732.73 | H18: 40863215.31 | I18: 0.00582702643 | J18: 0.0195649517 | K18: 0.01193926076 | L18: -540261488.6 | M18: 0 | O18: 19503.68396 | P18: 4109.360297 | Q18: 16486.71185 | R18: 40099.7561 | S18: 23408.7889 | T18: 1312227.842 | U18: 276481.9717 | V18: 1109242.867 | W18: 2697952.681 | X18: 2697952.681 | Y18: 906944.9903 | Z18: 51.21656064 | AA18: 303.0962647 | AC18: 932272.9497 | AD18: 16446837.11 | AE18: 801622.6738 | AF18: 0 | AG18: 0 | AH18: 0 | AJ18: -2049798023 | AK18: -278119828.5 | AL18: -1304951705 | AM18: 0.25 | AN18: 0.1 | AO18: 0 | AP18: -512449505.7 | AQ18: -27811982.85 | AR18: 0 | AS18: 0 | AT18: 0 | AU18: 0 | AV18: 0 | AW18: 0 | AX18: 0.5 | AY18: 0.2 | AZ18: 0 | BA18: 0 | BB18: 0 | BC18: 0 | BD18: -256224752.9 | BE18: -5562396.57 | BF18: 0 | BG18: 0 | BH18: 0 | BI18: 0 | BJ18: 0 | BK18: 0 | BL18: 0 | BM18: 9751.841978 | BN18: 821.8720593 | BO18: 0 | BP18: 656113.9212 | BQ18: 55296.39434 | BR18: 0 | BS18: 0 | BT18: 0 | BU18: 0 | BV18: 899909.9706 | BW18: 75843.19582 | BX18: 0 | CD18: =SUMIF('[161104-Financial Analysis_v11(flat Real sens).xlsm]Results Database'!$E:$E,'Flat Gas Price'!AJ$4,'[161104-Financial Analysis_v11(flat Real sens).xlsm]Results Database'!$EA:$EA)
A19: 15 | B19: Electric submersible pump (ESP) to unload wells | C19: 839.6821272 | D19: 10675.3019 | E19: 31667.35508 | F19: 907299.3031 | G19: 18180732.73 | H19: 40863215.31 | I19: 0.0009254742335 | J19: 0.0005871766588 | K19: 0.0007749599447 | L19: -614149159.6 | M19: 0 | O19: 8028.410698 | P19: 736.8211478 | Q19: 2324.083206 | R19: 11089.31505 | S19: 9796.960659 | T19: 91643.74995 | U19: 30218.53806 | V19: 80151.09647 | W19: 202013.3845 | X19: 202013.3845 | Y19: 906944.9903 | Z19: 51.21656064 | AA19: 303.0962647 | AC19: 932272.9497 | AD19: 16446837.11 | AE19: 801622.6738 | AF19: 0 | AG19: 0 | AH19: 0 | AJ19: -5728635248 | AK19: -825712695.5 | AL19: -3695989843 | AM19: 0.1 | AN19: 0.05 | AO19: 0 | AP19: -572863524.8 | AQ19: -41285634.77 | AR19: 0 | AS19: 0 | AT19: 0 | AU19: 0.05 | AV19: 0 | AW19: 0 | AX19: 0.3 | AY19: 0.2 | AZ19: 0 | BA19: -28643176.24 | BB19: 0 | BC19: 0 | BD19: -171859057.4 | BE19: -8257126.955 | BF19: 0 | BG19: 401.4205349 | BH19: 0 | BI19: 0 | BJ19: 4582.187497 | BK19: 0 | BL19: 0 | BM19: 2408.523209 | BN19: 147.3642296 | BO19: 0 | BP19: 27493.12498 | BQ19: 6043.707613 | BR19: 0 | BS19: 14617.70087 | BT19: 0 | BU19: 0 | BV19: 87706.20522 | BW19: 9727.813352 | BX19: 0 | CD19: =SUMIF('[161104-Financial Analysis_v11(flat Real sens).xlsm]Results Database'!$E:$E,'Flat Gas Price'!AJ$4,'[161104-Financial Analysis_v11(flat Real sens).xlsm]Results Database'!$EJ:$EJ)
A20: 16 | B20: Downhole Jetpump for Well Unloading | C20: 876.5231845 | D20: 12186.2288 | E20: 34099.30841 | F20: 907299.3031 | G20: 18180732.73 | H20: 40863215.31 | I20: 0.00096607942 | J20: 0.0006702825999 | K20: 0.0008344744328 | L20: -468564694.8 | M20: 0 | O20: 8028.410698 | P20: 736.8211478 | Q20: 2324.083206 | R20: 11089.31505 | S20: 9796.960659 | T20: 91643.74995 | U20: 30218.53806 | V20: 80151.09647 | W20: 202013.3845 | X20: 202013.3845 | Y20: 906944.9903 | Z20: 51.21656064 | AA20: 303.0962647 | AC20: 932272.9497 | AD20: 16446837.11 | AE20: 801622.6738 | AF20: 0 | AG20: 0 | AH20: 0 | AJ20: -4116742493 | AK20: -568904455.5 | AL20: -2638982891 | AM20: 0.1 | AN20: 0.1 | AO20: 0 | AP20: -411674249.3 | AQ20: -56890445.55 | AR20: 0 | AS20: 0 | AT20: 0 | AU20: 0.05 | AV20: 0.05 | AW20: 0 | AX20: 0.5 | AY20: 0.3 | AZ20: 0 | BA20: -20583712.46 | BB20: -2844522.277 | BC20: 0 | BD20: -205837124.6 | BE20: -17067133.66 | BF20: 0 | BG20: 401.4205349 | BH20: 36.84105739 | BI20: 0 | BJ20: 4582.187497 | BK20: 1510.926903 | BL20: 0 | BM20: 4014.205349 | BN20: 221.0463443 | BO20: 0 | BP20: 45821.87497 | BQ20: 9065.561419 | BR20: 0 | BS20: 14617.70087 | BT20: 2431.953338 | BU20: 0 | BV20: 146177.0087 | BW20: 14591.72003 | BX20: 0 | CD20: =SUMIF('[161104-Financial Analysis_v11(flat Real sens).xlsm]Results Database'!$E:$E,'Flat Gas Price'!AJ$4,'[161104-Financial Analysis_v11(flat Real sens).xlsm]Results Database'!$ES:$ES)
A21: 17 | B21: Monitor/repair leaking flare/vent control valves | C21: 47481.03503 | D21: 897860.3566 | E21: 2084886.232 | F21: 907299.3031 | G21: 18180732.73 | H21: 40863215.31 | I21: 0.05233227323 | J21: 0.04938526791 | K21: 0.05102110093 | L21: -169412344 | M21: 0 | O21: 72165.37326 | P21: 5974.015816 | Q21: 25409.99977 | R21: 103549.3889 | S21: 86936.22806 | T21: 1172981.201 | U21: 277245.1947 | V21: 1079203.864 | W21: 2529430.259 | X21: 2529430.259 | Y21: 906944.9903 | Z21: 51.21656064 | AA21: 303.0962647 | AC21: 932272.9497 | AD21: 16446837.11 | AE21: 801622.6738 | AF21: 0 | AG21: 0 | AH21: 0 | AJ21: -245463078.4 | AK21: -31620709.84 | AL21: -173362711.1 | AM21: 0.6 | AN21: 0.7 | AO21: 0 | AP21: -147277847.1 | AQ21: -22134496.89 | AR21: 0 | AS21: 0 | AT21: 66 | AU21: 0.3 | AV21: 0.35 | AW21: 0 | AX21: 0.78 | AY21: 0.88 | AZ21: 0.06 | BA21: -44183354.12 | BB21: -7747073.912 | BC21: 0 | BD21: -114876720.7 | BE21: -19478357.26 | BF21: 0 | BG21: 21649.61198 | BH21: 2090.905536 | BI21: 0 | BJ21: 351894.3602 | BK21: 97035.81814 | BL21: 0 | BM21: 56288.99115 | BN21: 5257.133918 | BO21: 1524.599986 | BP21: 914925.3364 | BQ21: 243975.7713 | BR21: 64752.23182 | BS21: 893134.6596 | BT21: 149308.4565 | BU21: 0 | BV21: 2322150.115 | BW21: 375404.1193 | BX21: 102867.2315 | CD21: =SUMIF('[161104-Financial Analysis_v11(flat Real sens).xlsm]Results Database'!$E:$E,'Flat Gas Price'!AJ$4,'[161104-Financial Analysis_v11(flat Real sens).xlsm]Results Database'!$FB:$FB)
A22: 18 | B22: Install redundant compression | C22: 48909.83754 | D22: 3140724.361 | E22: 4363470.3 | F22: 907299.3031 | G22: 18180732.73 | H22: 40863215.31 | I22: 0.05390705952 | J22: 0.172750153 | K22: 0.1067823534 | L22: -588125317.1 | M22: 0 | O22: 117270.9348 | P22: 186257.6754 | Q22: 46581.93079 | R22: 350110.5409 | S22: 154010.2345 | T22: 2765504.224 | U22: 12341657.11 | V22: 2208896.896 | W22: 17316058.23 | X22: 17316058.23 | Y22: 906944.9903 | Z22: 51.21656064 | AA22: 303.0962647 | AC22: 932272.9497 | AD22: 16446837.11 | AE22: 801622.6738 | AF22: 0 | AG22: 0 | AH22: 0 | AJ22: -1.217438674e+10 | AK22: -1378550329 | AL22: -8405017314 | AM22: 0.02 | AN22: 0.25 | AO22: 0 | AP22: -243487734.9 | AQ22: -344637582.2 | AR22: 0 | AS22: 0 | AT22: 9 | AU22: 0 | AV22: 0.1 | AW22: 0 | AX22: 0.25 | AY22: 0.5 | AZ22: 0 | BA22: 0 | BB22: -34463758.22 | BC22: 0 | BD22: -60871933.72 | BE22: -172318791.1 | BF22: 0 | BG22: 0 | BH22: 18625.76754 | BI22: 0 | BJ22: 0 | BK22: 1234165.711 | BL22: 0 | BM22: 29317.7337 | BN22: 93128.83769 | BO22: 0 | BP22: 691376.056 | BQ22: 6170828.553 | BR22: 0 | BS22: 0 | BT22: 1699809.899 | BU22: 0 | BV22: 1424319.398 | BW22: 8499049.496 | BX22: 0 | CD22: =SUMIF('[161104-Financial Analysis_v11(flat Real sens).xlsm]Results Database'!$E:$E,'Flat Gas Price'!AJ$4,'[161104-Financial Analysis_v11(flat Real sens).xlsm]Results Database'!$FK:$FK)
A23: 19 | B23: Limit Monthly Vent Volume | C23: 2103.452324 | D23: 48.86020778 | E23: 52635.1683 | F23: 868370.1174 | G23: 17427211.65 | H23: 39136464.58 | I23: 0.002422299296 | J23: 2.803673288e-06 | K23: 0.001344913723 | L23: 887413.0911 | M23: 53188.60278 | O23: 0 | P23: 2103.452324 | Q23: 0 | R23: 2103.452324 | S23: 2103.452324 | T23: 0 | U23: 48.86020778 | V23: 0 | W23: 48.86020778 | X23: 48.86020778 | Y23: 868015.8046 | Z23: 51.21656064 | AA23: 303.0962647 | AC23: 899965.0649 | AD23: 15749549.44 | AE23: 777697.1414 | AF23: 0 | AG23: 0 | AH23: 53188.60278 | AJ23: 0 | AK23: 887413.0911 | AL23: 0 | AM23: 1 | AN23: 1 | AO23: 1 | AP23: 0 | AQ23: 887413.0911 | AR23: 0 | AS23: 1 | AT23: N/A | AU23: 1 | AV23: 1 | AW23: 1 | AX23: 1 | AY23: 1 | AZ23: 1 | BA23: 0 | BB23: 887413.0911 | BC23: 0 | BD23: 0 | BE23: 887413.0911 | BF23: 0 | BG23: 0 | BH23: 2103.452324 | BI23: 0 | BJ23: 0 | BK23: 48.86020778 | BL23: 0 | BM23: 0 | BN23: 2103.452324 | BO23: 0 | BP23: 0 | BQ23: 48.86020778 | BR23: 0 | BS23: 0 | BT23: 52635.1683 | BU23: 0 | BV23: 0 | BW23: 52635.1683 | BX23: 0 | CD23: =SUMIF('[161104-Financial Analysis_v11(flat Real sens).xlsm]Results Database'!$E:$E,'Flat Gas Price'!AJ$4,'[161104-Financial Analysis_v11(flat Real sens).xlsm]Results Database'!$FT:$FT)
B26: fixed | C26: 1085
B27: floater | C27: 121
B28: single well | C28: 827
C29: 2033
B31: Alternate Count | C31: 1784 | AS31: 681
AS32: 0
B34: Note: Adjusted means after applying percentages
B35: Note: Aggregate is before applying percentage adjustments
F39: NPV | J39: =F39 -> NPV | N39: =J39 -> NPV
B40: Bubble_labels | D40: Colour Group | G40: Complexes with + | H40: Emissions | K40: Percent Reduced | L40: Number of Complexes | O40: =L40 -> Number of Complexes | P40: =K40 -> Percent Reduced | AS40: 0
B41: =B5 -> Reroute Gas Pig Trap Vent | C41: Vent | D41: 3 | F41: =L5 -> -49323711.45 | G41: =AS5 -> 0 | H41: =E5 -> 17178.16356 | J41: =F41 -> -49323711.45 | K41: =J5 -> 3.003739654e-05 | L41: =G41 -> 0 | N41: =J41 -> -49323711.45 | O41: =L41 -> 0 | P41: =K41 -> 3.003739654e-05 | AS41: 539
B42: =B6 -> Limit Monthly Flare Volume | C42: Flare | D42: 2 | F42: -19314026.95 | G42: 88 | H42: 10692917.42 | J42: =F42 -> -19314026.95 | K42: 0.4473510862 | L42: =G42 -> 88 | N42: =J42 -> -19314026.95 | O42: =L42 -> 88 | P42: =K42 -> 0.4473510862
B43: Compressors Off - Maintain Pressure | C43: Either | D43: 3 | F43: 6270278.317 | G43: 646 | H43: 201442.5327 | J43: 6270278.317 | K43: 0.005052327151 | L43: 646 | N43: 6270278.317 | O43: 646 | P43: 0.005052327151
B44: Compressors Off- Blowdown to fuel | C44: Either | D44: 3 | F44: -53277428.23 | G44: 0 | H44: 27142.08491 | J44: -53277428.23 | K44: 0.0004466264301 | L44: 0 | N44: -53277428.23 | O44: 0 | P44: 0.0004466264301
B45: Compressor Static Seals | C45: Vent | D45: 1 | F45: -615254.6316 | G45: 492 | H45: 331191.2189 | J45: -615254.6316 | K45: 0.005913795146 | L45: 492 | N45: -615254.6316 | O45: 492 | P45: 0.005913795146
B46: Compressors Off - Install ejector | C46: Either | D46: 3 | F46: -8477463.631 | G46: 0 | H46: 38686.1179 | J46: -8477463.631 | K46: 0.0009153527565 | L46: 0 | N46: -8477463.631 | O46: 0 | P46: 0.0009153527565
B47: Using Pipeline Pump-Down Techniques to Lower Gas Line Pressure before Maintenance | C47: Either | D47: 3 | F47: -4000122.89 | G47: 0 | H47: 5519.027191 | J47: -4000122.89 | K47: 0.0001042218271 | L47: 0 | N47: -4000122.89 | O47: 0 | P47: 0.0001042218271
B48: Use Inert Gases and Pigs to Perform Pipeline Purges | C48: Either | D48: 3 | F48: -6767796.928 | G48: 0 | H48: 5519.027191 | J48: -6767796.928 | K48: 0.0001042218271 | L48: 0 | N48: -6767796.928 | O48: 0 | P48: 0.0001042218271
B49: Reduced Emission Completions | C49: Either | D49: 3 | F49: 18422274.48 | G49: 121 | H49: 1174107.074 | J49: 18422274.48 | K49: 0.04328024675 | L49: 121 | N49: 18422274.48 | O49: 121 | P49: 0.04328024675 | AS49: 586
B50: Foaming agents to Remove Accumulated Fluid in Gas wells | C50: Either | D50: 3 | F50: 928359.7212 | G50: 603 | H50: 64342.74045 | J50: 928359.7212 | K50: 0.001369848298 | L50: 603 | N50: 928359.7212 | O50: 603 | P50: 0.001369848298 | AS50: 0
B51: Velocity tubing to Remove Accumulated Fluid in Gas Wells | C51: Either | D51: 3 | F51: -1016739633 | G51: 0 | H51: 31440.06885 | J51: -1016739633 | K51: 0.0007785552462 | L51: 0 | N51: -1016739633 | O51: 0 | P51: 0.0007785552462
B52: Install Flares | C52: Convert Vent to Flare | D52: 4 | F52: -378685075.9 | G52: 0 | H52: 778050.8743 | J52: -378685075.9 | K52: -0.002278078887 | L52: 0 | N52: -378685075.9 | O52: 0 | P52: -0.002278078887
B53: Gas Lift Well to remove liquid accumulation | C53: Either | D53: 3 | F53: -9049844.03 | G53: 0 | H53: 35285.70118 | J53: -9049844.03 | K53: 0.0006755397607 | L53: 0 | N53: -9049844.03 | O53: 0 | P53: 0.0006755397607
B54: Microturbines | C54: Flare | D54: 1 | F54: -540261488.6 | G54: 0 | H54: 487876.5832 | J54: -540261488.6 | K54: 0.0195649517 | L54: 0 | N54: -540261488.6 | O54: 0 | P54: 0.0195649517
B55: Electric submersible pump (ESP) to unload wells | C55: Either | D55: 3 | F55: -614149159.6 | G55: 0 | H55: 31667.35508 | J55: -614149159.6 | K55: 0.0005871766588 | L55: 0 | N55: -614149159.6 | O55: 0 | P55: 0.0005871766588
B56: Downhole Jetpump for Well Unloading | C56: Either | D56: 3 | F56: -468564694.8 | G56: 0 | H56: 34099.30841 | J56: -468564694.8 | K56: 0.0006702825999 | L56: 0 | N56: -468564694.8 | O56: 0 | P56: 0.0006702825999
B57: Monitor/repair leaking flare/vent control valves | C57: Either | D57: 3 | F57: -169412344 | G57: 0 | H57: 2084886.232 | J57: -169412344 | K57: 0.04938526791 | L57: 0 | N57: -169412344 | O57: 0 | P57: 0.04938526791
B58: Install redundant compression | C58: Either | D58: 3 | F58: -588125317.1 | G58: 0 | H58: 4363470.3 | J58: -588125317.1 | K58: 0.172750153 | L58: 0 | N58: -588125317.1 | O58: 0 | P58: 0.172750153 | AS58: 43
B59: Limit Monthly Vent Volume | C59: Vent | D59: 1 | F59: 887413.0911 | G59: 1 | H59: 52635.1683 | J59: 887413.0911 | K59: 2.803673288e-06 | L59: 1 | N59: 887413.0911 | O59: 1 | P59: 2.803673288e-06 | AS59: 0
C64: colour_1
C65: colour_2
C66: colour_3
C67: colour_4 | AS67: 0
AS68: 0
AS76: 0
AS77: 161
AS85: 214
AS86: 622
AS94: 665
AS95: 0
AS103: 0
AS104: 0
AS112: 4
AS113: 486
AS121: 569
AS122: 0
AS130: 0
AS131: 0
AS139: 0
AS140: 0
AS148: 0
AS149: 0
AS157: 174
AS158: 0
AS166: 32
AS167: 1
AS175: 0

Sheet Flat Gas Price + NPV
A1: FINAL AGREGATE SUMMARY | E1: =CH4_factor -> 25 | H1: =E1 -> 25
C2: Aplicabiity Adjusted | D2: Aplicabiity Adjusted | E2: Aplicabiity Adjusted | F2: Adjusted | G2: Adjusted | H2: Adjusted | I2: Percent | J2: Percent | K2: Percent | L2: Adjusted | M2: Adjusted | O2: Aggregate | P2: Aggregate | Q2: Aggregate | R2: Aggregate | S2: Aggregate | T2: Aggregate | U2: Aggregate | V2: Aggregate | W2: Aggregate | X2: Aggregate | Y2: Aggregate | Z2: Aggregate | AA2: Aggregate | AB2: Aggregate | AC2: Aggregate | AD2: Aggregate | AE2: Aggregate | AF2: Oil | AG2: Oil | AH2: Oil
C3: Reduction | D3: Reduction | E3: Reduct Equivalent | F3: Existing | G3: Existing | H3: Equivalent CO2 | I3: Reduction | J3: Reduction | K3: Reduction | L3: NPV | M3: Oil | O3: Reduced Methane | P3: Reduced Methane | Q3: Reduced Methane | R3: Reduced Methane | S3: Methane | T3: Reduced CO2 | U3: Reduced CO2 | V3: Reduced CO2 | W3: Reduced CO2 | X3: CO2 | Y3: Exist Methane | Z3: Exist Methane | AA3: Exist Methane | AB3: Exist CO2 | AC3: Exist CO2 | AD3: Exist CO2 | AE3: Exist CO2 | AF3: Deferred | AG3: Deferred | AH3: Deferred | AJ3: Total NPV b/4 Ratios | AM3: Percent Applicable | AP3: Final NPV - Expected Value Case | AS3: # of Complexes | AT3: # of Complexes | AU3: Percent Applicable 10% Case | AX3: Percent Applicable 90% Case | BA3: Final Methane - 10% Case | BD3: Final CO2 - 10% Case | BG3: Final Methane - 90% | BJ3: Final CO2 - 90% | BM3: Final CO2 Equiv - 10% Case | BP3: Final CO2 Equiv - 90% Case | BS3: Final NPV - 10% Low Case | BV3: Final NPV - 90% Hi Case
C4: Methane | D4: CO2 | E4: Total CO2 | F4: Methane | G4: CO2 | H4: Total | I4: Methane | J4: CO2 | K4: Equiv CO2 | L4: Savings | M4: Deferred | O4: =AJ4 -> fixed | P4: =AK4 -> floater | Q4: =AL4 -> single well | R4: Sum | S4: Check | T4: =AJ4 -> fixed | U4: =AK4 -> floater | V4: =AL4 -> single well | W4: Sum | X4: Check | Y4: =T4 -> fixed | Z4: =U4 -> floater | AA4: =V4 -> single well | AB4: =W4 -> Sum | AC4: =Y4 -> fixed | AD4: =Z4 -> floater | AE4: =AA4 -> single well | AF4: =AC4 -> fixed | AG4: =AD4 -> floater | AH4: =AE4 -> single well | AJ4: fixed | AK4: floater | AL4: single well | AM4: =AJ4 -> fixed | AN4: floater | AO4: single well | AP4: fixed | AQ4: floater | AR4: single well | AS4: > 0 NPV | AT4: > 0 NPV @ $49 SCOC | AU4: =AM4 -> fixed | AV4: =AN4 -> floater | AW4: single well | AX4: =AP4 -> fixed | AY4: =AQ4 -> floater | AZ4: single well | BA4: =AX4 -> fixed | BB4: floater | BC4: single well | BD4: fixed | BE4: floater | BF4: single well | BG4: =BA4 -> fixed | BH4: floater | BI4: single well | BJ4: fixed | BK4: floater | BL4: single well | BM4: =BJ4 -> fixed | BN4: floater | BO4: single well | BP4: fixed | BQ4: floater | BR4: single well | BS4: fixed | BT4: floater | BU4: single well | BV4: fixed | BW4: floater | BX4: single well
A5: 1 | B5: Reroute Gas Pig Trap Vent | C5: 665.2824671 | D5: 546.1018783 | E5: 17178.16356 | F5: 907299.3031 | G5: 18180732.73 | H5: 40863215.31 | I5: 0.0007332557898 | J5: 3.003739654e-05 | K5: 0.0004203820827 | L5: 0 | M5: 0 | O5: 1146.189777 | P5: 229.7850627 | Q5: 776.8923547 | R5: 2152.867194 | S5: 1531.900418 | T5: 1250.017434 | U5: 51.21656064 | V5: 303.0962647 | W5: 1604.33026 | X5: 1604.33026 | Y5: 906944.9903 | Z5: 51.21656064 | AA5: 303.0962647 | AC5: 932272.9497 | AD5: 16446837.11 | AE5: 801622.6738 | AF5: 0 | AG5: 0 | AH5: 0 | AJ5: 0 | AK5: 0 | AL5: 0 | AM5: 0.4 | AN5: 0.9 | AO5: 0 | AP5: 0 | AQ5: 0 | AR5: 0 | AS5: 0 | AT5: 0 | AU5: 0.1 | AV5: 0.3 | AW5: 0 | AX5: 0.5 | AY5: 1 | AZ5: 0 | BA5: 114.6189777 | BB5: 68.9355188 | BC5: 0 | BD5: 125.0017434 | BE5: 15.36496819 | BF5: 0 | BG5: 573.0948884 | BH5: 229.7850627 | BI5: 0 | BJ5: 625.0087172 | BK5: 51.21656064 | BL5: 0 | BM5: 2990.476186 | BN5: 1738.752938 | BO5: 0 | BP5: 14952.38093 | BQ5: 5795.843127 | BR5: 0 | BS5: 0 | BT5: 0 | BU5: 0 | BV5: 0 | BW5: 0 | BX5: 0 | CI5: =SUMIF('Results Database'!$E:$E,'Aggregate Summary'!AJ$4,'Results Database'!$N:$N)
A6: 2 | B6: Limit Monthly Flare Volume | C6: 115873.4144 | D6: 7796082.06 | E6: 10692917.42 | F6: 868370.1174 | G6: 17427211.65 | H6: 39136464.58 | I6: 0.1334378189 | J6: 0.4473510862 | K6: 0.2732213432 | L6: 183053269.8 | M6: 250369.8545 | O6: 2373.801932 | P6: 127956.9709 | Q6: 4263.955938 | R6: 134594.7288 | S6: 17955.14521 | T6: 159711.8265 | U6: 8609076.124 | V6: 286883.3248 | W6: 9055671.276 | X6: 9055671.276 | Y6: 868015.8046 | Z6: 51.21656064 | AA6: 303.0962647 | AC6: 899965.0649 | AD6: 15749549.44 | AE6: 777697.1414 | AF6: 29120.37343 | AG6: 268481.9361 | AH6: 40334726.66 | AJ6: 6484289.162 | AK6: 201231092.3 | AL6: 13565371.54 | AM6: 0.3 | AN6: 0.9 | AO6: 0 | AP6: 1945286.749 | AQ6: 181107983.1 | AR6: 0 | AS6: 88 | AT6: N/A | AU6: 0.3 | AV6: 0.9 | AW6: 0 | AX6: 1 | AY6: 1 | AZ6: 1 | BA6: 712.1405796 | BB6: 115161.2738 | BC6: 0 | BD6: 47913.54794 | BE6: 7748168.512 | BF6: 0 | BG6: 2373.801932 | BH6: 127956.9709 | BI6: 4263.955938 | BJ6: 159711.8265 | BK6: 8609076.124 | BL6: 286883.3248 | BM6: 65717.06243 | BN6: 10627200.36 | BO6: 0 | BP6: 219056.8748 | BQ6: 11808000.4 | BR6: 393482.2233 | BS6: 1945286.749 | BT6: 181107983.1 | BU6: 0 | BV6: 6484289.162 | BW6: 201231092.3 | BX6: 13565371.54 | CI6: =SUMIF('Results Database'!$E:$E,'Aggregate Summary'!AJ$4,'Results Database'!$W:$W)
A7: 3 | B7: Compressors Off - Maintain Pressure | C7: 4383.500924 | D7: 91855.00959 | E7: 201442.5327 | F7: 907299.3031 | G7: 18180732.73 | H7: 40863215.31 | I7: 0.004831372524 | J7: 0.005052327151 | K7: 0.004929678959 | L7: 6296392.164 | M7: 0 | O7: 74952.59837 | P7: 6358.710052 | Q7: 26761.23339 | R7: 108072.5418 | S7: 90420.1431 | T7: 1247963.82 | U7: 294568.1857 | V7: 1147811.798 | W7: 2690343.804 | X7: 2690343.804 | Y7: 906944.9903 | Z7: 51.21656064 | AA7: 303.0962647 | AC7: 932272.9497 | AD7: 16446837.11 | AE7: 801622.6738 | AF7: 0 | AG7: 0 | AH7: 0 | AJ7: 91884832.95 | AK7: 17021505.17 | AL7: 68769952.21 | AM7: 0.05 | AN7: 0.1 | AO7: 0 | AP7: 4594241.647 | AQ7: 1702150.517 | AR7: 0 | AS7: 646 | AT7: 669 | AU7: 0 | AV7: 0 | AW7: 0 | AX7: 0.28 | AY7: 0.5 | AZ7: 0 | BA7: 0 | BB7: 0 | BC7: 0 | BD7: 0 | BE7: 0 | BF7: 0 | BG7: 20986.72754 | BH7: 3179.355026 | BI7: 0 | BJ7: 349429.8697 | BK7: 147284.0928 | BL7: 0 | BM7: 0 | BN7: 0 | BO7: 0 | BP7: 874098.0583 | BQ7: 226767.9685 | BR7: 0 | BS7: 0 | BT7: 0 | BU7: 0 | BV7: 25727753.23 | BW7: 8510752.583 | BX7: 0 | CI7: =SUMIF('Results Database'!$E:$E,'Aggregate Summary'!AJ$4,'Results Database'!$AF:$AF)
A8: 4 | B8: Compressors Off- Blowdown to fuel | C8: 760.8835662 | D8: 8119.995755 | E8: 27142.08491 | F8: 907299.3031 | G8: 18180732.73 | H8: 40863215.31 | I8: 0.0008386246562 | J8: 0.0004466264301 | K8: 0.0006642180432 | L8: 0 | M8: 0 | O8: 1290.866959 | P8: 51.9456519 | Q8: 307.6114144 | R8: 1650.424025 | S8: 1503.96553 | T8: 10491.53267 | U8: 2397.604887 | V8: 9552.466318 | W8: 22441.60387 | X8: 22441.60387 | Y8: 906944.9903 | Z8: 51.21656064 | AA8: 303.0962647 | AC8: 932272.9497 | AD8: 16446837.11 | AE8: 801622.6738 | AF8: 0 | AG8: 0 | AH8: 0 | AJ8: 0 | AK8: 0 | AL8: 0 | AM8: 0.55 | AN8: 0.98 | AO8: 0 | AP8: 0 | AQ8: 0 | AR8: 0 | AS8: 0 | AT8: 0 | AU8: 0.56 | AV8: 0.98 | AW8: 0 | AX8: 0.56 | AY8: 1 | AZ8: 0 | BA8: 722.8854969 | BB8: 50.90673886 | BC8: 0 | BD8: 5875.258293 | BE8: 2349.652789 | BF8: 0 | BG8: 722.8854969 | BH8: 51.9456519 | BI8: 0 | BJ8: 5875.258293 | BK8: 2397.604887 | BL8: 0 | BM8: 23947.39571 | BN8: 3622.321261 | BO8: 0 | BP8: 23947.39571 | BQ8: 3696.246185 | BR8: 0 | BS8: 0 | BT8: 0 | BU8: 0 | BV8: 0 | BW8: 0 | BX8: 0 | CI8: =SUMIF('Results Database'!$E:$E,'Aggregate Summary'!AJ$4,'Results Database'!$AO:$AO)
A9: 5 | B9: Compressor Static Seals | C9: 8946.963599 | D9: 107517.129 | E9: 331191.2189 | F9: 907299.3031 | G9: 18180732.73 | H9: 40863215.31 | I9: 0.009861093873 | J9: 0.005913795146 | K9: 0.008104874187 | L9: 3070227.806 | M9: 0 | O9: 35004.14725 | P9: 1959.267861 | Q9: 10057.45615 | R9: 47020.87126 | S9: 41474.80127 | T9: 393693.2715 | U9: 90938.11102 | V9: 361416.3464 | W9: 846047.7289 | X9: 846047.7289 | Y9: 906944.9903 | Z9: 51.21656064 | AA9: 303.0962647 | AC9: 932272.9497 | AD9: 16446837.11 | AE9: 801622.6738 | AF9: 0 | AG9: 0 | AH9: 0 | AJ9: 11729513.7 | AK9: 1378493.822 | AL9: 8037470.475 | AM9: 0.25 | AN9: 0.1 | AO9: 0 | AP9: 2932378.424 | AQ9: 137849.3822 | AR9: 0 | AS9: 492 | AT9: 583 | AU9: 0.1 | AV9: 0.05 | AW9: 0 | AX9: 0.56 | AY9: 0.25 | AZ9: 0 | BA9: 3500.414725 | BB9: 97.96339304 | BC9: 0 | BD9: 39369.32715 | BE9: 4546.905551 | BF9: 0 | BG9: 19602.32246 | BH9: 489.8169652 | BI9: 0 | BJ9: 220468.232 | BK9: 22734.52776 | BL9: 0 | BM9: 126879.6953 | BN9: 6995.990377 | BO9: 0 | BP9: 710526.2936 | BQ9: 34979.95189 | BR9: 0 | BS9: 1172951.37 | BT9: 68924.6911 | BU9: 0 | BV9: 6568527.669 | BW9: 344623.4555 | BX9: 0 | CI9: =SUMIF('Results Database'!$E:$E,'Aggregate Summary'!AJ$4,'Results Database'!$AX:$AX)
A10: 6 | B10: Compressors Off - Install ejector | C10: 881.7733632 | D10: 16641.78382 | E10: 38686.1179 | F10: 907299.3031 | G10: 18180732.73 | H10: 40863215.31 | I10: 0.0009718660206 | J10: 0.0009153527565 | K10: 0.0009467223175 | L10: 0 | M10: 0 | O10: 13016.38684 | P10: 577.3850527 | Q10: 3305.394595 | R10: 16899.16649 | S10: 15242.4283 | T10: 118011.9149 | U10: 26852.97019 | V10: 108104.0858 | W10: 252968.9708 | X10: 252968.9708 | Y10: 906944.9903 | Z10: 51.21656064 | AA10: 303.0962647 | AC10: 932272.9497 | AD10: 16446837.11 | AE10: 801622.6738 | AF10: 0 | AG10: 0 | AH10: 0 | AJ10: 0 | AK10: 0 | AL10: 0 | AM10: 0.05 | AN10: 0.4 | AO10: 0 | AP10: 0 | AQ10: 0 | AR10: 0 | AS10: 0 | AT10: 0 | AU10: 0 | AV10: 0 | AW10: 0 | AX10: 0.1 | AY10: 0.5 | AZ10: 0 | BA10: 0 | BB10: 0 | BC10: 0 | BD10: 0 | BE10: 0 | BF10: 0 | BG10: 1301.638684 | BH10: 288.6925264 | BI10: 0 | BJ10: 11801.19149 | BK10: 13426.48509 | BL10: 0 | BM10: 0 | BN10: 0 | BO10: 0 | BP10: 44342.15859 | BQ10: 20643.79825 | BR10: 0 | BS10: 0 | BT10: 0 | BU10: 0 | BV10: 0 | BW10: 0 | BX10: 0 | CI10: =SUMIF('Results Database'!$E:$E,'Aggregate Summary'!AJ$4,'Results Database'!$BG:$BG)
A11: 7 | B11: Using Pipeline Pump-Down Techniques to Lower Gas Line Pressure before Maintenance | C11: 144.9679204 | D11: 1894.829182 | E11: 5519.027191 | F11: 907299.3031 | G11: 18180732.73 | H11: 40863215.31 | I11: 0.0001597796007 | J11: 0.0001042218271 | K11: 0.0001350610115 | L11: 0 | M11: 0 | O11: 622.6152579 | P11: 25.79723772 | Q11: 150.9249985 | R11: 799.337494 | S11: 725.4651558 | T11: 5274.231381 | U11: 1198.010594 | V11: 4819.552179 | W11: 11291.79416 | X11: 11291.79416 | Y11: 906944.9903 | Z11: 51.21656064 | AA11: 303.0962647 | AC11: 932272.9497 | AD11: 16446837.11 | AE11: 801622.6738 | AF11: 0 | AG11: 0 | AH11: 0 | AJ11: 0 | AK11: 0 | AL11: 0 | AM11: 0.2 | AN11: 0.5 | AO11: 0.05 | AP11: 0 | AQ11: 0 | AR11: 0 | AS11: 0 | AT11: 0 | AU11: 0 | AV11: 0.1 | AW11: 0 | AX11: 0.47 | AY11: 0.9 | AZ11: 0.15 | BA11: 0 | BB11: 2.579723772 | BC11: 0 | BD11: 0 | BE11: 119.8010594 | BF11: 0 | BG11: 292.6291712 | BH11: 23.21751395 | BI11: 22.63874977 | BJ11: 2478.888749 | BK11: 1078.209535 | BL11: 722.9328269 | BM11: 0 | BN11: 184.2941537 | BO11: 0 | BP11: 9794.618029 | BQ11: 1658.647384 | BR11: 1288.901571 | BS11: 0 | BT11: 0 | BU11: 0 | BV11: 0 | BW11: 0 | BX11: 0 | CI11: =SUMIF('Results Database'!$E:$E,'Aggregate Summary'!AJ$4,'Results Database'!$BP:$BP)
A12: 8 | B12: Use Inert Gases and Pigs to Perform Pipeline Purges | C12: 144.9679204 | D12: 1894.829182 | E12: 5519.027191 | F12: 907299.3031 | G12: 18180732.73 | H12: 40863215.31 | I12: 0.0001597796007 | J12: 0.0001042218271 | K12: 0.0001350610115 | L12: 0 | M12: 0 | O12: 622.6152579 | P12: 25.79723772 | Q12: 150.9249985 | R12: 799.337494 | S12: 725.4651558 | T12: 5274.231381 | U12: 1198.010594 | V12: 4819.552179 | W12: 11291.79416 | X12: 11291.79416 | Y12: 906944.9903 | Z12: 51.21656064 | AA12: 303.0962647 | AC12: 932272.9497 | AD12: 16446837.11 | AE12: 801622.6738 | AF12: 0 | AG12: 0 | AH12: 0 | AJ12: 0 | AK12: 0 | AL12: 0 | AM12: 0.2 | AN12: 0.5 | AO12: 0.05 | AP12: 0 | AQ12: 0 | AR12: 0 | AS12: 0 | AT12: 0 | AU12: 0 | AV12: 0.1 | AW12: 0 | AX12: 0.47 | AY12: 0.9 | AZ12: 0.15 | BA12: 0 | BB12: 2.579723772 | BC12: 0 | BD12: 0 | BE12: 119.8010594 | BF12: 0 | BG12: 292.6291712 | BH12: 23.21751395 | BI12: 22.63874977 | BJ12: 2478.888749 | BK12: 1078.209535 | BL12: 722.9328269 | BM12: 0 | BN12: 184.2941537 | BO12: 0 | BP12: 9794.618029 | BQ12: 1658.647384 | BR12: 1288.901571 | BS12: 0 | BT12: 0 | BU12: 0 | BV12: 0 | BW12: 0 | BX12: 0 | CI12: =SUMIF('Results Database'!$E:$E,'Aggregate Summary'!AJ$4,'Results Database'!$BY:$BY)
A13: 9 | B13: Reduced Emission Completions | C13: 15489.61901 | D13: 786866.5985 | E13: 1174107.074 | F13: 907299.3031 | G13: 18180732.73 | H13: 40863215.31 | I13: 0.01707222628 | J13: 0.04328024675 | K13: 0.028732616 | L13: 32905812.3 | M13: 0 | O13: 21317.20625 | P13: 20320.63489 | Q13: 8177.821625 | R13: 49815.66277 | S13: 26951.69499 | T13: 483903.3493 | U13: 1331781.522 | V13: 384615.8125 | W13: 2200300.684 | X13: 2200300.684 | Y13: 906944.9903 | Z13: 51.21656064 | AA13: 303.0962647 | AC13: 932272.9497 | AD13: 16446837.11 | AE13: 801622.6738 | AF13: 0 | AG13: 0 | AH13: 0 | AJ13: 2538887.744 | AK13: 64542180.73 | AL13: 3563817.291 | AM13: 0.25 | AN13: 0.5 | AO13: 0 | AP13: 634721.9361 | AQ13: 32271090.36 | AR13: 0 | AS13: 121 | AT13: 230 | AU13: 0 | AV13: 0.1 | AW13: 0 | AX13: 0.4 | AY13: 0.8 | AZ13: 0.1 | BA13: 0 | BB13: 2032.063489 | BC13: 0 | BD13: 0 | BE13: 133178.1522 | BF13: 0 | BG13: 8526.882501 | BH13: 16256.50791 | BI13: 817.7821625 | BJ13: 193561.3397 | BK13: 1065425.218 | BL13: 38461.58125 | BM13: 0 | BN13: 183979.7395 | BO13: 0 | BP13: 406733.4023 | BQ13: 1471837.916 | BR13: 58906.13531 | BS13: 0 | BT13: 6454218.073 | BU13: 0 | BV13: 1015555.098 | BW13: 51633744.58 | BX13: 356381.7291 | CI13: =SUMIF('Results Database'!$E:$E,'Aggregate Summary'!AJ$4,'Results Database'!$CH:$CH)
A14: 10 | B14: Foaming agents to Remove Accumulated Fluid in Gas wells | C14: 1577.515787 | D14: 24904.84578 | E14: 64342.74045 | F14: 907299.3031 | G14: 18180732.73 | H14: 40863215.31 | I14: 0.001738693925 | J14: 0.001369848298 | K14: 0.001574588293 | L14: 1247078.218 | M14: 0 | O14: 8467.389061 | P14: 743.6271783 | Q14: 2330.447099 | R14: 11541.46334 | S14: 10248.00099 | T14: 92147.17251 | U14: 30676.45477 | V14: 80151.24429 | W14: 202974.8716 | X14: 202974.8716 | Y14: 906944.9903 | Z14: 51.21656064 | AA14: 303.0962647 | AC14: 932272.9497 | AD14: 16446837.11 | AE14: 801622.6738 | AF14: 0 | AG14: 0 | AH14: 0 | AJ14: 5385531.547 | AK14: 1120233.29 | AL14: 3272251.565 | AM14: 0.15 | AN14: 0.1 | AO14: 0.1 | AP14: 807829.732 | AQ14: 112023.329 | AR14: 327225.1565 | AS14: 603 | AT14: 656 | AU14: 0.05 | AV14: 0 | AW14: 0.05 | AX14: 0.6 | AY14: 0.3 | AZ14: 0.15 | BA14: 423.369453 | BB14: 0 | BC14: 116.5223549 | BD14: 4607.358625 | BE14: 0 | BF14: 4007.562215 | BG14: 5080.433436 | BH14: 223.0881535 | BI14: 349.5670648 | BJ14: 55288.3035 | BK14: 9202.93643 | BL14: 12022.68664 | BM14: 15191.59495 | BN14: 0 | BO14: 6920.621088 | BP14: 182299.1394 | BQ14: 14780.14027 | BR14: 20761.86326 | BS14: 269276.5773 | BT14: 0 | BU14: 163612.5783 | BV14: 3231318.928 | BW14: 336069.987 | BX14: 490837.7348 | CI14: =SUMIF('Results Database'!$E:$E,'Aggregate Summary'!AJ$4,'Results Database'!$CQ:$CQ)
A15: 11 | B15: Velocity tubing to Remove Accumulated Fluid in Gas Wells | C15: 691.4145602 | D15: 14154.70484 | E15: 31440.06885 | F15: 907299.3031 | G15: 18180732.73 | H15: 40863215.31 | I15: 0.0007620578543 | J15: 0.0007785552462 | K15: 0.0007693978218 | L15: 0 | M15: 0 | O15: 8431.461011 | P15: 743.4688985 | Q15: 2326.680647 | R15: 11501.61056 | S15: 10208.30649 | T15: 92125.97775 | U15: 30665.80554 | V15: 80151.1568 | W15: 202942.9401 | X15: 202942.9401 | Y15: 906944.9903 | Z15: 51.21656064 | AA15: 303.0962647 | AC15: 932272.9497 | AD15: 16446837.11 | AE15: 801622.6738 | AF15: 0 | AG15: 0 | AH15: 0 | AJ15: 0 | AK15: 0 | AL15: 0 | AM15: 0.05 | AN15: 0.05 | AO15: 0.1 | AP15: 0 | AQ15: 0 | AR15: 0 | AS15: 0 | AT15: 0 | AU15: 0 | AV15: 0 | AW15: 0 | AX15: 0.25 | AY15: 0.15 | AZ15: 0 | BA15: 0 | BB15: 0 | BC15: 0 | BD15: 0 | BE15: 0 | BF15: 0 | BG15: 2107.865253 | BH15: 111.5203348 | BI15: 0 | BJ15: 23031.49444 | BK15: 4599.870831 | BL15: 0 | BM15: 0 | BN15: 0 | BO15: 0 | BP15: 75728.12576 | BQ15: 7387.879201 | BR15: 0 | BS15: 0 | BT15: 0 | BU15: 0 | BV15: 0 | BW15: 0 | BX15: 0 | CI15: =SUMIF('Results Database'!$E:$E,'Aggregate Summary'!AJ$4,'Results Database'!$CZ:$CZ)
A16: 12 | B16: Install Flares | C16: 32778.72071 | D16: -41417.14338 | E16: 778050.8743 | F16: 907299.3031 | G16: 18180732.73 | H16: 40863215.31 | I16: 0.03612779222 | J16: -0.002278078887 | K16: 0.01904037331 | L16: 0 | M16: 0 | O16: 163893.6035 | P16: 43383.52799 | Q16: 77995.54981 | R16: 285272.6813 | S16: 190421.1111 | T16: -207085.7169 | U16: -8141.946946 | V16: -38364.96883 | W16: -253592.6327 | X16: -253592.6327 | Y16: 906944.9903 | Z16: 51.21656064 | AA16: 303.0962647 | AC16: 932272.9497 | AD16: 16446837.11 | AE16: 801622.6738 | AF16: 0 | AG16: 0 | AH16: 0 | AJ16: 0 | AK16: 0 | AL16: 0 | AM16: 0.2 | AN16: 0 | AO16: 0 | AP16: 0 | AQ16: 0 | AR16: 0 | AS16: 0 | AT16: 4 | AU16: 0 | AV16: 0 | AW16: 0 | AX16: 0.35 | AY16: 0 | AZ16: 0 | BA16: 0 | BB16: 0 | BC16: 0 | BD16: 0 | BE16: 0 | BF16: 0 | BG16: 57362.76124 | BH16: 0 | BI16: 0 | BJ16: -72480.00092 | BK16: 0 | BL16: 0 | BM16: 0 | BN16: 0 | BO16: 0 | BP16: 1361589.03 | BQ16: 0 | BR16: 0 | BS16: 0 | BT16: 0 | BU16: 0 | BV16: 0 | BW16: 0 | BX16: 0 | CI16: =SUMIF('Results Database'!$E:$E,'Aggregate Summary'!AJ$4,'Results Database'!$DI:$DI)
A17: 13 | B17: Gas Lift Well to remove liquid accumulation | C17: 920.1557336 | D17: 12281.80784 | E17: 35285.70118 | F17: 907299.3031 | G17: 18180732.73 | H17: 40863215.31 | I17: 0.001014169999 | J17: 0.0006755397607 | K17: 0.0008635077028 | L17: 0 | M17: 0 | O17: 8457.930158 | P17: 743.6271783 | Q17: 2329.188296 | R17: 11530.74563 | S17: 10237.28328 | T17: 92141.6236 | U17: 30676.45477 | V17: 80151.21505 | W17: 202969.2934 | X17: 202969.2934 | Y17: 906944.9903 | Z17: 51.21656064 | AA17: 303.0962647 | AC17: 932272.9497 | AD17: 16446837.11 | AE17: 801622.6738 | AF17: 0 | AG17: 0 | AH17: 0 | AJ17: 0 | AK17: 0 | AL17: 0 | AM17: 0.1 | AN17: 0.1 | AO17: 0 | AP17: 0 | AQ17: 0 | AR17: 0 | AS17: 0 | AT17: 0 | AU17: 0.05 | AV17: 0.05 | AW17: 0 | AX17: 0.5 | AY17: 0.3 | AZ17: 0 | BA17: 422.8965079 | BB17: 37.18135891 | BC17: 0 | BD17: 4607.08118 | BE17: 1533.822738 | BF17: 0 | BG17: 4228.965079 | BH17: 223.0881535 | BI17: 0 | BJ17: 46070.8118 | BK17: 9202.93643 | BL17: 0 | BM17: 15179.49388 | BN17: 2463.356711 | BO17: 0 | BP17: 151794.9388 | BQ17: 14780.14027 | BR17: 0 | BS17: 0 | BT17: 0 | BU17: 0 | BV17: 0 | BW17: 0 | BX17: 0 | CI17: =SUMIF('Results Database'!$E:$E,'Aggregate Summary'!AJ$4,'Results Database'!$DR:$DR)
A18: 14 | B18: Microturbines | C18: 5286.857019 | D18: 355705.1577 | E18: 487876.5832 | F18: 907299.3031 | G18: 18180732.73 | H18: 40863215.31 | I18: 0.00582702643 | J18: 0.0195649517 | K18: 0.01193926076 | L18: 0 | M18: 0 | O18: 19503.68396 | P18: 4109.360297 | Q18: 16486.71185 | R18: 40099.7561 | S18: 23408.7889 | T18: 1312227.842 | U18: 276481.9717 | V18: 1109242.867 | W18: 2697952.681 | X18: 2697952.681 | Y18: 906944.9903 | Z18: 51.21656064 | AA18: 303.0962647 | AC18: 932272.9497 | AD18: 16446837.11 | AE18: 801622.6738 | AF18: 0 | AG18: 0 | AH18: 0 | AJ18: 0 | AK18: 0 | AL18: 0 | AM18: 0.25 | AN18: 0.1 | AO18: 0 | AP18: 0 | AQ18: 0 | AR18: 0 | AS18: 0 | AT18: 0 | AU18: 0 | AV18: 0 | AW18: 0 | AX18: 0.5 | AY18: 0.2 | AZ18: 0 | BA18: 0 | BB18: 0 | BC18: 0 | BD18: 0 | BE18: 0 | BF18: 0 | BG18: 9751.841978 | BH18: 821.8720593 | BI18: 0 | BJ18: 656113.9212 | BK18: 55296.39434 | BL18: 0 | BM18: 0 | BN18: 0 | BO18: 0 | BP18: 899909.9706 | BQ18: 75843.19582 | BR18: 0 | BS18: 0 | BT18: 0 | BU18: 0 | BV18: 0 | BW18: 0 | BX18: 0 | CI18: =SUMIF('Results Database'!$E:$E,'Aggregate Summary'!AJ$4,'Results Database'!$EA:$EA)
A19: 15 | B19: Electric submersible pump (ESP) to unload wells | C19: 839.6821272 | D19: 10675.3019 | E19: 31667.35508 | F19: 907299.3031 | G19: 18180732.73 | H19: 40863215.31 | I19: 0.0009254742335 | J19: 0.0005871766588 | K19: 0.0007749599447 | L19: 0 | M19: 0 | O19: 8028.410698 | P19: 736.8211478 | Q19: 2324.083206 | R19: 11089.31505 | S19: 9796.960659 | T19: 91643.74995 | U19: 30218.53806 | V19: 80151.09647 | W19: 202013.3845 | X19: 202013.3845 | Y19: 906944.9903 | Z19: 51.21656064 | AA19: 303.0962647 | AC19: 932272.9497 | AD19: 16446837.11 | AE19: 801622.6738 | AF19: 0 | AG19: 0 | AH19: 0 | AJ19: 0 | AK19: 0 | AL19: 0 | AM19: 0.1 | AN19: 0.05 | AO19: 0 | AP19: 0 | AQ19: 0 | AR19: 0 | AS19: 0 | AT19: 0 | AU19: 0.05 | AV19: 0 | AW19: 0 | AX19: 0.3 | AY19: 0.2 | AZ19: 0 | BA19: 401.4205349 | BB19: 0 | BC19: 0 | BD19: 4582.187497 | BE19: 0 | BF19: 0 | BG19: 2408.523209 | BH19: 147.3642296 | BI19: 0 | BJ19: 27493.12498 | BK19: 6043.707613 | BL19: 0 | BM19: 14617.70087 | BN19: 0 | BO19: 0 | BP19: 87706.20522 | BQ19: 9727.813352 | BR19: 0 | BS19: 0 | BT19: 0 | BU19: 0 | BV19: 0 | BW19: 0 | BX19: 0 | CI19: =SUMIF('Results Database'!$E:$E,'Aggregate Summary'!AJ$4,'Results Database'!$EJ:$EJ)
A20: 16 | B20: Downhole Jetpump for Well Unloading | C20: 876.5231845 | D20: 12186.2288 | E20: 34099.30841 | F20: 907299.3031 | G20: 18180732.73 | H20: 40863215.31 | I20: 0.00096607942 | J20: 0.0006702825999 | K20: 0.0008344744328 | L20: 0 | M20: 0 | O20: 8028.410698 | P20: 736.8211478 | Q20: 2324.083206 | R20: 11089.31505 | S20: 9796.960659 | T20: 91643.74995 | U20: 30218.53806 | V20: 80151.09647 | W20: 202013.3845 | X20: 202013.3845 | Y20: 906944.9903 | Z20: 51.21656064 | AA20: 303.0962647 | AC20: 932272.9497 | AD20: 16446837.11 | AE20: 801622.6738 | AF20: 0 | AG20: 0 | AH20: 0 | AJ20: 0 | AK20: 0 | AL20: 0 | AM20: 0.1 | AN20: 0.1 | AO20: 0 | AP20: 0 | AQ20: 0 | AR20: 0 | AS20: 0 | AT20: 0 | AU20: 0.05 | AV20: 0.05 | AW20: 0 | AX20: 0.5 | AY20: 0.3 | AZ20: 0 | BA20: 401.4205349 | BB20: 36.84105739 | BC20: 0 | BD20: 4582.187497 | BE20: 1510.926903 | BF20: 0 | BG20: 4014.205349 | BH20: 221.0463443 | BI20: 0 | BJ20: 45821.87497 | BK20: 9065.561419 | BL20: 0 | BM20: 14617.70087 | BN20: 2431.953338 | BO20: 0 | BP20: 146177.0087 | BQ20: 14591.72003 | BR20: 0 | BS20: 0 | BT20: 0 | BU20: 0 | BV20: 0 | BW20: 0 | BX20: 0 | CI20: =SUMIF('Results Database'!$E:$E,'Aggregate Summary'!AJ$4,'Results Database'!$ES:$ES)
A21: 17 | B21: Monitor/repair leaking flare/vent control valves | C21: 47481.03503 | D21: 897860.3566 | E21: 2084886.232 | F21: 907299.3031 | G21: 18180732.73 | H21: 40863215.31 | I21: 0.05233227323 | J21: 0.04938526791 | K21: 0.05102110093 | L21: 0 | M21: 0 | O21: 72165.37326 | P21: 5974.015816 | Q21: 25409.99977 | R21: 103549.3889 | S21: 86936.22806 | T21: 1172981.201 | U21: 277245.1947 | V21: 1079203.864 | W21: 2529430.259 | X21: 2529430.259 | Y21: 906944.9903 | Z21: 51.21656064 | AA21: 303.0962647 | AC21: 932272.9497 | AD21: 16446837.11 | AE21: 801622.6738 | AF21: 0 | AG21: 0 | AH21: 0 | AJ21: 0 | AK21: 0 | AL21: 0 | AM21: 0.6 | AN21: 0.7 | AO21: 0 | AP21: 0 | AQ21: 0 | AR21: 0 | AS21: 0 | AT21: 66 | AU21: 0.3 | AV21: 0.35 | AW21: 0 | AX21: 0.78 | AY21: 0.88 | AZ21: 0.06 | BA21: 21649.61198 | BB21: 2090.905536 | BC21: 0 | BD21: 351894.3602 | BE21: 97035.81814 | BF21: 0 | BG21: 56288.99115 | BH21: 5257.133918 | BI21: 1524.599986 | BJ21: 914925.3364 | BK21: 243975.7713 | BL21: 64752.23182 | BM21: 893134.6596 | BN21: 149308.4565 | BO21: 0 | BP21: 2322150.115 | BQ21: 375404.1193 | BR21: 102867.2315 | BS21: 0 | BT21: 0 | BU21: 0 | BV21: 0 | BW21: 0 | BX21: 0 | CI21: =SUMIF('Results Database'!$E:$E,'Aggregate Summary'!AJ$4,'Results Database'!$FB:$FB)
A22: 18 | B22: Install redundant compression | C22: 48909.83754 | D22: 3140724.361 | E22: 4363470.3 | F22: 907299.3031 | G22: 18180732.73 | H22: 40863215.31 | I22: 0.05390705952 | J22: 0.172750153 | K22: 0.1067823534 | L22: 0 | M22: 0 | O22: 117270.9348 | P22: 186257.6754 | Q22: 46581.93079 | R22: 350110.5409 | S22: 154010.2345 | T22: 2765504.224 | U22: 12341657.11 | V22: 2208896.896 | W22: 17316058.23 | X22: 17316058.23 | Y22: 906944.9903 | Z22: 51.21656064 | AA22: 303.0962647 | AC22: 932272.9497 | AD22: 16446837.11 | AE22: 801622.6738 | AF22: 0 | AG22: 0 | AH22: 0 | AJ22: 0 | AK22: 0 | AL22: 0 | AM22: 0.02 | AN22: 0.25 | AO22: 0 | AP22: 0 | AQ22: 0 | AR22: 0 | AS22: 0 | AT22: 9 | AU22: 0 | AV22: 0.1 | AW22: 0 | AX22: 0.25 | AY22: 0.5 | AZ22: 0 | BA22: 0 | BB22: 18625.76754 | BC22: 0 | BD22: 0 | BE22: 1234165.711 | BF22: 0 | BG22: 29317.7337 | BH22: 93128.83769 | BI22: 0 | BJ22: 691376.056 | BK22: 6170828.553 | BL22: 0 | BM22: 0 | BN22: 1699809.899 | BO22: 0 | BP22: 1424319.398 | BQ22: 8499049.496 | BR22: 0 | BS22: 0 | BT22: 0 | BU22: 0 | BV22: 0 | BW22: 0 | BX22: 0 | CI22: =SUMIF('Results Database'!$E:$E,'Aggregate Summary'!AJ$4,'Results Database'!$FK:$FK)
A23: 19 | B23: Limit Monthly Vent Volume | C23: 2103.452324 | D23: 48.86020778 | E23: 52635.1683 | F23: 868370.1174 | G23: 17427211.65 | H23: 39136464.58 | I23: 0.002422299296 | J23: 2.803673288e-06 | K23: 0.001344913723 | L23: 887413.0911 | M23: 53188.60278 | O23: 0 | P23: 2103.452324 | Q23: 0 | R23: 2103.452324 | S23: 2103.452324 | T23: 0 | U23: 48.86020778 | V23: 0 | W23: 48.86020778 | X23: 48.86020778 | Y23: 868015.8046 | Z23: 51.21656064 | AA23: 303.0962647 | AC23: 899965.0649 | AD23: 15749549.44 | AE23: 777697.1414 | AF23: 0 | AG23: 0 | AH23: 53188.60278 | AJ23: 0 | AK23: 887413.0911 | AL23: 0 | AM23: 1 | AN23: 1 | AO23: 1 | AP23: 0 | AQ23: 887413.0911 | AR23: 0 | AS23: 1 | AT23: N/A | AU23: 1 | AV23: 1 | AW23: 1 | AX23: 1 | AY23: 1 | AZ23: 1 | BA23: 0 | BB23: 2103.452324 | BC23: 0 | BD23: 0 | BE23: 48.86020778 | BF23: 0 | BG23: 0 | BH23: 2103.452324 | BI23: 0 | BJ23: 0 | BK23: 48.86020778 | BL23: 0 | BM23: 0 | BN23: 52635.1683 | BO23: 0 | BP23: 0 | BQ23: 52635.1683 | BR23: 0 | BS23: 0 | BT23: 887413.0911 | BU23: 0 | BV23: 0 | BW23: 887413.0911 | BX23: 0 | CI23: =SUMIF('Results Database'!$E:$E,'Aggregate Summary'!AJ$4,'Results Database'!$FT:$FT)
B26: fixed | C26: 1085
B27: floater | C27: 121
B28: single well | C28: 827
C29: 2033
B31: Alternate Count | C31: 1784 | AS31: 681
AS32: 0
B34: Note: Adjusted means after applying percentages
B35: Note: Aggregate is before applying percentage adjustments
A37: Bubble Charts
C38: NPV
D39: Equivalent CO2 Reduced | E39: Number of Complexes with + NPV
B40: =B5 -> Reroute Gas Pig Trap Vent | C40: =L5 -> 0 | D40: =E5 -> 17178.16356 | E40: =AS5 -> 0 | AS40: 0
B41: =B6 -> Limit Monthly Flare Volume | C41: =L6 -> 183053269.8 | D41: =E6 -> 10692917.42 | E41: =AS6 -> 88 | AS41: 539
B42: Compressors Off - Maintain Pressure | C42: 6296392.164 | D42: 201442.5327 | E42: 646
B43: Compressors Off- Blowdown to fuel | C43: 0 | D43: 27142.08491 | E43: 0
B44: Compressor Static Seals | C44: 3070227.806 | D44: 331191.2189 | E44: 492
B45: Compressors Off - Install ejector | C45: 0 | D45: 38686.1179 | E45: 0
B46: Using Pipeline Pump-Down Techniques to Lower Gas Line Pressure before Maintenance | C46: 0 | D46: 5519.027191 | E46: 0
B47: Use Inert Gases and Pigs to Perform Pipeline Purges | C47: 0 | D47: 5519.027191 | E47: 0
B48: Reduced Emission Completions | C48: 32905812.3 | D48: 1174107.074 | E48: 121
B49: Foaming agents to Remove Accumulated Fluid in Gas wells | C49: 1247078.218 | D49: 64342.74045 | E49: 603 | AS49: 586
B50: Velocity tubing to Remove Accumulated Fluid in Gas Wells | C50: 0 | D50: 31440.06885 | E50: 0 | AS50: 0
B51: Install Flares | C51: 0 | D51: 778050.8743 | E51: 0
B52: Gas Lift Well to remove liquid accumulation | C52: 0 | D52: 35285.70118 | E52: 0
B53: Microturbines | C53: 0 | D53: 487876.5832 | E53: 0
B54: Electric submersible pump (ESP) to unload wells | C54: 0 | D54: 31667.35508 | E54: 0
B55: Downhole Jetpump for Well Unloading | C55: 0 | D55: 34099.30841 | E55: 0
B56: Monitor/repair leaking flare/vent control valves | C56: 0 | D56: 2084886.232 | E56: 0
B57: Install redundant compression | C57: 0 | D57: 4363470.3 | E57: 0
B58: Limit Monthly Vent Volume | C58: 887413.0911 | D58: 52635.1683 | E58: 1 | AS58: 43
AS59: 0
AS67: 0
AS68: 0
AS76: 0
AS77: 161
AS85: 214
AS86: 622
AS94: 665
AS95: 0
AS103: 0
AS104: 0
AS112: 4
AS113: 486
AS121: 569
AS122: 0
AS130: 0
AS131: 0
AS139: 0
AS140: 0
AS148: 0
AS149: 0
AS157: 174
AS158: 0
AS166: 32
AS167: 1
AS175: 0

Sheet Prod High Case
A1: FINAL AGREGATE SUMMARY | E1: =CH4_factor -> 25 | H1: =E1 -> 25
C2: Aplicabiity Adjusted | D2: Aplicabiity Adjusted | E2: Aplicabiity Adjusted | F2: Adjusted | G2: Adjusted | H2: Adjusted | I2: Percent | J2: Percent | K2: Percent | L2: Adjusted | M2: Adjusted | O2: Aggregate | P2: Aggregate | Q2: Aggregate | R2: Aggregate | S2: Aggregate | T2: Aggregate | U2: Aggregate | V2: Aggregate | W2: Aggregate | X2: Aggregate | Y2: Aggregate | Z2: Aggregate | AA2: Aggregate | AB2: Aggregate | AC2: Aggregate | AD2: Aggregate | AE2: Aggregate | AF2: Oil | AG2: Oil | AH2: Oil
C3: Reduction | D3: Reduction | E3: Reduct Equivalent | F3: Existing | G3: Existing | H3: Equivalent CO2 | I3: Reduction | J3: Reduction | K3: Reduction | L3: NPV | M3: Oil | O3: Reduced Methane | P3: Reduced Methane | Q3: Reduced Methane | R3: Reduced Methane | S3: Methane | T3: Reduced CO2 | U3: Reduced CO2 | V3: Reduced CO2 | W3: Reduced CO2 | X3: CO2 | Y3: Exist Methane | Z3: Exist Methane | AA3: Exist Methane | AB3: Exist CO2 | AC3: Exist CO2 | AD3: Exist CO2 | AE3: Exist CO2 | AF3: Deferred | AG3: Deferred | AH3: Deferred | AJ3: Total NPV b/4 Ratios | AM3: Percent Applicable | AP3: Final NPV - Expected Value Case | AS3: # of Complexes | AT3: # of Complexes | AU3: Percent Applicable 10% Case | AX3: Percent Applicable 90% Case | BA3: Final NPV - 10% Case | BD3: Final NPV - 90% | BG3: Final Methane - 10% Case | BJ3: Final CO2 - 10% Case | BM3: Final Methane - 90% | BP3: Final CO2 - 90% | BS3: Final CO2 Equiv - 10% Case | BV3: Final CO2 Equiv - 90% Case
C4: Methane | D4: CO2 | E4: Total CO2 | F4: Methane | G4: CO2 | H4: Total | I4: Methane | J4: CO2 | K4: Equiv CO2 | L4: Savings | M4: Deferred | O4: =AJ4 -> fixed | P4: =AK4 -> floater | Q4: =AL4 -> single well | R4: Sum | S4: Check | T4: =AJ4 -> fixed | U4: =AK4 -> floater | V4: =AL4 -> single well | W4: Sum | X4: Check | Y4: =T4 -> fixed | Z4: =U4 -> floater | AA4: =V4 -> single well | AB4: =W4 -> Sum | AC4: =Y4 -> fixed | AD4: =Z4 -> floater | AE4: =AA4 -> single well | AF4: =AC4 -> fixed | AG4: =AD4 -> floater | AH4: =AE4 -> single well | AJ4: fixed | AK4: floater | AL4: single well | AM4: =AJ4 -> fixed | AN4: floater | AO4: single well | AP4: fixed | AQ4: floater | AR4: single well | AS4: > 0 NPV | AT4: > 0 NPV @ $49 SCOC | AU4: =AM4 -> fixed | AV4: =AN4 -> floater | AW4: single well | AX4: =AP4 -> fixed | AY4: =AQ4 -> floater | AZ4: single well | BA4: =AX4 -> fixed | BB4: floater | BC4: single well | BD4: fixed | BE4: floater | BF4: single well | BG4: fixed | BH4: floater | BI4: single well | BJ4: fixed | BK4: floater | BL4: single well | BM4: =BG4 -> fixed | BN4: floater | BO4: single well | BP4: fixed | BQ4: floater | BR4: single well | BS4: =BP4 -> fixed | BT4: floater | BU4: single well | BV4: fixed | BW4: floater | BX4: single well
A5: 1 | B5: Reroute Gas Pig Trap Vent | C5: 665.2824671 | D5: 535.0971182 | E5: 17167.1588 | F5: 786267.3263 | G5: 21261722.39 | H5: 40918405.55 | I5: 0.0008461275763 | J5: 2.51671576e-05 | K5: 0.0004195461325 | L5: -49207040.57 | M5: 0 | O5: 1146.189777 | P5: 229.7850627 | Q5: 776.8923547 | R5: 2152.867194 | S5: 1531.900418 | T5: 1217.301458 | U5: 53.52948351 | V5: 298.4720372 | W5: 1569.302978 | X5: 1569.302978 | Y5: 785915.3248 | Z5: 53.52948351 | AA5: 298.4720372 | AC5: 830177.5722 | AD5: 18960937.44 | AE5: 1470607.379 | AF5: 0 | AG5: 0 | AH5: 0 | AJ5: -93282221.14 | AK5: -13215724.57 | AL5: -61209096.92 | AM5: 0.4 | AN5: 0.9 | AO5: 0 | AP5: -37312888.46 | AQ5: -11894152.11 | AR5: 0 | AS5: 0 | AT5: 0 | AU5: 0.1 | AV5: 0.3 | AW5: 0 | AX5: 0.5 | AY5: 1 | AZ5: 0 | BA5: -3731288.846 | BB5: -3568245.634 | BC5: 0 | BD5: -18656444.23 | BE5: -11894152.11 | BF5: 0 | BG5: 114.6189777 | BH5: 68.9355188 | BI5: 0 | BJ5: 121.7301458 | BK5: 16.05884505 | BL5: 0 | BM5: 573.0948884 | BN5: 229.7850627 | BO5: 0 | BP5: 608.6507288 | BQ5: 53.52948351 | BR5: 0 | BS5: 2987.204588 | BT5: 1739.446815 | BU5: 0 | BV5: 14936.02294 | BW5: 5798.15605 | BX5: 0 | CD5: =SUMIF('[161104-Financial Analysis_v11(high prod case).xlsm]Results Database'!$E:$E,'Prod High Case'!AJ$4,'[161104-Financial Analysis_v11(high prod case).xlsm]Results Database'!$N:$N)
A6: 2 | B6: Limit Monthly Flare Volume | C6: 127878.8399 | D6: 8603819.385 | E6: 11800790.38 | F6: 744616.2707 | G6: 18588046.16 | H6: 37203452.93 | I6: 0.171737907 | J6: 0.4628684108 | K6: 0.3171961055 | L6: 629593162.1 | M6: 258781.3569 | O6: 2128.236215 | P6: 141378.1878 | Q6: 4299.587882 | R6: 147806.0119 | S6: 17816.15265 | T6: 143189.9134 | U6: 9512069.345 | V6: 289280.6785 | W6: 9944539.937 | X6: 9944539.937 | Y6: 744264.2692 | Z6: 53.52948351 | AA6: 298.4720372 | AC6: 794773.8336 | AD6: 17001996.11 | AE6: 791276.2111 | AF6: 42292.40566 | AG6: 273437.3724 | AH6: 39396275.74 | AJ6: 9009836.734 | AK6: 696544679 | AL6: 19535714.15 | AM6: 0.3 | AN6: 0.9 | AO6: 0 | AP6: 2702951.02 | AQ6: 626890211.1 | AR6: 0 | AS6: 113 | AT6: N/A | AU6: 0.3 | AV6: 0.9 | AW6: 0 | AX6: 1 | AY6: 1 | AZ6: 1 | BA6: 810885.306 | BB6: 564201190 | BC6: 0 | BD6: 2702951.02 | BE6: 626890211.1 | BF6: 0 | BG6: 638.4708645 | BH6: 127240.369 | BI6: 0 | BJ6: 42956.97401 | BK6: 8560862.411 | BL6: 0 | BM6: 2128.236215 | BN6: 141378.1878 | BO6: 4299.587882 | BP6: 143189.9134 | BQ6: 9512069.345 | BR6: 289280.6785 | BS6: 58918.74563 | BT6: 11741871.64 | BU6: 0 | BV6: 196395.8188 | BW6: 13046524.04 | BX6: 396770.3756 | CD6: =SUMIF('[161104-Financial Analysis_v11(high prod case).xlsm]Results Database'!$E:$E,'Prod High Case'!AJ$4,'[161104-Financial Analysis_v11(high prod case).xlsm]Results Database'!$W:$W)
A7: 3 | B7: Compressors Off - Maintain Pressure | C7: 4250.312683 | D7: 78738.36171 | E7: 184996.1788 | F7: 786267.3263 | G7: 21261722.39 | H7: 40918405.55 | I7: 0.005405683971 | J7: 0.003703291777 | K7: 0.0045210994 | L7: 7603477.699 | M7: 0 | O7: 71165.8068 | P7: 6920.223426 | Q7: 26237.889 | R7: 104323.9192 | S7: 87359.63841 | T7: 993184.6028 | U7: 290791.3157 | V7: 1112600.652 | W7: 2396576.57 | X7: 2396576.57 | Y7: 785915.3248 | Z7: 53.52948351 | AA7: 298.4720372 | AC7: 830177.5722 | AD7: 18960937.44 | AE7: 1470607.379 | AF7: 0 | AG7: 0 | AH7: 0 | AJ7: 103881210.9 | AK7: 24094171.52 | AL7: 93926182.67 | AM7: 0.05 | AN7: 0.1 | AO7: 0 | AP7: 5194060.547 | AQ7: 2409417.152 | AR7: 0 | AS7: 640 | AT7: 662 | AU7: 0 | AV7: 0 | AW7: 0 | AX7: 0.28 | AY7: 0.5 | AZ7: 0 | BA7: 0 | BB7: 0 | BC7: 0 | BD7: 1454336.953 | BE7: 1204708.576 | BF7: 0 | BG7: 0 | BH7: 0 | BI7: 0 | BJ7: 0 | BK7: 0 | BL7: 0 | BM7: 19926.4259 | BN7: 3460.111713 | BO7: 0 | BP7: 278091.6888 | BQ7: 145395.6578 | BR7: 0 | BS7: 0 | BT7: 0 | BU7: 0 | BV7: 776252.3364 | BW7: 231898.4507 | BX7: 0 | CD7: =SUMIF('[161104-Financial Analysis_v11(high prod case).xlsm]Results Database'!$E:$E,'Prod High Case'!AJ$4,'[161104-Financial Analysis_v11(high prod case).xlsm]Results Database'!$AF:$AF)
A8: 4 | B8: Compressors Off- Blowdown to fuel | C8: 746.5025826 | D8: 6926.38795 | E8: 25588.95251 | F8: 786267.3263 | G8: 21261722.39 | H8: 40918405.55 | I8: 0.0009494259236 | J8: 0.0003257679609 | K8: 0.0006253653379 | L8: -53136760.44 | M8: 0 | O8: 1259.313093 | P8: 54.97998078 | Q8: 303.2163015 | R8: 1617.509376 | S8: 1478.45906 | T8: 8368.556276 | U8: 2371.10408 | V8: 9256.758619 | W8: 19996.41897 | X8: 19996.41897 | Y8: 785915.3248 | Z8: 53.52948351 | AA8: 298.4720372 | AC8: 830177.5722 | AD8: 18960937.44 | AE8: 1470607.379 | AF8: 0 | AG8: 0 | AH8: 0 | AJ8: -76026536.82 | AK8: -11553229.79 | AL8: -44731758.01 | AM8: 0.55 | AN8: 0.98 | AO8: 0 | AP8: -41814595.25 | AQ8: -11322165.19 | AR8: 0 | AS8: 0 | AT8: 0 | AU8: 0.56 | AV8: 0.98 | AW8: 0 | AX8: 0.56 | AY8: 1 | AZ8: 0 | BA8: -23416173.34 | BB8: -11095721.89 | BC8: 0 | BD8: -23416173.34 | BE8: -11322165.19 | BF8: 0 | BG8: 705.2153323 | BH8: 53.88038116 | BI8: 0 | BJ8: 4686.391515 | BK8: 2323.681998 | BL8: 0 | BM8: 705.2153323 | BN8: 54.97998078 | BO8: 0 | BP8: 4686.391515 | BQ8: 2371.10408 | BR8: 0 | BS8: 22316.77482 | BT8: 3670.691527 | BU8: 0 | BV8: 22316.77482 | BW8: 3745.603599 | BX8: 0 | CD8: =SUMIF('[161104-Financial Analysis_v11(high prod case).xlsm]Results Database'!$E:$E,'Prod High Case'!AJ$4,'[161104-Financial Analysis_v11(high prod case).xlsm]Results Database'!$AO:$AO)
A9: 5 | B9: Compressor Static Seals | C9: 8659.47877 | D9: 87299.99055 | E9: 303786.9598 | F9: 786267.3263 | G9: 21261722.39 | H9: 40918405.55 | I9: 0.0110134028 | J9: 0.004105969824 | K9: 0.007424213034 | L9: 805527.1259 | M9: 0 | O9: 33808.17133 | P9: 2074.359372 | Q9: 9891.179176 | R9: 45773.70988 | S9: 40507.60436 | T9: 313226.786 | U9: 89932.94049 | V9: 350229.0615 | W9: 753388.788 | X9: 753388.788 | Y9: 785915.3248 | Z9: 53.52948351 | AA9: 298.4720372 | AC9: 830177.5722 | AD9: 18960937.44 | AE9: 1470607.379 | AF9: 0 | AG9: 0 | AH9: 0 | AJ9: 2376421.759 | AK9: 2114216.861 | AL9: 9583431.73 | AM9: 0.25 | AN9: 0.1 | AO9: 0 | AP9: 594105.4398 | AQ9: 211421.6861 | AR9: 0 | AS9: 486 | AT9: 531 | AU9: 0.1 | AV9: 0.05 | AW9: 0 | AX9: 0.56 | AY9: 0.25 | AZ9: 0 | BA9: 59410.54398 | BB9: 10571.08431 | BC9: 0 | BD9: 332699.0463 | BE9: 52855.42153 | BF9: 0 | BG9: 3380.817133 | BH9: 103.7179686 | BI9: 0 | BJ9: 31322.6786 | BK9: 4496.647025 | BL9: 0 | BM9: 18932.57595 | BN9: 518.5898429 | BO9: 0 | BP9: 175407.0002 | BQ9: 22483.23512 | BR9: 0 | BS9: 115843.1069 | BT9: 7089.596239 | BU9: 0 | BV9: 648721.3988 | BW9: 35447.9812 | BX9: 0 | CD9: =SUMIF('[161104-Financial Analysis_v11(high prod case).xlsm]Results Database'!$E:$E,'Prod High Case'!AJ$4,'[161104-Financial Analysis_v11(high prod case).xlsm]Results Database'!$AX:$AX)
A10: 6 | B10: Compressors Off - Install ejector | C10: 865.0212952 | D10: 15337.2617 | E10: 36962.79408 | F10: 786267.3263 | G10: 21261722.39 | H10: 40918405.55 | I10: 0.001100161823 | J10: 0.0007213555617 | K10: 0.0009033292862 | L10: -8134077.814 | M10: 0 | O10: 12653.46714 | P10: 580.8698458 | Q10: 3254.681754 | R10: 16489.01874 | S10: 14948.28908 | T10: 93594.30525 | U10: 26643.8661 | V10: 104692.0739 | W10: 224930.2452 | X10: 224930.2452 | Y10: 785915.3248 | Z10: 53.52948351 | AA10: 298.4720372 | AC10: 830177.5722 | AD10: 18960937.44 | AE10: 1470607.379 | AF10: 0 | AG10: 0 | AH10: 0 | AJ10: -79693675.51 | AK10: -10373485.09 | AL10: -49055860.56 | AM10: 0.05 | AN10: 0.4 | AO10: 0 | AP10: -3984683.776 | AQ10: -4149394.038 | AR10: 0 | AS10: 0 | AT10: 43 | AU10: 0 | AV10: 0 | AW10: 0 | AX10: 0.1 | AY10: 0.5 | AZ10: 0 | BA10: 0 | BB10: 0 | BC10: 0 | BD10: -398468.3776 | BE10: -2074697.019 | BF10: 0 | BG10: 0 | BH10: 0 | BI10: 0 | BJ10: 0 | BK10: 0 | BL10: 0 | BM10: 1265.346714 | BN10: 290.4349229 | BO10: 0 | BP10: 9359.430525 | BQ10: 13321.93305 | BR10: 0 | BS10: 0 | BT10: 0 | BU10: 0 | BV10: 40993.09837 | BW10: 20582.80612 | BX10: 0 | CD10: =SUMIF('[161104-Financial Analysis_v11(high prod case).xlsm]Results Database'!$E:$E,'Prod High Case'!AJ$4,'[161104-Financial Analysis_v11(high prod case).xlsm]Results Database'!$BG:$BG)
A11: 7 | B11: Using Pipeline Pump-Down Techniques to Lower Gas Line Pressure before Maintenance | C11: 141.7165531 | D11: 1665.320784 | E11: 5208.234612 | F11: 786267.3263 | G11: 21261722.39 | H11: 40918405.55 | I11: 0.0001802396569 | J11: 7.832482962e-05 | K11: 0.0001272834203 | L11: -3964456.458 | M11: 0 | O11: 606.4707205 | P11: 25.97770864 | Q11: 148.6710944 | R11: 781.1195235 | S11: 712.3849148 | T11: 4188.01036 | U11: 1188.646703 | V11: 4667.907205 | W11: 10044.56427 | X11: 10044.56427 | Y11: 785915.3248 | Z11: 53.52948351 | AA11: 298.4720372 | AC11: 830177.5722 | AD11: 18960937.44 | AE11: 1470607.379 | AF11: 0 | AG11: 0 | AH11: 0 | AJ11: -12312413.39 | AK11: -2201786.88 | AL11: -8021606.808 | AM11: 0.2 | AN11: 0.5 | AO11: 0.05 | AP11: -2462482.677 | AQ11: -1100893.44 | AR11: -401080.3404 | AS11: 0 | AT11: 0 | AU11: 0 | AV11: 0.1 | AW11: 0 | AX11: 0.47 | AY11: 0.9 | AZ11: 0.15 | BA11: 0 | BB11: -110089.344 | BC11: 0 | BD11: -1157366.858 | BE11: -990804.0958 | BF11: -60162.05106 | BG11: 0 | BH11: 2.597770864 | BI11: 0 | BJ11: 0 | BK11: 118.8646703 | BL11: 0 | BM11: 285.0412386 | BN11: 23.37993778 | BO11: 22.30066416 | BP11: 1968.364869 | BQ11: 1069.782033 | BR11: 700.1860808 | BS11: 0 | BT11: 183.8089419 | BU11: 0 | BV11: 9094.395834 | BW11: 1654.280477 | BX11: 1257.702685 | CD11: =SUMIF('[161104-Financial Analysis_v11(high prod case).xlsm]Results Database'!$E:$E,'Prod High Case'!AJ$4,'[161104-Financial Analysis_v11(high prod case).xlsm]Results Database'!$BP:$BP)
A12: 8 | B12: Use Inert Gases and Pigs to Perform Pipeline Purges | C12: 141.7165531 | D12: 1665.320784 | E12: 5208.234612 | F12: 786267.3263 | G12: 21261722.39 | H12: 40918405.55 | I12: 0.0001802396569 | J12: 7.832482962e-05 | K12: 0.0001272834203 | L12: -6732130.496 | M12: 0 | O12: 606.4707205 | P12: 25.97770864 | Q12: 148.6710944 | R12: 781.1195235 | S12: 712.3849148 | T12: 4188.01036 | U12: 1188.646703 | V12: 4667.907205 | W12: 10044.56427 | X12: 10044.56427 | Y12: 785915.3248 | Z12: 53.52948351 | AA12: 298.4720372 | AC12: 830177.5722 | AD12: 18960937.44 | AE12: 1470607.379 | AF12: 0 | AG12: 0 | AH12: 0 | AJ12: -20907121.8 | AK12: -3736475.755 | AL12: -13649365.18 | AM12: 0.2 | AN12: 0.5 | AO12: 0.05 | AP12: -4181424.359 | AQ12: -1868237.877 | AR12: -682468.2591 | AS12: 0 | AT12: 0 | AU12: 0 | AV12: 0.1 | AW12: 0 | AX12: 0.47 | AY12: 0.9 | AZ12: 0.15 | BA12: 0 | BB12: -186823.7877 | BC12: 0 | BD12: -1965269.449 | BE12: -1681414.09 | BF12: -102370.2389 | BG12: 0 | BH12: 2.597770864 | BI12: 0 | BJ12: 0 | BK12: 118.8646703 | BL12: 0 | BM12: 285.0412386 | BN12: 23.37993778 | BO12: 22.30066416 | BP12: 1968.364869 | BQ12: 1069.782033 | BR12: 700.1860808 | BS12: 0 | BT12: 183.8089419 | BU12: 0 | BV12: 9094.395834 | BW12: 1654.280477 | BX12: 1257.702685 | CD12: =SUMIF('[161104-Financial Analysis_v11(high prod case).xlsm]Results Database'!$E:$E,'Prod High Case'!AJ$4,'[161104-Financial Analysis_v11(high prod case).xlsm]Results Database'!$BY:$BY)
A13: 9 | B13: Reduced Emission Completions | C13: 15221.81972 | D13: 762128.1128 | E13: 1142673.606 | F13: 786267.3263 | G13: 21261722.39 | H13: 40918405.55 | I13: 0.01935959845 | J13: 0.03584507871 | K13: 0.02792566304 | L13: 36041604.37 | M13: 0 | O13: 20252.21345 | P13: 20317.53271 | Q13: 8361.126129 | R13: 48930.87229 | S13: 26206.08917 | T13: 412249.5421 | U13: 1318131.454 | V13: 396948.7274 | W13: 2127329.724 | X13: 2127329.724 | Y13: 785915.3248 | Z13: 53.52948351 | AA13: 298.4720372 | AC13: 830177.5722 | AD13: 18960937.44 | AE13: 1470607.379 | AF13: 0 | AG13: 0 | AH13: 0 | AJ13: -45139407.94 | AK13: 94652912.72 | AL13: -19783512.79 | AM13: 0.25 | AN13: 0.5 | AO13: 0 | AP13: -11284851.98 | AQ13: 47326456.36 | AR13: 0 | AS13: 189 | AT13: 219 | AU13: 0 | AV13: 0.1 | AW13: 0 | AX13: 0.4 | AY13: 0.8 | AZ13: 0.1 | BA13: 0 | BB13: 4732645.636 | BC13: 0 | BD13: -4513940.794 | BE13: 37861165.09 | BF13: 0 | BG13: 0 | BH13: 2031.753271 | BI13: 0 | BJ13: 0 | BK13: 131813.1454 | BL13: 0 | BM13: 8100.885379 | BN13: 16254.02617 | BO13: 836.1126129 | BP13: 164899.8168 | BQ13: 1054505.164 | BR13: 39694.87274 | BS13: 0 | BT13: 182606.9772 | BU13: 0 | BV13: 367421.9513 | BW13: 1460855.818 | BX13: 60597.68806 | CD13: =SUMIF('[161104-Financial Analysis_v11(high prod case).xlsm]Results Database'!$E:$E,'Prod High Case'!AJ$4,'[161104-Financial Analysis_v11(high prod case).xlsm]Results Database'!$CH:$CH)
A14: 10 | B14: Foaming agents to Remove Accumulated Fluid in Gas wells | C14: 1600.928304 | D14: 23818.67665 | E14: 63841.88425 | F14: 786267.3263 | G14: 21261722.39 | H14: 40918405.55 | I14: 0.002036111956 | J14: 0.001120260918 | K14: 0.001560224143 | L14: 1214780.065 | M14: 0 | O14: 8371.069021 | P14: 1122.232409 | Q14: 2330.447099 | R14: 11823.74853 | S14: 10191.56745 | T14: 85666.66154 | U14: 29535.52993 | V14: 80151.24429 | W14: 195353.4358 | X14: 195353.4358 | Y14: 785915.3248 | Z14: 53.52948351 | AA14: 298.4720372 | AC14: 830177.5722 | AD14: 18960937.44 | AE14: 1470607.379 | AF14: 0 | AG14: 0 | AH14: 0 | AJ14: 4590282.967 | AK14: 1770186.715 | AL14: 3492189.48 | AM14: 0.15 | AN14: 0.1 | AO14: 0.1 | AP14: 688542.445 | AQ14: 177018.6715 | AR14: 349218.948 | AS14: 590 | AT14: 642 | AU14: 0.05 | AV14: 0 | AW14: 0.05 | AX14: 0.6 | AY14: 0.3 | AZ14: 0.15 | BA14: 34427.12225 | BB14: 0 | BC14: 17460.9474 | BD14: 413125.467 | BE14: 53105.60146 | BF14: 52382.8422 | BG14: 418.5534511 | BH14: 0 | BI14: 116.5223549 | BJ14: 4283.333077 | BK14: 0 | BL14: 4007.562215 | BM14: 5022.641413 | BN14: 336.6697226 | BO14: 349.5670648 | BP14: 51399.99692 | BQ14: 8860.658979 | BR14: 12022.68664 | BS14: 14747.16935 | BT14: 0 | BU14: 6920.621088 | BV14: 176966.0322 | BW14: 17277.40204 | BX14: 20761.86326 | CD14: =SUMIF('[161104-Financial Analysis_v11(high prod case).xlsm]Results Database'!$E:$E,'Prod High Case'!AJ$4,'[161104-Financial Analysis_v11(high prod case).xlsm]Results Database'!$CQ:$CQ)
A15: 11 | B15: Velocity tubing to Remove Accumulated Fluid in Gas Wells | C15: 687.3473413 | D15: 13733.20334 | E15: 30916.88687 | F15: 786267.3263 | G15: 21261722.39 | H15: 40918405.55 | I15: 0.0008741903908 | J15: 0.0006459120802 | K15: 0.0007555740859 | L15: -1016494323 | M15: 0 | O15: 8307.891105 | P15: 785.6944261 | Q15: 2326.680647 | R15: 11420.26618 | S15: 10124.62308 | T15: 83812.06783 | U15: 30549.68534 | V15: 80151.1568 | W15: 194512.91 | X15: 194512.91 | Y15: 785915.3248 | Z15: 53.52948351 | AA15: 298.4720372 | AC15: 830177.5722 | AD15: 18960937.44 | AE15: 1470607.379 | AF15: 0 | AG15: 0 | AH15: 0 | AJ15: -8514967212 | AK15: -1163902278 | AL15: -5325508490 | AM15: 0.05 | AN15: 0.05 | AO15: 0.1 | AP15: -425748360.6 | AQ15: -58195113.89 | AR15: -532550849 | AS15: 0 | AT15: 0 | AU15: 0 | AV15: 0 | AW15: 0 | AX15: 0.25 | AY15: 0.15 | AZ15: 0 | BA15: 0 | BB15: 0 | BC15: 0 | BD15: -106437090.2 | BE15: -8729267.083 | BF15: 0 | BG15: 0 | BH15: 0 | BI15: 0 | BJ15: 0 | BK15: 0 | BL15: 0 | BM15: 2076.972776 | BN15: 117.8541639 | BO15: 0 | BP15: 20953.01696 | BQ15: 4582.452801 | BR15: 0 | BS15: 0 | BT15: 0 | BU15: 0 | BV15: 72877.33636 | BW15: 7528.806899 | BX15: 0 | CD15: =SUMIF('[161104-Financial Analysis_v11(high prod case).xlsm]Results Database'!$E:$E,'Prod High Case'!AJ$4,'[161104-Financial Analysis_v11(high prod case).xlsm]Results Database'!$CZ:$CZ)
A16: 12 | B16: Install Flares | C16: 30275.97165 | D16: -41417.14338 | E16: 715482.1478 | F16: 786267.3263 | G16: 21261722.39 | H16: 40918405.55 | I16: 0.03850595164 | J16: -0.001947967461 | K16: 0.0174855823 | L16: -379206260 | M16: 0 | O16: 151379.8582 | P16: 43404.89547 | Q16: 79684.71238 | R16: 274469.4661 | S16: 181340.6775 | T16: -207085.7169 | U16: -9025.549101 | V16: -38364.96883 | W16: -254476.2348 | X16: -254476.2348 | Y16: 785915.3248 | Z16: 53.52948351 | AA16: 298.4720372 | AC16: 830177.5722 | AD16: 18960937.44 | AE16: 1470607.379 | AF16: 0 | AG16: 0 | AH16: 0 | AJ16: -1896031300 | AK16: -255046965.6 | AL16: -1202702873 | AM16: 0.2 | AN16: 0 | AO16: 0 | AP16: -379206260 | AQ16: 0 | AR16: 0 | AS16: 0 | AT16: 4 | AU16: 0 | AV16: 0 | AW16: 0 | AX16: 0.35 | AY16: 0 | AZ16: 0 | BA16: 0 | BB16: 0 | BC16: 0 | BD16: -132722191 | BE16: 0 | BF16: 0 | BG16: 0 | BH16: 0 | BI16: 0 | BJ16: 0 | BK16: 0 | BL16: 0 | BM16: 52982.95038 | BN16: 0 | BO16: 0 | BP16: -72480.00092 | BQ16: 0 | BR16: 0 | BS16: 0 | BT16: 0 | BU16: 0 | BV16: 1252093.759 | BW16: 0 | BX16: 0 | CD16: =SUMIF('[161104-Financial Analysis_v11(high prod case).xlsm]Results Database'!$E:$E,'Prod High Case'!AJ$4,'[161104-Financial Analysis_v11(high prod case).xlsm]Results Database'!$DI:$DI)
A17: 13 | B17: Gas Lift Well to remove liquid accumulation | C17: 934.8618836 | D17: 11496.9945 | E17: 34868.54159 | F17: 786267.3263 | G17: 21261722.39 | H17: 40918405.55 | I17: 0.001188987323 | J17: 0.0005407367421 | K17: 0.000852148101 | L17: -8892299.916 | M17: 0 | O17: 8352.588171 | P17: 996.0306653 | Q17: 2329.188296 | R17: 11677.80713 | S17: 10171.8278 | T17: 85054.10677 | U17: 29915.83821 | V17: 80151.21505 | W17: 195121.16 | X17: 195121.16 | Y17: 785915.3248 | Z17: 53.52948351 | AA17: 298.4720372 | AC17: 830177.5722 | AD17: 18960937.44 | AE17: 1470607.379 | AF17: 0 | AG17: 0 | AH17: 0 | AJ17: -79416508.56 | AK17: -9506490.6 | AL17: -48836263.97 | AM17: 0.1 | AN17: 0.1 | AO17: 0 | AP17: -7941650.856 | AQ17: -950649.06 | AR17: 0 | AS17: 0 | AT17: 0 | AU17: 0.05 | AV17: 0.05 | AW17: 0 | AX17: 0.5 | AY17: 0.3 | AZ17: 0 | BA17: -397082.5428 | BB17: -47532.453 | BC17: 0 | BD17: -3970825.428 | BE17: -285194.718 | BF17: 0 | BG17: 417.6294085 | BH17: 49.80153327 | BI17: 0 | BJ17: 4252.705339 | BK17: 1495.79191 | BL17: 0 | BM17: 4176.294085 | BN17: 298.8091996 | BO17: 0 | BP17: 42527.05339 | BQ17: 8974.751463 | BR17: 0 | BS17: 14693.44055 | BT17: 2740.830242 | BU17: 0 | BV17: 146934.4055 | BW17: 16444.98145 | BX17: 0 | CD17: =SUMIF('[161104-Financial Analysis_v11(high prod case).xlsm]Results Database'!$E:$E,'Prod High Case'!AJ$4,'[161104-Financial Analysis_v11(high prod case).xlsm]Results Database'!$DR:$DR)
A18: 14 | B18: Microturbines | C18: 4366.851781 | D18: 293806.2626 | E18: 402977.5572 | F18: 786267.3263 | G18: 21261722.39 | H18: 40918405.55 | I18: 0.005553902134 | J18: 0.01381855417 | K18: 0.009848320132 | L18: -536540366.3 | M18: 0 | O18: 15835.22535 | P18: 4080.454452 | Q18: 15976.16244 | R18: 35891.84224 | S18: 20433.25 | T18: 1065410.188 | U18: 274537.1568 | V18: 1074892.58 | W18: 2414839.925 | X18: 2414839.925 | Y18: 785915.3248 | Z18: 53.52948351 | AA18: 298.4720372 | AC18: 830177.5722 | AD18: 18960937.44 | AE18: 1470607.379 | AF18: 0 | AG18: 0 | AH18: 0 | AJ18: -2037548130 | AK18: -271533337.4 | AL18: -1280219993 | AM18: 0.25 | AN18: 0.1 | AO18: 0 | AP18: -509387032.6 | AQ18: -27153333.74 | AR18: 0 | AS18: 0 | AT18: 0 | AU18: 0 | AV18: 0 | AW18: 0 | AX18: 0.5 | AY18: 0.2 | AZ18: 0 | BA18: 0 | BB18: 0 | BC18: 0 | BD18: -254693516.3 | BE18: -5430666.747 | BF18: 0 | BG18: 0 | BH18: 0 | BI18: 0 | BJ18: 0 | BK18: 0 | BL18: 0 | BM18: 7917.612673 | BN18: 816.0908904 | BO18: 0 | BP18: 532705.0939 | BQ18: 54907.43137 | BR18: 0 | BS18: 0 | BT18: 0 | BU18: 0 | BV18: 730645.4107 | BW18: 75309.70363 | BX18: 0 | CD18: =SUMIF('[161104-Financial Analysis_v11(high prod case).xlsm]Results Database'!$E:$E,'Prod High Case'!AJ$4,'[161104-Financial Analysis_v11(high prod case).xlsm]Results Database'!$EA:$EA)
A19: 15 | B19: Electric submersible pump (ESP) to unload wells | C19: 826.3854503 | D19: 9713.481102 | E19: 30373.11736 | F19: 786267.3263 | G19: 21261722.39 | H19: 40918405.55 | I19: 0.001051023517 | J19: 0.0004568529737 | K19: 0.0007422849681 | L19: -613989929.3 | M19: 0 | O19: 7885.847218 | P19: 756.0145694 | Q19: 2324.083206 | R19: 10965.94499 | S19: 9694.283683 | T19: 82051.93294 | U19: 30165.75615 | V19: 80151.09647 | W19: 192368.7856 | X19: 192368.7856 | Y19: 785915.3248 | Z19: 53.52948351 | AA19: 298.4720372 | AC19: 830177.5722 | AD19: 18960937.44 | AE19: 1470607.379 | AF19: 0 | AG19: 0 | AH19: 0 | AJ19: -5727401826 | AK19: -824994933.1 | AL19: -3694313025 | AM19: 0.1 | AN19: 0.05 | AO19: 0 | AP19: -572740182.6 | AQ19: -41249746.66 | AR19: 0 | AS19: 0 | AT19: 0 | AU19: 0.05 | AV19: 0 | AW19: 0 | AX19: 0.3 | AY19: 0.2 | AZ19: 0 | BA19: -28637009.13 | BB19: 0 | BC19: 0 | BD19: -171822054.8 | BE19: -8249949.331 | BF19: 0 | BG19: 394.2923609 | BH19: 0 | BI19: 0 | BJ19: 4102.596647 | BK19: 0 | BL19: 0 | BM19: 2365.754165 | BN19: 151.2029139 | BO19: 0 | BP19: 24615.57988 | BQ19: 6033.151231 | BR19: 0 | BS19: 13959.90567 | BT19: 0 | BU19: 0 | BV19: 83759.43402 | BW19: 9813.224078 | BX19: 0 | CD19: =SUMIF('[161104-Financial Analysis_v11(high prod case).xlsm]Results Database'!$E:$E,'Prod High Case'!AJ$4,'[161104-Financial Analysis_v11(high prod case).xlsm]Results Database'!$EJ:$EJ)
A20: 16 | B20: Downhole Jetpump for Well Unloading | C20: 864.1861787 | D20: 11221.76891 | E20: 32826.42338 | F20: 786267.3263 | G20: 21261722.39 | H20: 40918405.55 | I20: 0.001099099695 | J20: 0.0005277920905 | K20: 0.0008022410193 | L20: -468369576.4 | M20: 0 | O20: 7885.847218 | P20: 756.0145694 | Q20: 2324.083206 | R20: 10965.94499 | S20: 9694.283683 | T20: 82051.93294 | U20: 30165.75615 | V20: 80151.09647 | W20: 192368.7856 | X20: 192368.7856 | Y20: 785915.3248 | Z20: 53.52948351 | AA20: 298.4720372 | AC20: 830177.5722 | AD20: 18960937.44 | AE20: 1470607.379 | AF20: 0 | AG20: 0 | AH20: 0 | AJ20: -4115509071 | AK20: -568186693.1 | AL20: -2637306073 | AM20: 0.1 | AN20: 0.1 | AO20: 0 | AP20: -411550907.1 | AQ20: -56818669.31 | AR20: 0 | AS20: 0 | AT20: 0 | AU20: 0.05 | AV20: 0.05 | AW20: 0 | AX20: 0.5 | AY20: 0.3 | AZ20: 0 | BA20: -20577545.35 | BB20: -2840933.466 | BC20: 0 | BD20: -205775453.5 | BE20: -17045600.79 | BF20: 0 | BG20: 394.2923609 | BH20: 37.80072847 | BI20: 0 | BJ20: 4102.596647 | BK20: 1508.287808 | BL20: 0 | BM20: 3942.923609 | BN20: 226.8043708 | BO20: 0 | BP20: 41025.96647 | BQ20: 9049.726846 | BR20: 0 | BS20: 13959.90567 | BT20: 2453.306019 | BU20: 0 | BV20: 139599.0567 | BW20: 14719.83612 | BX20: 0 | CD20: =SUMIF('[161104-Financial Analysis_v11(high prod case).xlsm]Results Database'!$E:$E,'Prod High Case'!AJ$4,'[161104-Financial Analysis_v11(high prod case).xlsm]Results Database'!$ES:$ES)
A21: 17 | B21: Monitor/repair leaking flare/vent control valves | C21: 45806.4627 | D21: 751926.9606 | E21: 1897088.528 | F21: 786267.3263 | G21: 21261722.39 | H21: 40918405.55 | I21: 0.05825812821 | J21: 0.03536528917 | K21: 0.04636271875 | L21: -157642291.8 | M21: 0 | O21: 68618.05407 | P21: 6622.328946 | Q21: 24920.05852 | R21: 100160.4415 | S21: 84072.34424 | T21: 934313.9299 | U21: 273340.861 | V21: 1046240.114 | W21: 2253894.905 | X21: 2253894.905 | Y21: 785915.3248 | Z21: 53.52948351 | AA21: 298.4720372 | AC21: 830177.5722 | AD21: 18960937.44 | AE21: 1470607.379 | AF21: 0 | AG21: 0 | AH21: 0 | AJ21: -233655993.1 | AK21: -24926708.43 | AL21: -149467038.3 | AM21: 0.6 | AN21: 0.7 | AO21: 0 | AP21: -140193595.9 | AQ21: -17448695.9 | AR21: 0 | AS21: 0 | AT21: 68 | AU21: 0.3 | AV21: 0.35 | AW21: 0 | AX21: 0.78 | AY21: 0.88 | AZ21: 0.06 | BA21: -42058078.76 | BB21: -6107043.565 | BC21: 0 | BD21: -109351004.8 | BE21: -15354852.39 | BF21: 0 | BG21: 20585.41622 | BH21: 2317.815131 | BI21: 0 | BJ21: 280294.179 | BK21: 95669.30134 | BL21: 0 | BM21: 53522.08217 | BN21: 5827.649472 | BO21: 1495.203511 | BP21: 728764.8653 | BQ21: 240539.9577 | BR21: 62774.40685 | BS21: 794929.5845 | BT21: 153614.6796 | BU21: 0 | BV21: 2066816.92 | BW21: 386231.1945 | BX21: 100154.4946 | CD21: =SUMIF('[161104-Financial Analysis_v11(high prod case).xlsm]Results Database'!$E:$E,'Prod High Case'!AJ$4,'[161104-Financial Analysis_v11(high prod case).xlsm]Results Database'!$FB:$FB)
A22: 18 | B22: Install redundant compression | C22: 47885.68435 | D22: 3071818.285 | E22: 4268960.394 | F22: 786267.3263 | G22: 21261722.39 | H22: 40918405.55 | I22: 0.06090254898 | J22: 0.1444764553 | K22: 0.1043286105 | L22: -514064178.2 | M22: 0 | O22: 110770.8501 | P22: 182681.0694 | Q22: 47553.63216 | R22: 341005.5516 | S22: 149418.1831 | T22: 2328171.863 | U22: 12101019.39 | V22: 2274273.96 | W22: 16703465.21 | X22: 16703465.21 | Y22: 785915.3248 | Z22: 53.52948351 | AA22: 298.4720372 | AC22: 830177.5722 | AD22: 18960937.44 | AE22: 1470607.379 | AF22: 0 | AG22: 0 | AH22: 0 | AJ22: -1.213441973e+10 | AK22: -1085503135 | AL22: -8342277168 | AM22: 0.02 | AN22: 0.25 | AO22: 0 | AP22: -242688394.6 | AQ22: -271375783.7 | AR22: 0 | AS22: 0 | AT22: 28 | AU22: 0 | AV22: 0.1 | AW22: 0 | AX22: 0.25 | AY22: 0.5 | AZ22: 0 | BA22: 0 | BB22: -27137578.37 | BC22: 0 | BD22: -60672098.64 | BE22: -135687891.8 | BF22: 0 | BG22: 0 | BH22: 18268.10694 | BI22: 0 | BJ22: 0 | BK22: 1210101.939 | BL22: 0 | BM22: 27692.71251 | BN22: 91340.5347 | BO22: 0 | BP22: 582042.9657 | BQ22: 6050509.696 | BR22: 0 | BS22: 0 | BT22: 1666804.613 | BU22: 0 | BV22: 1274360.779 | BW22: 8334023.064 | BX22: 0 | CD22: =SUMIF('[161104-Financial Analysis_v11(high prod case).xlsm]Results Database'!$E:$E,'Prod High Case'!AJ$4,'[161104-Financial Analysis_v11(high prod case).xlsm]Results Database'!$FK:$FK)
A23: 19 | B23: Limit Monthly Vent Volume | C23: 2103.452324 | D23: 48.86020778 | E23: 52635.1683 | F23: 744616.2707 | G23: 18588046.16 | H23: 37203452.93 | I23: 0.002824880957 | J23: 2.628582228e-06 | K23: 0.001414792557 | L23: 1659781.592 | M23: 53188.60278 | O23: 0 | P23: 2103.452324 | Q23: 0 | R23: 2103.452324 | S23: 2103.452324 | T23: 0 | U23: 48.86020778 | V23: 0 | W23: 48.86020778 | X23: 48.86020778 | Y23: 744264.2692 | Z23: 53.52948351 | AA23: 298.4720372 | AC23: 794773.8336 | AD23: 17001996.11 | AE23: 791276.2111 | AF23: 0 | AG23: 0 | AH23: 53188.60278 | AJ23: 0 | AK23: 1659781.592 | AL23: 0 | AM23: 1 | AN23: 1 | AO23: 1 | AP23: 0 | AQ23: 1659781.592 | AR23: 0 | AS23: 1 | AT23: N/A | AU23: 1 | AV23: 1 | AW23: 1 | AX23: 1 | AY23: 1 | AZ23: 1 | BA23: 0 | BB23: 1659781.592 | BC23: 0 | BD23: 0 | BE23: 1659781.592 | BF23: 0 | BG23: 0 | BH23: 2103.452324 | BI23: 0 | BJ23: 0 | BK23: 48.86020778 | BL23: 0 | BM23: 0 | BN23: 2103.452324 | BO23: 0 | BP23: 0 | BQ23: 48.86020778 | BR23: 0 | BS23: 0 | BT23: 52635.1683 | BU23: 0 | BV23: 0 | BW23: 52635.1683 | BX23: 0 | CD23: =SUMIF('[161104-Financial Analysis_v11(high prod case).xlsm]Results Database'!$E:$E,'Prod High Case'!AJ$4,'[161104-Financial Analysis_v11(high prod case).xlsm]Results Database'!$FT:$FT)
B26: fixed | C26: 1085
B27: floater | C27: 121
B28: single well | C28: 827
C29: 2033
B31: Alternate Count | C31: 1784 | AS31: 681
AS32: 0
B34: Note: Adjusted means after applying percentages
B35: Note: Aggregate is before applying percentage adjustments
F39: NPV | J39: =F39 -> NPV | N39: =J39 -> NPV
B40: Bubble_labels | D40: Colour Group | G40: Complexes with + | H40: Emissions | K40: Percent Reduced | L40: Number of Complexes | O40: =L40 -> Number of Complexes | P40: =K40 -> Percent Reduced | AS40: 0
B41: =B5 -> Reroute Gas Pig Trap Vent | C41: Either | D41: 3 | F41: =L5 -> -49207040.57 | G41: =AS5 -> 0 | H41: =E5 -> 17167.1588 | J41: =F41 -> -49207040.57 | K41: =J5 -> 2.51671576e-05 | L41: =G41 -> 0 | N41: =J41 -> -49207040.57 | O41: =L41 -> 0 | P41: =K41 -> 2.51671576e-05 | AS41: 539
B42: =B6 -> Limit Monthly Flare Volume | C42: Flare | D42: 2 | F42: 629593162.1 | G42: 113 | H42: 11800790.38 | J42: =F42 -> 629593162.1 | K42: 0.4628684108 | L42: =G42 -> 113 | N42: =J42 -> 629593162.1 | O42: =L42 -> 113 | P42: =K42 -> 0.4628684108
B43: Compressors Off - Maintain Pressure | C43: Either | D43: 3 | F43: 7603477.699 | G43: 640 | H43: 184996.1788 | J43: 7603477.699 | K43: 0.003703291777 | L43: 640 | N43: 7603477.699 | O43: 640 | P43: 0.003703291777
B44: Compressors Off- Blowdown to fuel | C44: Either | D44: 3 | F44: -53136760.44 | G44: 0 | H44: 25588.95251 | J44: -53136760.44 | K44: 0.0003257679609 | L44: 0 | N44: -53136760.44 | O44: 0 | P44: 0.0003257679609
B45: Compressor Static Seals | C45: Vent | D45: 1 | F45: 805527.1259 | G45: 486 | H45: 303786.9598 | J45: 805527.1259 | K45: 0.004105969824 | L45: 486 | N45: 805527.1259 | O45: 486 | P45: 0.004105969824
B46: Compressors Off - Install ejector | C46: Either | D46: 3 | F46: -8134077.814 | G46: 0 | H46: 36962.79408 | J46: -8134077.814 | K46: 0.0007213555617 | L46: 0 | N46: -8134077.814 | O46: 0 | P46: 0.0007213555617
B47: Using Pipeline Pump-Down Techniques to Lower Gas Line Pressure before Maintenance | C47: Either | D47: 3 | F47: -3964456.458 | G47: 0 | H47: 5208.234612 | J47: -3964456.458 | K47: 7.832482962e-05 | L47: 0 | N47: -3964456.458 | O47: 0 | P47: 7.832482962e-05
B48: Use Inert Gases and Pigs to Perform Pipeline Purges | C48: Either | D48: 3 | F48: -6732130.496 | G48: 0 | H48: 5208.234612 | J48: -6732130.496 | K48: 7.832482962e-05 | L48: 0 | N48: -6732130.496 | O48: 0 | P48: 7.832482962e-05
B49: Reduced Emission Completions | C49: Either | D49: 3 | F49: 36041604.37 | G49: 189 | H49: 1142673.606 | J49: 36041604.37 | K49: 0.03584507871 | L49: 189 | N49: 36041604.37 | O49: 189 | P49: 0.03584507871 | AS49: 586
B50: Foaming agents to Remove Accumulated Fluid in Gas wells | C50: Either | D50: 3 | F50: 1214780.065 | G50: 590 | H50: 63841.88425 | J50: 1214780.065 | K50: 0.001120260918 | L50: 590 | N50: 1214780.065 | O50: 590 | P50: 0.001120260918 | AS50: 0
B51: Velocity tubing to Remove Accumulated Fluid in Gas Wells | C51: Either | D51: 3 | F51: -1016494323 | G51: 0 | H51: 30916.88687 | J51: -1016494323 | K51: 0.0006459120802 | L51: 0 | N51: -1016494323 | O51: 0 | P51: 0.0006459120802
B52: Install Flares | C52: Convert Vent to Flare | D52: 4 | F52: -379206260 | G52: 0 | H52: 715482.1478 | J52: -379206260 | K52: -0.001947967461 | L52: 0 | N52: -379206260 | O52: 0 | P52: -0.001947967461
B53: Gas Lift Well to remove liquid accumulation | C53: Either | D53: 3 | F53: -8892299.916 | G53: 0 | H53: 34868.54159 | J53: -8892299.916 | K53: 0.0005407367421 | L53: 0 | N53: -8892299.916 | O53: 0 | P53: 0.0005407367421
B54: Microturbines | C54: Flare | D54: 1 | F54: -536540366.3 | G54: 0 | H54: 402977.5572 | J54: -536540366.3 | K54: 0.01381855417 | L54: 0 | N54: -536540366.3 | O54: 0 | P54: 0.01381855417
B55: Electric submersible pump (ESP) to unload wells | C55: Either | D55: 3 | F55: -613989929.3 | G55: 0 | H55: 30373.11736 | J55: -613989929.3 | K55: 0.0004568529737 | L55: 0 | N55: -613989929.3 | O55: 0 | P55: 0.0004568529737
B56: Downhole Jetpump for Well Unloading | C56: Either | D56: 3 | F56: -468369576.4 | G56: 0 | H56: 32826.42338 | J56: -468369576.4 | K56: 0.0005277920905 | L56: 0 | N56: -468369576.4 | O56: 0 | P56: 0.0005277920905
B57: Monitor/repair leaking flare/vent control valves | C57: Either | D57: 3 | F57: -157642291.8 | G57: 0 | H57: 1897088.528 | J57: -157642291.8 | K57: 0.03536528917 | L57: 0 | N57: -157642291.8 | O57: 0 | P57: 0.03536528917
B58: Install redundant compression | C58: Either | D58: 3 | F58: -514064178.2 | G58: 0 | H58: 4268960.394 | J58: -514064178.2 | K58: 0.1444764553 | L58: 0 | N58: -514064178.2 | O58: 0 | P58: 0.1444764553 | AS58: 43
B59: Limit Monthly Vent Volume | C59: Vent | D59: 1 | F59: 1659781.592 | G59: 1 | H59: 52635.1683 | J59: 1659781.592 | K59: 2.628582228e-06 | L59: 1 | N59: 1659781.592 | O59: 1 | P59: 2.628582228e-06 | AS59: 0
C64: colour_1
C65: colour_2
C66: colour_3
C67: colour_4 | AS67: 0
AS68: 0
AS76: 0
AS77: 161
AS85: 214
AS86: 622
AS94: 665
AS95: 0
AS103: 0
AS104: 0
AS112: 4
AS113: 486
AS121: 569
AS122: 0
AS130: 0
AS131: 0
AS139: 0
AS140: 0
AS148: 0
AS149: 0
AS157: 174
AS158: 0
AS166: 32
AS167: 1
AS175: 0

Sheet Prod High Case + NPV
A1: FINAL AGREGATE SUMMARY | E1: =CH4_factor -> 25 | H1: =E1 -> 25
C2: Aplicabiity Adjusted | D2: Aplicabiity Adjusted | E2: Aplicabiity Adjusted | F2: Adjusted | G2: Adjusted | H2: Adjusted | I2: Percent | J2: Percent | K2: Percent | L2: Adjusted | M2: Adjusted | O2: Aggregate | P2: Aggregate | Q2: Aggregate | R2: Aggregate | S2: Aggregate | T2: Aggregate | U2: Aggregate | V2: Aggregate | W2: Aggregate | X2: Aggregate | Y2: Aggregate | Z2: Aggregate | AA2: Aggregate | AB2: Aggregate | AC2: Aggregate | AD2: Aggregate | AE2: Aggregate | AF2: Oil | AG2: Oil | AH2: Oil
C3: Reduction | D3: Reduction | E3: Reduct Equivalent | F3: Existing | G3: Existing | H3: Equivalent CO2 | I3: Reduction | J3: Reduction | K3: Reduction | L3: NPV | M3: Oil | O3: Reduced Methane | P3: Reduced Methane | Q3: Reduced Methane | R3: Reduced Methane | S3: Methane | T3: Reduced CO2 | U3: Reduced CO2 | V3: Reduced CO2 | W3: Reduced CO2 | X3: CO2 | Y3: Exist Methane | Z3: Exist Methane | AA3: Exist Methane | AB3: Exist CO2 | AC3: Exist CO2 | AD3: Exist CO2 | AE3: Exist CO2 | AF3: Deferred | AG3: Deferred | AH3: Deferred | AJ3: Total NPV b/4 Ratios | AM3: Percent Applicable | AP3: Final NPV - Expected Value Case | AS3: # of Complexes | AT3: # of Complexes | AU3: Percent Applicable 10% Case | AX3: Percent Applicable 90% Case | BA3: Final Methane - 10% Case | BD3: Final CO2 - 10% Case | BG3: Final Methane - 90% | BJ3: Final CO2 - 90% | BM3: Final CO2 Equiv - 10% Case | BP3: Final CO2 Equiv - 90% Case | BS3: Final NPV - 10% Low Case | BV3: Final NPV - 90% Hi Case
C4: Methane | D4: CO2 | E4: Total CO2 | F4: Methane | G4: CO2 | H4: Total | I4: Methane | J4: CO2 | K4: Equiv CO2 | L4: Savings | M4: Deferred | O4: =AJ4 -> fixed | P4: =AK4 -> floater | Q4: =AL4 -> single well | R4: Sum | S4: Check | T4: =AJ4 -> fixed | U4: =AK4 -> floater | V4: =AL4 -> single well | W4: Sum | X4: Check | Y4: =T4 -> fixed | Z4: =U4 -> floater | AA4: =V4 -> single well | AB4: =W4 -> Sum | AC4: =Y4 -> fixed | AD4: =Z4 -> floater | AE4: =AA4 -> single well | AF4: =AC4 -> fixed | AG4: =AD4 -> floater | AH4: =AE4 -> single well | AJ4: fixed | AK4: floater | AL4: single well | AM4: =AJ4 -> fixed | AN4: floater | AO4: single well | AP4: fixed | AQ4: floater | AR4: single well | AS4: > 0 NPV | AT4: > 0 NPV @ $49 SCOC | AU4: =AM4 -> fixed | AV4: =AN4 -> floater | AW4: single well | AX4: =AP4 -> fixed | AY4: =AQ4 -> floater | AZ4: single well | BA4: =AX4 -> fixed | BB4: floater | BC4: single well | BD4: fixed | BE4: floater | BF4: single well | BG4: =BA4 -> fixed | BH4: floater | BI4: single well | BJ4: fixed | BK4: floater | BL4: single well | BM4: =BJ4 -> fixed | BN4: floater | BO4: single well | BP4: fixed | BQ4: floater | BR4: single well | BS4: fixed | BT4: floater | BU4: single well | BV4: fixed | BW4: floater | BX4: single well
A5: 1 | B5: Reroute Gas Pig Trap Vent | C5: 665.2824671 | D5: 535.0971182 | E5: 17167.1588 | F5: 786267.3263 | G5: 21261722.39 | H5: 40918405.55 | I5: 0.0008461275763 | J5: 2.51671576e-05 | K5: 0.0004195461325 | L5: 0 | M5: 0 | O5: 1146.189777 | P5: 229.7850627 | Q5: 776.8923547 | R5: 2152.867194 | S5: 1531.900418 | T5: 1217.301458 | U5: 53.52948351 | V5: 298.4720372 | W5: 1569.302978 | X5: 1569.302978 | Y5: 785915.3248 | Z5: 53.52948351 | AA5: 298.4720372 | AC5: 830177.5722 | AD5: 18960937.44 | AE5: 1470607.379 | AF5: 0 | AG5: 0 | AH5: 0 | AJ5: 0 | AK5: 0 | AL5: 0 | AM5: 0.4 | AN5: 0.9 | AO5: 0 | AP5: 0 | AQ5: 0 | AR5: 0 | AS5: 0 | AT5: 0 | AU5: 0.1 | AV5: 0.3 | AW5: 0 | AX5: 0.5 | AY5: 1 | AZ5: 0 | BA5: 114.6189777 | BB5: 68.9355188 | BC5: 0 | BD5: 121.7301458 | BE5: 16.05884505 | BF5: 0 | BG5: 573.0948884 | BH5: 229.7850627 | BI5: 0 | BJ5: 608.6507288 | BK5: 53.52948351 | BL5: 0 | BM5: 2987.204588 | BN5: 1739.446815 | BO5: 0 | BP5: 14936.02294 | BQ5: 5798.15605 | BR5: 0 | BS5: 0 | BT5: 0 | BU5: 0 | BV5: 0 | BW5: 0 | BX5: 0 | CI5: =SUMIF('Results Database'!$E:$E,'Aggregate Summary'!AJ$4,'Results Database'!$N:$N)
A6: 2 | B6: Limit Monthly Flare Volume | C6: 127878.8399 | D6: 8603819.385 | E6: 11800790.38 | F6: 744616.2707 | G6: 18588046.16 | H6: 37203452.93 | I6: 0.171737907 | J6: 0.4628684108 | K6: 0.3171961055 | L6: 629593162.1 | M6: 258781.3569 | O6: 2128.236215 | P6: 141378.1878 | Q6: 4299.587882 | R6: 147806.0119 | S6: 17816.15265 | T6: 143189.9134 | U6: 9512069.345 | V6: 289280.6785 | W6: 9944539.937 | X6: 9944539.937 | Y6: 744264.2692 | Z6: 53.52948351 | AA6: 298.4720372 | AC6: 794773.8336 | AD6: 17001996.11 | AE6: 791276.2111 | AF6: 42292.40566 | AG6: 273437.3724 | AH6: 39396275.74 | AJ6: 9009836.734 | AK6: 696544679 | AL6: 19535714.15 | AM6: 0.3 | AN6: 0.9 | AO6: 0 | AP6: 2702951.02 | AQ6: 626890211.1 | AR6: 0 | AS6: 113 | AT6: N/A | AU6: 0.3 | AV6: 0.9 | AW6: 0 | AX6: 1 | AY6: 1 | AZ6: 1 | BA6: 638.4708645 | BB6: 127240.369 | BC6: 0 | BD6: 42956.97401 | BE6: 8560862.411 | BF6: 0 | BG6: 2128.236215 | BH6: 141378.1878 | BI6: 4299.587882 | BJ6: 143189.9134 | BK6: 9512069.345 | BL6: 289280.6785 | BM6: 58918.74563 | BN6: 11741871.64 | BO6: 0 | BP6: 196395.8188 | BQ6: 13046524.04 | BR6: 396770.3756 | BS6: 2702951.02 | BT6: 626890211.1 | BU6: 0 | BV6: 9009836.734 | BW6: 696544679 | BX6: 19535714.15 | CI6: =SUMIF('Results Database'!$E:$E,'Aggregate Summary'!AJ$4,'Results Database'!$W:$W)
A7: 3 | B7: Compressors Off - Maintain Pressure | C7: 4250.312683 | D7: 78738.36171 | E7: 184996.1788 | F7: 786267.3263 | G7: 21261722.39 | H7: 40918405.55 | I7: 0.005405683971 | J7: 0.003703291777 | K7: 0.0045210994 | L7: 7632130.816 | M7: 0 | O7: 71165.8068 | P7: 6920.223426 | Q7: 26237.889 | R7: 104323.9192 | S7: 87359.63841 | T7: 993184.6028 | U7: 290791.3157 | V7: 1112600.652 | W7: 2396576.57 | X7: 2396576.57 | Y7: 785915.3248 | Z7: 53.52948351 | AA7: 298.4720372 | AC7: 830177.5722 | AD7: 18960937.44 | AE7: 1470607.379 | AF7: 0 | AG7: 0 | AH7: 0 | AJ7: 104424317.3 | AK7: 24109149.5 | AL7: 94252196.65 | AM7: 0.05 | AN7: 0.1 | AO7: 0 | AP7: 5221215.866 | AQ7: 2410914.95 | AR7: 0 | AS7: 640 | AT7: 662 | AU7: 0 | AV7: 0 | AW7: 0 | AX7: 0.28 | AY7: 0.5 | AZ7: 0 | BA7: 0 | BB7: 0 | BC7: 0 | BD7: 0 | BE7: 0 | BF7: 0 | BG7: 19926.4259 | BH7: 3460.111713 | BI7: 0 | BJ7: 278091.6888 | BK7: 145395.6578 | BL7: 0 | BM7: 0 | BN7: 0 | BO7: 0 | BP7: 776252.3364 | BQ7: 231898.4507 | BR7: 0 | BS7: 0 | BT7: 0 | BU7: 0 | BV7: 29238808.85 | BW7: 12054574.75 | BX7: 0 | CI7: =SUMIF('Results Database'!$E:$E,'Aggregate Summary'!AJ$4,'Results Database'!$AF:$AF)
A8: 4 | B8: Compressors Off- Blowdown to fuel | C8: 746.5025826 | D8: 6926.38795 | E8: 25588.95251 | F8: 786267.3263 | G8: 21261722.39 | H8: 40918405.55 | I8: 0.0009494259236 | J8: 0.0003257679609 | K8: 0.0006253653379 | L8: 0 | M8: 0 | O8: 1259.313093 | P8: 54.97998078 | Q8: 303.2163015 | R8: 1617.509376 | S8: 1478.45906 | T8: 8368.556276 | U8: 2371.10408 | V8: 9256.758619 | W8: 19996.41897 | X8: 19996.41897 | Y8: 785915.3248 | Z8: 53.52948351 | AA8: 298.4720372 | AC8: 830177.5722 | AD8: 18960937.44 | AE8: 1470607.379 | AF8: 0 | AG8: 0 | AH8: 0 | AJ8: 0 | AK8: 0 | AL8: 0 | AM8: 0.55 | AN8: 0.98 | AO8: 0 | AP8: 0 | AQ8: 0 | AR8: 0 | AS8: 0 | AT8: 0 | AU8: 0.56 | AV8: 0.98 | AW8: 0 | AX8: 0.56 | AY8: 1 | AZ8: 0 | BA8: 705.2153323 | BB8: 53.88038116 | BC8: 0 | BD8: 4686.391515 | BE8: 2323.681998 | BF8: 0 | BG8: 705.2153323 | BH8: 54.97998078 | BI8: 0 | BJ8: 4686.391515 | BK8: 2371.10408 | BL8: 0 | BM8: 22316.77482 | BN8: 3670.691527 | BO8: 0 | BP8: 22316.77482 | BQ8: 3745.603599 | BR8: 0 | BS8: 0 | BT8: 0 | BU8: 0 | BV8: 0 | BW8: 0 | BX8: 0 | CI8: =SUMIF('Results Database'!$E:$E,'Aggregate Summary'!AJ$4,'Results Database'!$AO:$AO)
A9: 5 | B9: Compressor Static Seals | C9: 8659.47877 | D9: 87299.99055 | E9: 303786.9598 | F9: 786267.3263 | G9: 21261722.39 | H9: 40918405.55 | I9: 0.0110134028 | J9: 0.004105969824 | K9: 0.007424213034 | L9: 5110792.967 | M9: 0 | O9: 33808.17133 | P9: 2074.359372 | Q9: 9891.179176 | R9: 45773.70988 | S9: 40507.60436 | T9: 313226.786 | U9: 89932.94049 | V9: 350229.0615 | W9: 753388.788 | X9: 753388.788 | Y9: 785915.3248 | Z9: 53.52948351 | AA9: 298.4720372 | AC9: 830177.5722 | AD9: 18960937.44 | AE9: 1470607.379 | AF9: 0 | AG9: 0 | AH9: 0 | AJ9: 19115167.5 | AK9: 3320010.923 | AL9: 16540802.04 | AM9: 0.25 | AN9: 0.1 | AO9: 0 | AP9: 4778791.874 | AQ9: 332001.0923 | AR9: 0 | AS9: 486 | AT9: 531 | AU9: 0.1 | AV9: 0.05 | AW9: 0 | AX9: 0.56 | AY9: 0.25 | AZ9: 0 | BA9: 3380.817133 | BB9: 103.7179686 | BC9: 0 | BD9: 31322.6786 | BE9: 4496.647025 | BF9: 0 | BG9: 18932.57595 | BH9: 518.5898429 | BI9: 0 | BJ9: 175407.0002 | BK9: 22483.23512 | BL9: 0 | BM9: 115843.1069 | BN9: 7089.596239 | BO9: 0 | BP9: 648721.3988 | BQ9: 35447.9812 | BR9: 0 | BS9: 1911516.75 | BT9: 166000.5462 | BU9: 0 | BV9: 10704493.8 | BW9: 830002.7309 | BX9: 0 | CI9: =SUMIF('Results Database'!$E:$E,'Aggregate Summary'!AJ$4,'Results Database'!$AX:$AX)
A10: 6 | B10: Compressors Off - Install ejector | C10: 865.0212952 | D10: 15337.2617 | E10: 36962.79408 | F10: 786267.3263 | G10: 21261722.39 | H10: 40918405.55 | I10: 0.001100161823 | J10: 0.0007213555617 | K10: 0.0009033292862 | L10: 0 | M10: 0 | O10: 12653.46714 | P10: 580.8698458 | Q10: 3254.681754 | R10: 16489.01874 | S10: 14948.28908 | T10: 93594.30525 | U10: 26643.8661 | V10: 104692.0739 | W10: 224930.2452 | X10: 224930.2452 | Y10: 785915.3248 | Z10: 53.52948351 | AA10: 298.4720372 | AC10: 830177.5722 | AD10: 18960937.44 | AE10: 1470607.379 | AF10: 0 | AG10: 0 | AH10: 0 | AJ10: 0 | AK10: 0 | AL10: 0 | AM10: 0.05 | AN10: 0.4 | AO10: 0 | AP10: 0 | AQ10: 0 | AR10: 0 | AS10: 0 | AT10: 43 | AU10: 0 | AV10: 0 | AW10: 0 | AX10: 0.1 | AY10: 0.5 | AZ10: 0 | BA10: 0 | BB10: 0 | BC10: 0 | BD10: 0 | BE10: 0 | BF10: 0 | BG10: 1265.346714 | BH10: 290.4349229 | BI10: 0 | BJ10: 9359.430525 | BK10: 13321.93305 | BL10: 0 | BM10: 0 | BN10: 0 | BO10: 0 | BP10: 40993.09837 | BQ10: 20582.80612 | BR10: 0 | BS10: 0 | BT10: 0 | BU10: 0 | BV10: 0 | BW10: 0 | BX10: 0 | CI10: =SUMIF('Results Database'!$E:$E,'Aggregate Summary'!AJ$4,'Results Database'!$BG:$BG)
A11: 7 | B11: Using Pipeline Pump-Down Techniques to Lower Gas Line Pressure before Maintenance | C11: 141.7165531 | D11: 1665.320784 | E11: 5208.234612 | F11: 786267.3263 | G11: 21261722.39 | H11: 40918405.55 | I11: 0.0001802396569 | J11: 7.832482962e-05 | K11: 0.0001272834203 | L11: 0 | M11: 0 | O11: 606.4707205 | P11: 25.97770864 | Q11: 148.6710944 | R11: 781.1195235 | S11: 712.3849148 | T11: 4188.01036 | U11: 1188.646703 | V11: 4667.907205 | W11: 10044.56427 | X11: 10044.56427 | Y11: 785915.3248 | Z11: 53.52948351 | AA11: 298.4720372 | AC11: 830177.5722 | AD11: 18960937.44 | AE11: 1470607.379 | AF11: 0 | AG11: 0 | AH11: 0 | AJ11: 0 | AK11: 0 | AL11: 0 | AM11: 0.2 | AN11: 0.5 | AO11: 0.05 | AP11: 0 | AQ11: 0 | AR11: 0 | AS11: 0 | AT11: 0 | AU11: 0 | AV11: 0.1 | AW11: 0 | AX11: 0.47 | AY11: 0.9 | AZ11: 0.15 | BA11: 0 | BB11: 2.597770864 | BC11: 0 | BD11: 0 | BE11: 118.8646703 | BF11: 0 | BG11: 285.0412386 | BH11: 23.37993778 | BI11: 22.30066416 | BJ11: 1968.364869 | BK11: 1069.782033 | BL11: 700.1860808 | BM11: 0 | BN11: 183.8089419 | BO11: 0 | BP11: 9094.395834 | BQ11: 1654.280477 | BR11: 1257.702685 | BS11: 0 | BT11: 0 | BU11: 0 | BV11: 0 | BW11: 0 | BX11: 0 | CI11: =SUMIF('Results Database'!$E:$E,'Aggregate Summary'!AJ$4,'Results Database'!$BP:$BP)
A12: 8 | B12: Use Inert Gases and Pigs to Perform Pipeline Purges | C12: 141.7165531 | D12: 1665.320784 | E12: 5208.234612 | F12: 786267.3263 | G12: 21261722.39 | H12: 40918405.55 | I12: 0.0001802396569 | J12: 7.832482962e-05 | K12: 0.0001272834203 | L12: 0 | M12: 0 | O12: 606.4707205 | P12: 25.97770864 | Q12: 148.6710944 | R12: 781.1195235 | S12: 712.3849148 | T12: 4188.01036 | U12: 1188.646703 | V12: 4667.907205 | W12: 10044.56427 | X12: 10044.56427 | Y12: 785915.3248 | Z12: 53.52948351 | AA12: 298.4720372 | AC12: 830177.5722 | AD12: 18960937.44 | AE12: 1470607.379 | AF12: 0 | AG12: 0 | AH12: 0 | AJ12: 0 | AK12: 0 | AL12: 0 | AM12: 0.2 | AN12: 0.5 | AO12: 0.05 | AP12: 0 | AQ12: 0 | AR12: 0 | AS12: 0 | AT12: 0 | AU12: 0 | AV12: 0.1 | AW12: 0 | AX12: 0.47 | AY12: 0.9 | AZ12: 0.15 | BA12: 0 | BB12: 2.597770864 | BC12: 0 | BD12: 0 | BE12: 118.8646703 | BF12: 0 | BG12: 285.0412386 | BH12: 23.37993778 | BI12: 22.30066416 | BJ12: 1968.364869 | BK12: 1069.782033 | BL12: 700.1860808 | BM12: 0 | BN12: 183.8089419 | BO12: 0 | BP12: 9094.395834 | BQ12: 1654.280477 | BR12: 1257.702685 | BS12: 0 | BT12: 0 | BU12: 0 | BV12: 0 | BW12: 0 | BX12: 0 | CI12: =SUMIF('Results Database'!$E:$E,'Aggregate Summary'!AJ$4,'Results Database'!$BY:$BY)
A13: 9 | B13: Reduced Emission Completions | C13: 15221.81972 | D13: 762128.1128 | E13: 1142673.606 | F13: 786267.3263 | G13: 21261722.39 | H13: 40918405.55 | I13: 0.01935959845 | J13: 0.03584507871 | K13: 0.02792566304 | L13: 49993079.74 | M13: 0 | O13: 20252.21345 | P13: 20317.53271 | Q13: 8361.126129 | R13: 48930.87229 | S13: 26206.08917 | T13: 412249.5421 | U13: 1318131.454 | V13: 396948.7274 | W13: 2127329.724 | X13: 2127329.724 | Y13: 785915.3248 | Z13: 53.52948351 | AA13: 298.4720372 | AC13: 830177.5722 | AD13: 18960937.44 | AE13: 1470607.379 | AF13: 0 | AG13: 0 | AH13: 0 | AJ13: 8177732.272 | AK13: 95897293.34 | AL13: 7649929.406 | AM13: 0.25 | AN13: 0.5 | AO13: 0 | AP13: 2044433.068 | AQ13: 47948646.67 | AR13: 0 | AS13: 189 | AT13: 219 | AU13: 0 | AV13: 0.1 | AW13: 0 | AX13: 0.4 | AY13: 0.8 | AZ13: 0.1 | BA13: 0 | BB13: 2031.753271 | BC13: 0 | BD13: 0 | BE13: 131813.1454 | BF13: 0 | BG13: 8100.885379 | BH13: 16254.02617 | BI13: 836.1126129 | BJ13: 164899.8168 | BK13: 1054505.164 | BL13: 39694.87274 | BM13: 0 | BN13: 182606.9772 | BO13: 0 | BP13: 367421.9513 | BQ13: 1460855.818 | BR13: 60597.68806 | BS13: 0 | BT13: 9589729.334 | BU13: 0 | BV13: 3271092.909 | BW13: 76717834.67 | BX13: 764992.9406 | CI13: =SUMIF('Results Database'!$E:$E,'Aggregate Summary'!AJ$4,'Results Database'!$CH:$CH)
A14: 10 | B14: Foaming agents to Remove Accumulated Fluid in Gas wells | C14: 1600.928304 | D14: 23818.67665 | E14: 63841.88425 | F14: 786267.3263 | G14: 21261722.39 | H14: 40918405.55 | I14: 0.002036111956 | J14: 0.001120260918 | K14: 0.001560224143 | L14: 1554071.926 | M14: 0 | O14: 8371.069021 | P14: 1122.232409 | Q14: 2330.447099 | R14: 11823.74853 | S14: 10191.56745 | T14: 85666.66154 | U14: 29535.52993 | V14: 80151.24429 | W14: 195353.4358 | X14: 195353.4358 | Y14: 785915.3248 | Z14: 53.52948351 | AA14: 298.4720372 | AC14: 830177.5722 | AD14: 18960937.44 | AE14: 1470607.379 | AF14: 0 | AG14: 0 | AH14: 0 | AJ14: 6244440.841 | AK14: 1810504.842 | AL14: 4363553.161 | AM14: 0.15 | AN14: 0.1 | AO14: 0.1 | AP14: 936666.1262 | AQ14: 181050.4842 | AR14: 436355.3161 | AS14: 590 | AT14: 642 | AU14: 0.05 | AV14: 0 | AW14: 0.05 | AX14: 0.6 | AY14: 0.3 | AZ14: 0.15 | BA14: 418.5534511 | BB14: 0 | BC14: 116.5223549 | BD14: 4283.333077 | BE14: 0 | BF14: 4007.562215 | BG14: 5022.641413 | BH14: 336.6697226 | BI14: 349.5670648 | BJ14: 51399.99692 | BK14: 8860.658979 | BL14: 12022.68664 | BM14: 14747.16935 | BN14: 0 | BO14: 6920.621088 | BP14: 176966.0322 | BQ14: 17277.40204 | BR14: 20761.86326 | BS14: 312222.0421 | BT14: 0 | BU14: 218177.658 | BV14: 3746664.505 | BW14: 543151.4526 | BX14: 654532.9741 | CI14: =SUMIF('Results Database'!$E:$E,'Aggregate Summary'!AJ$4,'Results Database'!$CQ:$CQ)
A15: 11 | B15: Velocity tubing to Remove Accumulated Fluid in Gas Wells | C15: 687.3473413 | D15: 13733.20334 | E15: 30916.88687 | F15: 786267.3263 | G15: 21261722.39 | H15: 40918405.55 | I15: 0.0008741903908 | J15: 0.0006459120802 | K15: 0.0007555740859 | L15: 0 | M15: 0 | O15: 8307.891105 | P15: 785.6944261 | Q15: 2326.680647 | R15: 11420.26618 | S15: 10124.62308 | T15: 83812.06783 | U15: 30549.68534 | V15: 80151.1568 | W15: 194512.91 | X15: 194512.91 | Y15: 785915.3248 | Z15: 53.52948351 | AA15: 298.4720372 | AC15: 830177.5722 | AD15: 18960937.44 | AE15: 1470607.379 | AF15: 0 | AG15: 0 | AH15: 0 | AJ15: 0 | AK15: 0 | AL15: 0 | AM15: 0.05 | AN15: 0.05 | AO15: 0.1 | AP15: 0 | AQ15: 0 | AR15: 0 | AS15: 0 | AT15: 0 | AU15: 0 | AV15: 0 | AW15: 0 | AX15: 0.25 | AY15: 0.15 | AZ15: 0 | BA15: 0 | BB15: 0 | BC15: 0 | BD15: 0 | BE15: 0 | BF15: 0 | BG15: 2076.972776 | BH15: 117.8541639 | BI15: 0 | BJ15: 20953.01696 | BK15: 4582.452801 | BL15: 0 | BM15: 0 | BN15: 0 | BO15: 0 | BP15: 72877.33636 | BQ15: 7528.806899 | BR15: 0 | BS15: 0 | BT15: 0 | BU15: 0 | BV15: 0 | BW15: 0 | BX15: 0 | CI15: =SUMIF('Results Database'!$E:$E,'Aggregate Summary'!AJ$4,'Results Database'!$CZ:$CZ)
A16: 12 | B16: Install Flares | C16: 30275.97165 | D16: -41417.14338 | E16: 715482.1478 | F16: 786267.3263 | G16: 21261722.39 | H16: 40918405.55 | I16: 0.03850595164 | J16: -0.001947967461 | K16: 0.0174855823 | L16: 0 | M16: 0 | O16: 151379.8582 | P16: 43404.89547 | Q16: 79684.71238 | R16: 274469.4661 | S16: 181340.6775 | T16: -207085.7169 | U16: -9025.549101 | V16: -38364.96883 | W16: -254476.2348 | X16: -254476.2348 | Y16: 785915.3248 | Z16: 53.52948351 | AA16: 298.4720372 | AC16: 830177.5722 | AD16: 18960937.44 | AE16: 1470607.379 | AF16: 0 | AG16: 0 | AH16: 0 | AJ16: 0 | AK16: 0 | AL16: 0 | AM16: 0.2 | AN16: 0 | AO16: 0 | AP16: 0 | AQ16: 0 | AR16: 0 | AS16: 0 | AT16: 4 | AU16: 0 | AV16: 0 | AW16: 0 | AX16: 0.35 | AY16: 0 | AZ16: 0 | BA16: 0 | BB16: 0 | BC16: 0 | BD16: 0 | BE16: 0 | BF16: 0 | BG16: 52982.95038 | BH16: 0 | BI16: 0 | BJ16: -72480.00092 | BK16: 0 | BL16: 0 | BM16: 0 | BN16: 0 | BO16: 0 | BP16: 1252093.759 | BQ16: 0 | BR16: 0 | BS16: 0 | BT16: 0 | BU16: 0 | BV16: 0 | BW16: 0 | BX16: 0 | CI16: =SUMIF('Results Database'!$E:$E,'Aggregate Summary'!AJ$4,'Results Database'!$DI:$DI)
A17: 13 | B17: Gas Lift Well to remove liquid accumulation | C17: 934.8618836 | D17: 11496.9945 | E17: 34868.54159 | F17: 786267.3263 | G17: 21261722.39 | H17: 40918405.55 | I17: 0.001188987323 | J17: 0.0005407367421 | K17: 0.000852148101 | L17: 0 | M17: 0 | O17: 8352.588171 | P17: 996.0306653 | Q17: 2329.188296 | R17: 11677.80713 | S17: 10171.8278 | T17: 85054.10677 | U17: 29915.83821 | V17: 80151.21505 | W17: 195121.16 | X17: 195121.16 | Y17: 785915.3248 | Z17: 53.52948351 | AA17: 298.4720372 | AC17: 830177.5722 | AD17: 18960937.44 | AE17: 1470607.379 | AF17: 0 | AG17: 0 | AH17: 0 | AJ17: 0 | AK17: 0 | AL17: 0 | AM17: 0.1 | AN17: 0.1 | AO17: 0 | AP17: 0 | AQ17: 0 | AR17: 0 | AS17: 0 | AT17: 0 | AU17: 0.05 | AV17: 0.05 | AW17: 0 | AX17: 0.5 | AY17: 0.3 | AZ17: 0 | BA17: 417.6294085 | BB17: 49.80153327 | BC17: 0 | BD17: 4252.705339 | BE17: 1495.79191 | BF17: 0 | BG17: 4176.294085 | BH17: 298.8091996 | BI17: 0 | BJ17: 42527.05339 | BK17: 8974.751463 | BL17: 0 | BM17: 14693.44055 | BN17: 2740.830242 | BO17: 0 | BP17: 146934.4055 | BQ17: 16444.98145 | BR17: 0 | BS17: 0 | BT17: 0 | BU17: 0 | BV17: 0 | BW17: 0 | BX17: 0 | CI17: =SUMIF('Results Database'!$E:$E,'Aggregate Summary'!AJ$4,'Results Database'!$DR:$DR)
A18: 14 | B18: Microturbines | C18: 4366.851781 | D18: 293806.2626 | E18: 402977.5572 | F18: 786267.3263 | G18: 21261722.39 | H18: 40918405.55 | I18: 0.005553902134 | J18: 0.01381855417 | K18: 0.009848320132 | L18: 0 | M18: 0 | O18: 15835.22535 | P18: 4080.454452 | Q18: 15976.16244 | R18: 35891.84224 | S18: 20433.25 | T18: 1065410.188 | U18: 274537.1568 | V18: 1074892.58 | W18: 2414839.925 | X18: 2414839.925 | Y18: 785915.3248 | Z18: 53.52948351 | AA18: 298.4720372 | AC18: 830177.5722 | AD18: 18960937.44 | AE18: 1470607.379 | AF18: 0 | AG18: 0 | AH18: 0 | AJ18: 0 | AK18: 0 | AL18: 0 | AM18: 0.25 | AN18: 0.1 | AO18: 0 | AP18: 0 | AQ18: 0 | AR18: 0 | AS18: 0 | AT18: 0 | AU18: 0 | AV18: 0 | AW18: 0 | AX18: 0.5 | AY18: 0.2 | AZ18: 0 | BA18: 0 | BB18: 0 | BC18: 0 | BD18: 0 | BE18: 0 | BF18: 0 | BG18: 7917.612673 | BH18: 816.0908904 | BI18: 0 | BJ18: 532705.0939 | BK18: 54907.43137 | BL18: 0 | BM18: 0 | BN18: 0 | BO18: 0 | BP18: 730645.4107 | BQ18: 75309.70363 | BR18: 0 | BS18: 0 | BT18: 0 | BU18: 0 | BV18: 0 | BW18: 0 | BX18: 0 | CI18: =SUMIF('Results Database'!$E:$E,'Aggregate Summary'!AJ$4,'Results Database'!$EA:$EA)
A19: 15 | B19: Electric submersible pump (ESP) to unload wells | C19: 826.3854503 | D19: 9713.481102 | E19: 30373.11736 | F19: 786267.3263 | G19: 21261722.39 | H19: 40918405.55 | I19: 0.001051023517 | J19: 0.0004568529737 | K19: 0.0007422849681 | L19: 0 | M19: 0 | O19: 7885.847218 | P19: 756.0145694 | Q19: 2324.083206 | R19: 10965.94499 | S19: 9694.283683 | T19: 82051.93294 | U19: 30165.75615 | V19: 80151.09647 | W19: 192368.7856 | X19: 192368.7856 | Y19: 785915.3248 | Z19: 53.52948351 | AA19: 298.4720372 | AC19: 830177.5722 | AD19: 18960937.44 | AE19: 1470607.379 | AF19: 0 | AG19: 0 | AH19: 0 | AJ19: 0 | AK19: 0 | AL19: 0 | AM19: 0.1 | AN19: 0.05 | AO19: 0 | AP19: 0 | AQ19: 0 | AR19: 0 | AS19: 0 | AT19: 0 | AU19: 0.05 | AV19: 0 | AW19: 0 | AX19: 0.3 | AY19: 0.2 | AZ19: 0 | BA19: 394.2923609 | BB19: 0 | BC19: 0 | BD19: 4102.596647 | BE19: 0 | BF19: 0 | BG19: 2365.754165 | BH19: 151.2029139 | BI19: 0 | BJ19: 24615.57988 | BK19: 6033.151231 | BL19: 0 | BM19: 13959.90567 | BN19: 0 | BO19: 0 | BP19: 83759.43402 | BQ19: 9813.224078 | BR19: 0 | BS19: 0 | BT19: 0 | BU19: 0 | BV19: 0 | BW19: 0 | BX19: 0 | CI19: =SUMIF('Results Database'!$E:$E,'Aggregate Summary'!AJ$4,'Results Database'!$EJ:$EJ)
A20: 16 | B20: Downhole Jetpump for Well Unloading | C20: 864.1861787 | D20: 11221.76891 | E20: 32826.42338 | F20: 786267.3263 | G20: 21261722.39 | H20: 40918405.55 | I20: 0.001099099695 | J20: 0.0005277920905 | K20: 0.0008022410193 | L20: 0 | M20: 0 | O20: 7885.847218 | P20: 756.0145694 | Q20: 2324.083206 | R20: 10965.94499 | S20: 9694.283683 | T20: 82051.93294 | U20: 30165.75615 | V20: 80151.09647 | W20: 192368.7856 | X20: 192368.7856 | Y20: 785915.3248 | Z20: 53.52948351 | AA20: 298.4720372 | AC20: 830177.5722 | AD20: 18960937.44 | AE20: 1470607.379 | AF20: 0 | AG20: 0 | AH20: 0 | AJ20: 0 | AK20: 0 | AL20: 0 | AM20: 0.1 | AN20: 0.1 | AO20: 0 | AP20: 0 | AQ20: 0 | AR20: 0 | AS20: 0 | AT20: 0 | AU20: 0.05 | AV20: 0.05 | AW20: 0 | AX20: 0.5 | AY20: 0.3 | AZ20: 0 | BA20: 394.2923609 | BB20: 37.80072847 | BC20: 0 | BD20: 4102.596647 | BE20: 1508.287808 | BF20: 0 | BG20: 3942.923609 | BH20: 226.8043708 | BI20: 0 | BJ20: 41025.96647 | BK20: 9049.726846 | BL20: 0 | BM20: 13959.90567 | BN20: 2453.306019 | BO20: 0 | BP20: 139599.0567 | BQ20: 14719.83612 | BR20: 0 | BS20: 0 | BT20: 0 | BU20: 0 | BV20: 0 | BW20: 0 | BX20: 0 | CI20: =SUMIF('Results Database'!$E:$E,'Aggregate Summary'!AJ$4,'Results Database'!$ES:$ES)
A21: 17 | B21: Monitor/repair leaking flare/vent control valves | C21: 45806.4627 | D21: 751926.9606 | E21: 1897088.528 | F21: 786267.3263 | G21: 21261722.39 | H21: 40918405.55 | I21: 0.05825812821 | J21: 0.03536528917 | K21: 0.04636271875 | L21: 0 | M21: 0 | O21: 68618.05407 | P21: 6622.328946 | Q21: 24920.05852 | R21: 100160.4415 | S21: 84072.34424 | T21: 934313.9299 | U21: 273340.861 | V21: 1046240.114 | W21: 2253894.905 | X21: 2253894.905 | Y21: 785915.3248 | Z21: 53.52948351 | AA21: 298.4720372 | AC21: 830177.5722 | AD21: 18960937.44 | AE21: 1470607.379 | AF21: 0 | AG21: 0 | AH21: 0 | AJ21: 0 | AK21: 0 | AL21: 0 | AM21: 0.6 | AN21: 0.7 | AO21: 0 | AP21: 0 | AQ21: 0 | AR21: 0 | AS21: 0 | AT21: 68 | AU21: 0.3 | AV21: 0.35 | AW21: 0 | AX21: 0.78 | AY21: 0.88 | AZ21: 0.06 | BA21: 20585.41622 | BB21: 2317.815131 | BC21: 0 | BD21: 280294.179 | BE21: 95669.30134 | BF21: 0 | BG21: 53522.08217 | BH21: 5827.649472 | BI21: 1495.203511 | BJ21: 728764.8653 | BK21: 240539.9577 | BL21: 62774.40685 | BM21: 794929.5845 | BN21: 153614.6796 | BO21: 0 | BP21: 2066816.92 | BQ21: 386231.1945 | BR21: 100154.4946 | BS21: 0 | BT21: 0 | BU21: 0 | BV21: 0 | BW21: 0 | BX21: 0 | CI21: =SUMIF('Results Database'!$E:$E,'Aggregate Summary'!AJ$4,'Results Database'!$FB:$FB)
A22: 18 | B22: Install redundant compression | C22: 47885.68435 | D22: 3071818.285 | E22: 4268960.394 | F22: 786267.3263 | G22: 21261722.39 | H22: 40918405.55 | I22: 0.06090254898 | J22: 0.1444764553 | K22: 0.1043286105 | L22: 0 | M22: 0 | O22: 110770.8501 | P22: 182681.0694 | Q22: 47553.63216 | R22: 341005.5516 | S22: 149418.1831 | T22: 2328171.863 | U22: 12101019.39 | V22: 2274273.96 | W22: 16703465.21 | X22: 16703465.21 | Y22: 785915.3248 | Z22: 53.52948351 | AA22: 298.4720372 | AC22: 830177.5722 | AD22: 18960937.44 | AE22: 1470607.379 | AF22: 0 | AG22: 0 | AH22: 0 | AJ22: 0 | AK22: 0 | AL22: 0 | AM22: 0.02 | AN22: 0.25 | AO22: 0 | AP22: 0 | AQ22: 0 | AR22: 0 | AS22: 0 | AT22: 28 | AU22: 0 | AV22: 0.1 | AW22: 0 | AX22: 0.25 | AY22: 0.5 | AZ22: 0 | BA22: 0 | BB22: 18268.10694 | BC22: 0 | BD22: 0 | BE22: 1210101.939 | BF22: 0 | BG22: 27692.71251 | BH22: 91340.5347 | BI22: 0 | BJ22: 582042.9657 | BK22: 6050509.696 | BL22: 0 | BM22: 0 | BN22: 1666804.613 | BO22: 0 | BP22: 1274360.779 | BQ22: 8334023.064 | BR22: 0 | BS22: 0 | BT22: 0 | BU22: 0 | BV22: 0 | BW22: 0 | BX22: 0 | CI22: =SUMIF('Results Database'!$E:$E,'Aggregate Summary'!AJ$4,'Results Database'!$FK:$FK)
A23: 19 | B23: Limit Monthly Vent Volume | C23: 2103.452324 | D23: 48.86020778 | E23: 52635.1683 | F23: 744616.2707 | G23: 18588046.16 | H23: 37203452.93 | I23: 0.002824880957 | J23: 2.628582228e-06 | K23: 0.001414792557 | L23: 1659781.592 | M23: 53188.60278 | O23: 0 | P23: 2103.452324 | Q23: 0 | R23: 2103.452324 | S23: 2103.452324 | T23: 0 | U23: 48.86020778 | V23: 0 | W23: 48.86020778 | X23: 48.86020778 | Y23: 744264.2692 | Z23: 53.52948351 | AA23: 298.4720372 | AC23: 794773.8336 | AD23: 17001996.11 | AE23: 791276.2111 | AF23: 0 | AG23: 0 | AH23: 53188.60278 | AJ23: 0 | AK23: 1659781.592 | AL23: 0 | AM23: 1 | AN23: 1 | AO23: 1 | AP23: 0 | AQ23: 1659781.592 | AR23: 0 | AS23: 1 | AT23: N/A | AU23: 1 | AV23: 1 | AW23: 1 | AX23: 1 | AY23: 1 | AZ23: 1 | BA23: 0 | BB23: 2103.452324 | BC23: 0 | BD23: 0 | BE23: 48.86020778 | BF23: 0 | BG23: 0 | BH23: 2103.452324 | BI23: 0 | BJ23: 0 | BK23: 48.86020778 | BL23: 0 | BM23: 0 | BN23: 52635.1683 | BO23: 0 | BP23: 0 | BQ23: 52635.1683 | BR23: 0 | BS23: 0 | BT23: 1659781.592 | BU23: 0 | BV23: 0 | BW23: 1659781.592 | BX23: 0 | CI23: =SUMIF('Results Database'!$E:$E,'Aggregate Summary'!AJ$4,'Results Database'!$FT:$FT)
B26: fixed | C26: 1085
B27: floater | C27: 121
B28: single well | C28: 827
C29: 2033
B31: Alternate Count | C31: 1784 | AS31: 681
AS32: 0
B34: Note: Adjusted means after applying percentages
B35: Note: Aggregate is before applying percentage adjustments
A37: Bubble Charts
C38: NPV
D39: Equivalent CO2 Reduced | E39: Number of Complexes with + NPV
B40: =B5 -> Reroute Gas Pig Trap Vent | C40: =L5 -> 0 | D40: =E5 -> 17167.1588 | E40: =AS5 -> 0 | AS40: 0
B41: =B6 -> Limit Monthly Flare Volume | C41: =L6 -> 629593162.1 | D41: =E6 -> 11800790.38 | E41: =AS6 -> 113 | AS41: 539
B42: Compressors Off - Maintain Pressure | C42: 7632130.816 | D42: 184996.1788 | E42: 640
B43: Compressors Off- Blowdown to fuel | C43: 0 | D43: 25588.95251 | E43: 0
B44: Compressor Static Seals | C44: 5110792.967 | D44: 303786.9598 | E44: 486
B45: Compressors Off - Install ejector | C45: 0 | D45: 36962.79408 | E45: 0
B46: Using Pipeline Pump-Down Techniques to Lower Gas Line Pressure before Maintenance | C46: 0 | D46: 5208.234612 | E46: 0
B47: Use Inert Gases and Pigs to Perform Pipeline Purges | C47: 0 | D47: 5208.234612 | E47: 0
B48: Reduced Emission Completions | C48: 49993079.74 | D48: 1142673.606 | E48: 189
B49: Foaming agents to Remove Accumulated Fluid in Gas wells | C49: 1554071.926 | D49: 63841.88425 | E49: 590 | AS49: 586
B50: Velocity tubing to Remove Accumulated Fluid in Gas Wells | C50: 0 | D50: 30916.88687 | E50: 0 | AS50: 0
B51: Install Flares | C51: 0 | D51: 715482.1478 | E51: 0
B52: Gas Lift Well to remove liquid accumulation | C52: 0 | D52: 34868.54159 | E52: 0
B53: Microturbines | C53: 0 | D53: 402977.5572 | E53: 0
B54: Electric submersible pump (ESP) to unload wells | C54: 0 | D54: 30373.11736 | E54: 0
B55: Downhole Jetpump for Well Unloading | C55: 0 | D55: 32826.42338 | E55: 0
B56: Monitor/repair leaking flare/vent control valves | C56: 0 | D56: 1897088.528 | E56: 0
B57: Install redundant compression | C57: 0 | D57: 4268960.394 | E57: 0
B58: Limit Monthly Vent Volume | C58: 1659781.592 | D58: 52635.1683 | E58: 1 | AS58: 43
AS59: 0
AS67: 0
AS68: 0
AS76: 0
AS77: 161
AS85: 214
AS86: 622
AS94: 665
AS95: 0
AS103: 0
AS104: 0
AS112: 4
AS113: 486
AS121: 569
AS122: 0
AS130: 0
AS131: 0
AS139: 0
AS140: 0
AS148: 0
AS149: 0
AS157: 174
AS158: 0
AS166: 32
AS167: 1
AS175: 0

Sheet Prod Low Case
A1: FINAL AGREGATE SUMMARY | E1: =CH4_factor -> 25 | H1: =E1 -> 25
C2: Aplicabiity Adjusted | D2: Aplicabiity Adjusted | E2: Aplicabiity Adjusted | F2: Adjusted | G2: Adjusted | H2: Adjusted | I2: Percent | J2: Percent | K2: Percent | L2: Adjusted | M2: Adjusted | O2: Aggregate | P2: Aggregate | Q2: Aggregate | R2: Aggregate | S2: Aggregate | T2: Aggregate | U2: Aggregate | V2: Aggregate | W2: Aggregate | X2: Aggregate | Y2: Aggregate | Z2: Aggregate | AA2: Aggregate | AB2: Aggregate | AC2: Aggregate | AD2: Aggregate | AE2: Aggregate | AF2: Oil | AG2: Oil | AH2: Oil
C3: Reduction | D3: Reduction | E3: Reduct Equivalent | F3: Existing | G3: Existing | H3: Equivalent CO2 | I3: Reduction | J3: Reduction | K3: Reduction | L3: NPV | M3: Oil | O3: Reduced Methane | P3: Reduced Methane | Q3: Reduced Methane | R3: Reduced Methane | S3: Methane | T3: Reduced CO2 | U3: Reduced CO2 | V3: Reduced CO2 | W3: Reduced CO2 | X3: CO2 | Y3: Exist Methane | Z3: Exist Methane | AA3: Exist Methane | AB3: Exist CO2 | AC3: Exist CO2 | AD3: Exist CO2 | AE3: Exist CO2 | AF3: Deferred | AG3: Deferred | AH3: Deferred | AJ3: Total NPV b/4 Ratios | AM3: Percent Applicable | AP3: Final NPV - Expected Value Case | AS3: # of Complexes | AT3: # of Complexes | AU3: Percent Applicable 10% Case | AX3: Percent Applicable 90% Case | BA3: Final NPV - 10% Case | BD3: Final NPV - 90% | BG3: Final Methane - 10% Case | BJ3: Final CO2 - 10% Case | BM3: Final Methane - 90% | BP3: Final CO2 - 90% | BS3: Final CO2 Equiv - 10% Case | BV3: Final CO2 Equiv - 90% Case
C4: Methane | D4: CO2 | E4: Total CO2 | F4: Methane | G4: CO2 | H4: Total | I4: Methane | J4: CO2 | K4: Equiv CO2 | L4: Savings | M4: Deferred | O4: =AJ4 -> fixed | P4: =AK4 -> floater | Q4: =AL4 -> single well | R4: Sum | S4: Check | T4: =AJ4 -> fixed | U4: =AK4 -> floater | V4: =AL4 -> single well | W4: Sum | X4: Check | Y4: =T4 -> fixed | Z4: =U4 -> floater | AA4: =V4 -> single well | AB4: =W4 -> Sum | AC4: =Y4 -> fixed | AD4: =Z4 -> floater | AE4: =AA4 -> single well | AF4: =AC4 -> fixed | AG4: =AD4 -> floater | AH4: =AE4 -> single well | AJ4: fixed | AK4: floater | AL4: single well | AM4: =AJ4 -> fixed | AN4: floater | AO4: single well | AP4: fixed | AQ4: floater | AR4: single well | AS4: > 0 NPV | AT4: > 0 NPV @ $49 SCOC | AU4: =AM4 -> fixed | AV4: =AN4 -> floater | AW4: single well | AX4: =AP4 -> fixed | AY4: =AQ4 -> floater | AZ4: single well | BA4: =AX4 -> fixed | BB4: floater | BC4: single well | BD4: fixed | BE4: floater | BF4: single well | BG4: fixed | BH4: floater | BI4: single well | BJ4: fixed | BK4: floater | BL4: single well | BM4: =BG4 -> fixed | BN4: floater | BO4: single well | BP4: fixed | BQ4: floater | BR4: single well | BS4: =BP4 -> fixed | BT4: floater | BU4: single well | BV4: fixed | BW4: floater | BX4: single well
A5: 1 | B5: Reroute Gas Pig Trap Vent | C5: 665.2824671 | D5: 543.8773709 | E5: 17175.93905 | F5: 757755.6684 | G5: 14011040.87 | H5: 32954932.58 | I5: 0.0008779643557 | J5: 3.881777062e-05 | K5: 0.0005211947864 | L5: -49268796.67 | M5: 0 | O5: 1146.189777 | P5: 229.7850627 | Q5: 776.8923547 | R5: 2152.867194 | S5: 1531.900418 | T5: 1203.185585 | U5: 69.55904118 | V5: 210.3314798 | W5: 1483.076106 | X5: 1483.076106 | Y5: 757475.7778 | Z5: 69.55904118 | AA5: 210.3314798 | AC5: 739776.6557 | AD5: 13013356.52 | AE5: 257907.7036 | AF5: 0 | AG5: 0 | AH5: 0 | AJ5: -93376746.5 | AK5: -13242331.19 | AL5: -61753219.26 | AM5: 0.4 | AN5: 0.9 | AO5: 0 | AP5: -37350698.6 | AQ5: -11918098.07 | AR5: 0 | AS5: 0 | AT5: 0 | AU5: 0.1 | AV5: 0.3 | AW5: 0 | AX5: 0.5 | AY5: 1 | AZ5: 0 | BA5: -3735069.86 | BB5: -3575429.421 | BC5: 0 | BD5: -18675349.3 | BE5: -11918098.07 | BF5: 0 | BG5: 114.6189777 | BH5: 68.9355188 | BI5: 0 | BJ5: 120.3185585 | BK5: 20.86771235 | BL5: 0 | BM5: 573.0948884 | BN5: 229.7850627 | BO5: 0 | BP5: 601.5927923 | BQ5: 69.55904118 | BR5: 0 | BS5: 2985.793001 | BT5: 1744.255682 | BU5: 0 | BV5: 14928.965 | BW5: 5814.185608 | BX5: 0 | CD5: =SUMIF('[161104-Financial Analysis_v11(low prod case).xlsm]Results Database'!$E:$E,'Aggregate Summary'!AJ$4,'[161104-Financial Analysis_v11(low prod case).xlsm]Results Database'!$N:$N)
A6: 2 | B6: Limit Monthly Flare Volume | C6: 93460.98806 | D6: 6288151.048 | E6: 8624675.749 | F6: 723336.7736 | G6: 13312196.53 | H6: 31395615.87 | I6: 0.1292081247 | J6: 0.4723601422 | K6: 0.2747095577 | L6: 484943875.8 | M6: 227494.4726 | O6: 1658.932845 | P6: 103292.5647 | Q6: 1294.62729 | R6: 106246.1248 | S6: 14778.44996 | T6: 111614.7017 | U6: 6949629.597 | V6: 87103.85072 | W6: 7148348.149 | X6: 7148348.149 | Y6: 723056.8831 | Z6: 69.55904118 | AA6: 210.3314798 | AC6: 711207.7561 | AD6: 12362596.94 | AE6: 238391.835 | AF6: 2137.10085 | AG6: 252059.2693 | AH6: 27432148.18 | AJ6: 6940039.656 | AK6: 536513182.1 | AL6: 5965085.301 | AM6: 0.3 | AN6: 0.9 | AO6: 0 | AP6: 2082011.897 | AQ6: 482861863.9 | AR6: 0 | AS6: 103 | AT6: N/A | AU6: 0.3 | AV6: 0.9 | AW6: 0 | AX6: 1 | AY6: 1 | AZ6: 1 | BA6: 624603.569 | BB6: 434575677.5 | BC6: 0 | BD6: 2082011.897 | BE6: 482861863.9 | BF6: 0 | BG6: 497.6798534 | BH6: 92963.30821 | BI6: 0 | BJ6: 33484.41051 | BK6: 6254666.637 | BL6: 0 | BM6: 1658.932845 | BN6: 103292.5647 | BO6: 1294.62729 | BP6: 111614.7017 | BQ6: 6949629.597 | BR6: 87103.85072 | BS6: 45926.40685 | BT6: 8578749.342 | BU6: 0 | BV6: 153088.0228 | BW6: 9531943.714 | BX6: 119469.533 | CD6: =SUMIF('[161104-Financial Analysis_v11(low prod case).xlsm]Results Database'!$E:$E,'Aggregate Summary'!AJ$4,'[161104-Financial Analysis_v11(low prod case).xlsm]Results Database'!$W:$W)
A7: 3 | B7: Compressors Off - Maintain Pressure | C7: 4331.372486 | D7: 66507.2687 | E7: 174791.5808 | F7: 757755.6684 | G7: 14011040.87 | H7: 32954932.58 | I7: 0.00571605422 | J7: 0.004746775725 | K7: 0.005303958077 | L7: 6718355.717 | M7: 0 | O7: 69421.7571 | P7: 8602.846304 | Q7: 15619.30754 | R7: 93643.91095 | S7: 76114.11248 | T7: 852075.5322 | U7: 239034.921 | V7: 324264.6466 | W7: 1415375.1 | X7: 1415375.1 | Y7: 757475.7778 | Z7: 69.55904118 | AA7: 210.3314798 | AC7: 739776.6557 | AD7: 13013356.52 | AE7: 257907.7036 | AF7: 0 | AG7: 0 | AH7: 0 | AJ7: 92614588.26 | AK7: 20876263.04 | AL7: 29962484.49 | AM7: 0.05 | AN7: 0.1 | AO7: 0 | AP7: 4630729.413 | AQ7: 2087626.304 | AR7: 0 | AS7: 610 | AT7: 632 | AU7: 0 | AV7: 0 | AW7: 0 | AX7: 0.28 | AY7: 0.5 | AZ7: 0 | BA7: 0 | BB7: 0 | BC7: 0 | BD7: 1296604.236 | BE7: 1043813.152 | BF7: 0 | BG7: 0 | BH7: 0 | BI7: 0 | BJ7: 0 | BK7: 0 | BL7: 0 | BM7: 19438.09199 | BN7: 4301.423152 | BO7: 0 | BP7: 238581.149 | BQ7: 119517.4605 | BR7: 0 | BS7: 0 | BT7: 0 | BU7: 0 | BV7: 724533.4487 | BW7: 227053.0393 | BX7: 0 | CD7: =SUMIF('[161104-Financial Analysis_v11(low prod case).xlsm]Results Database'!$E:$E,'Aggregate Summary'!AJ$4,'[161104-Financial Analysis_v11(low prod case).xlsm]Results Database'!$AF:$AF)
A8: 4 | B8: Compressors Off- Blowdown to fuel | C8: 754.5086397 | D8: 5889.470156 | E8: 24752.18615 | F8: 757755.6684 | G8: 14011040.87 | H8: 32954932.58 | I8: 0.0009957149398 | J8: 0.0004203449414 | K8: 0.0007510919977 | L8: -53210973.62 | M8: 0 | O8: 1245.723772 | P8: 70.77608685 | Q8: 218.0436136 | R8: 1534.543472 | S8: 1388.348043 | T8: 7223.599241 | U8: 1955.602626 | V8: 2757.407686 | W8: 11936.60955 | X8: 11936.60955 | Y8: 757475.7778 | Z8: 69.55904118 | AA8: 210.3314798 | AC8: 739776.6557 | AD8: 13013356.52 | AE8: 257907.7036 | AF8: 0 | AG8: 0 | AH8: 0 | AJ8: -76117326.03 | AK8: -11578004.39 | AL8: -45256562.24 | AM8: 0.55 | AN8: 0.98 | AO8: 0 | AP8: -41864529.31 | AQ8: -11346444.3 | AR8: 0 | AS8: 0 | AT8: 0 | AU8: 0.56 | AV8: 0.98 | AW8: 0 | AX8: 0.56 | AY8: 1 | AZ8: 0 | BA8: -23444136.42 | BB8: -11119515.42 | BC8: 0 | BD8: -23444136.42 | BE8: -11346444.3 | BF8: 0 | BG8: 697.6053123 | BH8: 69.36056511 | BI8: 0 | BJ8: 4045.215575 | BK8: 1916.490573 | BL8: 0 | BM8: 697.6053123 | BN8: 70.77608685 | BO8: 0 | BP8: 4045.215575 | BQ8: 1955.602626 | BR8: 0 | BS8: 21485.34838 | BT8: 3650.504701 | BU8: 0 | BV8: 21485.34838 | BW8: 3725.004797 | BX8: 0 | CD8: =SUMIF('[161104-Financial Analysis_v11(low prod case).xlsm]Results Database'!$E:$E,'Aggregate Summary'!AJ$4,'[161104-Financial Analysis_v11(low prod case).xlsm]Results Database'!$AO:$AO)
A9: 5 | B9: Compressor Static Seals | C9: 8589.395677 | D9: 74883.96853 | E9: 289618.8605 | F9: 757755.6684 | G9: 14011040.87 | H9: 32954932.58 | I9: 0.01133531036 | J9: 0.005344639931 | K9: 0.008788331146 | L9: -150001.6456 | M9: 0 | O9: 33288.18165 | P9: 2673.502637 | Q9: 6642.738493 | R9: 42604.42278 | S9: 37069.55392 | T9: 269866.654 | U9: 74173.05025 | V9: 103457.8917 | W9: 447497.596 | X9: 447497.596 | Y9: 757475.7778 | Z9: 69.55904118 | AA9: 210.3314798 | AC9: 739776.6557 | AD9: 13013356.52 | AE9: 257907.7036 | AF9: 0 | AG9: 0 | AH9: 0 | AJ9: -1069814.894 | AK9: 1174520.779 | AL9: -10363098.94 | AM9: 0.25 | AN9: 0.1 | AO9: 0 | AP9: -267453.7235 | AQ9: 117452.0779 | AR9: 0 | AS9: 319 | AT9: 376 | AU9: 0.1 | AV9: 0.05 | AW9: 0 | AX9: 0.56 | AY9: 0.25 | AZ9: 0 | BA9: -26745.37235 | BB9: 5872.603897 | BC9: 0 | BD9: -149774.0852 | BE9: 29363.01949 | BF9: 0 | BG9: 3328.818165 | BH9: 133.6751319 | BI9: 0 | BJ9: 26986.6654 | BK9: 3708.652513 | BL9: 0 | BM9: 18641.38173 | BN9: 668.3756593 | BO9: 0 | BP9: 151125.3262 | BQ9: 18543.26256 | BR9: 0 | BS9: 110207.1195 | BT9: 7050.530809 | BU9: 0 | BV9: 617159.8694 | BW9: 35252.65405 | BX9: 0 | CD9: =SUMIF('[161104-Financial Analysis_v11(low prod case).xlsm]Results Database'!$E:$E,'Aggregate Summary'!AJ$4,'[161104-Financial Analysis_v11(low prod case).xlsm]Results Database'!$AX:$AX)
A10: 6 | B10: Compressors Off - Install ejector | C10: 944.3002114 | D10: 12908.84887 | E10: 36516.35416 | F10: 757755.6684 | G10: 14011040.87 | H10: 32954932.58 | I10: 0.001246180333 | J10: 0.0009213340386 | K10: 0.001108069454 | L10: -8282702.994 | M10: 0 | O10: 12497.06042 | P10: 798.6179753 | Q10: 2279.206976 | R10: 15574.88538 | S10: 13915.79937 | T10: 80409.71403 | U10: 22220.90793 | V10: 30189.84033 | W10: 132820.4623 | X10: 132820.4623 | Y10: 757475.7778 | Z10: 69.55904118 | AA10: 210.3314798 | AC10: 739776.6557 | AD10: 13013356.52 | AE10: 257907.7036 | AF10: 0 | AG10: 0 | AH10: 0 | AJ10: -80739279.16 | AK10: -10614347.59 | AL10: -55070859.46 | AM10: 0.05 | AN10: 0.4 | AO10: 0 | AP10: -4036963.958 | AQ10: -4245739.036 | AR10: 0 | AS10: 0 | AT10: 43 | AU10: 0 | AV10: 0 | AW10: 0 | AX10: 0.1 | AY10: 0.5 | AZ10: 0 | BA10: 0 | BB10: 0 | BC10: 0 | BD10: -403696.3958 | BE10: -2122869.518 | BF10: 0 | BG10: 0 | BH10: 0 | BI10: 0 | BJ10: 0 | BK10: 0 | BL10: 0 | BM10: 1249.706042 | BN10: 399.3089877 | BO10: 0 | BP10: 8040.971403 | BQ10: 11110.45397 | BR10: 0 | BS10: 0 | BT10: 0 | BU10: 0 | BV10: 39283.62246 | BW10: 21093.17866 | BX10: 0 | CD10: =SUMIF('[161104-Financial Analysis_v11(low prod case).xlsm]Results Database'!$E:$E,'Aggregate Summary'!AJ$4,'[161104-Financial Analysis_v11(low prod case).xlsm]Results Database'!$BG:$BG)
A11: 7 | B11: Using Pipeline Pump-Down Techniques to Lower Gas Line Pressure before Maintenance | C11: 143.6005238 | D11: 1282.380272 | E11: 4872.393366 | F11: 757755.6684 | G11: 14011040.87 | H11: 32954932.58 | I11: 0.0001895076867 | J11: 9.152641002e-05 | K11: 0.0001478501998 | L11: -3992554.866 | M11: 0 | O11: 599.6775442 | P11: 36.75160533 | Q11: 105.7842451 | R11: 742.2133946 | S11: 666.9655891 | T11: 3601.921542 | U11: 988.7606427 | V11: 1352.312842 | W11: 5942.995027 | X11: 5942.995027 | Y11: 757475.7778 | Z11: 69.55904118 | AA11: 210.3314798 | AC11: 739776.6557 | AD11: 13013356.52 | AE11: 257907.7036 | AF11: 0 | AG11: 0 | AH11: 0 | AJ11: -12359131.73 | AK11: -2212372.529 | AL11: -8290845.125 | AM11: 0.2 | AN11: 0.5 | AO11: 0.05 | AP11: -2471826.345 | AQ11: -1106186.265 | AR11: -414542.2562 | AS11: 0 | AT11: 0 | AU11: 0 | AV11: 0.1 | AW11: 0 | AX11: 0.47 | AY11: 0.9 | AZ11: 0.15 | BA11: 0 | BB11: -110618.6265 | BC11: 0 | BD11: -1161758.382 | BE11: -995567.6382 | BF11: -62181.33844 | BG11: 0 | BH11: 3.675160533 | BI11: 0 | BJ11: 0 | BK11: 98.87606427 | BL11: 0 | BM11: 281.8484458 | BN11: 33.0764448 | BO11: 15.86763676 | BP11: 1692.903125 | BQ11: 889.8845784 | BR11: 202.8469263 | BS11: 0 | BT11: 190.7550776 | BU11: 0 | BV11: 8739.114269 | BW11: 1716.795698 | BX11: 599.5378454 | CD11: =SUMIF('[161104-Financial Analysis_v11(low prod case).xlsm]Results Database'!$E:$E,'Aggregate Summary'!AJ$4,'[161104-Financial Analysis_v11(low prod case).xlsm]Results Database'!$BP:$BP)
A12: 8 | B12: Use Inert Gases and Pigs to Perform Pipeline Purges | C12: 143.6005238 | D12: 1282.380272 | E12: 4872.393366 | F12: 757755.6684 | G12: 14011040.87 | H12: 32954932.58 | I12: 0.0001895076867 | J12: 9.152641002e-05 | K12: 0.0001478501998 | L12: -6760228.905 | M12: 0 | O12: 599.6775442 | P12: 36.75160533 | Q12: 105.7842451 | R12: 742.2133946 | S12: 666.9655891 | T12: 3601.921542 | U12: 988.7606427 | V12: 1352.312842 | W12: 5942.995027 | X12: 5942.995027 | Y12: 757475.7778 | Z12: 69.55904118 | AA12: 210.3314798 | AC12: 739776.6557 | AD12: 13013356.52 | AE12: 257907.7036 | AF12: 0 | AG12: 0 | AH12: 0 | AJ12: -20953840.14 | AK12: -3747061.404 | AL12: -13918603.5 | AM12: 0.2 | AN12: 0.5 | AO12: 0.05 | AP12: -4190768.028 | AQ12: -1873530.702 | AR12: -695930.175 | AS12: 0 | AT12: 0 | AU12: 0 | AV12: 0.1 | AW12: 0 | AX12: 0.47 | AY12: 0.9 | AZ12: 0.15 | BA12: 0 | BB12: -187353.0702 | BC12: 0 | BD12: -1969660.973 | BE12: -1686177.632 | BF12: -104389.5262 | BG12: 0 | BH12: 3.675160533 | BI12: 0 | BJ12: 0 | BK12: 98.87606427 | BL12: 0 | BM12: 281.8484458 | BN12: 33.0764448 | BO12: 15.86763676 | BP12: 1692.903125 | BQ12: 889.8845784 | BR12: 202.8469263 | BS12: 0 | BT12: 190.7550776 | BU12: 0 | BV12: 8739.114269 | BW12: 1716.795698 | BX12: 599.5378454 | CD12: =SUMIF('[161104-Financial Analysis_v11(low prod case).xlsm]Results Database'!$E:$E,'Aggregate Summary'!AJ$4,'[161104-Financial Analysis_v11(low prod case).xlsm]Results Database'!$BY:$BY)
A13: 9 | B13: Reduced Emission Completions | C13: 17561.4973 | D13: 629369.061 | E13: 1068406.493 | F13: 757755.6684 | G13: 14011040.87 | H13: 32954932.58 | I13: 0.02317567262 | J13: 0.04491950788 | K13: 0.03242022998 | L13: 27049237.94 | M13: 0 | O13: 19999.26879 | P13: 25123.3602 | Q13: 4461.369907 | R13: 49583.9989 | S13: 22079.64073 | T13: 390487.4264 | U13: 1063494.409 | V13: 120942.6245 | W13: 1574924.46 | X13: 1574924.46 | Y13: 757475.7778 | Z13: 69.55904118 | AA13: 210.3314798 | AC13: 739776.6557 | AD13: 13013356.52 | AE13: 257907.7036 | AF13: 0 | AG13: 0 | AH13: 0 | AJ13: -46993730.78 | AK13: 77595341.27 | AL13: -42312944.32 | AM13: 0.25 | AN13: 0.5 | AO13: 0 | AP13: -11748432.69 | AQ13: 38797670.64 | AR13: 0 | AS13: 145 | AT13: 244 | AU13: 0 | AV13: 0.1 | AW13: 0 | AX13: 0.4 | AY13: 0.8 | AZ13: 0.1 | BA13: 0 | BB13: 3879767.064 | BC13: 0 | BD13: -4699373.078 | BE13: 31038136.51 | BF13: 0 | BG13: 0 | BH13: 2512.33602 | BI13: 0 | BJ13: 0 | BK13: 106349.4409 | BL13: 0 | BM13: 7999.707516 | BN13: 20098.68816 | BO13: 446.1369907 | BP13: 156194.9705 | BQ13: 850795.5271 | BR13: 12094.26245 | BS13: 0 | BT13: 169157.8414 | BU13: 0 | BV13: 356187.6584 | BW13: 1353262.731 | BX13: 23247.68722 | CD13: =SUMIF('[161104-Financial Analysis_v11(low prod case).xlsm]Results Database'!$E:$E,'Aggregate Summary'!AJ$4,'[161104-Financial Analysis_v11(low prod case).xlsm]Results Database'!$CH:$CH)
A14: 10 | B14: Foaming agents to Remove Accumulated Fluid in Gas wells | C14: 1547.92182 | D14: 18289.90901 | E14: 56987.9545 | F14: 757755.6684 | G14: 14011040.87 | H14: 32954932.58 | I14: 0.00204277168 | J14: 0.001305392595 | K14: 0.00172926934 | L14: 752927.5655 | M14: 0 | O14: 8323.014733 | P14: 1175.324882 | Q14: 1819.371216 | R14: 11317.71083 | S14: 9649.531496 | T14: 82433.51982 | U14: 13483.27517 | V14: 45765.53518 | W14: 141682.3302 | X14: 141682.3302 | Y14: 757475.7778 | Z14: 69.55904118 | AA14: 210.3314798 | AC14: 739776.6557 | AD14: 13013356.52 | AE14: 257907.7036 | AF14: 0 | AG14: 0 | AH14: 0 | AJ14: 4313510.197 | AK14: 549001.3099 | AL14: 510009.0506 | AM14: 0.15 | AN14: 0.1 | AO14: 0.1 | AP14: 647026.5295 | AQ14: 54900.13099 | AR14: 51000.90506 | AS14: 445 | AT14: 535 | AU14: 0.05 | AV14: 0 | AW14: 0.05 | AX14: 0.6 | AY14: 0.3 | AZ14: 0.15 | BA14: 32351.32648 | BB14: 0 | BC14: 2550.045253 | BD14: 388215.9177 | BE14: 16470.0393 | BF14: 7650.135759 | BG14: 416.1507367 | BH14: 0 | BI14: 90.96856078 | BJ14: 4121.675991 | BK14: 0 | BL14: 2288.276759 | BM14: 4993.80884 | BN14: 352.5974647 | BO14: 272.9056823 | BP14: 49460.11189 | BQ14: 4044.982551 | BR14: 6864.830277 | BS14: 14525.44441 | BT14: 0 | BU14: 4562.490778 | BV14: 174305.3329 | BW14: 12859.91917 | BX14: 13687.47234 | CD14: =SUMIF('[161104-Financial Analysis_v11(low prod case).xlsm]Results Database'!$E:$E,'Aggregate Summary'!AJ$4,'[161104-Financial Analysis_v11(low prod case).xlsm]Results Database'!$CQ:$CQ)
A15: 11 | B15: Velocity tubing to Remove Accumulated Fluid in Gas Wells | C15: 654.0727191 | D15: 8685.210546 | E15: 25037.02852 | F15: 757755.6684 | G15: 14011040.87 | H15: 32954932.58 | I15: 0.0008631710015 | J15: 0.0006198833208 | K15: 0.000759735389 | L15: -1016922868 | M15: 0 | O15: 8245.321616 | P15: 1386.647572 | Q15: 1724.742597 | R15: 11356.71179 | S15: 9477.20976 | T15: 79602.32849 | U15: 14797.58643 | V15: 39652.148 | W15: 134052.0629 | X15: 134052.0629 | Y15: 757475.7778 | Z15: 69.55904118 | AA15: 210.3314798 | AC15: 739776.6557 | AD15: 13013356.52 | AE15: 257907.7036 | AF15: 0 | AG15: 0 | AH15: 0 | AJ15: -8515345057 | AK15: -1164845538 | AL15: -5329133382 | AM15: 0.05 | AN15: 0.05 | AO15: 0.1 | AP15: -425767252.9 | AQ15: -58242276.91 | AR15: -532913338.2 | AS15: 0 | AT15: 0 | AU15: 0 | AV15: 0 | AW15: 0 | AX15: 0.25 | AY15: 0.15 | AZ15: 0 | BA15: 0 | BB15: 0 | BC15: 0 | BD15: -106441813.2 | BE15: -8736341.537 | BF15: 0 | BG15: 0 | BH15: 0 | BI15: 0 | BJ15: 0 | BK15: 0 | BL15: 0 | BM15: 2061.330404 | BN15: 207.9971359 | BO15: 0 | BP15: 19900.58212 | BQ15: 2219.637965 | BR15: 0 | BS15: 0 | BT15: 0 | BU15: 0 | BV15: 71433.84222 | BW15: 7419.566362 | BX15: 0 | CD15: =SUMIF('[161104-Financial Analysis_v11(low prod case).xlsm]Results Database'!$E:$E,'Aggregate Summary'!AJ$4,'[161104-Financial Analysis_v11(low prod case).xlsm]Results Database'!$CZ:$CZ)
A16: 12 | B16: Install Flares | C16: 29850.92763 | D16: -41860.76291 | E16: 704412.4279 | F16: 757755.6684 | G16: 14011040.87 | H16: 32954932.58 | I16: 0.03939386913 | J16: -0.002987698293 | K16: 0.02137502257 | L16: -379325773 | M16: 0 | O16: 149254.6382 | P16: 51660.80874 | Q16: 36477.72589 | R16: 237393.1728 | S16: 135585.0045 | T16: -209303.8145 | U16: -47020.44173 | V16: -43667.49109 | W16: -299991.7473 | X16: -299991.7473 | Y16: 757475.7778 | Z16: 69.55904118 | AA16: 210.3314798 | AC16: 739776.6557 | AD16: 13013356.52 | AE16: 257907.7036 | AF16: 0 | AG16: 0 | AH16: 0 | AJ16: -1896628865 | AK16: -253486098.1 | AL16: -1211998945 | AM16: 0.2 | AN16: 0 | AO16: 0 | AP16: -379325773 | AQ16: 0 | AR16: 0 | AS16: 0 | AT16: 4 | AU16: 0 | AV16: 0 | AW16: 0 | AX16: 0.35 | AY16: 0 | AZ16: 0 | BA16: 0 | BB16: 0 | BC16: 0 | BD16: -132764020.6 | BE16: 0 | BF16: 0 | BG16: 0 | BH16: 0 | BI16: 0 | BJ16: 0 | BK16: 0 | BL16: 0 | BM16: 52239.12336 | BN16: 0 | BO16: 0 | BP16: -73256.33509 | BQ16: 0 | BR16: 0 | BS16: 0 | BT16: 0 | BU16: 0 | BV16: 1232721.749 | BW16: 0 | BX16: 0 | CD16: =SUMIF('[161104-Financial Analysis_v11(low prod case).xlsm]Results Database'!$E:$E,'Aggregate Summary'!AJ$4,'[161104-Financial Analysis_v11(low prod case).xlsm]Results Database'!$DI:$DI)
A17: 13 | B17: Gas Lift Well to remove liquid accumulation | C17: 955.3980251 | D17: 9545.232376 | E17: 33430.183 | F17: 757755.6684 | G17: 14011040.87 | H17: 32954932.58 | I17: 0.001260825969 | J17: 0.0006812650439 | K17: 0.001014421223 | L17: -9035204.864 | M17: 0 | O17: 8300.537103 | P17: 1253.443148 | Q17: 1787.744922 | R17: 11341.72517 | S17: 9595.427573 | T17: 81552.0576 | U17: 13900.26616 | V17: 43722.35005 | W17: 139174.6738 | X17: 139174.6738 | Y17: 757475.7778 | Z17: 69.55904118 | AA17: 210.3314798 | AC17: 739776.6557 | AD17: 13013356.52 | AE17: 257907.7036 | AF17: 0 | AG17: 0 | AH17: 0 | AJ17: -79721711.79 | AK17: -10630336.85 | AL17: -52031521.36 | AM17: 0.1 | AN17: 0.1 | AO17: 0 | AP17: -7972171.179 | AQ17: -1063033.685 | AR17: 0 | AS17: 0 | AT17: 0 | AU17: 0.05 | AV17: 0.05 | AW17: 0 | AX17: 0.5 | AY17: 0.3 | AZ17: 0 | BA17: -398608.5589 | BB17: -53151.68425 | BC17: 0 | BD17: -3986085.589 | BE17: -318910.1055 | BF17: 0 | BG17: 415.0268551 | BH17: 62.67215739 | BI17: 0 | BJ17: 4077.60288 | BK17: 695.013308 | BL17: 0 | BM17: 4150.268551 | BN17: 376.0329443 | BO17: 0 | BP17: 40776.0288 | BQ17: 4170.079848 | BR17: 0 | BS17: 14453.27426 | BT17: 2261.817243 | BU17: 0 | BV17: 144532.7426 | BW17: 13570.90346 | BX17: 0 | CD17: =SUMIF('[161104-Financial Analysis_v11(low prod case).xlsm]Results Database'!$E:$E,'Aggregate Summary'!AJ$4,'[161104-Financial Analysis_v11(low prod case).xlsm]Results Database'!$DR:$DR)
